Workbook

Sheet Standings
C1: Segment 1 | N1: Segment 2 | AA1: Segment 3 | AL1: Segment 4
A2: Player | B2: Sort | C2: =Schedule!E5 -> Daytona | D2: =Schedule!E6 -> Daytona (RC) | E2: =Schedule!E7 -> Homestead | F2: =Schedule!E8 -> Las Vegas | G2: =Schedule!E9 -> Phoenix | H2: =Schedule!E10 -> Atlanta | I2: =Schedule!E11 -> Bristol | J2: =Schedule!E12 -> Martinsville | K2: Purchased Points | L2: Segment Total | M2: Points Behind | N2: =Schedule!E13 -> Richmond | O2: =Schedule!E14 -> Talladega | P2: =Schedule!E15 -> Kansas | Q2: =Schedule!E16 -> Darlington | R2: =Schedule!E17 -> Dover | S2: =Schedule!E18 -> COTA | T2: =Schedule!E19 -> Charlotte | U2: =Schedule!E20 -> Sonoma | V2: =Schedule!E21 -> Nashville | W2: =Schedule!E22 -> Pocono | X2: Purchased Points | Y2: Segment Total | Z2: Points Behind | AA2: =Schedule!E23 -> Pocono | AB2: =Schedule!E24 -> Road America | AC2: =Schedule!E25 -> Atlanta | AD2: =Schedule!E26 -> New Hamp | AE2: =Schedule!E27 -> Watkins Glen | AF2: =Schedule!E28 -> Indianapolis | AG2: =Schedule!E29 -> Michigan | AH2: =Schedule!E30 -> Daytona | AI2: Purchased Points | AJ2: Segment Total | AK2: Points Behind | AL2: =Schedule!E31 -> Darlington | AM2: =Schedule!E32 -> Richmond | AN2: =Schedule!E33 -> Bristol | AO2: =Schedule!E34 -> Las Vegas | AP2: =Schedule!E35 -> Talladega | AQ2: =Schedule!E36 -> Charlotte | AR2: =Schedule!E37 -> Texas | AS2: =Schedule!E38 -> Kansas | AT2: =Schedule!E39 -> Martinsville | AU2: =Schedule!E40 -> Phoenix | AV2: Purchased Points | AW2: Segment Total | AX2: Points Behind | AY2: Segment 1 Score | AZ2: Segment 2 Score | BA2: Segment 3 Score | BB2: Segment 4 Score | BC2: YTD Score | BD2: YTD Behind
A3: Doug Gebauer | B3: =MID(A3,FIND(" ", A3)+1,LEN(A3))&", "&LEFT(A3,FIND(" ",A3)-1) -> Gebauer, Doug | C3: =INDIRECT(ADDRESS(22,COLUMN('Doug Gebauer'!$AO$22)+('Doug Gebauer'!B$6-1)*2,1,1,"Doug Gebauer")) -> 187 | D3: =INDIRECT(ADDRESS(22,COLUMN('Doug Gebauer'!$AO$22)+('Doug Gebauer'!C$6-1)*2,1,1,"Doug Gebauer")) -> 371.5 | E3: =INDIRECT(ADDRESS(22,COLUMN('Doug Gebauer'!$AO$22)+('Doug Gebauer'!D$6-1)*2,1,1,"Doug Gebauer")) -> 380 | F3: =INDIRECT(ADDRESS(22,COLUMN('Doug Gebauer'!$AO$22)+('Doug Gebauer'!E$6-1)*2,1,1,"Doug Gebauer")) -> 266.5 | G3: =INDIRECT(ADDRESS(22,COLUMN('Doug Gebauer'!$AO$22)+('Doug Gebauer'!F$6-1)*2,1,1,"Doug Gebauer")) -> 234 | H3: =INDIRECT(ADDRESS(22,COLUMN('Doug Gebauer'!$AO$22)+('Doug Gebauer'!G$6-1)*2,1,1,"Doug Gebauer")) -> 362.5 | I3: =INDIRECT(ADDRESS(22,COLUMN('Doug Gebauer'!$AO$22)+('Doug Gebauer'!H$6-1)*2,1,1,"Doug Gebauer")) -> 242 | J3: =INDIRECT(ADDRESS(22,COLUMN('Doug Gebauer'!$AO$22)+('Doug Gebauer'!I$6-1)*2,1,1,"Doug Gebauer")) -> 316 | K3: 0 | L3: =SUM(C3:K3)+K3 -> 2359.5 | M3: =L3-$L$3 -> 0 | N3: =INDIRECT(ADDRESS(22,COLUMN('Doug Gebauer'!$AO$22)+('Doug Gebauer'!J$6-1)*2,1,1,"Doug Gebauer")) -> 388.5 | O3: =INDIRECT(ADDRESS(22,COLUMN('Doug Gebauer'!$AO$22)+('Doug Gebauer'!K$6-1)*2,1,1,"Doug Gebauer")) -> 269.25 | P3: =INDIRECT(ADDRESS(22,COLUMN('Doug Gebauer'!$AO$22)+('Doug Gebauer'!L$6-1)*2,1,1,"Doug Gebauer")) -> 270 | Q3: =INDIRECT(ADDRESS(22,COLUMN('Doug Gebauer'!$AO$22)+('Doug Gebauer'!M$6-1)*2,1,1,"Doug Gebauer")) -> 258 | R3: =INDIRECT(ADDRESS(22,COLUMN('Doug Gebauer'!$AO$22)+('Doug Gebauer'!N$6-1)*2,1,1,"Doug Gebauer")) -> 252.5 | S3: =INDIRECT(ADDRESS(22,COLUMN('Doug Gebauer'!$AO$22)+('Doug Gebauer'!O$6-1)*2,1,1,"Doug Gebauer")) -> 333.5 | T3: =INDIRECT(ADDRESS(22,COLUMN('Doug Gebauer'!$AO$22)+('Doug Gebauer'!P$6-1)*2,1,1,"Doug Gebauer")) -> 315 | U3: =INDIRECT(ADDRESS(22,COLUMN('Doug Gebauer'!$AO$22)+('Doug Gebauer'!Q$6-1)*2,1,1,"Doug Gebauer")) -> 210 | V3: =INDIRECT(ADDRESS(22,COLUMN('Doug Gebauer'!$AO$22)+('Doug Gebauer'!R$6-1)*2,1,1,"Doug Gebauer")) -> 313 | W3: =INDIRECT(ADDRESS(22,COLUMN('Doug Gebauer'!$AO$22)+('Doug Gebauer'!S$6-1)*2,1,1,"Doug Gebauer")) -> 295 | X3: 100 | Y3: =SUM(N3:V3)+W3 -> 2904.75 | Z3: =Y3-$Y$3 -> 0 | AA3: =INDIRECT(ADDRESS(22,COLUMN('Doug Gebauer'!$AO$22)+('Doug Gebauer'!T$6-1)*2,1,1,"Doug Gebauer")) -> 259 | AB3: =INDIRECT(ADDRESS(22,COLUMN('Doug Gebauer'!$AO$22)+('Doug Gebauer'!U$6-1)*2,1,1,"Doug Gebauer")) -> 253.5 | AC3: =INDIRECT(ADDRESS(22,COLUMN('Doug Gebauer'!$AO$22)+('Doug Gebauer'!V$6-1)*2,1,1,"Doug Gebauer")) -> 230 | AD3: =INDIRECT(ADDRESS(22,COLUMN('Doug Gebauer'!$AO$22)+('Doug Gebauer'!W$6-1)*2,1,1,"Doug Gebauer")) -> 333 | AE3: =INDIRECT(ADDRESS(22,COLUMN('Doug Gebauer'!$AO$22)+('Doug Gebauer'!X$6-1)*2,1,1,"Doug Gebauer")) -> 347 | AF3: =INDIRECT(ADDRESS(22,COLUMN('Doug Gebauer'!$AO$22)+('Doug Gebauer'!Y$6-1)*2,1,1,"Doug Gebauer")) -> 612.5 | AG3: =INDIRECT(ADDRESS(22,COLUMN('Doug Gebauer'!$AO$22)+('Doug Gebauer'!Z$6-1)*2,1,1,"Doug Gebauer")) -> 193 | AH3: =INDIRECT(ADDRESS(22,COLUMN('Doug Gebauer'!$AO$22)+('Doug Gebauer'!AA$6-1)*2,1,1,"Doug Gebauer")) -> 210 | AI3: 0 | AJ3: =SUM(AA3:AH3)+AI3 -> 2438 | AK3: =AJ3-$AJ$3 -> 0 | AL3: =INDIRECT(ADDRESS(22,COLUMN('Doug Gebauer'!$AO$22)+('Doug Gebauer'!AB$6-1)*2,1,1,"Doug Gebauer")) -> 0 | AM3: =INDIRECT(ADDRESS(22,COLUMN('Doug Gebauer'!$AO$22)+('Doug Gebauer'!AC$6-1)*2,1,1,"Doug Gebauer")) -> 0 | AN3: =INDIRECT(ADDRESS(22,COLUMN('Doug Gebauer'!$AO$22)+('Doug Gebauer'!AD$6-1)*2,1,1,"Doug Gebauer")) -> 0 | AO3: =INDIRECT(ADDRESS(22,COLUMN('Doug Gebauer'!$AO$22)+('Doug Gebauer'!AE$6-1)*2,1,1,"Doug Gebauer")) -> 0 | AP3: =INDIRECT(ADDRESS(22,COLUMN('Doug Gebauer'!$AO$22)+('Doug Gebauer'!AF$6-1)*2,1,1,"Doug Gebauer")) -> 0 | AQ3: =INDIRECT(ADDRESS(22,COLUMN('Doug Gebauer'!$AO$22)+('Doug Gebauer'!AG$6-1)*2,1,1,"Doug Gebauer")) -> 0 | AR3: =INDIRECT(ADDRESS(22,COLUMN('Doug Gebauer'!$AO$22)+('Doug Gebauer'!AH$6-1)*2,1,1,"Doug Gebauer")) -> 0 | AS3: =INDIRECT(ADDRESS(22,COLUMN('Doug Gebauer'!$AO$22)+('Doug Gebauer'!AI$6-1)*2,1,1,"Doug Gebauer")) -> 0 | AT3: =INDIRECT(ADDRESS(22,COLUMN('Doug Gebauer'!$AO$22)+('Doug Gebauer'!AJ$6-1)*2,1,1,"Doug Gebauer")) -> 0 | AU3: =INDIRECT(ADDRESS(22,COLUMN('Doug Gebauer'!$AO$22)+('Doug Gebauer'!AK$6-1)*2,1,1,"Doug Gebauer")) -> 0 | AV3: 0 | AW3: =SUM(AL3:AU3)+AV3 -> 0 | AX3: =AW3-$AW$3 -> 0 | AY3: ='Doug Gebauer'!$DI$22 -> 2043.5 | AZ3: ='Doug Gebauer'!$DJ$22 -> 2904.75 | BA3: ='Doug Gebauer'!$DK$22 -> 2438 | BB3: ='Doug Gebauer'!$AI$22 -> 0 | BC3: =SUM(AY3:BB3) -> 7386.25 | BD3: =BC3-$BC$3 -> 0
A4: Brad McLean | B4: =MID(A4,FIND(" ", A4)+1,LEN(A4))&", "&LEFT(A4,FIND(" ",A4)-1) -> McLean, Brad | C4: =INDIRECT(ADDRESS(22,COLUMN('Brad McLean'!$AO$22)+('Brad McLean'!B$6-1)*2,1,1,"Brad McLean")) -> 402 | D4: =INDIRECT(ADDRESS(22,COLUMN('Brad McLean'!$AO$22)+('Brad McLean'!C$6-1)*2,1,1,"Brad McLean")) -> 417.5 | E4: =INDIRECT(ADDRESS(22,COLUMN('Brad McLean'!$AO$22)+('Brad McLean'!D$6-1)*2,1,1,"Brad McLean")) -> 412 | F4: =INDIRECT(ADDRESS(22,COLUMN('Brad McLean'!$AO$22)+('Brad McLean'!E$6-1)*2,1,1,"Brad McLean")) -> 381.5 | G4: =INDIRECT(ADDRESS(22,COLUMN('Brad McLean'!$AO$22)+('Brad McLean'!F$6-1)*2,1,1,"Brad McLean")) -> 212 | H4: =INDIRECT(ADDRESS(22,COLUMN('Brad McLean'!$AO$22)+('Brad McLean'!G$6-1)*2,1,1,"Brad McLean")) -> 301.75 | I4: =INDIRECT(ADDRESS(22,COLUMN('Brad McLean'!$AO$22)+('Brad McLean'!H$6-1)*2,1,1,"Brad McLean")) -> 247 | J4: =INDIRECT(ADDRESS(22,COLUMN('Brad McLean'!$AO$22)+('Brad McLean'!I$6-1)*2,1,1,"Brad McLean")) -> 377 | K4: 0 | L4: =SUM(C4:K4)+K4 -> 2750.75 | M4: =L4-$L$3 -> 391.25 | N4: =INDIRECT(ADDRESS(22,COLUMN('Brad McLean'!$AO$22)+('Brad McLean'!J$6-1)*2,1,1,"Brad McLean")) -> 265.5 | O4: =INDIRECT(ADDRESS(22,COLUMN('Brad McLean'!$AO$22)+('Brad McLean'!K$6-1)*2,1,1,"Brad McLean")) -> 274.25 | P4: =INDIRECT(ADDRESS(22,COLUMN('Brad McLean'!$AO$22)+('Brad McLean'!L$6-1)*2,1,1,"Brad McLean")) -> 288.5 | Q4: =INDIRECT(ADDRESS(22,COLUMN('Brad McLean'!$AO$22)+('Brad McLean'!M$6-1)*2,1,1,"Brad McLean")) -> 240 | R4: =INDIRECT(ADDRESS(22,COLUMN('Brad McLean'!$AO$22)+('Brad McLean'!N$6-1)*2,1,1,"Brad McLean")) -> 158 | S4: =INDIRECT(ADDRESS(22,COLUMN('Brad McLean'!$AO$22)+('Brad McLean'!O$6-1)*2,1,1,"Brad McLean")) -> 322 | T4: =INDIRECT(ADDRESS(22,COLUMN('Brad McLean'!$AO$22)+('Brad McLean'!P$6-1)*2,1,1,"Brad McLean")) -> 242 | U4: =INDIRECT(ADDRESS(22,COLUMN('Brad McLean'!$AO$22)+('Brad McLean'!Q$6-1)*2,1,1,"Brad McLean")) -> 208 | V4: =INDIRECT(ADDRESS(22,COLUMN('Brad McLean'!$AO$22)+('Brad McLean'!R$6-1)*2,1,1,"Brad McLean")) -> 308.5 | W4: =INDIRECT(ADDRESS(22,COLUMN('Brad McLean'!$AO$22)+('Brad McLean'!S$6-1)*2,1,1,"Brad McLean")) -> 218.75 | X4: 0 | Y4: =SUM(N4:V4)+W4 -> 2525.5 | Z4: =Y4-$Y$3 -> -379.25 | AA4: =INDIRECT(ADDRESS(22,COLUMN('Brad McLean'!$AO$22)+('Brad McLean'!T$6-1)*2,1,1,"Brad McLean")) -> 204 | AB4: =INDIRECT(ADDRESS(22,COLUMN('Brad McLean'!$AO$22)+('Brad McLean'!U$6-1)*2,1,1,"Brad McLean")) -> 229 | AC4: =INDIRECT(ADDRESS(22,COLUMN('Brad McLean'!$AO$22)+('Brad McLean'!V$6-1)*2,1,1,"Brad McLean")) -> 252 | AD4: =INDIRECT(ADDRESS(22,COLUMN('Brad McLean'!$AO$22)+('Brad McLean'!W$6-1)*2,1,1,"Brad McLean")) -> 313 | AE4: =INDIRECT(ADDRESS(22,COLUMN('Brad McLean'!$AO$22)+('Brad McLean'!X$6-1)*2,1,1,"Brad McLean")) -> 283 | AF4: =INDIRECT(ADDRESS(22,COLUMN('Brad McLean'!$AO$22)+('Brad McLean'!Y$6-1)*2,1,1,"Brad McLean")) -> 451.5 | AG4: =INDIRECT(ADDRESS(22,COLUMN('Brad McLean'!$AO$22)+('Brad McLean'!Z$6-1)*2,1,1,"Brad McLean")) -> 175 | AH4: =INDIRECT(ADDRESS(22,COLUMN('Brad McLean'!$AO$22)+('Brad McLean'!AA$6-1)*2,1,1,"Brad McLean")) -> 352 | AI4: 0 | AJ4: =SUM(AA4:AH4)+AI4 -> 2259.5 | AK4: =AJ4-$AJ$3 -> -178.5 | AL4: =INDIRECT(ADDRESS(22,COLUMN('Brad McLean'!$AO$22)+('Brad McLean'!AB$6-1)*2,1,1,"Brad McLean")) -> 0 | AM4: =INDIRECT(ADDRESS(22,COLUMN('Brad McLean'!$AO$22)+('Brad McLean'!AC$6-1)*2,1,1,"Brad McLean")) -> 0 | AN4: =INDIRECT(ADDRESS(22,COLUMN('Brad McLean'!$AO$22)+('Brad McLean'!AD$6-1)*2,1,1,"Brad McLean")) -> 0 | AO4: =INDIRECT(ADDRESS(22,COLUMN('Brad McLean'!$AO$22)+('Brad McLean'!AE$6-1)*2,1,1,"Brad McLean")) -> 0 | AP4: =INDIRECT(ADDRESS(22,COLUMN('Brad McLean'!$AO$22)+('Brad McLean'!AF$6-1)*2,1,1,"Brad McLean")) -> 0 | AQ4: =INDIRECT(ADDRESS(22,COLUMN('Brad McLean'!$AO$22)+('Brad McLean'!AG$6-1)*2,1,1,"Brad McLean")) -> 0 | AR4: =INDIRECT(ADDRESS(22,COLUMN('Brad McLean'!$AO$22)+('Brad McLean'!AH$6-1)*2,1,1,"Brad McLean")) -> 0 | AS4: =INDIRECT(ADDRESS(22,COLUMN('Brad McLean'!$AO$22)+('Brad McLean'!AI$6-1)*2,1,1,"Brad McLean")) -> 0 | AT4: =INDIRECT(ADDRESS(22,COLUMN('Brad McLean'!$AO$22)+('Brad McLean'!AJ$6-1)*2,1,1,"Brad McLean")) -> 0 | AU4: =INDIRECT(ADDRESS(22,COLUMN('Brad McLean'!$AO$22)+('Brad McLean'!AK$6-1)*2,1,1,"Brad McLean")) -> 0 | AV4: 0 | AW4: =SUM(AL4:AU4)+AV4 -> 0 | AX4: =AW4-$AW$3 -> 0 | AY4: ='Brad McLean'!$DI$22 -> 2373.75 | AZ4: ='Brad McLean'!$DJ$22 -> 2525.5 | BA4: ='Brad McLean'!$DK$22 -> 2259.5 | BB4: ='Brad McLean'!$AI$22 -> 0 | BC4: =SUM(AY4:BB4) -> 7158.75 | BD4: =BC4-$BC$3 -> -227.5
A5: Donna McLean | B5: =MID(A5,FIND(" ", A5)+1,LEN(A5))&", "&LEFT(A5,FIND(" ",A5)-1) -> McLean, Donna | C5: =INDIRECT(ADDRESS(22,COLUMN('Donna McLean'!$AO$22)+('Donna McLean'!B$6-1)*2,1,1,"Donna McLean")) -> 185 | D5: =INDIRECT(ADDRESS(22,COLUMN('Donna McLean'!$AO$22)+('Donna McLean'!C$6-1)*2,1,1,"Donna McLean")) -> 449.5 | E5: =INDIRECT(ADDRESS(22,COLUMN('Donna McLean'!$AO$22)+('Donna McLean'!D$6-1)*2,1,1,"Donna McLean")) -> 309 | F5: =INDIRECT(ADDRESS(22,COLUMN('Donna McLean'!$AO$22)+('Donna McLean'!E$6-1)*2,1,1,"Donna McLean")) -> 341.5 | G5: =INDIRECT(ADDRESS(22,COLUMN('Donna McLean'!$AO$22)+('Donna McLean'!F$6-1)*2,1,1,"Donna McLean")) -> 172 | H5: =INDIRECT(ADDRESS(22,COLUMN('Donna McLean'!$AO$22)+('Donna McLean'!G$6-1)*2,1,1,"Donna McLean")) -> 289.5 | I5: =INDIRECT(ADDRESS(22,COLUMN('Donna McLean'!$AO$22)+('Donna McLean'!H$6-1)*2,1,1,"Donna McLean")) -> 286 | J5: =INDIRECT(ADDRESS(22,COLUMN('Donna McLean'!$AO$22)+('Donna McLean'!I$6-1)*2,1,1,"Donna McLean")) -> 360 | K5: 0 | L5: =SUM(C5:K5)+K5 -> 2392.5 | M5: =L5-$L$3 -> 33 | N5: =INDIRECT(ADDRESS(22,COLUMN('Donna McLean'!$AO$22)+('Donna McLean'!J$6-1)*2,1,1,"Donna McLean")) -> 302.5 | O5: =INDIRECT(ADDRESS(22,COLUMN('Donna McLean'!$AO$22)+('Donna McLean'!K$6-1)*2,1,1,"Donna McLean")) -> 222 | P5: =INDIRECT(ADDRESS(22,COLUMN('Donna McLean'!$AO$22)+('Donna McLean'!L$6-1)*2,1,1,"Donna McLean")) -> 255.5 | Q5: =INDIRECT(ADDRESS(22,COLUMN('Donna McLean'!$AO$22)+('Donna McLean'!M$6-1)*2,1,1,"Donna McLean")) -> 235 | R5: =INDIRECT(ADDRESS(22,COLUMN('Donna McLean'!$AO$22)+('Donna McLean'!N$6-1)*2,1,1,"Donna McLean")) -> 241.5 | S5: =INDIRECT(ADDRESS(22,COLUMN('Donna McLean'!$AO$22)+('Donna McLean'!O$6-1)*2,1,1,"Donna McLean")) -> 334.5 | T5: =INDIRECT(ADDRESS(22,COLUMN('Donna McLean'!$AO$22)+('Donna McLean'!P$6-1)*2,1,1,"Donna McLean")) -> 310 | U5: =INDIRECT(ADDRESS(22,COLUMN('Donna McLean'!$AO$22)+('Donna McLean'!Q$6-1)*2,1,1,"Donna McLean")) -> 201 | V5: =INDIRECT(ADDRESS(22,COLUMN('Donna McLean'!$AO$22)+('Donna McLean'!R$6-1)*2,1,1,"Donna McLean")) -> 194 | W5: =INDIRECT(ADDRESS(22,COLUMN('Donna McLean'!$AO$22)+('Donna McLean'!S$6-1)*2,1,1,"Donna McLean")) -> 232.75 | X5: 0 | Y5: =SUM(N5:V5)+W5 -> 2528.75 | Z5: =Y5-$Y$3 -> -376 | AA5: =INDIRECT(ADDRESS(22,COLUMN('Donna McLean'!$AO$22)+('Donna McLean'!T$6-1)*2,1,1,"Donna McLean")) -> 171 | AB5: =INDIRECT(ADDRESS(22,COLUMN('Donna McLean'!$AO$22)+('Donna McLean'!U$6-1)*2,1,1,"Donna McLean")) -> 249.5 | AC5: =INDIRECT(ADDRESS(22,COLUMN('Donna McLean'!$AO$22)+('Donna McLean'!V$6-1)*2,1,1,"Donna McLean")) -> 213 | AD5: =INDIRECT(ADDRESS(22,COLUMN('Donna McLean'!$AO$22)+('Donna McLean'!W$6-1)*2,1,1,"Donna McLean")) -> 312 | AE5: =INDIRECT(ADDRESS(22,COLUMN('Donna McLean'!$AO$22)+('Donna McLean'!X$6-1)*2,1,1,"Donna McLean")) -> 199 | AF5: =INDIRECT(ADDRESS(22,COLUMN('Donna McLean'!$AO$22)+('Donna McLean'!Y$6-1)*2,1,1,"Donna McLean")) -> 336 | AG5: =INDIRECT(ADDRESS(22,COLUMN('Donna McLean'!$AO$22)+('Donna McLean'!Z$6-1)*2,1,1,"Donna McLean")) -> 198 | AH5: =INDIRECT(ADDRESS(22,COLUMN('Donna McLean'!$AO$22)+('Donna McLean'!AA$6-1)*2,1,1,"Donna McLean")) -> 454 | AI5: 0 | AJ5: =SUM(AA5:AH5)+AI5 -> 2132.5 | AK5: =AJ5-$AJ$3 -> -305.5 | AL5: =INDIRECT(ADDRESS(22,COLUMN('Donna McLean'!$AO$22)+('Donna McLean'!AB$6-1)*2,1,1,"Donna McLean")) -> 0 | AM5: =INDIRECT(ADDRESS(22,COLUMN('Donna McLean'!$AO$22)+('Donna McLean'!AC$6-1)*2,1,1,"Donna McLean")) -> 0 | AN5: =INDIRECT(ADDRESS(22,COLUMN('Donna McLean'!$AO$22)+('Donna McLean'!AD$6-1)*2,1,1,"Donna McLean")) -> 0 | AO5: =INDIRECT(ADDRESS(22,COLUMN('Donna McLean'!$AO$22)+('Donna McLean'!AE$6-1)*2,1,1,"Donna McLean")) -> 0 | AP5: =INDIRECT(ADDRESS(22,COLUMN('Donna McLean'!$AO$22)+('Donna McLean'!AF$6-1)*2,1,1,"Donna McLean")) -> 0 | AQ5: =INDIRECT(ADDRESS(22,COLUMN('Donna McLean'!$AO$22)+('Donna McLean'!AG$6-1)*2,1,1,"Donna McLean")) -> 0 | AR5: =INDIRECT(ADDRESS(22,COLUMN('Donna McLean'!$AO$22)+('Donna McLean'!AH$6-1)*2,1,1,"Donna McLean")) -> 0 | AS5: =INDIRECT(ADDRESS(22,COLUMN('Donna McLean'!$AO$22)+('Donna McLean'!AI$6-1)*2,1,1,"Donna McLean")) -> 0 | AT5: =INDIRECT(ADDRESS(22,COLUMN('Donna McLean'!$AO$22)+('Donna McLean'!AJ$6-1)*2,1,1,"Donna McLean")) -> 0 | AU5: =INDIRECT(ADDRESS(22,COLUMN('Donna McLean'!$AO$22)+('Donna McLean'!AK$6-1)*2,1,1,"Donna McLean")) -> 0 | AV5: 0 | AW5: =SUM(AL5:AU5)+AV5 -> 0 | AX5: =AW5-$AW$3 -> 0 | AY5: ='Donna McLean'!$DI$22 -> 2032.5 | AZ5: ='Donna McLean'!$DJ$22 -> 2528.75 | BA5: ='Donna McLean'!$DK$22 -> 2132.5 | BB5: ='Donna McLean'!$AI$22 -> 0 | BC5: =SUM(AY5:BB5) -> 6693.75 | BD5: =BC5-$BC$3 -> -692.5
A6: Steve Sheppard | B6: =MID(A6,FIND(" ", A6)+1,LEN(A6))&", "&LEFT(A6,FIND(" ",A6)-1) -> Sheppard, Steve | C6: =INDIRECT(ADDRESS(22,COLUMN('Steve Sheppard'!$AO$22)+('Steve Sheppard'!B$6-1)*2,1,1,"Steve Sheppard")) -> 174 | D6: =INDIRECT(ADDRESS(22,COLUMN('Steve Sheppard'!$AO$22)+('Steve Sheppard'!C$6-1)*2,1,1,"Steve Sheppard")) -> 130 | E6: =INDIRECT(ADDRESS(22,COLUMN('Steve Sheppard'!$AO$22)+('Steve Sheppard'!D$6-1)*2,1,1,"Steve Sheppard")) -> 495 | F6: =INDIRECT(ADDRESS(22,COLUMN('Steve Sheppard'!$AO$22)+('Steve Sheppard'!E$6-1)*2,1,1,"Steve Sheppard")) -> 301.5 | G6: =INDIRECT(ADDRESS(22,COLUMN('Steve Sheppard'!$AO$22)+('Steve Sheppard'!F$6-1)*2,1,1,"Steve Sheppard")) -> 307 | H6: =INDIRECT(ADDRESS(22,COLUMN('Steve Sheppard'!$AO$22)+('Steve Sheppard'!G$6-1)*2,1,1,"Steve Sheppard")) -> 302.75 | I6: =INDIRECT(ADDRESS(22,COLUMN('Steve Sheppard'!$AO$22)+('Steve Sheppard'!H$6-1)*2,1,1,"Steve Sheppard")) -> 200 | J6: =INDIRECT(ADDRESS(22,COLUMN('Steve Sheppard'!$AO$22)+('Steve Sheppard'!I$6-1)*2,1,1,"Steve Sheppard")) -> 222 | K6: 0 | L6: =SUM(C6:K6)+K6 -> 2132.25 | M6: =L6-$L$3 -> -227.25 | N6: =INDIRECT(ADDRESS(22,COLUMN('Steve Sheppard'!$AO$22)+('Steve Sheppard'!J$6-1)*2,1,1,"Steve Sheppard")) -> 337.5 | O6: =INDIRECT(ADDRESS(22,COLUMN('Steve Sheppard'!$AO$22)+('Steve Sheppard'!K$6-1)*2,1,1,"Steve Sheppard")) -> 304.25 | P6: =INDIRECT(ADDRESS(22,COLUMN('Steve Sheppard'!$AO$22)+('Steve Sheppard'!L$6-1)*2,1,1,"Steve Sheppard")) -> 292.5 | Q6: =INDIRECT(ADDRESS(22,COLUMN('Steve Sheppard'!$AO$22)+('Steve Sheppard'!M$6-1)*2,1,1,"Steve Sheppard")) -> 255 | R6: =INDIRECT(ADDRESS(22,COLUMN('Steve Sheppard'!$AO$22)+('Steve Sheppard'!N$6-1)*2,1,1,"Steve Sheppard")) -> 200.5 | S6: =INDIRECT(ADDRESS(22,COLUMN('Steve Sheppard'!$AO$22)+('Steve Sheppard'!O$6-1)*2,1,1,"Steve Sheppard")) -> 212 | T6: =INDIRECT(ADDRESS(22,COLUMN('Steve Sheppard'!$AO$22)+('Steve Sheppard'!P$6-1)*2,1,1,"Steve Sheppard")) -> 200 | U6: =INDIRECT(ADDRESS(22,COLUMN('Steve Sheppard'!$AO$22)+('Steve Sheppard'!Q$6-1)*2,1,1,"Steve Sheppard")) -> 276 | V6: =INDIRECT(ADDRESS(22,COLUMN('Steve Sheppard'!$AO$22)+('Steve Sheppard'!R$6-1)*2,1,1,"Steve Sheppard")) -> 193 | W6: =INDIRECT(ADDRESS(22,COLUMN('Steve Sheppard'!$AO$22)+('Steve Sheppard'!S$6-1)*2,1,1,"Steve Sheppard")) -> 206.75 | X6: 0 | Y6: =SUM(N6:V6)+W6 -> 2477.5 | Z6: =Y6-$Y$3 -> -427.25 | AA6: =INDIRECT(ADDRESS(22,COLUMN('Steve Sheppard'!$AO$22)+('Steve Sheppard'!T$6-1)*2,1,1,"Steve Sheppard")) -> 241 | AB6: =INDIRECT(ADDRESS(22,COLUMN('Steve Sheppard'!$AO$22)+('Steve Sheppard'!U$6-1)*2,1,1,"Steve Sheppard")) -> 158 | AC6: =INDIRECT(ADDRESS(22,COLUMN('Steve Sheppard'!$AO$22)+('Steve Sheppard'!V$6-1)*2,1,1,"Steve Sheppard")) -> 134 | AD6: =INDIRECT(ADDRESS(22,COLUMN('Steve Sheppard'!$AO$22)+('Steve Sheppard'!W$6-1)*2,1,1,"Steve Sheppard")) -> 199 | AE6: =INDIRECT(ADDRESS(22,COLUMN('Steve Sheppard'!$AO$22)+('Steve Sheppard'!X$6-1)*2,1,1,"Steve Sheppard")) -> 280 | AF6: =INDIRECT(ADDRESS(22,COLUMN('Steve Sheppard'!$AO$22)+('Steve Sheppard'!Y$6-1)*2,1,1,"Steve Sheppard")) -> 535.5 | AG6: =INDIRECT(ADDRESS(22,COLUMN('Steve Sheppard'!$AO$22)+('Steve Sheppard'!Z$6-1)*2,1,1,"Steve Sheppard")) -> 235 | AH6: =INDIRECT(ADDRESS(22,COLUMN('Steve Sheppard'!$AO$22)+('Steve Sheppard'!AA$6-1)*2,1,1,"Steve Sheppard")) -> 171 | AI6: 100 | AJ6: =SUM(AA6:AH6)+AI6 -> 2053.5 | AK6: =AJ6-$AJ$3 -> -384.5 | AL6: =INDIRECT(ADDRESS(22,COLUMN('Steve Sheppard'!$AO$22)+('Steve Sheppard'!AB$6-1)*2,1,1,"Steve Sheppard")) -> 0 | AM6: =INDIRECT(ADDRESS(22,COLUMN('Steve Sheppard'!$AO$22)+('Steve Sheppard'!AC$6-1)*2,1,1,"Steve Sheppard")) -> 0 | AN6: =INDIRECT(ADDRESS(22,COLUMN('Steve Sheppard'!$AO$22)+('Steve Sheppard'!AD$6-1)*2,1,1,"Steve Sheppard")) -> 0 | AO6: =INDIRECT(ADDRESS(22,COLUMN('Steve Sheppard'!$AO$22)+('Steve Sheppard'!AE$6-1)*2,1,1,"Steve Sheppard")) -> 0 | AP6: =INDIRECT(ADDRESS(22,COLUMN('Steve Sheppard'!$AO$22)+('Steve Sheppard'!AF$6-1)*2,1,1,"Steve Sheppard")) -> 0 | AQ6: =INDIRECT(ADDRESS(22,COLUMN('Steve Sheppard'!$AO$22)+('Steve Sheppard'!AG$6-1)*2,1,1,"Steve Sheppard")) -> 0 | AR6: =INDIRECT(ADDRESS(22,COLUMN('Steve Sheppard'!$AO$22)+('Steve Sheppard'!AH$6-1)*2,1,1,"Steve Sheppard")) -> 0 | AS6: =INDIRECT(ADDRESS(22,COLUMN('Steve Sheppard'!$AO$22)+('Steve Sheppard'!AI$6-1)*2,1,1,"Steve Sheppard")) -> 0 | AT6: =INDIRECT(ADDRESS(22,COLUMN('Steve Sheppard'!$AO$22)+('Steve Sheppard'!AJ$6-1)*2,1,1,"Steve Sheppard")) -> 0 | AU6: =INDIRECT(ADDRESS(22,COLUMN('Steve Sheppard'!$AO$22)+('Steve Sheppard'!AK$6-1)*2,1,1,"Steve Sheppard")) -> 0 | AV6: 0 | AW6: =SUM(AL6:AU6)+AV6 -> 0 | AX6: =AW6-$AW$3 -> 0 | AY6: ='Steve Sheppard'!$DI$22 -> 1910.25 | AZ6: ='Steve Sheppard'!$DJ$22 -> 2477.5 | BA6: ='Steve Sheppard'!$DK$22 -> 1953.5 | BB6: ='Steve Sheppard'!$AI$22 -> 0 | BC6: =SUM(AY6:BB6) -> 6341.25 | BD6: =BC6-$BC$3 -> -1045
A7: Ron Mason | B7: =MID(A7,FIND(" ", A7)+1,LEN(A7))&", "&LEFT(A7,FIND(" ",A7)-1) -> Mason, Ron | C7: =INDIRECT(ADDRESS(22,COLUMN('Ron Mason'!$AO$22)+('Ron Mason'!B$6-1)*2,1,1,"Ron Mason")) -> 270 | D7: =INDIRECT(ADDRESS(22,COLUMN('Ron Mason'!$AO$22)+('Ron Mason'!C$6-1)*2,1,1,"Ron Mason")) -> 363.5 | E7: =INDIRECT(ADDRESS(22,COLUMN('Ron Mason'!$AO$22)+('Ron Mason'!D$6-1)*2,1,1,"Ron Mason")) -> 421 | F7: =INDIRECT(ADDRESS(22,COLUMN('Ron Mason'!$AO$22)+('Ron Mason'!E$6-1)*2,1,1,"Ron Mason")) -> 341.5 | G7: =INDIRECT(ADDRESS(22,COLUMN('Ron Mason'!$AO$22)+('Ron Mason'!F$6-1)*2,1,1,"Ron Mason")) -> 157 | H7: =INDIRECT(ADDRESS(22,COLUMN('Ron Mason'!$AO$22)+('Ron Mason'!G$6-1)*2,1,1,"Ron Mason")) -> 294.75 | I7: =INDIRECT(ADDRESS(22,COLUMN('Ron Mason'!$AO$22)+('Ron Mason'!H$6-1)*2,1,1,"Ron Mason")) -> 226.5 | J7: =INDIRECT(ADDRESS(22,COLUMN('Ron Mason'!$AO$22)+('Ron Mason'!I$6-1)*2,1,1,"Ron Mason")) -> 309 | K7: 100 | L7: =SUM(C7:K7)+K7 -> 2583.25 | M7: =L7-$L$3 -> 223.75 | N7: =INDIRECT(ADDRESS(22,COLUMN('Ron Mason'!$AO$22)+('Ron Mason'!J$6-1)*2,1,1,"Ron Mason")) -> 320.5 | O7: =INDIRECT(ADDRESS(22,COLUMN('Ron Mason'!$AO$22)+('Ron Mason'!K$6-1)*2,1,1,"Ron Mason")) -> 227.5 | P7: =INDIRECT(ADDRESS(22,COLUMN('Ron Mason'!$AO$22)+('Ron Mason'!L$6-1)*2,1,1,"Ron Mason")) -> 236 | Q7: =INDIRECT(ADDRESS(22,COLUMN('Ron Mason'!$AO$22)+('Ron Mason'!M$6-1)*2,1,1,"Ron Mason")) -> 286 | R7: =INDIRECT(ADDRESS(22,COLUMN('Ron Mason'!$AO$22)+('Ron Mason'!N$6-1)*2,1,1,"Ron Mason")) -> 170 | S7: =INDIRECT(ADDRESS(22,COLUMN('Ron Mason'!$AO$22)+('Ron Mason'!O$6-1)*2,1,1,"Ron Mason")) -> 347.5 | T7: =INDIRECT(ADDRESS(22,COLUMN('Ron Mason'!$AO$22)+('Ron Mason'!P$6-1)*2,1,1,"Ron Mason")) -> 236 | U7: =INDIRECT(ADDRESS(22,COLUMN('Ron Mason'!$AO$22)+('Ron Mason'!Q$6-1)*2,1,1,"Ron Mason")) -> 210 | V7: =INDIRECT(ADDRESS(22,COLUMN('Ron Mason'!$AO$22)+('Ron Mason'!R$6-1)*2,1,1,"Ron Mason")) -> 284.5 | W7: =INDIRECT(ADDRESS(22,COLUMN('Ron Mason'!$AO$22)+('Ron Mason'!S$6-1)*2,1,1,"Ron Mason")) -> 221.75 | X7: 0 | Y7: =SUM(N7:V7)+W7 -> 2539.75 | Z7: =Y7-$Y$3 -> -365 | AA7: =INDIRECT(ADDRESS(22,COLUMN('Ron Mason'!$AO$22)+('Ron Mason'!T$6-1)*2,1,1,"Ron Mason")) -> 148 | AB7: =INDIRECT(ADDRESS(22,COLUMN('Ron Mason'!$AO$22)+('Ron Mason'!U$6-1)*2,1,1,"Ron Mason")) -> 256.5 | AC7: =INDIRECT(ADDRESS(22,COLUMN('Ron Mason'!$AO$22)+('Ron Mason'!V$6-1)*2,1,1,"Ron Mason")) -> 238.75 | AD7: =INDIRECT(ADDRESS(22,COLUMN('Ron Mason'!$AO$22)+('Ron Mason'!W$6-1)*2,1,1,"Ron Mason")) -> 185 | AE7: =INDIRECT(ADDRESS(22,COLUMN('Ron Mason'!$AO$22)+('Ron Mason'!X$6-1)*2,1,1,"Ron Mason")) -> 187 | AF7: =INDIRECT(ADDRESS(22,COLUMN('Ron Mason'!$AO$22)+('Ron Mason'!Y$6-1)*2,1,1,"Ron Mason")) -> 554.5 | AG7: =INDIRECT(ADDRESS(22,COLUMN('Ron Mason'!$AO$22)+('Ron Mason'!Z$6-1)*2,1,1,"Ron Mason")) -> 156 | AH7: =INDIRECT(ADDRESS(22,COLUMN('Ron Mason'!$AO$22)+('Ron Mason'!AA$6-1)*2,1,1,"Ron Mason")) -> 290.5 | AI7: 0 | AJ7: =SUM(AA7:AH7)+AI7 -> 2016.25 | AK7: =AJ7-$AJ$3 -> -421.75 | AL7: =INDIRECT(ADDRESS(22,COLUMN('Ron Mason'!$AO$22)+('Ron Mason'!AB$6-1)*2,1,1,"Ron Mason")) -> 0 | AM7: =INDIRECT(ADDRESS(22,COLUMN('Ron Mason'!$AO$22)+('Ron Mason'!AC$6-1)*2,1,1,"Ron Mason")) -> 0 | AN7: =INDIRECT(ADDRESS(22,COLUMN('Ron Mason'!$AO$22)+('Ron Mason'!AD$6-1)*2,1,1,"Ron Mason")) -> 0 | AO7: =INDIRECT(ADDRESS(22,COLUMN('Ron Mason'!$AO$22)+('Ron Mason'!AE$6-1)*2,1,1,"Ron Mason")) -> 0 | AP7: =INDIRECT(ADDRESS(22,COLUMN('Ron Mason'!$AO$22)+('Ron Mason'!AF$6-1)*2,1,1,"Ron Mason")) -> 0 | AQ7: =INDIRECT(ADDRESS(22,COLUMN('Ron Mason'!$AO$22)+('Ron Mason'!AG$6-1)*2,1,1,"Ron Mason")) -> 0 | AR7: =INDIRECT(ADDRESS(22,COLUMN('Ron Mason'!$AO$22)+('Ron Mason'!AH$6-1)*2,1,1,"Ron Mason")) -> 0 | AS7: =INDIRECT(ADDRESS(22,COLUMN('Ron Mason'!$AO$22)+('Ron Mason'!AI$6-1)*2,1,1,"Ron Mason")) -> 0 | AT7: =INDIRECT(ADDRESS(22,COLUMN('Ron Mason'!$AO$22)+('Ron Mason'!AJ$6-1)*2,1,1,"Ron Mason")) -> 0 | AU7: =INDIRECT(ADDRESS(22,COLUMN('Ron Mason'!$AO$22)+('Ron Mason'!AK$6-1)*2,1,1,"Ron Mason")) -> 0 | AV7: 0 | AW7: =SUM(AL7:AU7)+AV7 -> 0 | AX7: =AW7-$AW$3 -> 0 | AY7: ='Ron Mason'!$DI$22 -> 2074.25 | AZ7: ='Ron Mason'!$DJ$22 -> 2539.75 | BA7: ='Ron Mason'!$DK$22 -> 2016.25 | BB7: ='Ron Mason'!$AI$22 -> 0 | BC7: =SUM(AY7:BB7) -> 6630.25 | BD7: =BC7-$BC$3 -> -756
A8: Trey George | B8: =MID(A8,FIND(" ", A8)+1,LEN(A8))&", "&LEFT(A8,FIND(" ",A8)-1) -> George, Trey | C8: =INDIRECT(ADDRESS(22,COLUMN('Trey George'!$AO$22)+('Trey George'!B$6-1)*2,1,1,"Trey George")) -> 249 | D8: =INDIRECT(ADDRESS(22,COLUMN('Trey George'!$AO$22)+('Trey George'!C$6-1)*2,1,1,"Trey George")) -> 121 | E8: =INDIRECT(ADDRESS(22,COLUMN('Trey George'!$AO$22)+('Trey George'!D$6-1)*2,1,1,"Trey George")) -> 297 | F8: =INDIRECT(ADDRESS(22,COLUMN('Trey George'!$AO$22)+('Trey George'!E$6-1)*2,1,1,"Trey George")) -> 194.5 | G8: =INDIRECT(ADDRESS(22,COLUMN('Trey George'!$AO$22)+('Trey George'!F$6-1)*2,1,1,"Trey George")) -> 137 | H8: =INDIRECT(ADDRESS(22,COLUMN('Trey George'!$AO$22)+('Trey George'!G$6-1)*2,1,1,"Trey George")) -> 141 | I8: =INDIRECT(ADDRESS(22,COLUMN('Trey George'!$AO$22)+('Trey George'!H$6-1)*2,1,1,"Trey George")) -> 111.5 | J8: =INDIRECT(ADDRESS(22,COLUMN('Trey George'!$AO$22)+('Trey George'!I$6-1)*2,1,1,"Trey George")) -> 144 | K8: 0 | L8: =SUM(C8:K8)+K8 -> 1395 | M8: =L8-$L$3 -> -964.5 | N8: =INDIRECT(ADDRESS(22,COLUMN('Trey George'!$AO$22)+('Trey George'!J$6-1)*2,1,1,"Trey George")) -> 386.5 | O8: =INDIRECT(ADDRESS(22,COLUMN('Trey George'!$AO$22)+('Trey George'!K$6-1)*2,1,1,"Trey George")) -> 268 | P8: =INDIRECT(ADDRESS(22,COLUMN('Trey George'!$AO$22)+('Trey George'!L$6-1)*2,1,1,"Trey George")) -> 184.5 | Q8: =INDIRECT(ADDRESS(22,COLUMN('Trey George'!$AO$22)+('Trey George'!M$6-1)*2,1,1,"Trey George")) -> 173 | R8: =INDIRECT(ADDRESS(22,COLUMN('Trey George'!$AO$22)+('Trey George'!N$6-1)*2,1,1,"Trey George")) -> 158 | S8: =INDIRECT(ADDRESS(22,COLUMN('Trey George'!$AO$22)+('Trey George'!O$6-1)*2,1,1,"Trey George")) -> 170 | T8: =INDIRECT(ADDRESS(22,COLUMN('Trey George'!$AO$22)+('Trey George'!P$6-1)*2,1,1,"Trey George")) -> 230 | U8: =INDIRECT(ADDRESS(22,COLUMN('Trey George'!$AO$22)+('Trey George'!Q$6-1)*2,1,1,"Trey George")) -> 174 | V8: =INDIRECT(ADDRESS(22,COLUMN('Trey George'!$AO$22)+('Trey George'!R$6-1)*2,1,1,"Trey George")) -> 272 | W8: =INDIRECT(ADDRESS(22,COLUMN('Trey George'!$AO$22)+('Trey George'!S$6-1)*2,1,1,"Trey George")) -> 201 | X8: 0 | Y8: =SUM(N8:V8)+W8 -> 2217 | Z8: =Y8-$Y$3 -> -687.75 | AA8: =INDIRECT(ADDRESS(22,COLUMN('Trey George'!$AO$22)+('Trey George'!T$6-1)*2,1,1,"Trey George")) -> 268.5 | AB8: =INDIRECT(ADDRESS(22,COLUMN('Trey George'!$AO$22)+('Trey George'!U$6-1)*2,1,1,"Trey George")) -> 165 | AC8: =INDIRECT(ADDRESS(22,COLUMN('Trey George'!$AO$22)+('Trey George'!V$6-1)*2,1,1,"Trey George")) -> 227 | AD8: =INDIRECT(ADDRESS(22,COLUMN('Trey George'!$AO$22)+('Trey George'!W$6-1)*2,1,1,"Trey George")) -> 194 | AE8: =INDIRECT(ADDRESS(22,COLUMN('Trey George'!$AO$22)+('Trey George'!X$6-1)*2,1,1,"Trey George")) -> 186 | AF8: =INDIRECT(ADDRESS(22,COLUMN('Trey George'!$AO$22)+('Trey George'!Y$6-1)*2,1,1,"Trey George")) -> 387 | AG8: =INDIRECT(ADDRESS(22,COLUMN('Trey George'!$AO$22)+('Trey George'!Z$6-1)*2,1,1,"Trey George")) -> 241 | AH8: =INDIRECT(ADDRESS(22,COLUMN('Trey George'!$AO$22)+('Trey George'!AA$6-1)*2,1,1,"Trey George")) -> 309 | AI8: 0 | AJ8: =SUM(AA8:AH8)+AI8 -> 1977.5 | AK8: =AJ8-$AJ$3 -> -460.5 | AL8: =INDIRECT(ADDRESS(22,COLUMN('Trey George'!$AO$22)+('Trey George'!AB$6-1)*2,1,1,"Trey George")) -> 0 | AM8: =INDIRECT(ADDRESS(22,COLUMN('Trey George'!$AO$22)+('Trey George'!AC$6-1)*2,1,1,"Trey George")) -> 0 | AN8: =INDIRECT(ADDRESS(22,COLUMN('Trey George'!$AO$22)+('Trey George'!AD$6-1)*2,1,1,"Trey George")) -> 0 | AO8: =INDIRECT(ADDRESS(22,COLUMN('Trey George'!$AO$22)+('Trey George'!AE$6-1)*2,1,1,"Trey George")) -> 0 | AP8: =INDIRECT(ADDRESS(22,COLUMN('Trey George'!$AO$22)+('Trey George'!AF$6-1)*2,1,1,"Trey George")) -> 0 | AQ8: =INDIRECT(ADDRESS(22,COLUMN('Trey George'!$AO$22)+('Trey George'!AG$6-1)*2,1,1,"Trey George")) -> 0 | AR8: =INDIRECT(ADDRESS(22,COLUMN('Trey George'!$AO$22)+('Trey George'!AH$6-1)*2,1,1,"Trey George")) -> 0 | AS8: =INDIRECT(ADDRESS(22,COLUMN('Trey George'!$AO$22)+('Trey George'!AI$6-1)*2,1,1,"Trey George")) -> 0 | AT8: =INDIRECT(ADDRESS(22,COLUMN('Trey George'!$AO$22)+('Trey George'!AJ$6-1)*2,1,1,"Trey George")) -> 0 | AU8: =INDIRECT(ADDRESS(22,COLUMN('Trey George'!$AO$22)+('Trey George'!AK$6-1)*2,1,1,"Trey George")) -> 0 | AV8: 0 | AW8: =SUM(AL8:AU8)+AV8 -> 0 | AX8: =AW8-$AW$3 -> 0 | AY8: ='Trey George'!$DI$22 -> 1251 | AZ8: ='Trey George'!$DJ$22 -> 2217 | BA8: ='Trey George'!$DK$22 -> 1977.5 | BB8: ='Trey George'!$AI$22 -> 0 | BC8: =SUM(AY8:BB8) -> 5445.5 | BD8: =BC8-$BC$3 -> -1940.75
A9: Jeff Buehrle | B9: =MID(A9,FIND(" ", A9)+1,LEN(A9))&", "&LEFT(A9,FIND(" ",A9)-1) -> Buehrle, Jeff | C9: =INDIRECT(ADDRESS(22,COLUMN('Jeff Buehrle'!$AO$22)+('Jeff Buehrle'!B$6-1)*2,1,1,"Jeff Buehrle")) -> 440 | D9: =INDIRECT(ADDRESS(22,COLUMN('Jeff Buehrle'!$AO$22)+('Jeff Buehrle'!C$6-1)*2,1,1,"Jeff Buehrle")) -> 413.5 | E9: =INDIRECT(ADDRESS(22,COLUMN('Jeff Buehrle'!$AO$22)+('Jeff Buehrle'!D6-1)*2,1,1,"Jeff Buehrle")) -> 344 | F9: =INDIRECT(ADDRESS(22,COLUMN('Jeff Buehrle'!$AO$22)+('Jeff Buehrle'!E6-1)*2,1,1,"Jeff Buehrle")) -> 313.5 | G9: =INDIRECT(ADDRESS(22,COLUMN('Jeff Buehrle'!$AO$22)+('Jeff Buehrle'!F6-1)*2,1,1,"Jeff Buehrle")) -> 232 | H9: =INDIRECT(ADDRESS(22,COLUMN('Jeff Buehrle'!$AO$22)+('Jeff Buehrle'!G6-1)*2,1,1,"Jeff Buehrle")) -> 313.75 | I9: =INDIRECT(ADDRESS(22,COLUMN('Jeff Buehrle'!$AO$22)+('Jeff Buehrle'!H6-1)*2,1,1,"Jeff Buehrle")) -> 197 | J9: =INDIRECT(ADDRESS(22,COLUMN('Jeff Buehrle'!$AO$22)+('Jeff Buehrle'!I6-1)*2,1,1,"Jeff Buehrle")) -> 233 | K9: 0 | L9: =SUM(C9:K9)+K9 -> 2486.75 | M9: =L9-$L$3 -> 127.25 | N9: =INDIRECT(ADDRESS(22,COLUMN('Jeff Buehrle'!$AO$22)+('Jeff Buehrle'!J6-1)*2,1,1,"Jeff Buehrle")) -> 264 | O9: =INDIRECT(ADDRESS(22,COLUMN('Jeff Buehrle'!$AO$22)+('Jeff Buehrle'!K6-1)*2,1,1,"Jeff Buehrle")) -> 247 | P9: =INDIRECT(ADDRESS(22,COLUMN('Jeff Buehrle'!$AO$22)+('Jeff Buehrle'!L6-1)*2,1,1,"Jeff Buehrle")) -> 253.75 | Q9: =INDIRECT(ADDRESS(22,COLUMN('Jeff Buehrle'!$AO$22)+('Jeff Buehrle'!M6-1)*2,1,1,"Jeff Buehrle")) -> 307 | R9: =INDIRECT(ADDRESS(22,COLUMN('Jeff Buehrle'!$AO$22)+('Jeff Buehrle'!N6-1)*2,1,1,"Jeff Buehrle")) -> 251.5 | S9: =INDIRECT(ADDRESS(22,COLUMN('Jeff Buehrle'!$AO$22)+('Jeff Buehrle'!O6-1)*2,1,1,"Jeff Buehrle")) -> 221 | T9: =INDIRECT(ADDRESS(22,COLUMN('Jeff Buehrle'!$AO$22)+('Jeff Buehrle'!P6-1)*2,1,1,"Jeff Buehrle")) -> 366 | U9: =INDIRECT(ADDRESS(22,COLUMN('Jeff Buehrle'!$AO$22)+('Jeff Buehrle'!Q6-1)*2,1,1,"Jeff Buehrle")) -> 251 | V9: =INDIRECT(ADDRESS(22,COLUMN('Jeff Buehrle'!$AO$22)+('Jeff Buehrle'!R6-1)*2,1,1,"Jeff Buehrle")) -> 327 | W9: =INDIRECT(ADDRESS(22,COLUMN('Jeff Buehrle'!$AO$22)+('Jeff Buehrle'!S6-1)*2,1,1,"Jeff Buehrle")) -> 167 | X9: 0 | Y9: =SUM(N9:V9)+W9 -> 2655.25 | Z9: =Y9-$Y$3 -> -249.5 | AA9: =INDIRECT(ADDRESS(22,COLUMN('Jeff Buehrle'!$AO$22)+('Jeff Buehrle'!T6-1)*2,1,1,"Jeff Buehrle")) -> 178 | AB9: =INDIRECT(ADDRESS(22,COLUMN('Jeff Buehrle'!$AO$22)+('Jeff Buehrle'!U6-1)*2,1,1,"Jeff Buehrle")) -> 246 | AC9: =INDIRECT(ADDRESS(22,COLUMN('Jeff Buehrle'!$AO$22)+('Jeff Buehrle'!V6-1)*2,1,1,"Jeff Buehrle")) -> 228 | AD9: =INDIRECT(ADDRESS(22,COLUMN('Jeff Buehrle'!$AO$22)+('Jeff Buehrle'!W6-1)*2,1,1,"Jeff Buehrle")) -> 209 | AE9: =INDIRECT(ADDRESS(22,COLUMN('Jeff Buehrle'!$AO$22)+('Jeff Buehrle'!X6-1)*2,1,1,"Jeff Buehrle")) -> 231 | AF9: =INDIRECT(ADDRESS(22,COLUMN('Jeff Buehrle'!$AO$22)+('Jeff Buehrle'!Y6-1)*2,1,1,"Jeff Buehrle")) -> 354.5 | AG9: =INDIRECT(ADDRESS(22,COLUMN('Jeff Buehrle'!$AO$22)+('Jeff Buehrle'!Z6-1)*2,1,1,"Jeff Buehrle")) -> 191 | AH9: =INDIRECT(ADDRESS(22,COLUMN('Jeff Buehrle'!$AO$22)+('Jeff Buehrle'!AA6-1)*2,1,1,"Jeff Buehrle")) -> 225.5 | AI9: 0 | AJ9: =SUM(AA9:AH9)+AI9 -> 1863 | AK9: =AJ9-$AJ$3 -> -575 | AL9: =INDIRECT(ADDRESS(22,COLUMN('Jeff Buehrle'!$AO$22)+('Jeff Buehrle'!AB6-1)*2,1,1,"Jeff Buehrle")) -> 0 | AM9: =INDIRECT(ADDRESS(22,COLUMN('Jeff Buehrle'!$AO$22)+('Jeff Buehrle'!AC6-1)*2,1,1,"Jeff Buehrle")) -> 0 | AN9: =INDIRECT(ADDRESS(22,COLUMN('Jeff Buehrle'!$AO$22)+('Jeff Buehrle'!AD6-1)*2,1,1,"Jeff Buehrle")) -> 0 | AO9: =INDIRECT(ADDRESS(22,COLUMN('Jeff Buehrle'!$AO$22)+('Jeff Buehrle'!AE6-1)*2,1,1,"Jeff Buehrle")) -> 0 | AP9: =INDIRECT(ADDRESS(22,COLUMN('Jeff Buehrle'!$AO$22)+('Jeff Buehrle'!AF6-1)*2,1,1,"Jeff Buehrle")) -> 0 | AQ9: =INDIRECT(ADDRESS(22,COLUMN('Jeff Buehrle'!$AO$22)+('Jeff Buehrle'!AG6-1)*2,1,1,"Jeff Buehrle")) -> 0 | AR9: =INDIRECT(ADDRESS(22,COLUMN('Jeff Buehrle'!$AO$22)+('Jeff Buehrle'!AH6-1)*2,1,1,"Jeff Buehrle")) -> 0 | AS9: =INDIRECT(ADDRESS(22,COLUMN('Jeff Buehrle'!$AO$22)+('Jeff Buehrle'!AI6-1)*2,1,1,"Jeff Buehrle")) -> 0 | AT9: =INDIRECT(ADDRESS(22,COLUMN('Jeff Buehrle'!$AO$22)+('Jeff Buehrle'!AJ6-1)*2,1,1,"Jeff Buehrle")) -> 0 | AU9: =INDIRECT(ADDRESS(22,COLUMN('Jeff Buehrle'!$AO$22)+('Jeff Buehrle'!AK6-1)*2,1,1,"Jeff Buehrle")) -> 0 | AV9: 0 | AW9: =SUM(AL9:AU9)+AV9 -> 0 | AX9: =AW9-$AW$3 -> 0 | AY9: ='Jeff Buehrle'!$DI$22 -> 2253.75 | AZ9: ='Jeff Buehrle'!$DJ$22 -> 2655.25 | BA9: ='Jeff Buehrle'!$DK$22 -> 1863 | BB9: ='Jeff Buehrle'!$DL$22 -> 0 | BC9: =SUM(AY9:BB9) -> 6772 | BD9: =BC9-$BC$3 -> -614.25
A11: Average Score | C11: =AVERAGE(C3:C9) -> 272.4285714 | D11: 323.7857143 | E11: 379.7142857 | F11: 305.7857143 | G11: 207.2857143 | H11: 286.5714286 | I11: 215.7142857 | J11: 280.1428571 | N11: =AVERAGE(N3:N9) -> 323.5714286 | O11: 258.8928571 | P11: 254.3928571 | Q11: 250.5714286 | R11: 204.5714286 | S11: 277.2142857 | T11: 271.2857143 | U11: 218.5714286 | V11: 270.2857143 | W11: 220.4285714 | AA11: =AVERAGE(AA3:AA9) -> 209.9285714 | AB11: 222.5 | AC11: 217.5357143 | AD11: 249.2857143 | AE11: 244.7142857 | AF11: 461.6428571 | AG11: 198.4285714 | AH11: 287.4285714 | AL11: =AVERAGE(AL3:AL9) -> 0 | AM11: 0 | AN11: 0 | AO11: 0 | AP11: 0 | AQ11: 0 | AR11: 0 | AS11: 0 | AT11: 0 | AU11: 0
AJ14: 1st
AA15: ="Last Updated: " & TEXT( 'Pick Distribution'!$P$4,"m/d/yyy h:MM:SS AM/PM") -> Last Updated: 9/3/2021 2:33:56 PM | AJ15: 2nd
AJ16: 3rd
AA18: Ready for Picks
AA19: Official Race Results Posted

Sheet Entry List
A1: =IF(B1="","",B1) ->  | M1: https://en.wikipedia.org/wiki/2021_NASCAR_Cup_Series#Schedule
A2: =IF(B2="","",B2) -> 
A3: =IF(B3="","",B3) -> 
A4: Entry # | B4: Entry # | C4: No. | D4: Driver | E4: Team | F4: Manufacturer
A5: =IF(C5="","",C5) -> 00 | B5: 1 | C5: 00 | D5: Quin Houff | E5: StarCom Racing | F5: Chevrolet
A6: =IF(C6="","",VALUE(C6)) -> 1 | B6: 2 | C6: 1 | D6: Kurt Busch | E6: Chip Ganassi Racing | F6: Chevrolet
A7: =IF(C7="","",VALUE(C7)) -> 2 | B7: 3 | C7: 2 | D7: Brad Keselowski | E7: Team Penske | F7: Ford
A8: 3 | B8: 4 | C8: 3 | D8: Austin Dillon | E8: Richard Childress Racing | F8: Chevrolet
A9: 4 | B9: 5 | C9: 4 | D9: Kevin Harvick | E9: Stewart-Haas Racing | F9: Ford
A10: 5 | B10: 6 | C10: 5 | D10: Kyle Larson | E10: Hendrick Motorsports | F10: Chevrolet
A11: 6 | B11: 7 | C11: 6 | D11: Ryan Newman | E11: Roush Fenway Racing | F11: Ford
A12: 7 | B12: 8 | C12: 7 | D12: Corey Lajoie | E12: Spire Motorsports | F12: Chevrolet
A13: 8 | B13: 9 | C13: 8 | D13: Tyler Reddick | E13: Richard Childress Racing | F13: Chevrolet
A14: 9 | B14: 10 | C14: 9 | D14: Chase Elliott | E14: Hendrick Motorsports | F14: Chevrolet
A15: 10 | B15: 11 | C15: 10 | D15: Aric Almirola | E15: Stewart-Haas Racing | F15: Ford
A16: 11 | B16: 12 | C16: 11 | D16: Denny Hamlin | E16: Joe Gibbs Racing | F16: Toyota
A17: 12 | B17: 13 | C17: 12 | D17: Ryan Blaney | E17: Team Penske | F17: Ford
A18: 14 | B18: 14 | C18: 14 | D18: Chase Briscoe (R) | E18: Stewart-Haas Racing | F18: Ford
A19: 15 | B19: 15 | C19: 15 | D19: Joey Gase (i) | E19: Rick Ware Racing | F19: Chevrolet
A20: 116 | B20: 16 | C20: 116 | D20: Kaz Grala (i) | E20: Kaulig Racing | F20: Chevrolet
A21: 17 | B21: 17 | C21: 17 | D21: Chris Buescher | E21: Roush Fenway Racing | F21: Ford
A22: 18 | B22: 18 | C22: 18 | D22: Kyle Busch | E22: Joe Gibbs Racing | F22: Toyota
A23: 19 | B23: 19 | C23: 19 | D23: Martin Truex Jr. | E23: Joe Gibbs Racing | F23: Toyota
A24: 20 | B24: 20 | C24: 20 | D24: Christopher Bell | E24: Joe Gibbs Racing | F24: Toyota
A25: 21 | B25: 21 | C25: 21 | D25: Matt DiBenedetto | E25: Wood Brothers Racing | F25: Ford
A26: 22 | B26: 22 | C26: 22 | D26: Joey Logano | E26: Team Penske | F26: Ford
A27: 23 | B27: 23 | C27: 23 | D27: Bubba Wallace | E27: 23XI Racing | F27: Toyota
A28: 24 | B28: 24 | C28: 24 | D28: William Byron | E28: Hendrick Motorsports | F28: Chevrolet
A29: 34 | B29: 25 | C29: 34 | D29: Michael McDowell | E29: Front Row Motorsports | F29: Ford
A30: 37 | B30: 26 | C30: 37 | D30: Ryan Preece | E30: JTG Daugherty Racing | F30: Chevrolet
A31: 38 | B31: 27 | C31: 38 | D31: Anthony Alfredo (R) | E31: Front Row Motorsports | F31: Ford
A32: 41 | B32: 28 | C32: 41 | D32: Cole Custer | E32: Stewart-Haas Racing | F32: Ford
A33: 42 | B33: 29 | C33: 42 | D33: Ross Chastain | E33: Chip Ganassi Racing | F33: Chevrolet
A34: 43 | B34: 30 | C34: 43 | D34: Erik Jones | E34: Richard Petty Motorsports | F34: Chevrolet
A35: 47 | B35: 31 | C35: 47 | D35: Ricky Stenhouse Jr. | E35: JTG Daugherty Racing | F35: Chevrolet
A36: 48 | B36: 32 | C36: 48 | D36: Alex Bowman | E36: Hendrick Motorsports | F36: Chevrolet
A37: 51 | B37: 33 | C37: 51 | D37: Cody Ware (i) | E37: Petty Ware Racing | F37: Chevrolet
A38: 52 | B38: 34 | C38: 52 | D38: Josh Bilicki | E38: Rick Ware Racing | F38: Ford
A39: 53 | B39: 35 | C39: 53 | D39: Garrett Smithley (i) | E39: Rick Ware Racing | F39: Ford
A40: 66 | B40: 36 | C40: 66 | D40: David Starr (i) | E40: MBM Motorsports | F40: Toyota
A41: 77 | B41: 37 | C41: 77 | D41: Justin Haley (i) | E41: Spire Motorsports | F41: Chevrolet
A42: 78 | B42: 38 | C42: 78 | D42: B. J. McLeod (i) | E42: Live Fast Motorsports | F42: Ford
A43: 96 | B43: 39 | C43: 96 | D43: Landon Cassill (i) | E43: Gaunt Brothers Racing | F43: Toyota
A44: 99 | B44: 40 | C44: 99 | D44: Daniel Suárez | E44: Trackhouse Racing Team | F44: Chevrolet

Sheet Stage Results
A2: Pos | B2: No | C2: Driver | D2: Team | E2: Manufacturer | F2: Points | I2: Pos | J2: Grid | K2: No | L2: Driver | M2: Team | N2: Manufacturer | O2: Laps | P2: Points
A3: 1 | B3: 9 | C3: Chase Elliott | D3: Hendrick Motorsports | E3: Chevrolet | F3: 10 | I3: 1 | J3: 6 | K3: 12 | L3: Ryan Blaney | M3: Team Penske | N3: Ford | O3: 165 | P3: 45
A4: 2 | B4: 11 | C4: Denny Hamlin | D4: Joe Gibbs Racing | E4: Toyota | F4: 9 | I4: 2 | J4: 20 | K4: 23 | L4: Bubba Wallace | M4: 23XI Racing | N4: Toyota | O4: 165 | P4: 37
A5: 3 | B5: 18 | C5: Kyle Busch | D5: Joe Gibbs Racing | E5: Toyota | F5: 8 | I5: 3 | J5: 23 | K5: 6 | L5: Ryan Newman | M5: Roush Fenway Racing | N5: Ford | O5: 165 | P5: 34
A6: 4 | B6: 42 | C6: Ross Chastain | D6: Chip Ganassi Racing | E6: Chevrolet | F6: 7 | I6: 4 | J6: 24 | K6: 37 | L6: Ryan Preece | M6: JTG Daugherty Racing | N6: Chevrolet | O6: 165 | P6: 35
A7: 5 | B7: 19 | C7: Martin Truex Jr. | D7: Joe Gibbs Racing | E7: Toyota | F7: 6 | I7: 5 | J7: 17 | K7: 8 | L7: Tyler Reddick | M7: Richard Childress Racing | N7: Chevrolet | O7: 165 | P7: 39
A8: 6 | B8: 3 | C8: Austin Dillon | D8: Richard Childress Racing | E8: Chevrolet | F8: 5 | I8: 6 | J8: 28 | K8: 77 | L8: Justin Haley (i) | M8: Spire Motorsports | N8: Chevrolet | O8: 165 | P8: 31
A9: 7 | B9: 7 | C9: Corey LaJoie | D9: Spire Motorsports | E9: Chevrolet | F9: 4 | I9: 7 | J9: 15 | K9: 48 | L9: Alex Bowman | M9: Hendrick Motorsports | N9: Chevrolet | O9: 165 | P9: 30
A10: 8 | B10: 22 | C10: Joey Logano | D10: Team Penske | E10: Ford | F10: 3 | I10: 8 | J10: 5 | K10: 9 | L10: Chase Elliott | M10: Hendrick Motorsports | N10: Chevrolet | O10: 165 | P10: 39
A11: 9 | B11: 37 | C11: Ryan Preece | D11: JTG Daugherty Racing | E11: Chevrolet | F11: 2 | I11: 9 | J11: 30 | K11: 78 | L11: B. J. McLeod (i) | M11: Live Fast Motorsports | N11: Ford | O11: 165 | P11: 28
A12: 10 | B12: 20 | C12: Christopher Bell | D12: Joe Gibbs Racing | E12: Toyota | F12: 1 | I12: 10 | J12: 36 | K12: 52 | L12: Josh Bilicki | M12: Rick Ware Racing | N12: Ford | O12: 165 | P12: 27
I13: 11 | J13: 21 | K13: 43 | L13: Erik Jones | M13: Richard Petty Motorsports | N13: Chevrolet | O13: 165 | P13: 26
I14: 12 | J14: 8 | K14: 1 | L14: Kurt Busch | M14: Chip Ganassi Racing | N14: Chevrolet | O14: 165 | P14: 25
I15: 13 | J15: 3 | K15: 11 | L15: Denny Hamlin | M15: Joe Gibbs Racing | N15: Toyota | O15: 165 | P15: 33
I16: 14 | J16: 19 | K16: 10 | L16: Aric Almirola | M16: Stewart-Haas Racing | N16: Ford | O16: 165 | P16: 23
I17: 15 | J17: 11 | K17: 4 | L17: Kevin Harvick | M17: Stewart-Haas Racing | N17: Ford | O17: 165 | P17: 22
I18: 16 | J18: 33 | K18: 7 | L18: Corey LaJoie | M18: Spire Motorsports | N18: Chevrolet | O18: 164 | P18: 25
I19: 17 | J19: 27 | K19: 3 | L19: Austin Dillon | M19: Richard Childress Racing | N19: Chevrolet | O19: 164 | P19: 34
A20: Pos | B20: No | C20: Driver | D20: Team | E20: Manufacturer | F20: Points | I20: 18 | J20: 29 | K20: 42 | L20: Ross Chastain | M20: Chip Ganassi Racing | N20: Chevrolet | O20: 164 | P20: 26
A21: 1 | B21: 22 | C21: Joey Logano | D21: Team Penske | E21: Ford | F21: 10 | I21: 19 | J21: 26 | K21: 99 | L21: Daniel Suárez | M21: Trackhouse Racing Team | N21: Chevrolet | O21: 164 | P21: 18
A22: 2 | B22: 3 | C22: Austin Dillon | D22: Richard Childress Racing | E22: Chevrolet | F22: 9 | I22: 20 | J22: 1 | K22: 5 | L22: Kyle Larson | M22: Hendrick Motorsports | N22: Chevrolet | O22: 164 | P22: 23
A23: 3 | B23: 24 | C23: William Byron | D23: Hendrick Motorsports | E23: Chevrolet | F23: 8 | I23: 21 | J23: 16 | K23: 14 | L23: Chase Briscoe (R) | M23: Stewart-Haas Racing | N23: Ford | O23: 164 | P23: 16
A24: 4 | B24: 8 | C24: Tyler Reddick | D24: Richard Childress Racing | E24: Chevrolet | F24: 7 | I24: 22 | J24: 12 | K24: 47 | L24: Ricky Stenhouse Jr. | M24: JTG Daugherty Racing | N24: Chevrolet | O24: 164 | P24: 19
A25: 5 | B25: 5 | C25: Kyle Larson | D25: Hendrick Motorsports | E25: Chevrolet | F25: 6 | I25: 23 | J25: 22 | K25: 22 | L25: Joey Logano | M25: Team Penske | N25: Ford | O25: 164 | P25: 27
A26: 6 | B26: 12 | C26: Ryan Blaney | D26: Team Penske | E26: Ford | F26: 5 | I26: 24 | J26: 25 | K26: 41 | L26: Cole Custer | M26: Stewart-Haas Racing | N26: Ford | O26: 164 | P26: 13
A27: 7 | B27: 47 | C27: Ricky Stenhouse Jr. | D27: JTG Daugherty Racing | E27: Chevrolet | F27: 4 | I27: 25 | J27: 9 | K27: 21 | L27: Matt DiBenedetto | M27: Wood Brothers Racing | N27: Ford | O27: 164 | P27: 12
A28: 8 | B28: 18 | C28: Kyle Busch | D28: Joe Gibbs Racing | E28: Toyota | F28: 3 | I28: 26 | J28: 32 | K28: 38 | L28: Anthony Alfredo (R) | M28: Front Row Motorsports | N28: Ford | O28: 163 | P28: 11
A29: 9 | B29: 23 | C29: Bubba Wallace | D29: 23XI Racing | E29: Toyota | F29: 2 | I29: 27 | J29: 40 | K29: 66 | L29: David Starr (i) | M29: MBM Motorsports | N29: Ford | O29: 163 | P29: 10
A30: 10 | B30: 20 | C30: Christopher Bell | D30: Joe Gibbs Racing | E30: Toyota | F30: 1 | I30: 28 | J30: 31 | K30: 51 | L30: Cody Ware (i) | M30: Petty Ware Racing | N30: Chevrolet | O30: 163 | P30: 9
I31: 29 | J31: 7 | K31: 19 | L31: Martin Truex Jr. | M31: Joe Gibbs Racing | N31: Toyota | O31: 163 | P31: 14
I32: 30 | J32: 34 | K32: 53 | L32: Garrett Smithley (i) | M32: Rick Ware Racing | N32: Chevrolet | O32: 163 | P32: 7
I33: 31 | J33: 37 | K33: 15 | L33: Joey Gase (i) | M33: Rick Ware Racing | N33: Ford | O33: 162 | P33: 6
I34: 32 | J34: 14 | K34: 20 | L34: Christopher Bell | M34: Joe Gibbs Racing | N34: Toyota | O34: 157 | P34: 7
I35: 33 | J35: 10 | K35: 2 | L35: Brad Keselowski | M35: Team Penske | N35: Ford | O35: 156 | P35: 4
I36: 34 | J36: 4 | K36: 18 | L36: Kyle Busch | M36: Joe Gibbs Racing | N36: Toyota | O36: 156 | P36: 14
I37: 35 | J37: 38 | K37: 16 | L37: Kaz Grala (i) | M37: Kaulig Racing | N37: Chevrolet | O37: 156 | P37: 2
I38: 36 | J38: 39 | K38: 96 | L38: Landon Cassill (i) | M38: Gaunt Brothers Racing | N38: Toyota | O38: 146 | P38: 1
I39: 37 | J39: 2 | K39: 24 | L39: William Byron | M39: Hendrick Motorsports | N39: Chevrolet | O39: 146 | P39: 9
I40: 38 | J40: 35 | K40: 00 | L40: Quin Houff | M40: StarCom Racing | N40: Chevrolet | O40: 136 | P40: 1
I41: 39 | J41: 18 | K41: 34 | L41: Michael McDowell | M41: Front Row Motorsports | N41: Ford | O41: 23 | P41: 1
J42: 13 | K42: 17 | L42: Chris Buescher | M42: Roush Fenway Racing | N42: Ford | O42: 165 | P42: 1

Sheet Last Race Results
B1: https://en.wikipedia.org/wiki/2021_NASCAR_Cup_Series#Schedule
A4: Car Number | B4: Position | C4: Car # | D4: Driver | E4: Team | F4: Manuafurer | G4: Laps | H4: Points | I4: S1 Points | J4: S2 Point | K4: Total | L4: S3 Points
A5: =IF(C5="00",C5,VALUE(C5)) -> 12 | B5: =VALUE('Stage Results'!I3) -> 1 | C5: ='Stage Results'!K3 -> 12 | D5: ='Stage Results'!L3 -> Ryan Blaney | E5: ='Stage Results'!M3 -> Team Penske | F5: ='Stage Results'!N3 -> Ford | G5: ='Stage Results'!O3 -> 165 | H5: ='Stage Results'!P3 -> 45 | I5: =_xlfn.IFNA(VLOOKUP(C5,'Stage Results'!$B$3:$F$12,5,FALSE),0) -> 0 | J5: =_xlfn.IFNA(VLOOKUP(C5,'Stage Results'!$B$21:$F$30,5,FALSE),0) -> 5 | K5: =H5 -> 45 | L5: =_xlfn.IFNA(VLOOKUP(C5,'Stage Results'!$B$41:$F$50,5,FALSE),0) -> 0
A6: =IF(C6="00",C6,VALUE(C6)) -> 23 | B6: =VALUE('Stage Results'!I4) -> 2 | C6: ='Stage Results'!K4 -> 23 | D6: ='Stage Results'!L4 -> Bubba Wallace | E6: ='Stage Results'!M4 -> 23XI Racing | F6: ='Stage Results'!N4 -> Toyota | G6: ='Stage Results'!O4 -> 165 | H6: ='Stage Results'!P4 -> 37 | I6: =_xlfn.IFNA(VLOOKUP(C6,'Stage Results'!$B$3:$F$12,5,FALSE),0) -> 0 | J6: =_xlfn.IFNA(VLOOKUP(C6,'Stage Results'!$B$21:$F$30,5,FALSE),0) -> 2 | K6: =H6 -> 37 | L6: =_xlfn.IFNA(VLOOKUP(C6,'Stage Results'!$B$41:$F$50,5,FALSE),0) -> 0
A7: 6 | B7: =VALUE('Stage Results'!I5) -> 3 | C7: ='Stage Results'!K5 -> 6 | D7: ='Stage Results'!L5 -> Ryan Newman | E7: ='Stage Results'!M5 -> Roush Fenway Racing | F7: ='Stage Results'!N5 -> Ford | G7: ='Stage Results'!O5 -> 165 | H7: ='Stage Results'!P5 -> 34 | I7: =_xlfn.IFNA(VLOOKUP(C7,'Stage Results'!$B$3:$F$12,5,FALSE),0) -> 0 | J7: =_xlfn.IFNA(VLOOKUP(C7,'Stage Results'!$B$21:$F$30,5,FALSE),0) -> 0 | K7: 34 | L7: =_xlfn.IFNA(VLOOKUP(C7,'Stage Results'!$B$41:$F$50,5,FALSE),0) -> 0
A8: 37 | B8: =VALUE('Stage Results'!I6) -> 4 | C8: ='Stage Results'!K6 -> 37 | D8: ='Stage Results'!L6 -> Ryan Preece | E8: ='Stage Results'!M6 -> JTG Daugherty Racing | F8: ='Stage Results'!N6 -> Chevrolet | G8: ='Stage Results'!O6 -> 165 | H8: ='Stage Results'!P6 -> 35 | I8: =_xlfn.IFNA(VLOOKUP(C8,'Stage Results'!$B$3:$F$12,5,FALSE),0) -> 2 | J8: =_xlfn.IFNA(VLOOKUP(C8,'Stage Results'!$B$21:$F$30,5,FALSE),0) -> 0 | K8: 35 | L8: =_xlfn.IFNA(VLOOKUP(C8,'Stage Results'!$B$41:$F$50,5,FALSE),0) -> 0
A9: 8 | B9: =VALUE('Stage Results'!I7) -> 5 | C9: ='Stage Results'!K7 -> 8 | D9: ='Stage Results'!L7 -> Tyler Reddick | E9: ='Stage Results'!M7 -> Richard Childress Racing | F9: ='Stage Results'!N7 -> Chevrolet | G9: ='Stage Results'!O7 -> 165 | H9: ='Stage Results'!P7 -> 39 | I9: =_xlfn.IFNA(VLOOKUP(C9,'Stage Results'!$B$3:$F$12,5,FALSE),0) -> 0 | J9: =_xlfn.IFNA(VLOOKUP(C9,'Stage Results'!$B$21:$F$30,5,FALSE),0) -> 7 | K9: 39 | L9: =_xlfn.IFNA(VLOOKUP(C9,'Stage Results'!$B$41:$F$50,5,FALSE),0) -> 0
A10: 77 | B10: =VALUE('Stage Results'!I8) -> 6 | C10: ='Stage Results'!K8 -> 77 | D10: ='Stage Results'!L8 -> Justin Haley (i) | E10: ='Stage Results'!M8 -> Spire Motorsports | F10: ='Stage Results'!N8 -> Chevrolet | G10: ='Stage Results'!O8 -> 165 | H10: ='Stage Results'!P8 -> 31 | I10: =_xlfn.IFNA(VLOOKUP(C10,'Stage Results'!$B$3:$F$12,5,FALSE),0) -> 0 | J10: =_xlfn.IFNA(VLOOKUP(C10,'Stage Results'!$B$21:$F$30,5,FALSE),0) -> 0 | K10: 31 | L10: =_xlfn.IFNA(VLOOKUP(C10,'Stage Results'!$B$41:$F$50,5,FALSE),0) -> 0
A11: 48 | B11: =VALUE('Stage Results'!I9) -> 7 | C11: ='Stage Results'!K9 -> 48 | D11: ='Stage Results'!L9 -> Alex Bowman | E11: ='Stage Results'!M9 -> Hendrick Motorsports | F11: ='Stage Results'!N9 -> Chevrolet | G11: ='Stage Results'!O9 -> 165 | H11: ='Stage Results'!P9 -> 30 | I11: =_xlfn.IFNA(VLOOKUP(C11,'Stage Results'!$B$3:$F$12,5,FALSE),0) -> 0 | J11: =_xlfn.IFNA(VLOOKUP(C11,'Stage Results'!$B$21:$F$30,5,FALSE),0) -> 0 | K11: 30 | L11: =_xlfn.IFNA(VLOOKUP(C11,'Stage Results'!$B$41:$F$50,5,FALSE),0) -> 0
A12: 9 | B12: =VALUE('Stage Results'!I10) -> 8 | C12: ='Stage Results'!K10 -> 9 | D12: ='Stage Results'!L10 -> Chase Elliott | E12: ='Stage Results'!M10 -> Hendrick Motorsports | F12: ='Stage Results'!N10 -> Chevrolet | G12: ='Stage Results'!O10 -> 165 | H12: ='Stage Results'!P10 -> 39 | I12: =_xlfn.IFNA(VLOOKUP(C12,'Stage Results'!$B$3:$F$12,5,FALSE),0) -> 10 | J12: =_xlfn.IFNA(VLOOKUP(C12,'Stage Results'!$B$21:$F$30,5,FALSE),0) -> 0 | K12: 39 | L12: =_xlfn.IFNA(VLOOKUP(C12,'Stage Results'!$B$41:$F$50,5,FALSE),0) -> 0
A13: 78 | B13: =VALUE('Stage Results'!I11) -> 9 | C13: ='Stage Results'!K11 -> 78 | D13: ='Stage Results'!L11 -> B. J. McLeod (i) | E13: ='Stage Results'!M11 -> Live Fast Motorsports | F13: ='Stage Results'!N11 -> Ford | G13: ='Stage Results'!O11 -> 165 | H13: ='Stage Results'!P11 -> 28 | I13: =_xlfn.IFNA(VLOOKUP(C13,'Stage Results'!$B$3:$F$12,5,FALSE),0) -> 0 | J13: =_xlfn.IFNA(VLOOKUP(C13,'Stage Results'!$B$21:$F$30,5,FALSE),0) -> 0 | K13: 28 | L13: =_xlfn.IFNA(VLOOKUP(C13,'Stage Results'!$B$41:$F$50,5,FALSE),0) -> 0
A14: 52 | B14: =VALUE('Stage Results'!I12) -> 10 | C14: ='Stage Results'!K12 -> 52 | D14: ='Stage Results'!L12 -> Josh Bilicki | E14: ='Stage Results'!M12 -> Rick Ware Racing | F14: ='Stage Results'!N12 -> Ford | G14: ='Stage Results'!O12 -> 165 | H14: ='Stage Results'!P12 -> 27 | I14: =_xlfn.IFNA(VLOOKUP(C14,'Stage Results'!$B$3:$F$12,5,FALSE),0) -> 0 | J14: =_xlfn.IFNA(VLOOKUP(C14,'Stage Results'!$B$21:$F$30,5,FALSE),0) -> 0 | K14: 27 | L14: =_xlfn.IFNA(VLOOKUP(C14,'Stage Results'!$B$41:$F$50,5,FALSE),0) -> 0
A15: 43 | B15: =VALUE('Stage Results'!I13) -> 11 | C15: ='Stage Results'!K13 -> 43 | D15: ='Stage Results'!L13 -> Erik Jones | E15: ='Stage Results'!M13 -> Richard Petty Motorsports | F15: ='Stage Results'!N13 -> Chevrolet | G15: ='Stage Results'!O13 -> 165 | H15: ='Stage Results'!P13 -> 26 | I15: =_xlfn.IFNA(VLOOKUP(C15,'Stage Results'!$B$3:$F$12,5,FALSE),0) -> 0 | J15: =_xlfn.IFNA(VLOOKUP(C15,'Stage Results'!$B$21:$F$30,5,FALSE),0) -> 0 | K15: 26 | L15: =_xlfn.IFNA(VLOOKUP(C15,'Stage Results'!$B$41:$F$50,5,FALSE),0) -> 0
A16: 1 | B16: =VALUE('Stage Results'!I14) -> 12 | C16: ='Stage Results'!K14 -> 1 | D16: ='Stage Results'!L14 -> Kurt Busch | E16: ='Stage Results'!M14 -> Chip Ganassi Racing | F16: ='Stage Results'!N14 -> Chevrolet | G16: ='Stage Results'!O14 -> 165 | H16: ='Stage Results'!P14 -> 25 | I16: =_xlfn.IFNA(VLOOKUP(C16,'Stage Results'!$B$3:$F$12,5,FALSE),0) -> 0 | J16: =_xlfn.IFNA(VLOOKUP(C16,'Stage Results'!$B$21:$F$30,5,FALSE),0) -> 0 | K16: 25 | L16: =_xlfn.IFNA(VLOOKUP(C16,'Stage Results'!$B$41:$F$50,5,FALSE),0) -> 0
A17: 11 | B17: =VALUE('Stage Results'!I15) -> 13 | C17: ='Stage Results'!K15 -> 11 | D17: ='Stage Results'!L15 -> Denny Hamlin | E17: ='Stage Results'!M15 -> Joe Gibbs Racing | F17: ='Stage Results'!N15 -> Toyota | G17: ='Stage Results'!O15 -> 165 | H17: ='Stage Results'!P15 -> 33 | I17: =_xlfn.IFNA(VLOOKUP(C17,'Stage Results'!$B$3:$F$12,5,FALSE),0) -> 9 | J17: =_xlfn.IFNA(VLOOKUP(C17,'Stage Results'!$B$21:$F$30,5,FALSE),0) -> 0 | K17: 33 | L17: =_xlfn.IFNA(VLOOKUP(C17,'Stage Results'!$B$41:$F$50,5,FALSE),0) -> 0
A18: 10 | B18: =VALUE('Stage Results'!I16) -> 14 | C18: ='Stage Results'!K16 -> 10 | D18: ='Stage Results'!L16 -> Aric Almirola | E18: ='Stage Results'!M16 -> Stewart-Haas Racing | F18: ='Stage Results'!N16 -> Ford | G18: ='Stage Results'!O16 -> 165 | H18: ='Stage Results'!P16 -> 23 | I18: =_xlfn.IFNA(VLOOKUP(C18,'Stage Results'!$B$3:$F$12,5,FALSE),0) -> 0 | J18: =_xlfn.IFNA(VLOOKUP(C18,'Stage Results'!$B$21:$F$30,5,FALSE),0) -> 0 | K18: 23 | L18: =_xlfn.IFNA(VLOOKUP(C18,'Stage Results'!$B$41:$F$50,5,FALSE),0) -> 0
A19: 4 | B19: =VALUE('Stage Results'!I17) -> 15 | C19: ='Stage Results'!K17 -> 4 | D19: ='Stage Results'!L17 -> Kevin Harvick | E19: ='Stage Results'!M17 -> Stewart-Haas Racing | F19: ='Stage Results'!N17 -> Ford | G19: ='Stage Results'!O17 -> 165 | H19: ='Stage Results'!P17 -> 22 | I19: =_xlfn.IFNA(VLOOKUP(C19,'Stage Results'!$B$3:$F$12,5,FALSE),0) -> 0 | J19: =_xlfn.IFNA(VLOOKUP(C19,'Stage Results'!$B$21:$F$30,5,FALSE),0) -> 0 | K19: 22 | L19: =_xlfn.IFNA(VLOOKUP(C19,'Stage Results'!$B$41:$F$50,5,FALSE),0) -> 0
A20: 7 | B20: =VALUE('Stage Results'!I18) -> 16 | C20: ='Stage Results'!K18 -> 7 | D20: ='Stage Results'!L18 -> Corey LaJoie | E20: ='Stage Results'!M18 -> Spire Motorsports | F20: ='Stage Results'!N18 -> Chevrolet | G20: ='Stage Results'!O18 -> 164 | H20: ='Stage Results'!P18 -> 25 | I20: =_xlfn.IFNA(VLOOKUP(C20,'Stage Results'!$B$3:$F$12,5,FALSE),0) -> 4 | J20: =_xlfn.IFNA(VLOOKUP(C20,'Stage Results'!$B$21:$F$30,5,FALSE),0) -> 0 | K20: 25 | L20: =_xlfn.IFNA(VLOOKUP(C20,'Stage Results'!$B$41:$F$50,5,FALSE),0) -> 0
A21: 3 | B21: =VALUE('Stage Results'!I19) -> 17 | C21: ='Stage Results'!K19 -> 3 | D21: ='Stage Results'!L19 -> Austin Dillon | E21: ='Stage Results'!M19 -> Richard Childress Racing | F21: ='Stage Results'!N19 -> Chevrolet | G21: ='Stage Results'!O19 -> 164 | H21: ='Stage Results'!P19 -> 34 | I21: =_xlfn.IFNA(VLOOKUP(C21,'Stage Results'!$B$3:$F$12,5,FALSE),0) -> 5 | J21: =_xlfn.IFNA(VLOOKUP(C21,'Stage Results'!$B$21:$F$30,5,FALSE),0) -> 9 | K21: 34 | L21: =_xlfn.IFNA(VLOOKUP(C21,'Stage Results'!$B$41:$F$50,5,FALSE),0) -> 0
A22: 42 | B22: =VALUE('Stage Results'!I20) -> 18 | C22: ='Stage Results'!K20 -> 42 | D22: ='Stage Results'!L20 -> Ross Chastain | E22: ='Stage Results'!M20 -> Chip Ganassi Racing | F22: ='Stage Results'!N20 -> Chevrolet | G22: ='Stage Results'!O20 -> 164 | H22: ='Stage Results'!P20 -> 26 | I22: =_xlfn.IFNA(VLOOKUP(C22,'Stage Results'!$B$3:$F$12,5,FALSE),0) -> 7 | J22: =_xlfn.IFNA(VLOOKUP(C22,'Stage Results'!$B$21:$F$30,5,FALSE),0) -> 0 | K22: 26 | L22: =_xlfn.IFNA(VLOOKUP(C22,'Stage Results'!$B$41:$F$50,5,FALSE),0) -> 0
A23: 99 | B23: =VALUE('Stage Results'!I21) -> 19 | C23: ='Stage Results'!K21 -> 99 | D23: ='Stage Results'!L21 -> Daniel Suárez | E23: ='Stage Results'!M21 -> Trackhouse Racing Team | F23: ='Stage Results'!N21 -> Chevrolet | G23: ='Stage Results'!O21 -> 164 | H23: ='Stage Results'!P21 -> 18 | I23: =_xlfn.IFNA(VLOOKUP(C23,'Stage Results'!$B$3:$F$12,5,FALSE),0) -> 0 | J23: =_xlfn.IFNA(VLOOKUP(C23,'Stage Results'!$B$21:$F$30,5,FALSE),0) -> 0 | K23: 18 | L23: =_xlfn.IFNA(VLOOKUP(C23,'Stage Results'!$B$41:$F$50,5,FALSE),0) -> 0
A24: 5 | B24: =VALUE('Stage Results'!I22) -> 20 | C24: ='Stage Results'!K22 -> 5 | D24: ='Stage Results'!L22 -> Kyle Larson | E24: ='Stage Results'!M22 -> Hendrick Motorsports | F24: ='Stage Results'!N22 -> Chevrolet | G24: ='Stage Results'!O22 -> 164 | H24: ='Stage Results'!P22 -> 23 | I24: =_xlfn.IFNA(VLOOKUP(C24,'Stage Results'!$B$3:$F$12,5,FALSE),0) -> 0 | J24: =_xlfn.IFNA(VLOOKUP(C24,'Stage Results'!$B$21:$F$30,5,FALSE),0) -> 6 | K24: 23 | L24: =_xlfn.IFNA(VLOOKUP(C24,'Stage Results'!$B$41:$F$50,5,FALSE),0) -> 0
A25: 14 | B25: =VALUE('Stage Results'!I23) -> 21 | C25: ='Stage Results'!K23 -> 14 | D25: ='Stage Results'!L23 -> Chase Briscoe (R) | E25: ='Stage Results'!M23 -> Stewart-Haas Racing | F25: ='Stage Results'!N23 -> Ford | G25: ='Stage Results'!O23 -> 164 | H25: ='Stage Results'!P23 -> 16 | I25: =_xlfn.IFNA(VLOOKUP(C25,'Stage Results'!$B$3:$F$12,5,FALSE),0) -> 0 | J25: =_xlfn.IFNA(VLOOKUP(C25,'Stage Results'!$B$21:$F$30,5,FALSE),0) -> 0 | K25: 16 | L25: =_xlfn.IFNA(VLOOKUP(C25,'Stage Results'!$B$41:$F$50,5,FALSE),0) -> 0
A26: 47 | B26: =VALUE('Stage Results'!I24) -> 22 | C26: ='Stage Results'!K24 -> 47 | D26: ='Stage Results'!L24 -> Ricky Stenhouse Jr. | E26: ='Stage Results'!M24 -> JTG Daugherty Racing | F26: ='Stage Results'!N24 -> Chevrolet | G26: ='Stage Results'!O24 -> 164 | H26: ='Stage Results'!P24 -> 19 | I26: =_xlfn.IFNA(VLOOKUP(C26,'Stage Results'!$B$3:$F$12,5,FALSE),0) -> 0 | J26: =_xlfn.IFNA(VLOOKUP(C26,'Stage Results'!$B$21:$F$30,5,FALSE),0) -> 4 | K26: 19 | L26: =_xlfn.IFNA(VLOOKUP(C26,'Stage Results'!$B$41:$F$50,5,FALSE),0) -> 0
A27: 22 | B27: =VALUE('Stage Results'!I25) -> 23 | C27: ='Stage Results'!K25 -> 22 | D27: ='Stage Results'!L25 -> Joey Logano | E27: ='Stage Results'!M25 -> Team Penske | F27: ='Stage Results'!N25 -> Ford | G27: ='Stage Results'!O25 -> 164 | H27: ='Stage Results'!P25 -> 27 | I27: =_xlfn.IFNA(VLOOKUP(C27,'Stage Results'!$B$3:$F$12,5,FALSE),0) -> 3 | J27: =_xlfn.IFNA(VLOOKUP(C27,'Stage Results'!$B$21:$F$30,5,FALSE),0) -> 10 | K27: 27 | L27: =_xlfn.IFNA(VLOOKUP(C27,'Stage Results'!$B$41:$F$50,5,FALSE),0) -> 0
A28: 41 | B28: =VALUE('Stage Results'!I26) -> 24 | C28: ='Stage Results'!K26 -> 41 | D28: ='Stage Results'!L26 -> Cole Custer | E28: ='Stage Results'!M26 -> Stewart-Haas Racing | F28: ='Stage Results'!N26 -> Ford | G28: ='Stage Results'!O26 -> 164 | H28: ='Stage Results'!P26 -> 13 | I28: =_xlfn.IFNA(VLOOKUP(C28,'Stage Results'!$B$3:$F$12,5,FALSE),0) -> 0 | J28: =_xlfn.IFNA(VLOOKUP(C28,'Stage Results'!$B$21:$F$30,5,FALSE),0) -> 0 | K28: 13 | L28: =_xlfn.IFNA(VLOOKUP(C28,'Stage Results'!$B$41:$F$50,5,FALSE),0) -> 0
A29: 21 | B29: =VALUE('Stage Results'!I27) -> 25 | C29: ='Stage Results'!K27 -> 21 | D29: ='Stage Results'!L27 -> Matt DiBenedetto | E29: ='Stage Results'!M27 -> Wood Brothers Racing | F29: ='Stage Results'!N27 -> Ford | G29: ='Stage Results'!O27 -> 164 | H29: ='Stage Results'!P27 -> 12 | I29: =_xlfn.IFNA(VLOOKUP(C29,'Stage Results'!$B$3:$F$12,5,FALSE),0) -> 0 | J29: =_xlfn.IFNA(VLOOKUP(C29,'Stage Results'!$B$21:$F$30,5,FALSE),0) -> 0 | K29: 12 | L29: =_xlfn.IFNA(VLOOKUP(C29,'Stage Results'!$B$41:$F$50,5,FALSE),0) -> 0
A30: 38 | B30: =VALUE('Stage Results'!I28) -> 26 | C30: ='Stage Results'!K28 -> 38 | D30: ='Stage Results'!L28 -> Anthony Alfredo (R) | E30: ='Stage Results'!M28 -> Front Row Motorsports | F30: ='Stage Results'!N28 -> Ford | G30: ='Stage Results'!O28 -> 163 | H30: ='Stage Results'!P28 -> 11 | I30: =_xlfn.IFNA(VLOOKUP(C30,'Stage Results'!$B$3:$F$12,5,FALSE),0) -> 0 | J30: =_xlfn.IFNA(VLOOKUP(C30,'Stage Results'!$B$21:$F$30,5,FALSE),0) -> 0 | K30: 11 | L30: =_xlfn.IFNA(VLOOKUP(C30,'Stage Results'!$B$41:$F$50,5,FALSE),0) -> 0
A31: 66 | B31: =VALUE('Stage Results'!I29) -> 27 | C31: ='Stage Results'!K29 -> 66 | D31: ='Stage Results'!L29 -> David Starr (i) | E31: ='Stage Results'!M29 -> MBM Motorsports | F31: ='Stage Results'!N29 -> Ford | G31: ='Stage Results'!O29 -> 163 | H31: ='Stage Results'!P29 -> 10 | I31: =_xlfn.IFNA(VLOOKUP(C31,'Stage Results'!$B$3:$F$12,5,FALSE),0) -> 0 | J31: =_xlfn.IFNA(VLOOKUP(C31,'Stage Results'!$B$21:$F$30,5,FALSE),0) -> 0 | K31: 10 | L31: =_xlfn.IFNA(VLOOKUP(C31,'Stage Results'!$B$41:$F$50,5,FALSE),0) -> 0
A32: 51 | B32: =VALUE('Stage Results'!I30) -> 28 | C32: ='Stage Results'!K30 -> 51 | D32: ='Stage Results'!L30 -> Cody Ware (i) | E32: ='Stage Results'!M30 -> Petty Ware Racing | F32: ='Stage Results'!N30 -> Chevrolet | G32: ='Stage Results'!O30 -> 163 | H32: ='Stage Results'!P30 -> 9 | I32: =_xlfn.IFNA(VLOOKUP(C32,'Stage Results'!$B$3:$F$12,5,FALSE),0) -> 0 | J32: =_xlfn.IFNA(VLOOKUP(C32,'Stage Results'!$B$21:$F$30,5,FALSE),0) -> 0 | K32: 9 | L32: =_xlfn.IFNA(VLOOKUP(C32,'Stage Results'!$B$41:$F$50,5,FALSE),0) -> 0
A33: 19 | B33: =VALUE('Stage Results'!I31) -> 29 | C33: ='Stage Results'!K31 -> 19 | D33: ='Stage Results'!L31 -> Martin Truex Jr. | E33: ='Stage Results'!M31 -> Joe Gibbs Racing | F33: ='Stage Results'!N31 -> Toyota | G33: ='Stage Results'!O31 -> 163 | H33: ='Stage Results'!P31 -> 14 | I33: =_xlfn.IFNA(VLOOKUP(C33,'Stage Results'!$B$3:$F$12,5,FALSE),0) -> 6 | J33: =_xlfn.IFNA(VLOOKUP(C33,'Stage Results'!$B$21:$F$30,5,FALSE),0) -> 0 | K33: 14 | L33: =_xlfn.IFNA(VLOOKUP(C33,'Stage Results'!$B$41:$F$50,5,FALSE),0) -> 0
A34: 53 | B34: =VALUE('Stage Results'!I32) -> 30 | C34: ='Stage Results'!K32 -> 53 | D34: ='Stage Results'!L32 -> Garrett Smithley (i) | E34: ='Stage Results'!M32 -> Rick Ware Racing | F34: ='Stage Results'!N32 -> Chevrolet | G34: ='Stage Results'!O32 -> 163 | H34: ='Stage Results'!P32 -> 7 | I34: =_xlfn.IFNA(VLOOKUP(C34,'Stage Results'!$B$3:$F$12,5,FALSE),0) -> 0 | J34: =_xlfn.IFNA(VLOOKUP(C34,'Stage Results'!$B$21:$F$30,5,FALSE),0) -> 0 | K34: 7 | L34: =_xlfn.IFNA(VLOOKUP(C34,'Stage Results'!$B$41:$F$50,5,FALSE),0) -> 0
A35: 15 | B35: =VALUE('Stage Results'!I33) -> 31 | C35: ='Stage Results'!K33 -> 15 | D35: ='Stage Results'!L33 -> Joey Gase (i) | E35: ='Stage Results'!M33 -> Rick Ware Racing | F35: ='Stage Results'!N33 -> Ford | G35: ='Stage Results'!O33 -> 162 | H35: ='Stage Results'!P33 -> 6 | I35: =_xlfn.IFNA(VLOOKUP(C35,'Stage Results'!$B$3:$F$12,5,FALSE),0) -> 0 | J35: =_xlfn.IFNA(VLOOKUP(C35,'Stage Results'!$B$21:$F$30,5,FALSE),0) -> 0 | K35: 6 | L35: =_xlfn.IFNA(VLOOKUP(C35,'Stage Results'!$B$41:$F$50,5,FALSE),0) -> 0
A36: 20 | B36: =VALUE('Stage Results'!I34) -> 32 | C36: ='Stage Results'!K34 -> 20 | D36: ='Stage Results'!L34 -> Christopher Bell | E36: ='Stage Results'!M34 -> Joe Gibbs Racing | F36: ='Stage Results'!N34 -> Toyota | G36: ='Stage Results'!O34 -> 157 | H36: ='Stage Results'!P34 -> 7 | I36: =_xlfn.IFNA(VLOOKUP(C36,'Stage Results'!$B$3:$F$12,5,FALSE),0) -> 1 | J36: =_xlfn.IFNA(VLOOKUP(C36,'Stage Results'!$B$21:$F$30,5,FALSE),0) -> 1 | K36: 7 | L36: =_xlfn.IFNA(VLOOKUP(C36,'Stage Results'!$B$41:$F$50,5,FALSE),0) -> 0
A37: 2 | B37: =VALUE('Stage Results'!I35) -> 33 | C37: ='Stage Results'!K35 -> 2 | D37: ='Stage Results'!L35 -> Brad Keselowski | E37: ='Stage Results'!M35 -> Team Penske | F37: ='Stage Results'!N35 -> Ford | G37: ='Stage Results'!O35 -> 156 | H37: ='Stage Results'!P35 -> 4 | I37: =_xlfn.IFNA(VLOOKUP(C37,'Stage Results'!$B$3:$F$12,5,FALSE),0) -> 0 | J37: =_xlfn.IFNA(VLOOKUP(C37,'Stage Results'!$B$21:$F$30,5,FALSE),0) -> 0 | K37: 4 | L37: =_xlfn.IFNA(VLOOKUP(C37,'Stage Results'!$B$41:$F$50,5,FALSE),0) -> 0
A38: 18 | B38: =VALUE('Stage Results'!I36) -> 34 | C38: ='Stage Results'!K36 -> 18 | D38: ='Stage Results'!L36 -> Kyle Busch | E38: ='Stage Results'!M36 -> Joe Gibbs Racing | F38: ='Stage Results'!N36 -> Toyota | G38: ='Stage Results'!O36 -> 156 | H38: ='Stage Results'!P36 -> 14 | I38: =_xlfn.IFNA(VLOOKUP(C38,'Stage Results'!$B$3:$F$12,5,FALSE),0) -> 8 | J38: =_xlfn.IFNA(VLOOKUP(C38,'Stage Results'!$B$21:$F$30,5,FALSE),0) -> 3 | K38: 14 | L38: =_xlfn.IFNA(VLOOKUP(C38,'Stage Results'!$B$41:$F$50,5,FALSE),0) -> 0
A39: 16 | B39: =VALUE('Stage Results'!I37) -> 35 | C39: ='Stage Results'!K37 -> 16 | D39: ='Stage Results'!L37 -> Kaz Grala (i) | E39: ='Stage Results'!M37 -> Kaulig Racing | F39: ='Stage Results'!N37 -> Chevrolet | G39: ='Stage Results'!O37 -> 156 | H39: ='Stage Results'!P37 -> 2 | I39: =_xlfn.IFNA(VLOOKUP(C39,'Stage Results'!$B$3:$F$12,5,FALSE),0) -> 0 | J39: =_xlfn.IFNA(VLOOKUP(C39,'Stage Results'!$B$21:$F$30,5,FALSE),0) -> 0 | K39: 2 | L39: =_xlfn.IFNA(VLOOKUP(C39,'Stage Results'!$B$41:$F$50,5,FALSE),0) -> 0
A40: 96 | B40: =VALUE('Stage Results'!I38) -> 36 | C40: ='Stage Results'!K38 -> 96 | D40: ='Stage Results'!L38 -> Landon Cassill (i) | E40: ='Stage Results'!M38 -> Gaunt Brothers Racing | F40: ='Stage Results'!N38 -> Toyota | G40: ='Stage Results'!O38 -> 146 | H40: ='Stage Results'!P38 -> 1 | I40: =_xlfn.IFNA(VLOOKUP(C40,'Stage Results'!$B$3:$F$12,5,FALSE),0) -> 0 | J40: =_xlfn.IFNA(VLOOKUP(C40,'Stage Results'!$B$21:$F$30,5,FALSE),0) -> 0 | K40: 1 | L40: =_xlfn.IFNA(VLOOKUP(C40,'Stage Results'!$B$41:$F$50,5,FALSE),0) -> 0
A41: 24 | B41: =VALUE('Stage Results'!I39) -> 37 | C41: ='Stage Results'!K39 -> 24 | D41: ='Stage Results'!L39 -> William Byron | E41: ='Stage Results'!M39 -> Hendrick Motorsports | F41: ='Stage Results'!N39 -> Chevrolet | G41: ='Stage Results'!O39 -> 146 | H41: ='Stage Results'!P39 -> 9 | I41: =_xlfn.IFNA(VLOOKUP(C41,'Stage Results'!$B$3:$F$12,5,FALSE),0) -> 0 | J41: =_xlfn.IFNA(VLOOKUP(C41,'Stage Results'!$B$21:$F$30,5,FALSE),0) -> 8 | K41: 9 | L41: =_xlfn.IFNA(VLOOKUP(C41,'Stage Results'!$B$41:$F$50,5,FALSE),0) -> 0
A42: 00 | B42: =VALUE('Stage Results'!I40) -> 38 | C42: ='Stage Results'!K40 -> 00 | D42: ='Stage Results'!L40 -> Quin Houff | E42: ='Stage Results'!M40 -> StarCom Racing | F42: ='Stage Results'!N40 -> Chevrolet | G42: ='Stage Results'!O40 -> 136 | H42: ='Stage Results'!P40 -> 1 | I42: =_xlfn.IFNA(VLOOKUP(C42,'Stage Results'!$B$3:$F$12,5,FALSE),0) -> 0 | J42: =_xlfn.IFNA(VLOOKUP(C42,'Stage Results'!$B$21:$F$30,5,FALSE),0) -> 0 | K42: 1 | L42: =_xlfn.IFNA(VLOOKUP(C42,'Stage Results'!$B$41:$F$50,5,FALSE),0) -> 0
A43: 34 | B43: =VALUE('Stage Results'!I41) -> 39 | C43: ='Stage Results'!K41 -> 34 | D43: ='Stage Results'!L41 -> Michael McDowell | E43: ='Stage Results'!M41 -> Front Row Motorsports | F43: ='Stage Results'!N41 -> Ford | G43: ='Stage Results'!O41 -> 23 | H43: ='Stage Results'!P41 -> 1 | I43: =_xlfn.IFNA(VLOOKUP(C43,'Stage Results'!$B$3:$F$12,5,FALSE),0) -> 0 | J43: =_xlfn.IFNA(VLOOKUP(C43,'Stage Results'!$B$21:$F$30,5,FALSE),0) -> 0 | K43: 1 | L43: =_xlfn.IFNA(VLOOKUP(C43,'Stage Results'!$B$41:$F$50,5,FALSE),0) -> 0
A44: 17 | B44: =VALUE('Stage Results'!I42) -> 0 | C44: ='Stage Results'!K42 -> 17 | D44: ='Stage Results'!L42 -> Chris Buescher | E44: ='Stage Results'!M42 -> Roush Fenway Racing | F44: ='Stage Results'!N42 -> Ford | G44: ='Stage Results'!O42 -> 165 | H44: ='Stage Results'!P42 -> 1 | I44: =_xlfn.IFNA(VLOOKUP(C44,'Stage Results'!$B$3:$F$12,5,FALSE),0) -> 0 | J44: =_xlfn.IFNA(VLOOKUP(C44,'Stage Results'!$B$21:$F$30,5,FALSE),0) -> 0 | K44: 1 | L44: =_xlfn.IFNA(VLOOKUP(C44,'Stage Results'!$B$41:$F$50,5,FALSE),0) -> 0
B205: Pos | D205: Driver | E205: MFG | F205: Start | G205: Laps | H205: Led
B206: 1 | D206: #4 Kevin Harvick | E206: Chevrolet | F206: 13 | G206: 312 | H206: 224
B207: 2 | D207: #88 Dale Earnhardt Jr. | E207: Chevrolet | F207: 5 | G207: 312 | H207: 0
B208: 3 | D208: #2 Brad Keselowski | E208: Ford | F208: 1 | G208: 312 | H208: 3
B209: 4 | D209: #22 Joey Logano | E209: Ford | F209: 2 | G209: 312 | H209: 71
B210: 5 | D210: #24 Jeff Gordon | E210: Chevrolet | F210: 17 | G210: 312 | H210: 4
B211: 6 | D211: #48 Jimmie Johnson | E211: Chevrolet | F211: 4 | G211: 312 | H211: 0
B212: 7 | D212: #31 Ryan Newman | E212: Chevrolet | F212: 15 | G212: 312 | H212: 6
B213: 8 | D213: #99 Carl Edwards | E213: Ford | F213: 23 | G213: 312 | H213: 1
B214: 9 | D214: #18 Kyle Busch | E214: Toyota | F214: 7 | G214: 312 | H214: 0
B215: 10 | D215: #1 Jamie McMurray | E215: Chevrolet | F215: 3 | G215: 312 | H215: 0
B216: 11 | D216: #5 Kasey Kahne | E216: Chevrolet | F216: 11 | G216: 312 | H216: 0
B217: 12 | D217: #20 Matt Kenseth | E217: Toyota | F217: 19 | G217: 312 | H217: 0
B218: 13 | D218: #15 Clint Bowyer | E218: Toyota | F218: 14 | G218: 312 | H218: 1
B219: 14 | D219: #13 Casey Mears | E219: Chevrolet | F219: 18 | G219: 312 | H219: 0
B220: 15 | D220: #43 Aric Almirola | E220: Ford | F220: 9 | G220: 312 | H220: 0
B221: 16 | D221: #14 Tony Stewart | E221: Chevrolet | F221: 20 | G221: 312 | H221: 0
B222: 17 | D222: #16 Greg Biffle | E222: Ford | F222: 6 | G222: 312 | H222: 0
B223: 18 | D223: #17 Ricky Stenhouse Jr. | E223: Ford | F223: 21 | G223: 312 | H223: 0
B224: 19 | D224: #11 Denny Hamlin | E224: Toyota | F224: 12 | G224: 312 | H224: 0
B225: 20 | D225: #42 Kyle Larson | E225: Chevrolet | F225: 8 | G225: 312 | H225: 0
B226: 21 | D226: #9 Marcos Ambrose | E226: Ford | F226: 29 | G226: 311 | H226: 0
B227: 22 | D227: #78 Martin Truex Jr. | E227: Chevrolet | F227: 27 | G227: 311 | H227: 0
B228: 23 | D228: #27 Paul Menard | E228: Chevrolet | F228: 22 | G228: 311 | H228: 0
B229: 24 | D229: #3 Austin Dillon | E229: Chevrolet | F229: 24 | G229: 311 | H229: 0
B230: 25 | D230: #55 Brian Vickers | E230: Toyota | F230: 16 | G230: 311 | H230: 0
B231: 26 | D231: #47 A J Allmendinger | E231: Chevrolet | F231: 25 | G231: 310 | H231: 0
B232: 27 | D232: #26 Cole Whitt | E232: Toyota | F232: 31 | G232: 310 | H232: 0
B233: 28 | D233: #34 David Ragan | E233: Ford | F233: 30 | G233: 310 | H233: 0
B234: 29 | D234: #38 David Gilliland | E234: Ford | F234: 28 | G234: 309 | H234: 2
B235: 30 | D235: #51 Justin Allgaier | E235: Chevrolet | F235: 43 | G235: 309 | H235: 0
B236: 31 | D236: #36 Reed Sorenson | E236: Chevrolet | F236: 39 | G236: 308 | H236: 0
B237: 32 | D237: #33 Brian Scott | E237: Chevrolet | F237: 32 | G237: 308 | H237: 0
B238: 33 | D238: #95 Michael McDowell | E238: Ford | F238: 26 | G238: 307 | H238: 0
B239: 34 | D239: #7 Michael Annett | E239: Chevrolet | F239: 41 | G239: 307 | H239: 0
B240: 35 | D240: #83 Ryan Truex | E240: Toyota | F240: 34 | G240: 307 | H240: 0
B241: 36 | D241: #10 Danica Patrick | E241: Chevrolet | F241: 33 | G241: 306 | H241: 0
B242: 37 | D242: #35 Blake Koch | E242: Ford | F242: 37 | G242: 306 | H242: 0
B243: 38 | D243: #32 Travis Kvapil | E243: Ford | F243: 40 | G243: 302 | H243: 0
B244: 39 | D244: #41 Kurt Busch | E244: Chevrolet | F244: 10 | G244: 292 | H244: 0
B245: 40 | D245: #66 Joe Nemechek | E245: Toyota | F245: 38 | G245: 292 | H245: 0
B246: 41 | D246: #23 Alex Bowman | E246: Toyota | F246: 35 | G246: 230 | H246: 0
B247: 42 | D247: #30 Parker Kligerman | E247: Toyota | F247: 36 | G247: 226 | H247: 0
B248: 43 | D248: #87 Morgan Shepherd | E248: Toyota | F248: 42 | G248: 28 | H248: 0
B249: MSN Ad Configuration
B251: DEFAULT
B252: PG=SPTFBB
B253: AP=1089
B254: SIZE=300x250
B256: 2 COLUMN
B257: PG=SPTFBB
B258: AP=1089
B259: SIZE=300x250
B261: 1 COLUMN
B262: PG=SPTFBB
B263: AP=1089
B264: SIZE=300x250

Sheet Current Owner Standings
A1: 2013 Sprint Cup Series | S1: http://scores.nbcsports.com/racing/index.asp?page=owner&series=NASCAR&sort=1
Q2: Column1 | R2: Column2 | S2: Column3 | T2: Column4 | U2: Column5 | V2: Column6 | W2: Column7 | X2: Column8 | Y2: Column9 | Z2: Column10 | AA2: Column11
A3: RK | C3: OWNER | D3: Car # | E3: Points | F3: Behind | G3: Wins | H3: Starts | I3: Top 5 | J3: Top 10 | K3: DNF | L3: DRIVER | Q3: Rank | R3: Car # | S3: Owner | T3: Points | U3: Behind | V3: Wins | W3: Starts | X3: Top 5 | Y3: Top 10 | Z3: DNF
A4: 1 | C4: =S4 -> Hendrick Motorsports | D4: =IF(R4="00",R4,VALUE(R4)) -> 5 | E4: =T4 -> 1004 | F4: =U4 -> - | G4: =V4 -> 5 | H4: 25 | I4: 14 | J4: 18 | K4: 1 | L4: =IF(D4="00",_xlfn.IFNA(VLOOKUP(D4,'Entry List'!$A$2:$E$88,4,FALSE),"Not Entered"),_xlfn.IFNA(VLOOKUP(VALUE(D4),'Entry List'!$A$2:$E$88,4,FALSE),"Not Entered")) -> Kyle Larson | Q4: 1 | R4: 5 | S4: Hendrick Motorsports | T4: 1004 | U4: - | V4: 5 | W4: 25 | X4: 14 | Y4: 18 | Z4: 1
A5: 2 | C5: =S5 -> Joe Gibbs Racing | D5: =IF(R5="00",R5,VALUE(R5)) -> 11 | E5: =T5 -> 976 | F5: =U5 -> 28 | G5: =V5 -> 0 | H5: =W5 -> 25 | I5: =X5 -> 13 | J5: =Y5 -> 17 | K5: =Z5 -> 0 | L5: =IF(D5="00",_xlfn.IFNA(VLOOKUP(D5,'Entry List'!$A$2:$E$88,4,FALSE),"Not Entered"),_xlfn.IFNA(VLOOKUP(VALUE(D5),'Entry List'!$A$2:$E$88,4,FALSE),"Not Entered")) -> Denny Hamlin | Q5: 2 | R5: 11 | S5: Joe Gibbs Racing | T5: 976 | U5: 28 | V5: 0 | W5: 25 | X5: 13 | Y5: 17 | Z5: 0
A6: 3 | C6: Joe Gibbs Racing | D6: 18 | E6: 838 | F6: 166 | G6: 2 | H6: 25 | I6: 11 | J6: 16 | K6: 2 | L6: =IF(D6="00",_xlfn.IFNA(VLOOKUP(D6,'Entry List'!$A$2:$E$88,4,FALSE),"Not Entered"),_xlfn.IFNA(VLOOKUP(VALUE(D6),'Entry List'!$A$2:$E$88,4,FALSE),"Not Entered")) -> Kyle Busch | Q6: 3 | R6: 18 | S6: Joe Gibbs Racing | T6: 838 | U6: 166 | V6: 2 | W6: 25 | X6: 11 | Y6: 16 | Z6: 2
A7: 4 | C7: Hendrick Motorsports | D7: 24 | E7: 833 | F7: 171 | G7: 1 | H7: 25 | I7: 9 | J7: 16 | K7: 2 | L7: =IF(D7="00",_xlfn.IFNA(VLOOKUP(D7,'Entry List'!$A$2:$E$88,4,FALSE),"Not Entered"),_xlfn.IFNA(VLOOKUP(VALUE(D7),'Entry List'!$A$2:$E$88,4,FALSE),"Not Entered")) -> William Byron | Q7: 4 | R7: 24 | S7: Hendrick Motorsports | T7: 833 | U7: 171 | V7: 1 | W7: 25 | X7: 9 | Y7: 16 | Z7: 2
A8: 5 | C8: Hendrick Motorsports | D8: 9 | E8: 820 | F8: 184 | G8: 2 | H8: 25 | I8: 11 | J8: 15 | K8: 2 | L8: =IF(D8="00",_xlfn.IFNA(VLOOKUP(D8,'Entry List'!$A$2:$E$88,4,FALSE),"Not Entered"),_xlfn.IFNA(VLOOKUP(VALUE(D8),'Entry List'!$A$2:$E$88,4,FALSE),"Not Entered")) -> Chase Elliott | Q8: 5 | R8: 9 | S8: Hendrick Motorsports | T8: 820 | U8: 184 | V8: 2 | W8: 25 | X8: 11 | Y8: 15 | Z8: 2
A9: 6 | C9: Joe Gibbs Racing | D9: 19 | E9: 789 | F9: 215 | G9: 3 | H9: 25 | I9: 8 | J9: 13 | K9: 1 | L9: =IF(D9="00",_xlfn.IFNA(VLOOKUP(D9,'Entry List'!$A$2:$E$88,4,FALSE),"Not Entered"),_xlfn.IFNA(VLOOKUP(VALUE(D9),'Entry List'!$A$2:$E$88,4,FALSE),"Not Entered")) -> Martin Truex Jr. | Q9: 6 | R9: 19 | S9: Joe Gibbs Racing | T9: 789 | U9: 215 | V9: 3 | W9: 25 | X9: 8 | Y9: 13 | Z9: 1
A10: 7 | C10: Team Penske | D10: 12 | E10: 787 | F10: 217 | G10: 2 | H10: 25 | I10: 7 | J10: 13 | K10: 2 | L10: =IF(D10="00",_xlfn.IFNA(VLOOKUP(D10,'Entry List'!$A$2:$E$88,4,FALSE),"Not Entered"),_xlfn.IFNA(VLOOKUP(VALUE(D10),'Entry List'!$A$2:$E$88,4,FALSE),"Not Entered")) -> Ryan Blaney | Q10: 7 | R10: 12 | S10: Team Penske | T10: 787 | U10: 217 | V10: 2 | W10: 25 | X10: 7 | Y10: 13 | Z10: 2
A11: 8 | C11: Team Penske | D11: 22 | E11: 772 | F11: 232 | G11: 1 | H11: 25 | I11: 8 | J11: 13 | K11: 4 | L11: =IF(D11="00",_xlfn.IFNA(VLOOKUP(D11,'Entry List'!$A$2:$E$88,4,FALSE),"Not Entered"),_xlfn.IFNA(VLOOKUP(VALUE(D11),'Entry List'!$A$2:$E$88,4,FALSE),"Not Entered")) -> Joey Logano | Q11: 8 | R11: 22 | S11: Team Penske | T11: 772 | U11: 232 | V11: 1 | W11: 25 | X11: 8 | Y11: 13 | Z11: 4
A12: 9 | C12: =S12 -> Stewart-Haas Racing | D12: =IF(R12="00",R12,VALUE(R12)) -> 4 | E12: =T12 -> 756 | F12: 248 | G12: 0 | H12: 25 | I12: 6 | J12: 16 | K12: 1 | L12: =IF(D12="00",_xlfn.IFNA(VLOOKUP(D12,'Entry List'!$A$2:$E$88,4,FALSE),"Not Entered"),_xlfn.IFNA(VLOOKUP(VALUE(D12),'Entry List'!$A$2:$E$88,4,FALSE),"Not Entered")) -> Kevin Harvick | Q12: 9 | R12: 4 | S12: Stewart-Haas Racing | T12: 756 | U12: 248 | V12: 0 | W12: 25 | X12: 6 | Y12: 16 | Z12: 1
A13: 10 | C13: =S13 -> Team Penske | D13: =IF(R13="00",R13,VALUE(R13)) -> 2 | E13: =T13 -> 729 | F13: =U13 -> 275 | G13: =V13 -> 1 | H13: =W13 -> 25 | I13: =X13 -> 7 | J13: =Y13 -> 10 | K13: =Z13 -> 2 | L13: =IF(D13="00",_xlfn.IFNA(VLOOKUP(D13,'Entry List'!$A$2:$E$88,4,FALSE),"Not Entered"),_xlfn.IFNA(VLOOKUP(VALUE(D13),'Entry List'!$A$2:$E$88,4,FALSE),"Not Entered")) -> Brad Keselowski | Q13: 10 | R13: 2 | S13: Team Penske | T13: 729 | U13: 275 | V13: 1 | W13: 25 | X13: 7 | Y13: 10 | Z13: 2
A14: 11 | C14: Richard Childress Racing | D14: 8 | E14: 677 | F14: 327 | G14: 0 | H14: 25 | I14: 1 | J14: 12 | K14: 1 | L14: =IF(D14="00",_xlfn.IFNA(VLOOKUP(D14,'Entry List'!$A$2:$E$88,4,FALSE),"Not Entered"),_xlfn.IFNA(VLOOKUP(VALUE(D14),'Entry List'!$A$2:$E$88,4,FALSE),"Not Entered")) -> Tyler Reddick | Q14: 11 | R14: 8 | S14: Richard Childress Racing | T14: 677 | U14: 327 | V14: 0 | W14: 25 | X14: 1 | Y14: 12 | Z14: 1
A15: 12 | C15: Hendrick Motorsports | D15: 48 | E15: 674 | F15: 330 | G15: 3 | H15: 25 | I15: 6 | J15: 12 | K15: 3 | L15: =IF(D15="00",_xlfn.IFNA(VLOOKUP(D15,'Entry List'!$A$2:$E$88,4,FALSE),"Not Entered"),_xlfn.IFNA(VLOOKUP(VALUE(D15),'Entry List'!$A$2:$E$88,4,FALSE),"Not Entered")) -> Alex Bowman | Q15: 12 | R15: 48 | S15: Hendrick Motorsports | T15: 674 | U15: 330 | V15: 3 | W15: 25 | X15: 6 | Y15: 12 | Z15: 3
A16: 13 | C16: Richard Childress Racing | D16: 3 | E16: 652 | F16: 352 | G16: 0 | H16: 25 | I16: 1 | J16: 6 | K16: 2 | L16: =IF(D16="00",_xlfn.IFNA(VLOOKUP(D16,'Entry List'!$A$2:$E$88,4,FALSE),"Not Entered"),_xlfn.IFNA(VLOOKUP(VALUE(D16),'Entry List'!$A$2:$E$88,4,FALSE),"Not Entered")) -> Austin Dillon | Q16: 13 | R16: 3 | S16: Richard Childress Racing | T16: 652 | U16: 352 | V16: 0 | W16: 25 | X16: 1 | Y16: 6 | Z16: 2
A17: 14 | C17: Chip Ganassi Racing | D17: 1 | E17: 643 | F17: 361 | G17: 1 | H17: 25 | I17: 4 | J17: 9 | K17: 3 | L17: =IF(D17="00",_xlfn.IFNA(VLOOKUP(D17,'Entry List'!$A$2:$E$88,4,FALSE),"Not Entered"),_xlfn.IFNA(VLOOKUP(VALUE(D17),'Entry List'!$A$2:$E$88,4,FALSE),"Not Entered")) -> Kurt Busch | Q17: 14 | R17: 1 | S17: Chip Ganassi Racing | T17: 643 | U17: 361 | V17: 1 | W17: 25 | X17: 4 | Y17: 9 | Z17: 3
A18: 15 | C18: Joe Gibbs Racing | D18: 20 | E18: 595 | F18: 409 | G18: 1 | H18: 25 | I18: 4 | J18: 10 | K18: 3 | L18: =IF(D18="00",_xlfn.IFNA(VLOOKUP(D18,'Entry List'!$A$2:$E$88,4,FALSE),"Not Entered"),_xlfn.IFNA(VLOOKUP(VALUE(D18),'Entry List'!$A$2:$E$88,4,FALSE),"Not Entered")) -> Christopher Bell | Q18: 15 | R18: 20 | S18: Joe Gibbs Racing | T18: 595 | U18: 409 | V18: 1 | W18: 25 | X18: 4 | Y18: 10 | Z18: 3
A19: 16 | C19: Wood Brothers Racing | D19: 21 | E19: 557 | F19: 447 | G19: 0 | H19: 25 | I19: 3 | J19: 7 | K19: 1 | L19: =IF(D19="00",_xlfn.IFNA(VLOOKUP(D19,'Entry List'!$A$2:$E$88,4,FALSE),"Not Entered"),_xlfn.IFNA(VLOOKUP(VALUE(D19),'Entry List'!$A$2:$E$88,4,FALSE),"Not Entered")) -> Matt DiBenedetto | Q19: 16 | R19: 21 | S19: Wood Brothers Racing | T19: 557 | U19: 447 | V19: 0 | W19: 25 | X19: 3 | Y19: 7 | Z19: 1
A20: 17 | C20: =S20 -> Roush Fenway Racing | D20: =IF(R20="00",R20,VALUE(R20)) -> 17 | E20: =T20 -> 542 | F20: 462 | G20: 0 | H20: 25 | I20: 0 | J20: 4 | K20: 2 | L20: =IF(D20="00",_xlfn.IFNA(VLOOKUP(D20,'Entry List'!$A$2:$E$88,4,FALSE),"Not Entered"),_xlfn.IFNA(VLOOKUP(VALUE(D20),'Entry List'!$A$2:$E$88,4,FALSE),"Not Entered")) -> Chris Buescher | Q20: 17 | R20: 17 | S20: Roush Fenway Racing | T20: 542 | U20: 462 | V20: 0 | W20: 25 | X20: 0 | Y20: 4 | Z20: 2
A21: 18 | C21: =S21 -> JTG Daugherty Racing | D21: =IF(R21="00",R21,VALUE(R21)) -> 47 | E21: =T21 -> 504 | F21: =U21 -> 500 | G21: =V21 -> 0 | H21: =W21 -> 25 | I21: =X21 -> 1 | J21: =Y21 -> 2 | K21: =Z21 -> 4 | L21: =IF(D21="00",_xlfn.IFNA(VLOOKUP(D21,'Entry List'!$A$2:$E$88,4,FALSE),"Not Entered"),_xlfn.IFNA(VLOOKUP(VALUE(D21),'Entry List'!$A$2:$E$88,4,FALSE),"Not Entered")) -> Ricky Stenhouse Jr. | Q21: 18 | R21: 47 | S21: JTG Daugherty Racing | T21: 504 | U21: 500 | V21: 0 | W21: 25 | X21: 1 | Y21: 2 | Z21: 4
A22: 19 | C22: Front Row Motorsports | D22: 34 | E22: 497 | F22: 507 | G22: 1 | H22: 25 | I22: 2 | J22: 5 | K22: 2 | L22: =IF(D22="00",_xlfn.IFNA(VLOOKUP(D22,'Entry List'!$A$2:$E$88,4,FALSE),"Not Entered"),_xlfn.IFNA(VLOOKUP(VALUE(D22),'Entry List'!$A$2:$E$88,4,FALSE),"Not Entered")) -> Michael McDowell | Q22: 19 | R22: 34 | S22: Front Row Motorsports | T22: 497 | U22: 507 | V22: 1 | W22: 25 | X22: 2 | Y22: 5 | Z22: 2
A23: 20 | C23: Chip Ganassi Racing | D23: 42 | E23: 492 | F23: 512 | G23: 0 | H23: 25 | I23: 2 | J23: 6 | K23: 2 | L23: =IF(D23="00",_xlfn.IFNA(VLOOKUP(D23,'Entry List'!$A$2:$E$88,4,FALSE),"Not Entered"),_xlfn.IFNA(VLOOKUP(VALUE(D23),'Entry List'!$A$2:$E$88,4,FALSE),"Not Entered")) -> Ross Chastain | Q23: 20 | R23: 42 | S23: Chip Ganassi Racing | T23: 492 | U23: 512 | V23: 0 | W23: 25 | X23: 2 | Y23: 6 | Z23: 2
A24: 21 | C24: 23XI Racing | D24: 23 | E24: 482 | F24: 522 | G24: 0 | H24: 25 | I24: 1 | J24: 1 | K24: 2 | L24: =IF(D24="00",_xlfn.IFNA(VLOOKUP(D24,'Entry List'!$A$2:$E$88,4,FALSE),"Not Entered"),_xlfn.IFNA(VLOOKUP(VALUE(D24),'Entry List'!$A$2:$E$88,4,FALSE),"Not Entered")) -> Bubba Wallace | Q24: 21 | R24: 23 | S24: 23XI Racing | T24: 482 | U24: 522 | V24: 0 | W24: 25 | X24: 1 | Y24: 1 | Z24: 2
A25: 22 | C25: Stewart-Haas Racing | D25: 14 | E25: 450 | F25: 554 | G25: 0 | H25: 25 | I25: 0 | J25: 3 | K25: 2 | L25: =IF(D25="00",_xlfn.IFNA(VLOOKUP(D25,'Entry List'!$A$2:$E$88,4,FALSE),"Not Entered"),_xlfn.IFNA(VLOOKUP(VALUE(D25),'Entry List'!$A$2:$E$88,4,FALSE),"Not Entered")) -> Chase Briscoe (R) | Q25: 22 | R25: 14 | S25: Stewart-Haas Racing | T25: 450 | U25: 554 | V25: 0 | W25: 25 | X25: 0 | Y25: 3 | Z25: 2
A26: 23 | C26: Stewart-Haas Racing | D26: 10 | E26: 436 | F26: 568 | G26: 1 | H26: 25 | I26: 2 | J26: 3 | K26: 5 | L26: =IF(D26="00",_xlfn.IFNA(VLOOKUP(D26,'Entry List'!$A$2:$E$88,4,FALSE),"Not Entered"),_xlfn.IFNA(VLOOKUP(VALUE(D26),'Entry List'!$A$2:$E$88,4,FALSE),"Not Entered")) -> Aric Almirola | Q26: 23 | R26: 10 | S26: Stewart-Haas Racing | T26: 436 | U26: 568 | V26: 1 | W26: 25 | X26: 2 | Y26: 3 | Z26: 5
A27: 24 | C27: =S27 -> Richard Petty Motorsports | D27: =IF(R27="00",R27,VALUE(R27)) -> 43 | E27: =T27 -> 427 | F27: 577 | G27: 0 | H27: 25 | I27: 0 | J27: 3 | K27: 3 | L27: =IF(D27="00",_xlfn.IFNA(VLOOKUP(D27,'Entry List'!$A$2:$E$88,4,FALSE),"Not Entered"),_xlfn.IFNA(VLOOKUP(VALUE(D27),'Entry List'!$A$2:$E$88,4,FALSE),"Not Entered")) -> Erik Jones | Q27: 24 | R27: 43 | S27: Richard Petty Motorsports | T27: 427 | U27: 577 | V27: 0 | W27: 25 | X27: 0 | Y27: 3 | Z27: 3
A28: 25 | C28: =S28 -> Trackhouse Racing | D28: =IF(R28="00",R28,VALUE(R28)) -> 99 | E28: =T28 -> 423 | F28: =U28 -> 581 | G28: =V28 -> 0 | H28: =W28 -> 25 | I28: =X28 -> 1 | J28: =Y28 -> 3 | K28: =Z28 -> 3 | L28: =IF(D28="00",_xlfn.IFNA(VLOOKUP(D28,'Entry List'!$A$2:$E$88,4,FALSE),"Not Entered"),_xlfn.IFNA(VLOOKUP(VALUE(D28),'Entry List'!$A$2:$E$88,4,FALSE),"Not Entered")) -> Daniel Suárez | Q28: 25 | R28: 99 | S28: Trackhouse Racing | T28: 423 | U28: 581 | V28: 0 | W28: 25 | X28: 1 | Y28: 3 | Z28: 3
A29: 26 | C29: Roush Fenway Racing | D29: 6 | E29: 406 | F29: 598 | G29: 0 | H29: 25 | I29: 1 | J29: 4 | K29: 2 | L29: =IF(D29="00",_xlfn.IFNA(VLOOKUP(D29,'Entry List'!$A$2:$E$88,4,FALSE),"Not Entered"),_xlfn.IFNA(VLOOKUP(VALUE(D29),'Entry List'!$A$2:$E$88,4,FALSE),"Not Entered")) -> Ryan Newman | Q29: 26 | R29: 6 | S29: Roush Fenway Racing | T29: 406 | U29: 598 | V29: 0 | W29: 25 | X29: 1 | Y29: 4 | Z29: 2
A30: 27 | C30: JTG Daugherty Racing | D30: 37 | E30: 398 | F30: 606 | G30: 0 | H30: 25 | I30: 0 | J30: 3 | K30: 5 | L30: =IF(D30="00",_xlfn.IFNA(VLOOKUP(D30,'Entry List'!$A$2:$E$88,4,FALSE),"Not Entered"),_xlfn.IFNA(VLOOKUP(VALUE(D30),'Entry List'!$A$2:$E$88,4,FALSE),"Not Entered")) -> Ryan Preece | Q30: 27 | R30: 37 | S30: JTG Daugherty Racing | T30: 398 | U30: 606 | V30: 0 | W30: 25 | X30: 0 | Y30: 3 | Z30: 5
A31: 28 | C31: Stewart-Haas Racing | D31: 41 | E31: 382 | F31: 622 | G31: 0 | H31: 25 | I31: 0 | J31: 2 | K31: 3 | L31: =IF(D31="00",_xlfn.IFNA(VLOOKUP(D31,'Entry List'!$A$2:$E$88,4,FALSE),"Not Entered"),_xlfn.IFNA(VLOOKUP(VALUE(D31),'Entry List'!$A$2:$E$88,4,FALSE),"Not Entered")) -> Cole Custer | Q31: 28 | R31: 41 | S31: Stewart-Haas Racing | T31: 382 | U31: 622 | V31: 0 | W31: 25 | X31: 0 | Y31: 2 | Z31: 3
A32: 29 | C32: Spire Motorsports | D32: 7 | E32: 318 | F32: 686 | G32: 0 | H32: 25 | I32: 0 | J32: 1 | K32: 4 | L32: =IF(D32="00",_xlfn.IFNA(VLOOKUP(D32,'Entry List'!$A$2:$E$88,4,FALSE),"Not Entered"),_xlfn.IFNA(VLOOKUP(VALUE(D32),'Entry List'!$A$2:$E$88,4,FALSE),"Not Entered")) -> Corey Lajoie | Q32: 29 | R32: 7 | S32: Spire Motorsports | T32: 318 | U32: 686 | V32: 0 | W32: 25 | X32: 0 | Y32: 1 | Z32: 4
A33: 30 | C33: Spire Motorsports | D33: 77 | E33: 258 | F33: 746 | G33: 0 | H33: 25 | I33: 0 | J33: 2 | K33: 4 | L33: =IF(D33="00",_xlfn.IFNA(VLOOKUP(D33,'Entry List'!$A$2:$E$88,4,FALSE),"Not Entered"),_xlfn.IFNA(VLOOKUP(VALUE(D33),'Entry List'!$A$2:$E$88,4,FALSE),"Not Entered")) -> Justin Haley (i) | Q33: 30 | R33: 77 | S33: Spire Motorsports | T33: 258 | U33: 746 | V33: 0 | W33: 25 | X33: 0 | Y33: 2 | Z33: 4
A34: 31 | C34: =S34 -> Front Row Motorsports | D34: =IF(R34="00",R34,VALUE(R34)) -> 38 | E34: =T34 -> 237 | F34: 767 | G34: 0 | H34: 25 | I34: 0 | J34: 0 | K34: 5 | L34: =IF(D34="00",_xlfn.IFNA(VLOOKUP(D34,'Entry List'!$A$2:$E$88,4,FALSE),"Not Entered"),_xlfn.IFNA(VLOOKUP(VALUE(D34),'Entry List'!$A$2:$E$88,4,FALSE),"Not Entered")) -> Anthony Alfredo (R) | Q34: 31 | R34: 38 | S34: Front Row Motorsports | T34: 237 | U34: 767 | V34: 0 | W34: 25 | X34: 0 | Y34: 0 | Z34: 5
A35: 32 | C35: =S35 -> Kaulig Racing | D35: =IF(R35="00",R35,VALUE(R35)) -> 116 | E35: =T35 -> 164 | F35: =U35 -> 840 | G35: =V35 -> 1 | H35: =W35 -> 6 | I35: =X35 -> 2 | J35: =Y35 -> 4 | K35: =Z35 -> 1 | L35: =IF(D35="00",_xlfn.IFNA(VLOOKUP(D35,'Entry List'!$A$2:$E$88,4,FALSE),"Not Entered"),_xlfn.IFNA(VLOOKUP(VALUE(D35),'Entry List'!$A$2:$E$88,4,FALSE),"Not Entered")) -> Kaz Grala (i) | Q35: 32 | R35: 116 | S35: Kaulig Racing | T35: 164 | U35: 840 | V35: 1 | W35: 6 | X35: 2 | Y35: 4 | Z35: 1
A36: 33 | C36: Live Fast Motorsports | D36: 78 | E36: 164 | F36: 840 | G36: 0 | H36: 25 | I36: 0 | J36: 0 | K36: 3 | L36: =IF(D36="00",_xlfn.IFNA(VLOOKUP(D36,'Entry List'!$A$2:$E$88,4,FALSE),"Not Entered"),_xlfn.IFNA(VLOOKUP(VALUE(D36),'Entry List'!$A$2:$E$88,4,FALSE),"Not Entered")) -> B. J. McLeod (i) | Q36: 33 | R36: 78 | S36: Live Fast Motorsports | T36: 164 | U36: 840 | V36: 0 | W36: 25 | X36: 0 | Y36: 0 | Z36: 3
A37: 34 | C37: Rick Ware Racing | D37: 53 | E37: 155 | F37: 849 | G37: 0 | H37: 25 | I37: 0 | J37: 0 | K37: 2 | L37: =IF(D37="00",_xlfn.IFNA(VLOOKUP(D37,'Entry List'!$A$2:$E$88,4,FALSE),"Not Entered"),_xlfn.IFNA(VLOOKUP(VALUE(D37),'Entry List'!$A$2:$E$88,4,FALSE),"Not Entered")) -> Garrett Smithley (i) | Q37: 34 | R37: 53 | S37: Rick Ware Racing | T37: 155 | U37: 849 | V37: 0 | W37: 25 | X37: 0 | Y37: 0 | Z37: 2
A38: 35 | C38: Petty Ware Racing | D38: 51 | E38: 149 | F38: 855 | G38: 0 | H38: 25 | I38: 0 | J38: 0 | K38: 5 | L38: =IF(D38="00",_xlfn.IFNA(VLOOKUP(D38,'Entry List'!$A$2:$E$88,4,FALSE),"Not Entered"),_xlfn.IFNA(VLOOKUP(VALUE(D38),'Entry List'!$A$2:$E$88,4,FALSE),"Not Entered")) -> Cody Ware (i) | Q38: 35 | R38: 51 | S38: Petty Ware Racing | T38: 149 | U38: 855 | V38: 0 | W38: 25 | X38: 0 | Y38: 0 | Z38: 5
A39: 36 | C39: =S39 -> Rick Ware Racing | D39: =IF(R39="00",R39,VALUE(R39)) -> 15 | E39: =T39 -> 146 | F39: 858 | G39: 0 | H39: 25 | I39: 0 | J39: 0 | K39: 6 | L39: =IF(D39="00",_xlfn.IFNA(VLOOKUP(D39,'Entry List'!$A$2:$E$88,4,FALSE),"Not Entered"),_xlfn.IFNA(VLOOKUP(VALUE(D39),'Entry List'!$A$2:$E$88,4,FALSE),"Not Entered")) -> Joey Gase (i) | Q39: 36 | R39: 15 | S39: Rick Ware Racing | T39: 146 | U39: 858 | V39: 0 | W39: 25 | X39: 0 | Y39: 0 | Z39: 6
A40: 37 | C40: =S40 -> Rick Ware Racing | D40: =IF(R40="00",R40,VALUE(R40)) -> 52 | E40: =T40 -> 136 | F40: =U40 -> 868 | G40: =V40 -> 0 | H40: =W40 -> 25 | I40: =X40 -> 0 | J40: =Y40 -> 0 | K40: =Z40 -> 2 | L40: =IF(D40="00",_xlfn.IFNA(VLOOKUP(D40,'Entry List'!$A$2:$E$88,4,FALSE),"Not Entered"),_xlfn.IFNA(VLOOKUP(VALUE(D40),'Entry List'!$A$2:$E$88,4,FALSE),"Not Entered")) -> Josh Bilicki | Q40: 37 | R40: 52 | S40: Rick Ware Racing | T40: 136 | U40: 868 | V40: 0 | W40: 25 | X40: 0 | Y40: 0 | Z40: 2
A41: 38 | C41: StarCom Racing | D41: 00 | E41: 123 | F41: 881 | G41: 0 | H41: 25 | I41: 0 | J41: 0 | K41: 7 | L41: =IF(D41="00",_xlfn.IFNA(VLOOKUP(D41,'Entry List'!$A$2:$E$88,4,FALSE),"Not Entered"),_xlfn.IFNA(VLOOKUP(VALUE(D41),'Entry List'!$A$2:$E$88,4,FALSE),"Not Entered")) -> Quin Houff | Q41: 38 | R41: 00 | S41: StarCom Racing | T41: 123 | U41: 881 | V41: 0 | W41: 25 | X41: 0 | Y41: 0 | Z41: 7
A42: 39 | C42: Team Penske | D42: 33 | E42: 121 | F42: 883 | G42: 0 | H42: 7 | I42: 0 | J42: 1 | K42: 2 | L42: =IF(D42="00",_xlfn.IFNA(VLOOKUP(D42,'Entry List'!$A$2:$E$88,4,FALSE),"Not Entered"),_xlfn.IFNA(VLOOKUP(VALUE(D42),'Entry List'!$A$2:$E$88,4,FALSE),"Not Entered")) -> Not Entered | Q42: 39 | R42: 33 | S42: Team Penske | T42: 121 | U42: 883 | V42: 0 | W42: 7 | X42: 0 | Y42: 1 | Z42: 2
A43: 40 | C43: Gaunt Brothers Racing | D43: 96 | E43: 79 | F43: 925 | G43: 0 | H43: 5 | I43: 0 | J43: 0 | K43: 0 | L43: =IF(D43="00",_xlfn.IFNA(VLOOKUP(D43,'Entry List'!$A$2:$E$88,4,FALSE),"Not Entered"),_xlfn.IFNA(VLOOKUP(VALUE(D43),'Entry List'!$A$2:$E$88,4,FALSE),"Not Entered")) -> Landon Cassill (i) | Q43: 40 | R43: 96 | S43: Gaunt Brothers Racing | T43: 79 | U43: 925 | V43: 0 | W43: 5 | X43: 0 | Y43: 0 | Z43: 0
A44: 41 | C44: Motorsports Business Management | D44: 66 | E44: 44 | F44: 960 | G44: 0 | H44: 12 | I44: 0 | J44: 0 | K44: 5 | L44: =IF(D44="00",_xlfn.IFNA(VLOOKUP(D44,'Entry List'!$A$2:$E$88,4,FALSE),"Not Entered"),_xlfn.IFNA(VLOOKUP(VALUE(D44),'Entry List'!$A$2:$E$88,4,FALSE),"Not Entered")) -> David Starr (i) | Q44: 41 | R44: 66 | S44: Motorsports Business Management | T44: 44 | U44: 960 | V44: 0 | W44: 12 | X44: 0 | Y44: 0 | Z44: 5
A45: 42 | C45: Front Row Motorsports | D45: 136 | E45: 4 | F45: 1000 | G45: 0 | H45: 1 | I45: 0 | J45: 0 | K45: 1 | L45: =IF(D45="00",_xlfn.IFNA(VLOOKUP(D45,'Entry List'!$A$2:$E$88,4,FALSE),"Not Entered"),_xlfn.IFNA(VLOOKUP(VALUE(D45),'Entry List'!$A$2:$E$88,4,FALSE),"Not Entered")) -> Not Entered | Q45: 42 | R45: 136 | S45: Front Row Motorsports | T45: 4 | U45: 1000 | V45: 0 | W45: 1 | X45: 0 | Y45: 0 | Z45: 1
A46: 43 | C46: Motorsports Business Management | D46: 13 | E46: 3 | F46: 1001 | G46: 0 | H46: 1 | I46: 0 | J46: 0 | K46: 1 | L46: =IF(D46="00",_xlfn.IFNA(VLOOKUP(D46,'Entry List'!$A$2:$E$88,4,FALSE),"Not Entered"),_xlfn.IFNA(VLOOKUP(VALUE(D46),'Entry List'!$A$2:$E$88,4,FALSE),"Not Entered")) -> Not Entered | Q46: 43 | R46: 13 | S46: Motorsports Business Management | T46: 3 | U46: 1001 | V46: 0 | W46: 1 | X46: 0 | Y46: 0 | Z46: 1
A47: 43 | C47: =S47 -> BJ McLeod Motorsports | D47: =IF(R47="00",R47,VALUE(R47)) -> 55 | E47: =T47 -> 1 | F47: =U47 -> 1003 | G47: =V47 -> 0 | H47: =W47 -> 1 | I47: =X47 -> 0 | J47: =Y47 -> 0 | K47: =Z47 -> 0 | L47: =IF(D47="00",_xlfn.IFNA(VLOOKUP(D47,'Entry List'!$A$2:$E$88,4,FALSE),"Not Entered"),_xlfn.IFNA(VLOOKUP(VALUE(D47),'Entry List'!$A$2:$E$88,4,FALSE),"Not Entered")) -> Not Entered | Q47: 44 | R47: 55 | S47: BJ McLeod Motorsports | T47: 1 | U47: 1003 | V47: 0 | W47: 1 | X47: 0 | Y47: 0 | Z47: 0
A48: 44 | C48: =S48 -> Beard Motorsports | D48: =IF(R48="00",R48,VALUE(R48)) -> 62 | E48: =T48 -> 0 | F48: =U48 -> 1004 | G48: =V48 -> 0 | H48: =W48 -> 0 | I48: =X48 -> 0 | J48: =Y48 -> 0 | K48: =Z48 -> 0 | L48: =IF(D48="00",_xlfn.IFNA(VLOOKUP(D48,'Entry List'!$A$2:$E$88,4,FALSE),"Not Entered"),_xlfn.IFNA(VLOOKUP(VALUE(D48),'Entry List'!$A$2:$E$88,4,FALSE),"Not Entered")) -> Not Entered | Q48: 45 | R48: 62 | S48: Beard Motorsports | T48: 0 | U48: 1004 | V48: 0 | W48: 0 | X48: 0 | Y48: 0 | Z48: 0
A100: 00 | B100: =_xlfn.IFNA(MATCH(A100,'Current Owner Standings'!$D$4:$D$99,0),99) -> 38 | D100: =IF(ISNA(MATCH("#"&C100,'Current Owner Standings'!$C$2:$C$199,0)),99,MATCH("#"&C100,'Current Owner Standings'!$C$2:$C$199,0)) -> 99
A101: 01 | B101: =_xlfn.IFNA(MATCH(A101,'Current Owner Standings'!$D$4:$D$99,0),99) -> 99
A102: 02 | B102: =_xlfn.IFNA(MATCH(A102,'Current Owner Standings'!$D$4:$D$99,0),99) -> 99
A103: 03 | B103: =_xlfn.IFNA(MATCH(A103,'Current Owner Standings'!$D$4:$D$99,0),99) -> 99
A104: 04 | B104: =_xlfn.IFNA(MATCH(A104,'Current Owner Standings'!$D$4:$D$99,0),99) -> 99
A105: 05 | B105: =_xlfn.IFNA(MATCH(A105,'Current Owner Standings'!$D$4:$D$99,0),99) -> 99
A106: 06 | B106: =_xlfn.IFNA(MATCH(A106,'Current Owner Standings'!$D$4:$D$99,0),99) -> 99
A107: 07 | B107: =_xlfn.IFNA(MATCH(A107,'Current Owner Standings'!$D$4:$D$99,0),99) -> 99
A108: 08 | B108: =_xlfn.IFNA(MATCH(A108,'Current Owner Standings'!$D$4:$D$99,0),99) -> 99
A109: 09 | B109: =_xlfn.IFNA(MATCH(A109,'Current Owner Standings'!$D$4:$D$99,0),99) -> 99
A110: 1 | B110: =_xlfn.IFNA(MATCH(A110,'Current Owner Standings'!$D$4:$D$99,0),99) -> 14
A111: 2 | B111: =_xlfn.IFNA(MATCH(A111,'Current Owner Standings'!$D$4:$D$99,0),99) -> 10
A112: 3 | B112: =_xlfn.IFNA(MATCH(A112,'Current Owner Standings'!$D$4:$D$99,0),99) -> 13
A113: 4 | B113: =_xlfn.IFNA(MATCH(A113,'Current Owner Standings'!$D$4:$D$99,0),99) -> 9
A114: 5 | B114: =_xlfn.IFNA(MATCH(A114,'Current Owner Standings'!$D$4:$D$99,0),99) -> 1
A115: 6 | B115: =_xlfn.IFNA(MATCH(A115,'Current Owner Standings'!$D$4:$D$99,0),99) -> 26
A116: 7 | B116: =_xlfn.IFNA(MATCH(A116,'Current Owner Standings'!$D$4:$D$99,0),99) -> 29
A117: 8 | B117: =_xlfn.IFNA(MATCH(A117,'Current Owner Standings'!$D$4:$D$99,0),99) -> 11
A118: 9 | B118: =_xlfn.IFNA(MATCH(A118,'Current Owner Standings'!$D$4:$D$99,0),99) -> 5
A119: 10 | B119: =_xlfn.IFNA(MATCH(A119,'Current Owner Standings'!$D$4:$D$99,0),99) -> 23
A120: 11 | B120: =_xlfn.IFNA(MATCH(A120,'Current Owner Standings'!$D$4:$D$99,0),99) -> 2
A121: 12 | B121: =_xlfn.IFNA(MATCH(A121,'Current Owner Standings'!$D$4:$D$99,0),99) -> 7
A122: 13 | B122: =_xlfn.IFNA(MATCH(A122,'Current Owner Standings'!$D$4:$D$99,0),99) -> 43
A123: 14 | B123: =_xlfn.IFNA(MATCH(A123,'Current Owner Standings'!$D$4:$D$99,0),99) -> 22
A124: 15 | B124: =_xlfn.IFNA(MATCH(A124,'Current Owner Standings'!$D$4:$D$99,0),99) -> 36
A125: 16 | B125: =_xlfn.IFNA(MATCH(A125,'Current Owner Standings'!$D$4:$D$99,0),99) -> 99
A126: 17 | B126: =_xlfn.IFNA(MATCH(A126,'Current Owner Standings'!$D$4:$D$99,0),99) -> 17
A127: 18 | B127: =_xlfn.IFNA(MATCH(A127,'Current Owner Standings'!$D$4:$D$99,0),99) -> 3
A128: 19 | B128: =_xlfn.IFNA(MATCH(A128,'Current Owner Standings'!$D$4:$D$99,0),99) -> 6
A129: 20 | B129: =_xlfn.IFNA(MATCH(A129,'Current Owner Standings'!$D$4:$D$99,0),99) -> 15
A130: 21 | B130: =_xlfn.IFNA(MATCH(A130,'Current Owner Standings'!$D$4:$D$99,0),99) -> 16
A131: 22 | B131: =_xlfn.IFNA(MATCH(A131,'Current Owner Standings'!$D$4:$D$99,0),99) -> 8
A132: 23 | B132: =_xlfn.IFNA(MATCH(A132,'Current Owner Standings'!$D$4:$D$99,0),99) -> 21
A133: 24 | B133: =_xlfn.IFNA(MATCH(A133,'Current Owner Standings'!$D$4:$D$99,0),99) -> 4
A134: 25 | B134: =_xlfn.IFNA(MATCH(A134,'Current Owner Standings'!$D$4:$D$99,0),99) -> 99
A135: 26 | B135: =_xlfn.IFNA(MATCH(A135,'Current Owner Standings'!$D$4:$D$99,0),99) -> 99
A136: 27 | B136: =_xlfn.IFNA(MATCH(A136,'Current Owner Standings'!$D$4:$D$99,0),99) -> 99
A137: 28 | B137: =_xlfn.IFNA(MATCH(A137,'Current Owner Standings'!$D$4:$D$99,0),99) -> 99
A138: 29 | B138: =_xlfn.IFNA(MATCH(A138,'Current Owner Standings'!$D$4:$D$99,0),99) -> 99
A139: 30 | B139: =_xlfn.IFNA(MATCH(A139,'Current Owner Standings'!$D$4:$D$99,0),99) -> 99
A140: 31 | B140: =_xlfn.IFNA(MATCH(A140,'Current Owner Standings'!$D$4:$D$99,0),99) -> 99
A141: 32 | B141: =_xlfn.IFNA(MATCH(A141,'Current Owner Standings'!$D$4:$D$99,0),99) -> 99
A142: 33 | B142: =_xlfn.IFNA(MATCH(A142,'Current Owner Standings'!$D$4:$D$99,0),99) -> 39
A143: 34 | B143: =_xlfn.IFNA(MATCH(A143,'Current Owner Standings'!$D$4:$D$99,0),99) -> 19
A144: 35 | B144: =_xlfn.IFNA(MATCH(A144,'Current Owner Standings'!$D$4:$D$99,0),99) -> 99
A145: 36 | B145: =_xlfn.IFNA(MATCH(A145,'Current Owner Standings'!$D$4:$D$99,0),99) -> 99
A146: 37 | B146: =_xlfn.IFNA(MATCH(A146,'Current Owner Standings'!$D$4:$D$99,0),99) -> 27
A147: 38 | B147: =_xlfn.IFNA(MATCH(A147,'Current Owner Standings'!$D$4:$D$99,0),99) -> 31
A148: 39 | B148: =_xlfn.IFNA(MATCH(A148,'Current Owner Standings'!$D$4:$D$99,0),99) -> 99
A149: 40 | B149: =_xlfn.IFNA(MATCH(A149,'Current Owner Standings'!$D$4:$D$99,0),99) -> 99
A150: 41 | B150: =_xlfn.IFNA(MATCH(A150,'Current Owner Standings'!$D$4:$D$99,0),99) -> 28
A151: 42 | B151: =_xlfn.IFNA(MATCH(A151,'Current Owner Standings'!$D$4:$D$99,0),99) -> 20
A152: 43 | B152: =_xlfn.IFNA(MATCH(A152,'Current Owner Standings'!$D$4:$D$99,0),99) -> 24
A153: 44 | B153: =_xlfn.IFNA(MATCH(A153,'Current Owner Standings'!$D$4:$D$99,0),99) -> 99
A154: 45 | B154: =_xlfn.IFNA(MATCH(A154,'Current Owner Standings'!$D$4:$D$99,0),99) -> 99
A155: 46 | B155: =_xlfn.IFNA(MATCH(A155,'Current Owner Standings'!$D$4:$D$99,0),99) -> 99
A156: 47 | B156: =_xlfn.IFNA(MATCH(A156,'Current Owner Standings'!$D$4:$D$99,0),99) -> 18
A157: 48 | B157: =_xlfn.IFNA(MATCH(A157,'Current Owner Standings'!$D$4:$D$99,0),99) -> 12
A158: 49 | B158: =_xlfn.IFNA(MATCH(A158,'Current Owner Standings'!$D$4:$D$99,0),99) -> 99
A159: 50 | B159: =_xlfn.IFNA(MATCH(A159,'Current Owner Standings'!$D$4:$D$99,0),99) -> 99
A160: 51 | B160: =_xlfn.IFNA(MATCH(A160,'Current Owner Standings'!$D$4:$D$99,0),99) -> 35
A161: 52 | B161: =_xlfn.IFNA(MATCH(A161,'Current Owner Standings'!$D$4:$D$99,0),99) -> 37
A162: 53 | B162: =_xlfn.IFNA(MATCH(A162,'Current Owner Standings'!$D$4:$D$99,0),99) -> 34
A163: 54 | B163: =_xlfn.IFNA(MATCH(A163,'Current Owner Standings'!$D$4:$D$99,0),99) -> 99
A164: 55 | B164: =_xlfn.IFNA(MATCH(A164,'Current Owner Standings'!$D$4:$D$99,0),99) -> 44
A165: 56 | B165: =_xlfn.IFNA(MATCH(A165,'Current Owner Standings'!$D$4:$D$99,0),99) -> 99
A166: 57 | B166: =_xlfn.IFNA(MATCH(A166,'Current Owner Standings'!$D$4:$D$99,0),99) -> 99
A167: 58 | B167: =_xlfn.IFNA(MATCH(A167,'Current Owner Standings'!$D$4:$D$99,0),99) -> 99
A168: 59 | B168: =_xlfn.IFNA(MATCH(A168,'Current Owner Standings'!$D$4:$D$99,0),99) -> 99
A169: 60 | B169: =_xlfn.IFNA(MATCH(A169,'Current Owner Standings'!$D$4:$D$99,0),99) -> 99
A170: 61 | B170: =_xlfn.IFNA(MATCH(A170,'Current Owner Standings'!$D$4:$D$99,0),99) -> 99
A171: 62 | B171: =_xlfn.IFNA(MATCH(A171,'Current Owner Standings'!$D$4:$D$99,0),99) -> 45
A172: 63 | B172: =_xlfn.IFNA(MATCH(A172,'Current Owner Standings'!$D$4:$D$99,0),99) -> 99
A173: 64 | B173: =_xlfn.IFNA(MATCH(A173,'Current Owner Standings'!$D$4:$D$99,0),99) -> 99
A174: 65 | B174: =_xlfn.IFNA(MATCH(A174,'Current Owner Standings'!$D$4:$D$99,0),99) -> 99
A175: 66 | B175: =_xlfn.IFNA(MATCH(A175,'Current Owner Standings'!$D$4:$D$99,0),99) -> 41
A176: 67 | B176: =_xlfn.IFNA(MATCH(A176,'Current Owner Standings'!$D$4:$D$99,0),99) -> 99
A177: 68 | B177: =_xlfn.IFNA(MATCH(A177,'Current Owner Standings'!$D$4:$D$99,0),99) -> 99
A178: 69 | B178: =_xlfn.IFNA(MATCH(A178,'Current Owner Standings'!$D$4:$D$99,0),99) -> 99
A179: 70 | B179: =_xlfn.IFNA(MATCH(A179,'Current Owner Standings'!$D$4:$D$99,0),99) -> 99
A180: 71 | B180: =_xlfn.IFNA(MATCH(A180,'Current Owner Standings'!$D$4:$D$99,0),99) -> 99
A181: 72 | B181: =_xlfn.IFNA(MATCH(A181,'Current Owner Standings'!$D$4:$D$99,0),99) -> 99
A182: 73 | B182: =_xlfn.IFNA(MATCH(A182,'Current Owner Standings'!$D$4:$D$99,0),99) -> 99
A183: 74 | B183: =_xlfn.IFNA(MATCH(A183,'Current Owner Standings'!$D$4:$D$99,0),99) -> 99
A184: 75 | B184: =_xlfn.IFNA(MATCH(A184,'Current Owner Standings'!$D$4:$D$99,0),99) -> 99
A185: 76 | B185: =_xlfn.IFNA(MATCH(A185,'Current Owner Standings'!$D$4:$D$99,0),99) -> 99
A186: 77 | B186: =_xlfn.IFNA(MATCH(A186,'Current Owner Standings'!$D$4:$D$99,0),99) -> 30
A187: 78 | B187: =_xlfn.IFNA(MATCH(A187,'Current Owner Standings'!$D$4:$D$99,0),99) -> 33
A188: 79 | B188: =_xlfn.IFNA(MATCH(A188,'Current Owner Standings'!$D$4:$D$99,0),99) -> 99
A189: 80 | B189: =_xlfn.IFNA(MATCH(A189,'Current Owner Standings'!$D$4:$D$99,0),99) -> 99
A190: 81 | B190: =_xlfn.IFNA(MATCH(A190,'Current Owner Standings'!$D$4:$D$99,0),99) -> 99
A191: 82 | B191: =_xlfn.IFNA(MATCH(A191,'Current Owner Standings'!$D$4:$D$99,0),99) -> 99
A192: 83 | B192: =_xlfn.IFNA(MATCH(A192,'Current Owner Standings'!$D$4:$D$99,0),99) -> 99
A193: 84 | B193: =_xlfn.IFNA(MATCH(A193,'Current Owner Standings'!$D$4:$D$99,0),99) -> 99
A194: 85 | B194: =_xlfn.IFNA(MATCH(A194,'Current Owner Standings'!$D$4:$D$99,0),99) -> 99
A195: 86 | B195: =_xlfn.IFNA(MATCH(A195,'Current Owner Standings'!$D$4:$D$99,0),99) -> 99
A196: 87 | B196: =_xlfn.IFNA(MATCH(A196,'Current Owner Standings'!$D$4:$D$99,0),99) -> 99
A197: 88 | B197: =_xlfn.IFNA(MATCH(A197,'Current Owner Standings'!$D$4:$D$99,0),99) -> 99
A198: 89 | B198: =_xlfn.IFNA(MATCH(A198,'Current Owner Standings'!$D$4:$D$99,0),99) -> 99
A199: 90 | B199: =_xlfn.IFNA(MATCH(A199,'Current Owner Standings'!$D$4:$D$99,0),99) -> 99
A200: 91 | B200: =_xlfn.IFNA(MATCH(A200,'Current Owner Standings'!$D$4:$D$99,0),99) -> 99
A201: 92 | B201: =_xlfn.IFNA(MATCH(A201,'Current Owner Standings'!$D$4:$D$99,0),99) -> 99
A202: 93 | B202: =_xlfn.IFNA(MATCH(A202,'Current Owner Standings'!$D$4:$D$99,0),99) -> 99
A203: 94 | B203: =_xlfn.IFNA(MATCH(A203,'Current Owner Standings'!$D$4:$D$99,0),99) -> 99
A204: 95 | B204: =_xlfn.IFNA(MATCH(A204,'Current Owner Standings'!$D$4:$D$99,0),99) -> 99
A205: 96 | B205: =_xlfn.IFNA(MATCH(A205,'Current Owner Standings'!$D$4:$D$99,0),99) -> 40
A206: 97 | B206: =_xlfn.IFNA(MATCH(A206,'Current Owner Standings'!$D$4:$D$99,0),99) -> 99
A207: 98 | B207: =_xlfn.IFNA(MATCH(A207,'Current Owner Standings'!$D$4:$D$99,0),99) -> 99
A208: 99 | B208: =_xlfn.IFNA(MATCH(A208,'Current Owner Standings'!$D$4:$D$99,0),99) -> 25
A209: 100 | B209: =_xlfn.IFNA(MATCH(A209,'Current Owner Standings'!$D$4:$D$99,0),99) -> 99
A210: 101 | B210: =_xlfn.IFNA(MATCH(A210,'Current Owner Standings'!$D$4:$D$99,0),99) -> 99
A211: 102 | B211: =_xlfn.IFNA(MATCH(A211,'Current Owner Standings'!$D$4:$D$99,0),99) -> 99
A212: 103 | B212: =_xlfn.IFNA(MATCH(A212,'Current Owner Standings'!$D$4:$D$99,0),99) -> 99
A213: 104 | B213: =_xlfn.IFNA(MATCH(A213,'Current Owner Standings'!$D$4:$D$99,0),99) -> 99
A214: 105 | B214: =_xlfn.IFNA(MATCH(A214,'Current Owner Standings'!$D$4:$D$99,0),99) -> 99
A215: 106 | B215: =_xlfn.IFNA(MATCH(A215,'Current Owner Standings'!$D$4:$D$99,0),99) -> 99
A216: 107 | B216: =_xlfn.IFNA(MATCH(A216,'Current Owner Standings'!$D$4:$D$99,0),99) -> 99
A217: 108 | B217: =_xlfn.IFNA(MATCH(A217,'Current Owner Standings'!$D$4:$D$99,0),99) -> 99
A218: 109 | B218: =_xlfn.IFNA(MATCH(A218,'Current Owner Standings'!$D$4:$D$99,0),99) -> 99
A219: 110 | B219: =_xlfn.IFNA(MATCH(A219,'Current Owner Standings'!$D$4:$D$99,0),99) -> 99
A220: 111 | B220: =_xlfn.IFNA(MATCH(A220,'Current Owner Standings'!$D$4:$D$99,0),99) -> 99
A221: 112 | B221: =_xlfn.IFNA(MATCH(A221,'Current Owner Standings'!$D$4:$D$99,0),99) -> 99
A222: 113 | B222: =_xlfn.IFNA(MATCH(A222,'Current Owner Standings'!$D$4:$D$99,0),99) -> 99
A223: 114 | B223: =_xlfn.IFNA(MATCH(A223,'Current Owner Standings'!$D$4:$D$99,0),99) -> 99
A224: 115 | B224: =_xlfn.IFNA(MATCH(A224,'Current Owner Standings'!$D$4:$D$99,0),99) -> 99
A225: 116 | B225: =_xlfn.IFNA(MATCH(A225,'Current Owner Standings'!$D$4:$D$99,0),99) -> 32
A226: 117 | B226: =_xlfn.IFNA(MATCH(A226,'Current Owner Standings'!$D$4:$D$99,0),99) -> 99
A227: 118 | B227: =_xlfn.IFNA(MATCH(A227,'Current Owner Standings'!$D$4:$D$99,0),99) -> 99
A228: 119 | B228: =_xlfn.IFNA(MATCH(A228,'Current Owner Standings'!$D$4:$D$99,0),99) -> 99
A229: 120 | B229: =_xlfn.IFNA(MATCH(A229,'Current Owner Standings'!$D$4:$D$99,0),99) -> 99
A230: 121 | B230: =_xlfn.IFNA(MATCH(A230,'Current Owner Standings'!$D$4:$D$99,0),99) -> 99
A231: 122 | B231: =_xlfn.IFNA(MATCH(A231,'Current Owner Standings'!$D$4:$D$99,0),99) -> 99
A232: 123 | B232: =_xlfn.IFNA(MATCH(A232,'Current Owner Standings'!$D$4:$D$99,0),99) -> 99
A233: 124 | B233: =_xlfn.IFNA(MATCH(A233,'Current Owner Standings'!$D$4:$D$99,0),99) -> 99
A234: 125 | B234: =_xlfn.IFNA(MATCH(A234,'Current Owner Standings'!$D$4:$D$99,0),99) -> 99
A235: 126 | B235: =_xlfn.IFNA(MATCH(A235,'Current Owner Standings'!$D$4:$D$99,0),99) -> 99
A236: 127 | B236: =_xlfn.IFNA(MATCH(A236,'Current Owner Standings'!$D$4:$D$99,0),99) -> 99
A237: 128 | B237: =_xlfn.IFNA(MATCH(A237,'Current Owner Standings'!$D$4:$D$99,0),99) -> 99
A238: 129 | B238: =_xlfn.IFNA(MATCH(A238,'Current Owner Standings'!$D$4:$D$99,0),99) -> 99
A239: 130 | B239: =_xlfn.IFNA(MATCH(A239,'Current Owner Standings'!$D$4:$D$99,0),99) -> 99
A240: 131 | B240: =_xlfn.IFNA(MATCH(A240,'Current Owner Standings'!$D$4:$D$99,0),99) -> 99
A241: 132 | B241: =_xlfn.IFNA(MATCH(A241,'Current Owner Standings'!$D$4:$D$99,0),99) -> 99
A242: 133 | B242: =_xlfn.IFNA(MATCH(A242,'Current Owner Standings'!$D$4:$D$99,0),99) -> 99
A243: 134 | B243: =_xlfn.IFNA(MATCH(A243,'Current Owner Standings'!$D$4:$D$99,0),99) -> 99
A244: 135 | B244: =_xlfn.IFNA(MATCH(A244,'Current Owner Standings'!$D$4:$D$99,0),99) -> 99
A245: 136 | B245: =_xlfn.IFNA(MATCH(A245,'Current Owner Standings'!$D$4:$D$99,0),99) -> 42
A246: 137 | B246: =_xlfn.IFNA(MATCH(A246,'Current Owner Standings'!$D$4:$D$99,0),99) -> 99
A247: 138 | B247: =_xlfn.IFNA(MATCH(A247,'Current Owner Standings'!$D$4:$D$99,0),99) -> 99
A248: 139 | B248: =_xlfn.IFNA(MATCH(A248,'Current Owner Standings'!$D$4:$D$99,0),99) -> 99
A249: 140 | B249: =_xlfn.IFNA(MATCH(A249,'Current Owner Standings'!$D$4:$D$99,0),99) -> 99
A250: 141 | B250: =_xlfn.IFNA(MATCH(A250,'Current Owner Standings'!$D$4:$D$99,0),99) -> 99
A251: 142 | B251: =_xlfn.IFNA(MATCH(A251,'Current Owner Standings'!$D$4:$D$99,0),99) -> 99
... 258 more rows

Sheet Cars & Results
G1: =VLOOKUP(G$5,Schedule!$A$5:$I$39,2,FALSE) -> 2021-02-14 | I1: =VLOOKUP(I$5,Schedule!$A$5:$I$39,2,FALSE) -> 2021-02-21 | K1: =VLOOKUP(K$5,Schedule!$A$5:$I$39,2,FALSE) -> 2021-02-28 | M1: =VLOOKUP(M$5,Schedule!$A$5:$I$39,2,FALSE) -> 2021-03-07 | O1: =VLOOKUP(O$5,Schedule!$A$5:$I$39,2,FALSE) -> 2021-03-14 | Q1: =VLOOKUP(Q$5,Schedule!$A$5:$I$39,2,FALSE) -> 2021-03-21 | S1: =VLOOKUP(S$5,Schedule!$A$5:$I$39,2,FALSE) -> 2021-03-28 | U1: =VLOOKUP(U$5,Schedule!$A$5:$I$39,2,FALSE) -> 2021-04-10 | W1: =VLOOKUP(W$5,Schedule!$A$5:$I$39,2,FALSE) -> 2021-04-18 | Y1: =VLOOKUP(Y$5,Schedule!$A$5:$I$39,2,FALSE) -> 2021-04-25 | AA1: =VLOOKUP(AA$5,Schedule!$A$5:$I$39,2,FALSE) -> 2021-05-02 | AC1: =VLOOKUP(AC$5,Schedule!$A$5:$I$39,2,FALSE) -> 2021-05-09 | AE1: =VLOOKUP(AE$5,Schedule!$A$5:$I$39,2,FALSE) -> 2021-05-16 | AG1: =VLOOKUP(AG$5,Schedule!$A$5:$I$39,2,FALSE) -> 2021-05-23 | AI1: =VLOOKUP(AI$5,Schedule!$A$5:$I$39,2,FALSE) -> 2021-05-30 | AK1: =VLOOKUP(AK$5,Schedule!$A$5:$I$39,2,FALSE) -> 2021-06-06 | AM1: =VLOOKUP(AM$5,Schedule!$A$5:$I$39,2,FALSE) -> 2021-06-20 | AO1: =VLOOKUP(AO$5,Schedule!$A$5:$I$39,2,FALSE) -> 2021-06-26 | AQ1: =VLOOKUP(AQ$5,Schedule!$A$5:$I$39,2,FALSE) -> 2021-06-27 | AS1: =VLOOKUP(AS$5,Schedule!$A$5:$I$40,2,FALSE) -> 2021-07-04 | AU1: =VLOOKUP(AU$5,Schedule!$A$5:$I$40,2,FALSE) -> 2021-07-11 | AW1: =VLOOKUP(AW$5,Schedule!$A$5:$I$40,2,FALSE) -> 2021-07-18 | AY1: =VLOOKUP(AY$5,Schedule!$A$5:$I$40,2,FALSE) -> 2021-08-08 | BA1: =VLOOKUP(BA$5,Schedule!$A$5:$I$40,2,FALSE) -> 2021-08-15 | BC1: =VLOOKUP(BC$5,Schedule!$A$5:$I$40,2,FALSE) -> 2021-08-22 | BE1: =VLOOKUP(BE$5,Schedule!$A$5:$I$40,2,FALSE) -> 2021-08-28 | BG1: =VLOOKUP(BG$5,Schedule!$A$5:$I$40,2,FALSE) -> 2021-09-05 | BI1: =VLOOKUP(BI$5,Schedule!$A$5:$I$40,2,FALSE) -> 2021-09-11 | BK1: =VLOOKUP(BK$5,Schedule!$A$5:$I$40,2,FALSE) -> 2021-09-18 | BM1: =VLOOKUP(BM$5,Schedule!$A$5:$I$40,2,FALSE) -> 2021-09-26 | BO1: =VLOOKUP(BO$5,Schedule!$A$5:$I$40,2,FALSE) -> 2021-10-03 | BQ1: =VLOOKUP(BQ$5,Schedule!$A$5:$I$40,2,FALSE) -> 2021-10-10 | BS1: =VLOOKUP(BS$5,Schedule!$A$5:$I$40,2,FALSE) -> 2021-10-17 | BU1: =VLOOKUP(BU$5,Schedule!$A$5:$I$40,2,FALSE) -> 2021-10-24 | BW1: =VLOOKUP(BW$5,Schedule!$A$5:$I$40,2,FALSE) -> 2021-10-31 | BY1: =VLOOKUP(BY$5,Schedule!$A$5:$I$40,2,FALSE) -> 2021-11-07
G2: =VLOOKUP(G$5,Schedule!$A$5:$I$39,3,FALSE) -> Daytona 500 | I2: =VLOOKUP(I$5,Schedule!$A$5:$I$39,3,FALSE) -> Daytona Grand Prix | K2: =VLOOKUP(K$5,Schedule!$A$5:$I$39,3,FALSE) -> Dixie Vodka 400 | M2: =VLOOKUP(M$5,Schedule!$A$5:$I$39,3,FALSE) -> Pennzoil 400 | O2: =VLOOKUP(O$5,Schedule!$A$5:$I$39,3,FALSE) -> Instacart 500 | Q2: =VLOOKUP(Q$5,Schedule!$A$5:$I$39,3,FALSE) -> Folds of Honor QuikTrip 500 | S2: =VLOOKUP(S$5,Schedule!$A$5:$I$39,3,FALSE) -> Food City Dirt Race | U2: =VLOOKUP(U$5,Schedule!$A$5:$I$39,3,FALSE) -> Blue-Emu Maximum Pain Relief 500 | W2: =VLOOKUP(W$5,Schedule!$A$5:$I$39,3,FALSE) -> Toyota Owners 400 | Y2: =VLOOKUP(Y$5,Schedule!$A$5:$I$39,3,FALSE) -> GEICO 500 | AA2: =VLOOKUP(AA$5,Schedule!$A$5:$I$39,3,FALSE) -> Buschy_McBusch_Race_400 | AC2: =VLOOKUP(AC$5,Schedule!$A$5:$I$39,3,FALSE) -> Goodyear 400 | AE2: =VLOOKUP(AE$5,Schedule!$A$5:$I$39,3,FALSE) -> Drydene 400 | AG2: =VLOOKUP(AG$5,Schedule!$A$5:$I$39,3,FALSE) -> EchoPark Texas Grand Prix | AI2: =VLOOKUP(AI$5,Schedule!$A$5:$I$39,3,FALSE) -> Coca-Cola 600 | AK2: =VLOOKUP(AK$5,Schedule!$A$5:$I$39,3,FALSE) -> Toyota/Save Mart 350 | AM2: =VLOOKUP(AM$5,Schedule!$A$5:$I$39,3,FALSE) -> Ally 400 | AO2: =VLOOKUP(AO$5,Schedule!$A$5:$I$39,3,FALSE) -> Pocono Organics 325 | AQ2: =VLOOKUP(AQ$5,Schedule!$A$5:$I$39,3,FALSE) -> Explore the Pocono Mountains 350 | AS2: =VLOOKUP(AS$5,Schedule!$A$5:$I$40,3,FALSE) -> Road America 250 | AU2: =VLOOKUP(AU$5,Schedule!$A$5:$I$40,3,FALSE) -> Quaker State 400 | AW2: =VLOOKUP(AW$5,Schedule!$A$5:$I$40,3,FALSE) -> Foxwoods Resort Casino 301 | AY2: =VLOOKUP(AY$5,Schedule!$A$5:$I$40,3,FALSE) -> Go Bowling at The Glen | BA2: =VLOOKUP(BA$5,Schedule!$A$5:$I$40,3,FALSE) -> TBA | BC2: =VLOOKUP(BC$5,Schedule!$A$5:$I$40,3,FALSE) -> 00:00:00 | BE2: =VLOOKUP(BE$5,Schedule!$A$5:$I$40,3,FALSE) -> Coke Zero Sugar 400 | BG2: =VLOOKUP(BG$5,Schedule!$A$5:$I$40,3,FALSE) -> Southern 500 | BI2: =VLOOKUP(BI$5,Schedule!$A$5:$I$40,3,FALSE) -> Federated Auto Parts 400 | BK2: =VLOOKUP(BK$5,Schedule!$A$5:$I$40,3,FALSE) -> Bass Pro Shops NRA Night Race | BM2: =VLOOKUP(BM$5,Schedule!$A$5:$I$40,3,FALSE) -> South Point 400 | BO2: =VLOOKUP(BO$5,Schedule!$A$5:$I$40,3,FALSE) -> YellaWood 500 | BQ2: =VLOOKUP(BQ$5,Schedule!$A$5:$I$40,3,FALSE) -> Bank of America Roval 400 | BS2: =VLOOKUP(BS$5,Schedule!$A$5:$I$40,3,FALSE) -> TBA | BU2: =VLOOKUP(BU$5,Schedule!$A$5:$I$40,3,FALSE) -> Hollywood Casino 400 | BW2: =VLOOKUP(BW$5,Schedule!$A$5:$I$40,3,FALSE) -> Xfinity 500 | BY2: =VLOOKUP(BY$5,Schedule!$A$5:$I$40,3,FALSE) -> Season Finale 500
G3: =VLOOKUP(G$5,Schedule!$A$5:$I$39,4,FALSE) -> Daytona International Speedway, Daytona Beach, Florida | I3: =VLOOKUP(I$5,Schedule!$A$5:$I$39,4,FALSE) -> Daytona International Speedway (Road Course), Daytona Beach, Florida | K3: =VLOOKUP(K$5,Schedule!$A$5:$I$39,4,FALSE) -> Homestead–Miami Speedway, Homestead, Florida | M3: =VLOOKUP(M$5,Schedule!$A$5:$I$39,4,FALSE) -> Las Vegas Motor Speedway, Las Vegas, Nevada | O3: =VLOOKUP(O$5,Schedule!$A$5:$I$39,4,FALSE) -> Phoenix Raceway, Phoenix, Arizona | Q3: =VLOOKUP(Q$5,Schedule!$A$5:$I$39,4,FALSE) -> Atlanta Motor Speedway, Hampton, Georgia | S3: =VLOOKUP(S$5,Schedule!$A$5:$I$39,4,FALSE) -> Bristol Motor Speedway (Dirt Course), Bristol, Tennessee | U3: =VLOOKUP(U$5,Schedule!$A$5:$I$39,4,FALSE) -> Martinsville Speedway, Ridgeway, Virginia | W3: =VLOOKUP(W$5,Schedule!$A$5:$I$39,4,FALSE) -> Richmond Raceway, Richmond, Virginia | Y3: =VLOOKUP(Y$5,Schedule!$A$5:$I$39,4,FALSE) -> Talladega Superspeedway, Lincoln, Alabama | AA3: =VLOOKUP(AA$5,Schedule!$A$5:$I$39,4,FALSE) -> Kansas Speedway, Kansas City, Kansas | AC3: =VLOOKUP(AC$5,Schedule!$A$5:$I$39,4,FALSE) -> Darlington Raceway, Darlington, South Carolina | AE3: =VLOOKUP(AE$5,Schedule!$A$5:$I$39,4,FALSE) -> Dover International Speedway, Dover, Delaware | AG3: =VLOOKUP(AG$5,Schedule!$A$5:$I$39,4,FALSE) -> Circuit of the Americas, Austin, Texas | AI3: =VLOOKUP(AI$5,Schedule!$A$5:$I$39,4,FALSE) -> Charlotte Motor Speedway, Concord, North Carolina | AK3: =VLOOKUP(AK$5,Schedule!$A$5:$I$39,4,FALSE) -> Sonoma Raceway, Sonoma, California | AM3: =VLOOKUP(AM$5,Schedule!$A$5:$I$39,4,FALSE) -> Nashville Superspeedway, Lebanon, Tennessee | AO3: =VLOOKUP(AO$5,Schedule!$A$5:$I$39,4,FALSE) -> Pocono Raceway, Long Pond, Pennsylvania | AQ3: =VLOOKUP(AQ$5,Schedule!$A$5:$I$39,4,FALSE) -> Pocono Raceway, Long Pond, Pennsylvania | AS3: =VLOOKUP(AS$5,Schedule!$A$5:$I$40,4,FALSE) -> Road America, Elkhart Lake, Wisconsin | AU3: =VLOOKUP(AU$5,Schedule!$A$5:$I$40,4,FALSE) -> Atlanta Motor Speedway, Hampton, Georgia | AW3: =VLOOKUP(AW$5,Schedule!$A$5:$I$40,4,FALSE) -> New Hampshire Motor Speedway, Loudon, New Hampshire | AY3: =VLOOKUP(AY$5,Schedule!$A$5:$I$40,4,FALSE) -> Watkins Glen International, Watkins Glen, New York | BA3: =VLOOKUP(BA$5,Schedule!$A$5:$I$40,4,FALSE) -> Indianapolis Motor Speedway (Road Course), Speedway, Indiana | BC3: =VLOOKUP(BC$5,Schedule!$A$5:$I$40,4,FALSE) -> Michigan International Speedway, Brooklyn, Michigan | BE3: =VLOOKUP(BE$5,Schedule!$A$5:$I$40,4,FALSE) -> Daytona International Speedway, Daytona Beach, Florida | BG3: =VLOOKUP(BG$5,Schedule!$A$5:$I$40,4,FALSE) -> Darlington Raceway, Darlington, South Carolina | BI3: =VLOOKUP(BI$5,Schedule!$A$5:$I$40,4,FALSE) -> Richmond Raceway, Richmond, Virginia | BK3: =VLOOKUP(BK$5,Schedule!$A$5:$I$40,4,FALSE) -> Bristol Motor Speedway, Bristol, Tennessee | BM3: =VLOOKUP(BM$5,Schedule!$A$5:$I$40,4,FALSE) -> Las Vegas Motor Speedway, Las Vegas, Nevada | BO3: =VLOOKUP(BO$5,Schedule!$A$5:$I$40,4,FALSE) -> Talladega Superspeedway, Lincoln, Alabama | BQ3: =VLOOKUP(BQ$5,Schedule!$A$5:$I$40,4,FALSE) -> Charlotte Motor Speedway (Road Course), Concord, North Carolina | BS3: =VLOOKUP(BS$5,Schedule!$A$5:$I$40,4,FALSE) -> Texas Motor Speedway, Fort Worth, Texas | BU3: =VLOOKUP(BU$5,Schedule!$A$5:$I$40,4,FALSE) -> Kansas Speedway, Kansas City, Kansas | BW3: =VLOOKUP(BW$5,Schedule!$A$5:$I$40,4,FALSE) -> Martinsville Speedway, Ridgeway, Virginia | BY3: =VLOOKUP(BY$5,Schedule!$A$5:$I$40,4,FALSE) -> Phoenix Raceway, Phoenix, Arizona
G4: =VLOOKUP(G$5,Schedule!$A$5:$I$39,7,FALSE) -> 1900-04-29 | I4: =VLOOKUP(I$5,Schedule!$A$5:$I$39,7,FALSE) -> 1900-06-18 | K4: =VLOOKUP(K$5,Schedule!$A$5:$I$39,7,FALSE) -> 1900-06-08 | M4: =VLOOKUP(M$5,Schedule!$A$5:$I$39,7,FALSE) -> 1900-05-29 | O4: =VLOOKUP(O$5,Schedule!$A$5:$I$39,7,FALSE) -> 1900-04-29 | Q4: =VLOOKUP(Q$5,Schedule!$A$5:$I$39,7,FALSE) -> 1900-09-16 | S4: =VLOOKUP(S$5,Schedule!$A$5:$I$39,7,FALSE) -> 1900-06-18 | U4: =VLOOKUP(U$5,Schedule!$A$5:$I$39,7,FALSE) -> 1900-09-06 | W4: =VLOOKUP(W$5,Schedule!$A$5:$I$39,7,FALSE) -> 1900-07-18 | Y4: =VLOOKUP(Y$5,Schedule!$A$5:$I$39,7,FALSE) -> 1900-04-19 | AA4: =VLOOKUP(AA$5,Schedule!$A$5:$I$39,7,FALSE) -> 1900-08-27 | AC4: =VLOOKUP(AC$5,Schedule!$A$5:$I$39,7,FALSE) -> 1900-06-08 | AE4: =VLOOKUP(AE$5,Schedule!$A$5:$I$39,7,FALSE) -> 1900-07-18 | AG4: =VLOOKUP(AG$5,Schedule!$A$5:$I$39,7,FALSE) -> 1900-04-09 | AI4: =VLOOKUP(AI$5,Schedule!$A$5:$I$39,7,FALSE) -> 1900-04-29 | AK4: =VLOOKUP(AK$5,Schedule!$A$5:$I$39,7,FALSE) -> 1900-02-19 | AM4: =VLOOKUP(AM$5,Schedule!$A$5:$I$39,7,FALSE) -> 1900-06-08 | AO4: =VLOOKUP(AO$5,Schedule!$A$5:$I$39,7,FALSE) -> 1900-03-20 | AQ4: =VLOOKUP(AQ$5,Schedule!$A$5:$I$39,7,FALSE) -> 1900-06-08 | AS4: =VLOOKUP(AS$5,Schedule!$A$5:$I$40,7,FALSE) -> 1900-05-29 | AU4: =VLOOKUP(AU$5,Schedule!$A$5:$I$40,7,FALSE) -> 1900-04-09 | AW4: =VLOOKUP(AW$5,Schedule!$A$5:$I$40,7,FALSE) -> 1900-02-09 | AY4: =VLOOKUP(AY$5,Schedule!$A$5:$I$40,7,FALSE) -> 1900-04-29 | BA4: =VLOOKUP(BA$5,Schedule!$A$5:$I$40,7,FALSE) -> 1900-09-06 | BC4: =VLOOKUP(BC$5,Schedule!$A$5:$I$40,7,FALSE) -> 1900-07-18 | BE4: =VLOOKUP(BE$5,Schedule!$A$5:$I$40,7,FALSE) -> 1900-04-09 | BG4: =VLOOKUP(BG$5,Schedule!$A$5:$I$40,7,FALSE) -> 1900-06-08 | BI4: =VLOOKUP(BI$5,Schedule!$A$5:$I$40,7,FALSE) -> 1900-07-18 | BK4: =VLOOKUP(BK$5,Schedule!$A$5:$I$40,7,FALSE) -> 60 | BM4: =VLOOKUP(BM$5,Schedule!$A$5:$I$40,7,FALSE) -> 1900-08-27 | BO4: =VLOOKUP(BO$5,Schedule!$A$5:$I$40,7,FALSE) -> 1900-04-19 | BQ4: =VLOOKUP(BQ$5,Schedule!$A$5:$I$40,7,FALSE) -> 1900-06-08 | BS4: =VLOOKUP(BS$5,Schedule!$A$5:$I$40,7,FALSE) -> 1900-09-16 | BU4: =VLOOKUP(BU$5,Schedule!$A$5:$I$40,7,FALSE) -> 1900-06-18 | BW4: =VLOOKUP(BW$5,Schedule!$A$5:$I$40,7,FALSE) -> 1900-05-29 | BY4: =VLOOKUP(BY$5,Schedule!$A$5:$I$40,7,FALSE) -> 1900-06-08
B5: 4 | C5: 6 | D5: 5 | E5: 5 | F5: 4 | G5: 1 | I5: 2 | K5: 3 | M5: 4 | O5: 5 | Q5: 6 | S5: 7 | U5: 8 | W5: 9 | Y5: 10 | AA5: 11 | AC5: 12 | AE5: 13 | AG5: 14 | AI5: 15 | AK5: 16 | AM5: 17 | AO5: 18 | AQ5: 19 | AS5: 20 | AU5: 21 | AW5: 22 | AY5: 23 | BA5: 24 | BC5: 25 | BE5: 26 | BG5: 27 | BI5: 28 | BK5: 29 | BM5: 30 | BO5: 31 | BQ5: 32 | BS5: 33 | BU5: 34 | BW5: 35 | BY5: 36
A6: Car | B6: Driver | C6: Make | D6: Sponsor | E6: Team | F6: Home Town | G6: Finishing Position | H6: Points | I6: Finishing Position | J6: Points | K6: Finishing Position | L6: Lead (Y/N) | M6: Finishing Position | N6: Lead (Y/N) | O6: Finishing Position | P6: Lead (Y/N) | Q6: Finishing Position | R6: Lead (Y/N) | S6: Finishing Position | T6: Lead (Y/N) | U6: Finishing Position | V6: Lead (Y/N) | W6: Finishing Position | X6: Lead (Y/N) | Y6: Finishing Position | Z6: Lead (Y/N) | AA6: Finishing Position | AB6: Lead (Y/N) | AC6: Finishing Position | AD6: Lead (Y/N) | AE6: Finishing Position | AF6: Lead (Y/N) | AG6: Finishing Position | AH6: Lead (Y/N) | AI6: Finishing Position | AJ6: Lead (Y/N) | AK6: Finishing Position | AL6: Lead (Y/N) | AM6: Finishing Position | AN6: Lead (Y/N) | AO6: Finishing Position | AP6: Lead (Y/N) | AQ6: Finishing Position | AR6: Lead (Y/N) | AS6: Finishing Position | AT6: Lead (Y/N) | AU6: Finishing Position | AV6: Lead (Y/N) | AW6: Finishing Position | AX6: Lead (Y/N) | AY6: Finishing Position | AZ6: Lead (Y/N) | BA6: Finishing Position | BB6: Lead (Y/N) | BC6: Finishing Position | BD6: Lead (Y/N) | BE6: Finishing Position | BF6: Lead (Y/N) | BG6: Finishing Position | BH6: Lead (Y/N) | BI6: Finishing Position | BJ6: Lead (Y/N) | BK6: Finishing Position | BL6: Lead (Y/N) | BM6: Finishing Position | BN6: Lead (Y/N) | BO6: Finishing Position | BP6: Lead (Y/N) | BQ6: Finishing Position | BR6: Lead (Y/N) | BS6: Finishing Position | BT6: Lead (Y/N) | BU6: Finishing Position | BV6: Lead (Y/N) | BW6: Finishing Position | BX6: Lead (Y/N) | BY6: Finishing Position | BZ6: Lead (Y/N)
A7: 00 | B7: =IF(ISNA(VLOOKUP($A7,'Entry List'!$A$1:$F$61,B$5,FALSE)),"",VLOOKUP($A7,'Entry List'!$A$1:$F$61,B$5,FALSE)) -> Quin Houff | C7: =IF(ISNA(VLOOKUP($A7,'Entry List'!$A$1:$F$61,C$5,FALSE)),"",VLOOKUP($A7,'Entry List'!$A$1:$F$61,C$5,FALSE)) -> Chevrolet | D7: =IF(ISNA(VLOOKUP($A7,'Entry List'!$A$1:$F$61,D$5,FALSE)),"",VLOOKUP($A7,'Entry List'!$A$1:$F$61,D$5,FALSE)) -> StarCom Racing | E7: =IF(ISNA(VLOOKUP($A7,'Entry List'!$A$1:$F$61,E$5,FALSE)),"",VLOOKUP($A7,'Entry List'!$A$1:$F$61,E$5,FALSE)) -> StarCom Racing | F7: =IF(ISNA(VLOOKUP($A7,'[1]Entry List'!$A$1:$F$61,F$5,FALSE)),"",VLOOKUP($A7,'[1]Entry List'!$A$1:$F$61,F$5,FALSE)) -> Landon Cassill (i) | G7: 29 | H7: 8 | I7: 40 | J7: 1 | K7: 35 | L7: 2 | M7: 33 | N7: 4 | O7: 32 | P7: 5 | Q7: 33 | R7: 4 | S7: 25 | T7: 12 | U7: 24 | V7: 13 | W7: 34 | X7: 3 | Y7: 37 | Z7: 1 | AA7: 37 | AB7: 1 | AC7: 30 | AD7: 7 | AE7: 29 | AF7: 8 | AG7: 34 | AH7: 3 | AI7: 32 | AJ7: 5 | AK7: 36 | AL7: 1 | AM7: 38 | AN7: 1 | AO7: 31 | AP7: 6 | AQ7: 33 | AR7: 4 | AS7: 34 | AT7: 3 | AU7: 35 | AV7: 2 | AW7: 35 | AX7: 2 | AY7: 32 | AZ7: 5 | BA7: 22 | BB7: 15 | BC7: 30 | BD7: 7 | BE7: =IF('Last Race Results'!$B$5=0,0,IF(ISNA(VLOOKUP($A7,'Last Race Results'!$A$5:$J$44,2,FALSE)),"DNS",VLOOKUP($A7,'Last Race Results'!$A$5:$J$44,2,FALSE))) -> 38 | BF7: =IF('Last Race Results'!$B$5=0,0,IF(ISNA(VLOOKUP($A7,'Last Race Results'!$A$5:$K$44,11,FALSE)),0,VLOOKUP($A7,'Last Race Results'!$A$5:$K$44,11,FALSE))) -> 1
A8: 1 | B8: =IF(ISNA(VLOOKUP($A8,'Entry List'!$A$1:$F$61,B$5,FALSE)),"",VLOOKUP($A8,'Entry List'!$A$1:$F$61,B$5,FALSE)) -> Kurt Busch | C8: =IF(ISNA(VLOOKUP($A8,'Entry List'!$A$1:$F$61,C$5,FALSE)),"",VLOOKUP($A8,'Entry List'!$A$1:$F$61,C$5,FALSE)) -> Chevrolet | D8: =IF(ISNA(VLOOKUP($A8,'Entry List'!$A$1:$F$61,D$5,FALSE)),"",VLOOKUP($A8,'Entry List'!$A$1:$F$61,D$5,FALSE)) -> Chip Ganassi Racing | E8: =IF(ISNA(VLOOKUP($A8,'Entry List'!$A$1:$F$61,E$5,FALSE)),"",VLOOKUP($A8,'Entry List'!$A$1:$F$61,E$5,FALSE)) -> Chip Ganassi Racing | G8: 22 | H8: 15 | I8: 4 | J8: 48 | K8: 8 | L8: 39 | M8: 19 | N8: 18 | O8: 15 | P8: 22 | Q8: 39 | R8: 8 | S8: 16 | T8: 21 | U8: 21 | V8: 17 | W8: 13 | X8: 24 | Y8: 35 | Z8: 2 | AA8: 15 | AB8: 22 | AC8: 35 | AD8: 2 | AE8: 13 | AF8: 28 | AG8: 27 | AH8: 18 | AI8: 38 | AJ8: 1 | AK8: 6 | AL8: 41 | AM8: 8 | AN8: 40 | AO8: 6 | AP8: 45 | AQ8: 20 | AR8: 17 | AS8: 4 | AT8: 41 | AU8: 1 | AV8: 59 | AW8: 16 | AX8: 22 | AY8: 13 | AZ8: 24 | BA8: 6 | BB8: 31 | BC8: 4 | BD8: 36 | BE8: =IF('Last Race Results'!$B$5=0,0,IF(ISNA(VLOOKUP($A8,'Last Race Results'!$A$5:$J$44,2,FALSE)),"DNS",VLOOKUP($A8,'Last Race Results'!$A$5:$J$44,2,FALSE))) -> 12 | BF8: =IF('Last Race Results'!$B$5=0,0,IF(ISNA(VLOOKUP($A8,'Last Race Results'!$A$5:$K$44,11,FALSE)),0,VLOOKUP($A8,'Last Race Results'!$A$5:$K$44,11,FALSE))) -> 25
A9: 2 | B9: =IF(ISNA(VLOOKUP($A9,'Entry List'!$A$1:$F$61,B$5,FALSE)),"",VLOOKUP($A9,'Entry List'!$A$1:$F$61,B$5,FALSE)) -> Brad Keselowski | C9: =IF(ISNA(VLOOKUP($A9,'Entry List'!$A$1:$F$61,C$5,FALSE)),"",VLOOKUP($A9,'Entry List'!$A$1:$F$61,C$5,FALSE)) -> Ford | D9: =IF(ISNA(VLOOKUP($A9,'Entry List'!$A$1:$F$61,D$5,FALSE)),"",VLOOKUP($A9,'Entry List'!$A$1:$F$61,D$5,FALSE)) -> Team Penske | E9: =IF(ISNA(VLOOKUP($A9,'Entry List'!$A$1:$F$61,E$5,FALSE)),"",VLOOKUP($A9,'Entry List'!$A$1:$F$61,E$5,FALSE)) -> Team Penske | G9: 13 | H9: 25 | I9: 5 | J9: 39 | K9: 16 | L9: 31 | M9: 2 | N9: 54 | O9: 4 | P9: 48 | Q9: 28 | R9: 9 | S9: 11 | T9: 26 | U9: 33 | V9: 12 | W9: 14 | X9: 25 | Y9: 1 | Z9: 49 | AA9: 3 | AB9: 48 | AC9: 24 | AD9: 13 | AE9: 16 | AF9: 25 | AG9: 19 | AH9: 18 | AI9: 11 | AJ9: 26 | AK9: 15 | AL9: 25 | AM9: 23 | AN9: 18 | AO9: 10 | AP9: 28 | AQ9: 3 | AR9: 50 | AS9: 13 | AT9: 24 | AU9: 10 | AV9: 30 | AW9: 3 | AX9: 53 | AY9: 35 | AZ9: 2 | BA9: 24 | BB9: 18 | BC9: 9 | BD9: 33 | BE9: =IF('Last Race Results'!$B$5=0,0,IF(ISNA(VLOOKUP($A9,'Last Race Results'!$A$5:$J$44,2,FALSE)),"DNS",VLOOKUP($A9,'Last Race Results'!$A$5:$J$44,2,FALSE))) -> 33 | BF9: =IF('Last Race Results'!$B$5=0,0,IF(ISNA(VLOOKUP($A9,'Last Race Results'!$A$5:$K$44,11,FALSE)),0,VLOOKUP($A9,'Last Race Results'!$A$5:$K$44,11,FALSE))) -> 4
A10: 3 | B10: =IF(ISNA(VLOOKUP($A10,'Entry List'!$A$1:$F$61,B$5,FALSE)),"",VLOOKUP($A10,'Entry List'!$A$1:$F$61,B$5,FALSE)) -> Austin Dillon | C10: =IF(ISNA(VLOOKUP($A10,'Entry List'!$A$1:$F$61,C$5,FALSE)),"",VLOOKUP($A10,'Entry List'!$A$1:$F$61,C$5,FALSE)) -> Chevrolet | D10: =IF(ISNA(VLOOKUP($A10,'Entry List'!$A$1:$F$61,D$5,FALSE)),"",VLOOKUP($A10,'Entry List'!$A$1:$F$61,D$5,FALSE)) -> Richard Childress Racing | E10: =IF(ISNA(VLOOKUP($A10,'Entry List'!$A$1:$F$61,E$5,FALSE)),"",VLOOKUP($A10,'Entry List'!$A$1:$F$61,E$5,FALSE)) -> Richard Childress Racing | G10: 3 | H10: 48 | I10: 34 | J10: 6 | K10: 12 | L10: 26 | M10: 12 | N10: 25 | O10: 17 | P10: 20 | Q10: 6 | R10: 35 | S10: 21 | T10: 16 | U10: 14 | V10: 23 | W10: 10 | X10: 30 | Y10: 8 | Z10: 29 | AA10: 10 | AB10: 27 | AC10: 16 | AD10: 21 | AE10: 14 | AF10: 25 | AG10: 12 | AH10: 25 | AI10: 6 | AJ10: 41 | AK10: 13 | AL10: 29 | AM10: 12 | AN10: 40 | AO10: 21 | AP10: 18 | AQ10: 13 | AR10: 24 | AS10: 11 | AT10: 26 | AU10: 12 | AV10: 27 | AW10: 17 | AX10: 20 | AY10: 15 | AZ10: 24 | BA10: 31 | BB10: 23 | BC10: 36 | BD10: 14 | BE10: =IF('Last Race Results'!$B$5=0,0,IF(ISNA(VLOOKUP($A10,'Last Race Results'!$A$5:$J$44,2,FALSE)),"DNS",VLOOKUP($A10,'Last Race Results'!$A$5:$J$44,2,FALSE))) -> 17 | BF10: =IF('Last Race Results'!$B$5=0,0,IF(ISNA(VLOOKUP($A10,'Last Race Results'!$A$5:$K$44,11,FALSE)),0,VLOOKUP($A10,'Last Race Results'!$A$5:$K$44,11,FALSE))) -> 34
A11: 4 | B11: =IF(ISNA(VLOOKUP($A11,'Entry List'!$A$1:$F$61,B$5,FALSE)),"",VLOOKUP($A11,'Entry List'!$A$1:$F$61,B$5,FALSE)) -> Kevin Harvick | C11: =IF(ISNA(VLOOKUP($A11,'Entry List'!$A$1:$F$61,C$5,FALSE)),"",VLOOKUP($A11,'Entry List'!$A$1:$F$61,C$5,FALSE)) -> Ford | D11: =IF(ISNA(VLOOKUP($A11,'Entry List'!$A$1:$F$61,D$5,FALSE)),"",VLOOKUP($A11,'Entry List'!$A$1:$F$61,D$5,FALSE)) -> Stewart-Haas Racing | E11: =IF(ISNA(VLOOKUP($A11,'Entry List'!$A$1:$F$61,E$5,FALSE)),"",VLOOKUP($A11,'Entry List'!$A$1:$F$61,E$5,FALSE)) -> Stewart-Haas Racing | G11: 4 | H11: 42 | I11: 6 | J11: 32 | K11: 5 | L11: 36 | M11: 20 | N11: 17 | O11: 6 | P11: 40 | Q11: 10 | R11: 27 | S11: 15 | T11: 22 | U11: 9 | V11: 28 | W11: 24 | X11: 20 | Y11: 4 | Z11: 35 | AA11: 2 | AB11: 40 | AC11: 6 | AD11: 39 | AE11: 6 | AF11: 42 | AG11: 37 | AH11: 1 | AI11: 10 | AJ11: 40 | AK11: 22 | AL11: 15 | AM11: 5 | AN11: 34 | AO11: 8 | AP11: 35 | AQ11: 4 | AR11: 33 | AS11: 27 | AT11: 14 | AU11: 11 | AV11: 27 | AW11: 6 | AX11: 47 | AY11: 8 | AZ11: 37 | BA11: 14 | BB11: 23 | BC11: 14 | BD11: 23 | BE11: =IF('Last Race Results'!$B$5=0,0,IF(ISNA(VLOOKUP($A11,'Last Race Results'!$A$5:$J$44,2,FALSE)),"DNS",VLOOKUP($A11,'Last Race Results'!$A$5:$J$44,2,FALSE))) -> 15 | BF11: =IF('Last Race Results'!$B$5=0,0,IF(ISNA(VLOOKUP($A11,'Last Race Results'!$A$5:$K$44,11,FALSE)),0,VLOOKUP($A11,'Last Race Results'!$A$5:$K$44,11,FALSE))) -> 22
A12: 5 | B12: =IF(ISNA(VLOOKUP($A12,'Entry List'!$A$1:$F$61,B$5,FALSE)),"",VLOOKUP($A12,'Entry List'!$A$1:$F$61,B$5,FALSE)) -> Kyle Larson | C12: =IF(ISNA(VLOOKUP($A12,'Entry List'!$A$1:$F$61,C$5,FALSE)),"",VLOOKUP($A12,'Entry List'!$A$1:$F$61,C$5,FALSE)) -> Chevrolet | D12: =IF(ISNA(VLOOKUP($A12,'Entry List'!$A$1:$F$61,D$5,FALSE)),"",VLOOKUP($A12,'Entry List'!$A$1:$F$61,D$5,FALSE)) -> Hendrick Motorsports | E12: =IF(ISNA(VLOOKUP($A12,'Entry List'!$A$1:$F$61,E$5,FALSE)),"",VLOOKUP($A12,'Entry List'!$A$1:$F$61,E$5,FALSE)) -> Hendrick Motorsports | G12: 10 | H12: 37 | I12: 30 | J12: 12 | K12: 4 | L12: 44 | M12: 1 | N12: 50 | O12: 7 | P12: 32 | Q12: 2 | R12: 55 | S12: 29 | T12: 8 | U12: 5 | V12: 38 | W12: 18 | X12: 19 | Y12: 40 | Z12: 1 | AA12: 19 | AB12: 37 | AC12: 2 | AD12: 48 | AE12: 2 | AF12: 55 | AG12: 2 | AH12: 47 | AI12: 1 | AJ12: 70 | AK12: 1 | AL12: 60 | AM12: 1 | AN12: 59 | AO12: 9 | AP12: 45 | AQ12: 2 | AR12: 38 | AS12: 16 | AT12: 36 | AU12: 18 | AV12: 31 | AW12: 7 | AX12: 35 | AY12: 1 | AZ12: 56 | BA12: 3 | BB12: 36 | BC12: 3 | BD12: 51 | BE12: =IF('Last Race Results'!$B$5=0,0,IF(ISNA(VLOOKUP($A12,'Last Race Results'!$A$5:$J$44,2,FALSE)),"DNS",VLOOKUP($A12,'Last Race Results'!$A$5:$J$44,2,FALSE))) -> 20 | BF12: =IF('Last Race Results'!$B$5=0,0,IF(ISNA(VLOOKUP($A12,'Last Race Results'!$A$5:$K$44,11,FALSE)),0,VLOOKUP($A12,'Last Race Results'!$A$5:$K$44,11,FALSE))) -> 23
A13: 6 | B13: =IF(ISNA(VLOOKUP($A13,'Entry List'!$A$1:$F$61,B$5,FALSE)),"",VLOOKUP($A13,'Entry List'!$A$1:$F$61,B$5,FALSE)) -> Ryan Newman | C13: =IF(ISNA(VLOOKUP($A13,'Entry List'!$A$1:$F$61,C$5,FALSE)),"",VLOOKUP($A13,'Entry List'!$A$1:$F$61,C$5,FALSE)) -> Ford | D13: =IF(ISNA(VLOOKUP($A13,'Entry List'!$A$1:$F$61,D$5,FALSE)),"",VLOOKUP($A13,'Entry List'!$A$1:$F$61,D$5,FALSE)) -> Roush Fenway Racing | E13: =IF(ISNA(VLOOKUP($A13,'Entry List'!$A$1:$F$61,E$5,FALSE)),"",VLOOKUP($A13,'Entry List'!$A$1:$F$61,E$5,FALSE)) -> Roush Fenway Racing | G13: 38 | H13: 1 | I13: 20 | J13: 17 | K13: 7 | L13: 30 | M13: 18 | N13: 19 | O13: 28 | P13: 9 | Q13: 13 | R13: 24 | S13: 5 | T13: 41 | U13: 19 | V13: 18 | W13: 30 | X13: 7 | Y13: 13 | Z13: 24 | AA13: 16 | AB13: 21 | AC13: 10 | AD13: 27 | AE13: 23 | AF13: 14 | AG13: 24 | AH13: 13 | AI13: 27 | AJ13: 10 | AK13: 33 | AL13: 4 | AM13: 13 | AN13: 24 | AO13: 37 | AP13: 1 | AQ13: 22 | AR13: 15 | AS13: 32 | AT13: 5 | AU13: 28 | AV13: 9 | AW13: 24 | AX13: 13 | AY13: 25 | AZ13: 12 | BA13: 10 | BB13: 27 | BC13: 24 | BD13: 13 | BE13: =IF('Last Race Results'!$B$5=0,0,IF(ISNA(VLOOKUP($A13,'Last Race Results'!$A$5:$J$44,2,FALSE)),"DNS",VLOOKUP($A13,'Last Race Results'!$A$5:$J$44,2,FALSE))) -> 3 | BF13: =IF('Last Race Results'!$B$5=0,0,IF(ISNA(VLOOKUP($A13,'Last Race Results'!$A$5:$K$44,11,FALSE)),0,VLOOKUP($A13,'Last Race Results'!$A$5:$K$44,11,FALSE))) -> 34
A14: 7 | B14: =IF(ISNA(VLOOKUP($A14,'Entry List'!$A$1:$F$61,B$5,FALSE)),"",VLOOKUP($A14,'Entry List'!$A$1:$F$61,B$5,FALSE)) -> Corey Lajoie | C14: =IF(ISNA(VLOOKUP($A14,'Entry List'!$A$1:$F$61,C$5,FALSE)),"",VLOOKUP($A14,'Entry List'!$A$1:$F$61,C$5,FALSE)) -> Chevrolet | D14: =IF(ISNA(VLOOKUP($A14,'Entry List'!$A$1:$F$61,D$5,FALSE)),"",VLOOKUP($A14,'Entry List'!$A$1:$F$61,D$5,FALSE)) -> Spire Motorsports | E14: =IF(ISNA(VLOOKUP($A14,'Entry List'!$A$1:$F$61,E$5,FALSE)),"",VLOOKUP($A14,'Entry List'!$A$1:$F$61,E$5,FALSE)) -> Spire Motorsports | G14: 9 | H14: 28 | I14: 31 | J14: 6 | K14: 36 | L14: 1 | M14: 37 | N14: 1 | O14: 27 | P14: 10 | Q14: 29 | R14: 8 | S14: 38 | T14: 1 | U14: 37 | V14: 1 | W14: 21 | X14: 16 | Y14: 22 | Z14: 15 | AA14: 27 | AB14: 10 | AC14: 22 | AD14: 15 | AE14: 26 | AF14: 11 | AG14: 20 | AH14: 23 | AI14: 19 | AJ14: 18 | AK14: 18 | AL14: 19 | AM14: 15 | AN14: 22 | AO14: 36 | AP14: 1 | AQ14: 23 | AR14: 14 | AS14: 21 | AT14: 16 | AU14: 22 | AV14: 15 | AW14: 23 | AX14: 14 | AY14: 24 | AZ14: 13 | BA14: 16 | BB14: 25 | BC14: 26 | BD14: 11 | BE14: =IF('Last Race Results'!$B$5=0,0,IF(ISNA(VLOOKUP($A14,'Last Race Results'!$A$5:$J$44,2,FALSE)),"DNS",VLOOKUP($A14,'Last Race Results'!$A$5:$J$44,2,FALSE))) -> 16 | BF14: =IF('Last Race Results'!$B$5=0,0,IF(ISNA(VLOOKUP($A14,'Last Race Results'!$A$5:$K$44,11,FALSE)),0,VLOOKUP($A14,'Last Race Results'!$A$5:$K$44,11,FALSE))) -> 25
A15: 8 | B15: =IF(ISNA(VLOOKUP($A15,'Entry List'!$A$1:$F$61,B$5,FALSE)),"",VLOOKUP($A15,'Entry List'!$A$1:$F$61,B$5,FALSE)) -> Tyler Reddick | C15: =IF(ISNA(VLOOKUP($A15,'Entry List'!$A$1:$F$61,C$5,FALSE)),"",VLOOKUP($A15,'Entry List'!$A$1:$F$61,C$5,FALSE)) -> Chevrolet | D15: =IF(ISNA(VLOOKUP($A15,'Entry List'!$A$1:$F$61,D$5,FALSE)),"",VLOOKUP($A15,'Entry List'!$A$1:$F$61,D$5,FALSE)) -> Richard Childress Racing | E15: =IF(ISNA(VLOOKUP($A15,'Entry List'!$A$1:$F$61,E$5,FALSE)),"",VLOOKUP($A15,'Entry List'!$A$1:$F$61,E$5,FALSE)) -> Richard Childress Racing | G15: 27 | H15: 10 | I15: 38 | J15: 1 | K15: 2 | L15: 35 | M15: 22 | N15: 15 | O15: 29 | P15: 8 | Q15: 26 | R15: 11 | S15: 7 | T15: 32 | U15: 8 | V15: 32 | W15: 20 | X15: 17 | Y15: 7 | Z15: 30 | AA15: 7 | AB15: 41 | AC15: 12 | AD15: 36 | AE15: 8 | AF15: 30 | AG15: 9 | AH15: 36 | AI15: 9 | AJ15: 42 | AK15: 19 | AL15: 22 | AM15: 18 | AN15: 19 | AO15: 11 | AP15: 27 | AQ15: 9 | AR15: 31 | AS15: 8 | AT15: 46 | AU15: 6 | AV15: 42 | AW15: 13 | AX15: 33 | AY15: 10 | AZ15: 34 | BA15: 21 | BB15: 36 | BC15: 29 | BD15: 11 | BE15: =IF('Last Race Results'!$B$5=0,0,IF(ISNA(VLOOKUP($A15,'Last Race Results'!$A$5:$J$44,2,FALSE)),"DNS",VLOOKUP($A15,'Last Race Results'!$A$5:$J$44,2,FALSE))) -> 5 | BF15: =IF('Last Race Results'!$B$5=0,0,IF(ISNA(VLOOKUP($A15,'Last Race Results'!$A$5:$K$44,11,FALSE)),0,VLOOKUP($A15,'Last Race Results'!$A$5:$K$44,11,FALSE))) -> 39
A16: 9 | B16: =IF(ISNA(VLOOKUP($A16,'Entry List'!$A$1:$F$61,B$5,FALSE)),"",VLOOKUP($A16,'Entry List'!$A$1:$F$61,B$5,FALSE)) -> Chase Elliott | C16: =IF(ISNA(VLOOKUP($A16,'Entry List'!$A$1:$F$61,C$5,FALSE)),"",VLOOKUP($A16,'Entry List'!$A$1:$F$61,C$5,FALSE)) -> Chevrolet | D16: =IF(ISNA(VLOOKUP($A16,'Entry List'!$A$1:$F$61,D$5,FALSE)),"",VLOOKUP($A16,'Entry List'!$A$1:$F$61,D$5,FALSE)) -> Hendrick Motorsports | E16: =IF(ISNA(VLOOKUP($A16,'Entry List'!$A$1:$F$61,E$5,FALSE)),"",VLOOKUP($A16,'Entry List'!$A$1:$F$61,E$5,FALSE)) -> Hendrick Motorsports | G16: 2 | H16: 42 | I16: 21 | J16: 31 | K16: 14 | L16: 26 | M16: 13 | N16: 34 | O16: 5 | P16: 40 | Q16: 38 | R16: 4 | S16: 10 | T16: 28 | U16: 2 | V16: 49 | W16: 12 | X16: 25 | Y16: 24 | Z16: 21 | AA16: 5 | AB16: 43 | AC16: 7 | AD16: 33 | AE16: 3 | AF16: 50 | AG16: 1 | AH16: 49 | AI16: 2 | AJ16: 60 | AK16: 2 | AL16: 50 | AM16: 0 | AN16: 1 | AO16: 12 | AP16: 25 | AQ16: 27 | AR16: 16 | AS16: 1 | AT16: 41 | AU16: 7 | AV16: 30 | AW16: 18 | AX16: 32 | AY16: 2 | AZ16: 38 | BA16: 4 | BB16: 35 | BC16: 8 | BD16: 46 | BE16: =IF('Last Race Results'!$B$5=0,0,IF(ISNA(VLOOKUP($A16,'Last Race Results'!$A$5:$J$44,2,FALSE)),"DNS",VLOOKUP($A16,'Last Race Results'!$A$5:$J$44,2,FALSE))) -> 8 | BF16: =IF('Last Race Results'!$B$5=0,0,IF(ISNA(VLOOKUP($A16,'Last Race Results'!$A$5:$K$44,11,FALSE)),0,VLOOKUP($A16,'Last Race Results'!$A$5:$K$44,11,FALSE))) -> 39
A17: 10 | B17: =IF(ISNA(VLOOKUP($A17,'Entry List'!$A$1:$F$61,B$5,FALSE)),"",VLOOKUP($A17,'Entry List'!$A$1:$F$61,B$5,FALSE)) -> Aric Almirola | C17: =IF(ISNA(VLOOKUP($A17,'Entry List'!$A$1:$F$61,C$5,FALSE)),"",VLOOKUP($A17,'Entry List'!$A$1:$F$61,C$5,FALSE)) -> Ford | D17: =IF(ISNA(VLOOKUP($A17,'Entry List'!$A$1:$F$61,D$5,FALSE)),"",VLOOKUP($A17,'Entry List'!$A$1:$F$61,D$5,FALSE)) -> Stewart-Haas Racing | E17: =IF(ISNA(VLOOKUP($A17,'Entry List'!$A$1:$F$61,E$5,FALSE)),"",VLOOKUP($A17,'Entry List'!$A$1:$F$61,E$5,FALSE)) -> Stewart-Haas Racing | G17: 34 | H17: 3 | I17: 17 | J17: 20 | K17: 30 | L17: 7 | M17: 38 | N17: 1 | O17: 11 | P17: 29 | Q17: 20 | R17: 17 | S17: 36 | T17: 1 | U17: 20 | V17: 17 | W17: 6 | X17: 32 | Y17: 15 | Z17: 22 | AA17: 29 | AB17: 8 | AC17: 37 | AD17: 1 | AE17: 37 | AF17: 1 | AG17: 26 | AH17: 11 | AI17: 22 | AJ17: 15 | AK17: 27 | AL17: 10 | AM17: 4 | AN17: 36 | AO17: 16 | AP17: 21 | AQ17: 16 | AR17: 32 | AS17: 14 | AT17: 23 | AU17: 23 | AV17: 14 | AW17: 1 | AX17: 46 | AY17: 16 | AZ17: 21 | BA17: 19 | BB17: 18 | BC17: 17 | BD17: 20 | BE17: =IF('Last Race Results'!$B$5=0,0,IF(ISNA(VLOOKUP($A17,'Last Race Results'!$A$5:$J$44,2,FALSE)),"DNS",VLOOKUP($A17,'Last Race Results'!$A$5:$J$44,2,FALSE))) -> 14 | BF17: =IF('Last Race Results'!$B$5=0,0,IF(ISNA(VLOOKUP($A17,'Last Race Results'!$A$5:$K$44,11,FALSE)),0,VLOOKUP($A17,'Last Race Results'!$A$5:$K$44,11,FALSE))) -> 23
A18: 11 | B18: =IF(ISNA(VLOOKUP($A18,'Entry List'!$A$1:$F$61,B$5,FALSE)),"",VLOOKUP($A18,'Entry List'!$A$1:$F$61,B$5,FALSE)) -> Denny Hamlin | C18: =IF(ISNA(VLOOKUP($A18,'Entry List'!$A$1:$F$61,C$5,FALSE)),"",VLOOKUP($A18,'Entry List'!$A$1:$F$61,C$5,FALSE)) -> Toyota | D18: =IF(ISNA(VLOOKUP($A18,'Entry List'!$A$1:$F$61,D$5,FALSE)),"",VLOOKUP($A18,'Entry List'!$A$1:$F$61,D$5,FALSE)) -> Joe Gibbs Racing | E18: =IF(ISNA(VLOOKUP($A18,'Entry List'!$A$1:$F$61,E$5,FALSE)),"",VLOOKUP($A18,'Entry List'!$A$1:$F$61,E$5,FALSE)) -> Joe Gibbs Racing | G18: 5 | H18: 52 | I18: 3 | J18: 52 | K18: 11 | L18: 35 | M18: 4 | N18: 48 | O18: 3 | P18: 49 | Q18: 4 | R18: 41 | S18: 3 | T18: 50 | U18: 3 | V18: 52 | W18: 2 | X18: 55 | Y18: 32 | Z18: 12 | AA18: 12 | AB18: 35 | AC18: 5 | AD18: 47 | AE18: 7 | AF18: 45 | AG18: 14 | AH18: 23 | AI18: 7 | AJ18: 36 | AK18: 8 | AL18: 31 | AM18: 21 | AN18: 22 | AO18: 4 | AP18: 43 | AQ18: 14 | AR18: 32 | AS18: 5 | AT18: 37 | AU18: 13 | AV18: 38 | AW18: 10 | AX18: 38 | AY18: 5 | AZ18: 43 | BA18: 23 | BB18: 14 | BC18: 5 | BD18: 45 | BE18: =IF('Last Race Results'!$B$5=0,0,IF(ISNA(VLOOKUP($A18,'Last Race Results'!$A$5:$J$44,2,FALSE)),"DNS",VLOOKUP($A18,'Last Race Results'!$A$5:$J$44,2,FALSE))) -> 13 | BF18: =IF('Last Race Results'!$B$5=0,0,IF(ISNA(VLOOKUP($A18,'Last Race Results'!$A$5:$K$44,11,FALSE)),0,VLOOKUP($A18,'Last Race Results'!$A$5:$K$44,11,FALSE))) -> 33
A19: 12 | B19: =IF(ISNA(VLOOKUP($A19,'Entry List'!$A$1:$F$61,B$5,FALSE)),"",VLOOKUP($A19,'Entry List'!$A$1:$F$61,B$5,FALSE)) -> Ryan Blaney | C19: =IF(ISNA(VLOOKUP($A19,'Entry List'!$A$1:$F$61,C$5,FALSE)),"",VLOOKUP($A19,'Entry List'!$A$1:$F$61,C$5,FALSE)) -> Ford | D19: =IF(ISNA(VLOOKUP($A19,'Entry List'!$A$1:$F$61,D$5,FALSE)),"",VLOOKUP($A19,'Entry List'!$A$1:$F$61,D$5,FALSE)) -> Team Penske | E19: =IF(ISNA(VLOOKUP($A19,'Entry List'!$A$1:$F$61,E$5,FALSE)),"",VLOOKUP($A19,'Entry List'!$A$1:$F$61,E$5,FALSE)) -> Team Penske | G19: 30 | H19: 7 | I19: 15 | J19: 22 | K19: 29 | L19: 11 | M19: 5 | N19: 46 | O19: 10 | P19: 43 | Q19: 1 | R19: 57 | S19: 8 | T19: 35 | U19: 11 | V19: 46 | W19: 11 | X19: 32 | Y19: 9 | Z19: 42 | AA19: 21 | AB19: 24 | AC19: 8 | AD19: 35 | AE19: 12 | AF19: 33 | AG19: 17 | AH19: 20 | AI19: 13 | AJ19: 24 | AK19: 10 | AL19: 27 | AM19: 37 | AN19: 1 | AO19: 5 | AP19: 38 | AQ19: 6 | AR19: 38 | AS19: 20 | AT19: 17 | AU19: 5 | AV19: 36 | AW19: 5 | AX19: 50 | AY19: 14 | AZ19: 23 | BA19: 2 | BB19: 35 | BC19: 1 | BD19: 40 | BE19: =IF('Last Race Results'!$B$5=0,0,IF(ISNA(VLOOKUP($A19,'Last Race Results'!$A$5:$J$44,2,FALSE)),"DNS",VLOOKUP($A19,'Last Race Results'!$A$5:$J$44,2,FALSE))) -> 1 | BF19: =IF('Last Race Results'!$B$5=0,0,IF(ISNA(VLOOKUP($A19,'Last Race Results'!$A$5:$K$44,11,FALSE)),0,VLOOKUP($A19,'Last Race Results'!$A$5:$K$44,11,FALSE))) -> 45
A20: 13 | B20: =IF(ISNA(VLOOKUP($A20,'Entry List'!$A$1:$F$61,B$5,FALSE)),"",VLOOKUP($A20,'Entry List'!$A$1:$F$61,B$5,FALSE)) ->  | C20: =IF(ISNA(VLOOKUP($A20,'Entry List'!$A$1:$F$61,C$5,FALSE)),"",VLOOKUP($A20,'Entry List'!$A$1:$F$61,C$5,FALSE)) ->  | D20: =IF(ISNA(VLOOKUP($A20,'Entry List'!$A$1:$F$61,D$5,FALSE)),"",VLOOKUP($A20,'Entry List'!$A$1:$F$61,D$5,FALSE)) ->  | E20: =IF(ISNA(VLOOKUP($A20,'Entry List'!$A$1:$F$61,E$5,FALSE)),"",VLOOKUP($A20,'Entry List'!$A$1:$F$61,E$5,FALSE)) ->  | G20: DNS | H20: 0 | I20: DNS | J20: 0 | K20: DNS | L20: 0 | M20: DNS | N20: 0 | O20: DNS | P20: 0 | Q20: DNS | R20: 0 | S20: DNS | T20: 0 | U20: DNS | V20: 0 | W20: DNS | X20: 0 | Y20: DNS | Z20: 0 | AA20: DNS | AB20: 0 | AC20: DNS | AD20: 0 | AE20: DNS | AF20: 0 | AG20: DNS | AH20: 0 | AI20: DNS | AJ20: 0 | AK20: DNS | AL20: 0 | AM20: 34 | AN20: 3 | AO20: DNS | AP20: 0 | AQ20: DNS | AR20: 0 | AS20: DNS | AT20: 0 | AU20: DNS | AV20: 0 | AW20: DNS | AX20: 0 | AY20: DNS | AZ20: 0 | BA20: DNS | BB20: 0 | BC20: DNS | BD20: 0 | BE20: =IF('Last Race Results'!$B$5=0,0,IF(ISNA(VLOOKUP($A20,'Last Race Results'!$A$5:$J$44,2,FALSE)),"DNS",VLOOKUP($A20,'Last Race Results'!$A$5:$J$44,2,FALSE))) -> DNS | BF20: =IF('Last Race Results'!$B$5=0,0,IF(ISNA(VLOOKUP($A20,'Last Race Results'!$A$5:$K$44,11,FALSE)),0,VLOOKUP($A20,'Last Race Results'!$A$5:$K$44,11,FALSE))) -> 0
A21: 14 | B21: =IF(ISNA(VLOOKUP($A21,'Entry List'!$A$1:$F$61,B$5,FALSE)),"",VLOOKUP($A21,'Entry List'!$A$1:$F$61,B$5,FALSE)) -> Chase Briscoe (R) | C21: =IF(ISNA(VLOOKUP($A21,'Entry List'!$A$1:$F$61,C$5,FALSE)),"",VLOOKUP($A21,'Entry List'!$A$1:$F$61,C$5,FALSE)) -> Ford | D21: =IF(ISNA(VLOOKUP($A21,'Entry List'!$A$1:$F$61,D$5,FALSE)),"",VLOOKUP($A21,'Entry List'!$A$1:$F$61,D$5,FALSE)) -> Stewart-Haas Racing | E21: =IF(ISNA(VLOOKUP($A21,'Entry List'!$A$1:$F$61,E$5,FALSE)),"",VLOOKUP($A21,'Entry List'!$A$1:$F$61,E$5,FALSE)) -> Stewart-Haas Racing | G21: 19 | H21: 18 | I21: 32 | J21: 5 | K21: 18 | L21: 19 | M21: 21 | N21: 16 | O21: 22 | P21: 15 | Q21: 23 | R21: 14 | S21: 20 | T21: 17 | U21: 27 | V21: 10 | W21: 22 | X21: 15 | Y21: 11 | Z21: 26 | AA21: 20 | AB21: 17 | AC21: 11 | AD21: 26 | AE21: 35 | AF21: 2 | AG21: 6 | AH21: 37 | AI21: 23 | AJ21: 14 | AK21: 17 | AL21: 20 | AM21: 31 | AN21: 14 | AO21: 24 | AP21: 13 | AQ21: 21 | AR21: 16 | AS21: 6 | AT21: 31 | AU21: 15 | AV21: 22 | AW21: 27 | AX21: 10 | AY21: 9 | AZ21: 34 | BA21: 26 | BB21: 13 | BC21: 11 | BD21: 26 | BE21: =IF('Last Race Results'!$B$5=0,0,IF(ISNA(VLOOKUP($A21,'Last Race Results'!$A$5:$J$44,2,FALSE)),"DNS",VLOOKUP($A21,'Last Race Results'!$A$5:$J$44,2,FALSE))) -> 21 | BF21: =IF('Last Race Results'!$B$5=0,0,IF(ISNA(VLOOKUP($A21,'Last Race Results'!$A$5:$K$44,11,FALSE)),0,VLOOKUP($A21,'Last Race Results'!$A$5:$K$44,11,FALSE))) -> 16
A22: 15 | B22: =IF(ISNA(VLOOKUP($A22,'Entry List'!$A$1:$F$61,B$5,FALSE)),"",VLOOKUP($A22,'Entry List'!$A$1:$F$61,B$5,FALSE)) -> Joey Gase (i) | C22: =IF(ISNA(VLOOKUP($A22,'Entry List'!$A$1:$F$61,C$5,FALSE)),"",VLOOKUP($A22,'Entry List'!$A$1:$F$61,C$5,FALSE)) -> Chevrolet | D22: =IF(ISNA(VLOOKUP($A22,'Entry List'!$A$1:$F$61,D$5,FALSE)),"",VLOOKUP($A22,'Entry List'!$A$1:$F$61,D$5,FALSE)) -> Rick Ware Racing | E22: =IF(ISNA(VLOOKUP($A22,'Entry List'!$A$1:$F$61,E$5,FALSE)),"",VLOOKUP($A22,'Entry List'!$A$1:$F$61,E$5,FALSE)) -> Rick Ware Racing | G22: 40 | H22: 1 | I22: 23 | J22: 14 | K22: 37 | L22: 1 | M22: 34 | N22: 3 | O22: 33 | P22: 4 | Q22: 32 | R22: 5 | S22: 33 | T22: 4 | U22: 22 | V22: 15 | W22: 33 | X22: 4 | Y22: 26 | Z22: 11 | AA22: 35 | AB22: 2 | AC22: 31 | AD22: 6 | AE22: 33 | AF22: 4 | AG22: 29 | AH22: 8 | AI22: 33 | AJ22: 4 | AK22: 25 | AL22: 12 | AM22: 29 | AN22: 8 | AO22: 28 | AP22: 9 | AQ22: 30 | AR22: 7 | AS22: 28 | AT22: 9 | AU22: 32 | AV22: 5 | AW22: 36 | AX22: 1 | AY22: 34 | AZ22: 3 | BA22: 32 | BB22: 5 | BC22: 37 | BD22: 1 | BE22: =IF('Last Race Results'!$B$5=0,0,IF(ISNA(VLOOKUP($A22,'Last Race Results'!$A$5:$J$44,2,FALSE)),"DNS",VLOOKUP($A22,'Last Race Results'!$A$5:$J$44,2,FALSE))) -> 31 | BF22: =IF('Last Race Results'!$B$5=0,0,IF(ISNA(VLOOKUP($A22,'Last Race Results'!$A$5:$K$44,11,FALSE)),0,VLOOKUP($A22,'Last Race Results'!$A$5:$K$44,11,FALSE))) -> 6
A23: 16 | B23: =IF(ISNA(VLOOKUP($A23,'Entry List'!$A$1:$F$61,B$5,FALSE)),"",VLOOKUP($A23,'Entry List'!$A$1:$F$61,B$5,FALSE)) ->  | C23: =IF(ISNA(VLOOKUP($A23,'Entry List'!$A$1:$F$61,C$5,FALSE)),"",VLOOKUP($A23,'Entry List'!$A$1:$F$61,C$5,FALSE)) ->  | D23: =IF(ISNA(VLOOKUP($A23,'Entry List'!$A$1:$F$61,D$5,FALSE)),"",VLOOKUP($A23,'Entry List'!$A$1:$F$61,D$5,FALSE)) ->  | E23: =IF(ISNA(VLOOKUP($A23,'Entry List'!$A$1:$F$61,E$5,FALSE)),"",VLOOKUP($A23,'Entry List'!$A$1:$F$61,E$5,FALSE)) ->  | G23: 28 | H23: 9 | I23: 7 | J23: 32 | K23: DNS | L23: 0 | M23: DNS | N23: 0 | O23: DNS | P23: 0 | Q23: DNS | R23: 0 | S23: DNS | T23: 0 | U23: DNS | V23: 0 | W23: DNS | X23: 0 | Y23: 6 | Z23: 31 | AA23: DNS | AB23: 0 | AC23: DNS | AD23: 0 | AE23: DNS | AF23: 0 | AG23: 5 | AH23: 36 | AI23: DNS | AJ23: 0 | AK23: DNS | AL23: 0 | AM23: DNS | AN23: 0 | AO23: DNS | AP23: 0 | AQ23: DNS | AR23: 0 | AS23: DNS | AT23: 0 | AU23: DNS | AV23: 0 | AW23: DNS | AX23: 0 | AY23: DNS | AZ23: 0 | BA23: DNS | BB23: 0 | BC23: DNS | BD23: 0 | BE23: =IF('Last Race Results'!$B$5=0,0,IF(ISNA(VLOOKUP($A23,'Last Race Results'!$A$5:$J$44,2,FALSE)),"DNS",VLOOKUP($A23,'Last Race Results'!$A$5:$J$44,2,FALSE))) -> 35 | BF23: =IF('Last Race Results'!$B$5=0,0,IF(ISNA(VLOOKUP($A23,'Last Race Results'!$A$5:$K$44,11,FALSE)),0,VLOOKUP($A23,'Last Race Results'!$A$5:$K$44,11,FALSE))) -> 2
A24: 17 | B24: =IF(ISNA(VLOOKUP($A24,'Entry List'!$A$1:$F$61,B$5,FALSE)),"",VLOOKUP($A24,'Entry List'!$A$1:$F$61,B$5,FALSE)) -> Chris Buescher | C24: =IF(ISNA(VLOOKUP($A24,'Entry List'!$A$1:$F$61,C$5,FALSE)),"",VLOOKUP($A24,'Entry List'!$A$1:$F$61,C$5,FALSE)) -> Ford | D24: =IF(ISNA(VLOOKUP($A24,'Entry List'!$A$1:$F$61,D$5,FALSE)),"",VLOOKUP($A24,'Entry List'!$A$1:$F$61,D$5,FALSE)) -> Roush Fenway Racing | E24: =IF(ISNA(VLOOKUP($A24,'Entry List'!$A$1:$F$61,E$5,FALSE)),"",VLOOKUP($A24,'Entry List'!$A$1:$F$61,E$5,FALSE)) -> Roush Fenway Racing | G24: 31 | H24: 6 | I24: 11 | J24: 26 | K24: 19 | L24: 33 | M24: 14 | N24: 23 | O24: 18 | P24: 19 | Q24: 7 | R24: 35 | S24: 14 | T24: 24 | U24: 13 | V24: 24 | W24: 25 | X24: 12 | Y24: 21 | Z24: 25 | AA24: 8 | AB24: 29 | AC24: 9 | AD24: 29 | AE24: 17 | AF24: 22 | AG24: 13 | AH24: 29 | AI24: 8 | AJ24: 32 | AK24: 16 | AL24: 21 | AM24: 36 | AN24: 1 | AO24: 20 | AP24: 17 | AQ24: 19 | AR24: 18 | AS24: 18 | AT24: 19 | AU24: 16 | AV24: 21 | AW24: 29 | AX24: 8 | AY24: 17 | AZ24: 20 | BA24: 12 | BB24: 25 | BC24: 15 | BD24: 22 | BE24: =IF('Last Race Results'!$B$5=0,0,IF(ISNA(VLOOKUP($A24,'Last Race Results'!$A$5:$J$44,2,FALSE)),"DNS",VLOOKUP($A24,'Last Race Results'!$A$5:$J$44,2,FALSE))) -> 0 | BF24: =IF('Last Race Results'!$B$5=0,0,IF(ISNA(VLOOKUP($A24,'Last Race Results'!$A$5:$K$44,11,FALSE)),0,VLOOKUP($A24,'Last Race Results'!$A$5:$K$44,11,FALSE))) -> 1
A25: 18 | B25: =IF(ISNA(VLOOKUP($A25,'Entry List'!$A$1:$F$61,B$5,FALSE)),"",VLOOKUP($A25,'Entry List'!$A$1:$F$61,B$5,FALSE)) -> Kyle Busch | C25: =IF(ISNA(VLOOKUP($A25,'Entry List'!$A$1:$F$61,C$5,FALSE)),"",VLOOKUP($A25,'Entry List'!$A$1:$F$61,C$5,FALSE)) -> Toyota | D25: =IF(ISNA(VLOOKUP($A25,'Entry List'!$A$1:$F$61,D$5,FALSE)),"",VLOOKUP($A25,'Entry List'!$A$1:$F$61,D$5,FALSE)) -> Joe Gibbs Racing | E25: =IF(ISNA(VLOOKUP($A25,'Entry List'!$A$1:$F$61,E$5,FALSE)),"",VLOOKUP($A25,'Entry List'!$A$1:$F$61,E$5,FALSE)) -> Joe Gibbs Racing | G25: 14 | H25: 25 | I25: 35 | J25: 3 | K25: 10 | L25: 27 | M25: 3 | N25: 36 | O25: 25 | P25: 17 | Q25: 5 | R25: 48 | S25: 17 | T25: 20 | U25: 10 | V25: 29 | W25: 8 | X25: 33 | Y25: 18 | Z25: 26 | AA25: 1 | AB25: 59 | AC25: 3 | AD25: 43 | AE25: 27 | AF25: 10 | AG25: 10 | AH25: 39 | AI25: 3 | AJ25: 54 | AK25: 5 | AL25: 44 | AM25: 11 | AN25: 39 | AO25: 2 | AP25: 47 | AQ25: 1 | AR25: 44 | AS25: 3 | AT25: 35 | AU25: 2 | AV25: 54 | AW25: 37 | AX25: 1 | AY25: 4 | AZ25: 39 | BA25: 20 | BB25: 17 | BC25: 7 | BD25: 42 | BE25: =IF('Last Race Results'!$B$5=0,0,IF(ISNA(VLOOKUP($A25,'Last Race Results'!$A$5:$J$44,2,FALSE)),"DNS",VLOOKUP($A25,'Last Race Results'!$A$5:$J$44,2,FALSE))) -> 34 | BF25: =IF('Last Race Results'!$B$5=0,0,IF(ISNA(VLOOKUP($A25,'Last Race Results'!$A$5:$K$44,11,FALSE)),0,VLOOKUP($A25,'Last Race Results'!$A$5:$K$44,11,FALSE))) -> 14
A26: 19 | B26: =IF(ISNA(VLOOKUP($A26,'Entry List'!$A$1:$F$61,B$5,FALSE)),"",VLOOKUP($A26,'Entry List'!$A$1:$F$61,B$5,FALSE)) -> Martin Truex Jr. | C26: =IF(ISNA(VLOOKUP($A26,'Entry List'!$A$1:$F$61,C$5,FALSE)),"",VLOOKUP($A26,'Entry List'!$A$1:$F$61,C$5,FALSE)) -> Toyota | D26: =IF(ISNA(VLOOKUP($A26,'Entry List'!$A$1:$F$61,D$5,FALSE)),"",VLOOKUP($A26,'Entry List'!$A$1:$F$61,D$5,FALSE)) -> Joe Gibbs Racing | E26: =IF(ISNA(VLOOKUP($A26,'Entry List'!$A$1:$F$61,E$5,FALSE)),"",VLOOKUP($A26,'Entry List'!$A$1:$F$61,E$5,FALSE)) -> Joe Gibbs Racing | G26: 25 | H26: 12 | I26: 12 | J26: 35 | K26: 3 | L26: 49 | M26: 6 | N26: 35 | O26: 1 | P26: 49 | Q26: 9 | R26: 32 | S26: 19 | T26: 35 | U26: 1 | V26: 56 | W26: 5 | X26: 50 | Y26: 31 | Z26: 6 | AA26: 6 | AB26: 35 | AC26: 1 | AD26: 60 | AE26: 19 | AF26: 18 | AG26: 35 | AH26: 2 | AI26: 29 | AJ26: 12 | AK26: 3 | AL26: 41 | AM26: 22 | AN26: 15 | AO26: 18 | AP26: 23 | AQ26: 11 | AR26: 41 | AS26: 9 | AT26: 28 | AU26: 3 | AV26: 37 | AW26: 12 | AX26: 25 | AY26: 3 | AZ26: 44 | BA26: 15 | BB26: 22 | BC26: 10 | BD26: 27 | BE26: =IF('Last Race Results'!$B$5=0,0,IF(ISNA(VLOOKUP($A26,'Last Race Results'!$A$5:$J$44,2,FALSE)),"DNS",VLOOKUP($A26,'Last Race Results'!$A$5:$J$44,2,FALSE))) -> 29 | BF26: =IF('Last Race Results'!$B$5=0,0,IF(ISNA(VLOOKUP($A26,'Last Race Results'!$A$5:$K$44,11,FALSE)),0,VLOOKUP($A26,'Last Race Results'!$A$5:$K$44,11,FALSE))) -> 14
A27: 20 | B27: =IF(ISNA(VLOOKUP($A27,'Entry List'!$A$1:$F$61,B$5,FALSE)),"",VLOOKUP($A27,'Entry List'!$A$1:$F$61,B$5,FALSE)) -> Christopher Bell | C27: =IF(ISNA(VLOOKUP($A27,'Entry List'!$A$1:$F$61,C$5,FALSE)),"",VLOOKUP($A27,'Entry List'!$A$1:$F$61,C$5,FALSE)) -> Toyota | D27: =IF(ISNA(VLOOKUP($A27,'Entry List'!$A$1:$F$61,D$5,FALSE)),"",VLOOKUP($A27,'Entry List'!$A$1:$F$61,D$5,FALSE)) -> Joe Gibbs Racing | E27: =IF(ISNA(VLOOKUP($A27,'Entry List'!$A$1:$F$61,E$5,FALSE)),"",VLOOKUP($A27,'Entry List'!$A$1:$F$61,E$5,FALSE)) -> Joe Gibbs Racing | G27: 16 | H27: 26 | I27: 1 | J27: 49 | K27: 20 | L27: 17 | M27: 7 | N27: 39 | O27: 9 | P27: 29 | Q27: 21 | R27: 16 | S27: 34 | T27: 3 | U27: 7 | V27: 31 | W27: 4 | X27: 40 | Y27: 17 | Z27: 23 | AA27: 28 | AB27: 12 | AC27: 14 | AD27: 28 | AE27: 21 | AF27: 16 | AG27: 38 | AH27: 1 | AI27: 24 | AJ27: 13 | AK27: 24 | AL27: 14 | AM27: 9 | AN27: 28 | AO27: 17 | AP27: 20 | AQ27: 32 | AR27: 12 | AS27: 2 | AT27: 39 | AU27: 8 | AV27: 29 | AW27: 2 | AX27: 40 | AY27: 7 | AZ27: 39 | BA27: 36 | BB27: 1 | BC27: 13 | BD27: 33 | BE27: =IF('Last Race Results'!$B$5=0,0,IF(ISNA(VLOOKUP($A27,'Last Race Results'!$A$5:$J$44,2,FALSE)),"DNS",VLOOKUP($A27,'Last Race Results'!$A$5:$J$44,2,FALSE))) -> 32 | BF27: =IF('Last Race Results'!$B$5=0,0,IF(ISNA(VLOOKUP($A27,'Last Race Results'!$A$5:$K$44,11,FALSE)),0,VLOOKUP($A27,'Last Race Results'!$A$5:$K$44,11,FALSE))) -> 7
A28: 21 | B28: =IF(ISNA(VLOOKUP($A28,'Entry List'!$A$1:$F$61,B$5,FALSE)),"",VLOOKUP($A28,'Entry List'!$A$1:$F$61,B$5,FALSE)) -> Matt DiBenedetto | C28: =IF(ISNA(VLOOKUP($A28,'Entry List'!$A$1:$F$61,C$5,FALSE)),"",VLOOKUP($A28,'Entry List'!$A$1:$F$61,C$5,FALSE)) -> Ford | D28: =IF(ISNA(VLOOKUP($A28,'Entry List'!$A$1:$F$61,D$5,FALSE)),"",VLOOKUP($A28,'Entry List'!$A$1:$F$61,D$5,FALSE)) -> Wood Brothers Racing | E28: =IF(ISNA(VLOOKUP($A28,'Entry List'!$A$1:$F$61,E$5,FALSE)),"",VLOOKUP($A28,'Entry List'!$A$1:$F$61,E$5,FALSE)) -> Wood Brothers Racing | G28: 33 | H28: 4 | I28: 37 | J28: 1 | K28: 28 | L28: 9 | M28: 16 | N28: 24 | O28: 14 | P28: 24 | Q28: 11 | R28: 31 | S28: 13 | T28: 24 | U28: 12 | V28: 25 | W28: 9 | X28: 33 | Y28: 5 | Z28: 42 | AA28: 4 | AB28: 33 | AC28: 19 | AD28: 18 | AE28: 24 | AF28: 13 | AG28: 23 | AH28: 15 | AI28: 18 | AJ28: 19 | AK28: 23 | AL28: 16 | AM28: 24 | AN28: 15 | AO28: 32 | AP28: 5 | AQ28: 18 | AR28: 19 | AS28: 10 | AT28: 27 | AU28: 9 | AV28: 28 | AW28: 11 | AX28: 28 | AY28: 11 | AZ28: 30 | BA28: 5 | BB28: 38 | BC28: 6 | BD28: 36 | BE28: =IF('Last Race Results'!$B$5=0,0,IF(ISNA(VLOOKUP($A28,'Last Race Results'!$A$5:$J$44,2,FALSE)),"DNS",VLOOKUP($A28,'Last Race Results'!$A$5:$J$44,2,FALSE))) -> 25 | BF28: =IF('Last Race Results'!$B$5=0,0,IF(ISNA(VLOOKUP($A28,'Last Race Results'!$A$5:$K$44,11,FALSE)),0,VLOOKUP($A28,'Last Race Results'!$A$5:$K$44,11,FALSE))) -> 12
A29: 22 | B29: =IF(ISNA(VLOOKUP($A29,'Entry List'!$A$1:$F$61,B$5,FALSE)),"",VLOOKUP($A29,'Entry List'!$A$1:$F$61,B$5,FALSE)) -> Joey Logano | C29: =IF(ISNA(VLOOKUP($A29,'Entry List'!$A$1:$F$61,C$5,FALSE)),"",VLOOKUP($A29,'Entry List'!$A$1:$F$61,C$5,FALSE)) -> Ford | D29: =IF(ISNA(VLOOKUP($A29,'Entry List'!$A$1:$F$61,D$5,FALSE)),"",VLOOKUP($A29,'Entry List'!$A$1:$F$61,D$5,FALSE)) -> Team Penske | E29: =IF(ISNA(VLOOKUP($A29,'Entry List'!$A$1:$F$61,E$5,FALSE)),"",VLOOKUP($A29,'Entry List'!$A$1:$F$61,E$5,FALSE)) -> Team Penske | G29: 12 | H29: 33 | I29: 2 | J29: 52 | K29: 25 | L29: 16 | M29: 9 | N29: 30 | O29: 2 | P29: 54 | Q29: 15 | R29: 22 | S29: 1 | T29: 55 | U29: 6 | V29: 33 | W29: 3 | X29: 50 | Y29: 39 | Z29: 1 | AA29: 17 | AB29: 20 | AC29: 13 | AD29: 33 | AE29: 5 | AF29: 36 | AG29: 3 | AH29: 44 | AI29: 17 | AJ29: 20 | AK29: 4 | AL29: 42 | AM29: 10 | AN29: 30 | AO29: 7 | AP29: 45 | AQ29: 10 | AR29: 28 | AS29: 15 | AT29: 27 | AU29: 19 | AV29: 22 | AW29: 4 | AX29: 33 | AY29: 22 | AZ29: 27 | BA29: 34 | BB29: 3 | BC29: 33 | BD29: 9 | BE29: =IF('Last Race Results'!$B$5=0,0,IF(ISNA(VLOOKUP($A29,'Last Race Results'!$A$5:$J$44,2,FALSE)),"DNS",VLOOKUP($A29,'Last Race Results'!$A$5:$J$44,2,FALSE))) -> 23 | BF29: =IF('Last Race Results'!$B$5=0,0,IF(ISNA(VLOOKUP($A29,'Last Race Results'!$A$5:$K$44,11,FALSE)),0,VLOOKUP($A29,'Last Race Results'!$A$5:$K$44,11,FALSE))) -> 27
A30: 23 | B30: =IF(ISNA(VLOOKUP($A30,'Entry List'!$A$1:$F$61,B$5,FALSE)),"",VLOOKUP($A30,'Entry List'!$A$1:$F$61,B$5,FALSE)) -> Bubba Wallace | C30: =IF(ISNA(VLOOKUP($A30,'Entry List'!$A$1:$F$61,C$5,FALSE)),"",VLOOKUP($A30,'Entry List'!$A$1:$F$61,C$5,FALSE)) -> Toyota | D30: =IF(ISNA(VLOOKUP($A30,'Entry List'!$A$1:$F$61,D$5,FALSE)),"",VLOOKUP($A30,'Entry List'!$A$1:$F$61,D$5,FALSE)) -> 23XI Racing | E30: =IF(ISNA(VLOOKUP($A30,'Entry List'!$A$1:$F$61,E$5,FALSE)),"",VLOOKUP($A30,'Entry List'!$A$1:$F$61,E$5,FALSE)) -> 23XI Racing | G30: 17 | H30: 32 | I30: 26 | J30: 11 | K30: 22 | L30: 15 | M30: 28 | N30: 9 | O30: 16 | P30: 21 | Q30: 16 | R30: 21 | S30: 27 | T30: 18 | U30: 16 | V30: 21 | W30: 26 | X30: 11 | Y30: 19 | Z30: 28 | AA30: 26 | AB30: 11 | AC30: 21 | AD30: 16 | AE30: 11 | AF30: 26 | AG30: 39 | AH30: 1 | AI30: 14 | AJ30: 25 | AK30: 14 | AL30: 23 | AM30: 20 | AN30: 17 | AO30: 14 | AP30: 23 | AQ30: 5 | AR30: 38 | AS30: 24 | AT30: 16 | AU30: 14 | AV30: 23 | AW30: 26 | AX30: 11 | AY30: 23 | AZ30: 14 | BA30: 13 | BB30: 24 | BC30: 19 | BD30: 18 | BE30: =IF('Last Race Results'!$B$5=0,0,IF(ISNA(VLOOKUP($A30,'Last Race Results'!$A$5:$J$44,2,FALSE)),"DNS",VLOOKUP($A30,'Last Race Results'!$A$5:$J$44,2,FALSE))) -> 2 | BF30: =IF('Last Race Results'!$B$5=0,0,IF(ISNA(VLOOKUP($A30,'Last Race Results'!$A$5:$K$44,11,FALSE)),0,VLOOKUP($A30,'Last Race Results'!$A$5:$K$44,11,FALSE))) -> 37
A31: 24 | B31: =IF(ISNA(VLOOKUP($A31,'Entry List'!$A$1:$F$61,B$5,FALSE)),"",VLOOKUP($A31,'Entry List'!$A$1:$F$61,B$5,FALSE)) -> William Byron | C31: =IF(ISNA(VLOOKUP($A31,'Entry List'!$A$1:$F$61,C$5,FALSE)),"",VLOOKUP($A31,'Entry List'!$A$1:$F$61,C$5,FALSE)) -> Chevrolet | D31: =IF(ISNA(VLOOKUP($A31,'Entry List'!$A$1:$F$61,D$5,FALSE)),"",VLOOKUP($A31,'Entry List'!$A$1:$F$61,D$5,FALSE)) -> Hendrick Motorsports | E31: =IF(ISNA(VLOOKUP($A31,'Entry List'!$A$1:$F$61,E$5,FALSE)),"",VLOOKUP($A31,'Entry List'!$A$1:$F$61,E$5,FALSE)) -> Hendrick Motorsports | G31: 26 | H31: 11 | I31: 33 | J31: 8 | K31: 1 | L31: 57 | M31: 8 | N31: 40 | O31: 8 | P31: 36 | Q31: 8 | R31: 36 | S31: 6 | T31: 40 | U31: 4 | V31: 42 | W31: 7 | X31: 40 | Y31: 2 | Z31: 41 | AA31: 9 | AB31: 34 | AC31: 4 | AD31: 43 | AE31: 4 | AF31: 45 | AG31: 11 | AH31: 26 | AI31: 4 | AJ31: 58 | AK31: 35 | AL31: 7 | AM31: 3 | AN31: 41 | AO31: 3 | AP31: 50 | AQ31: 12 | AR31: 35 | AS31: 33 | AT31: 23 | AU31: 20 | AV31: 20 | AW31: 21 | AX31: 16 | AY31: 6 | AZ31: 37 | BA31: 33 | BB31: 4 | BC31: 2 | BD31: 43 | BE31: =IF('Last Race Results'!$B$5=0,0,IF(ISNA(VLOOKUP($A31,'Last Race Results'!$A$5:$J$44,2,FALSE)),"DNS",VLOOKUP($A31,'Last Race Results'!$A$5:$J$44,2,FALSE))) -> 37 | BF31: =IF('Last Race Results'!$B$5=0,0,IF(ISNA(VLOOKUP($A31,'Last Race Results'!$A$5:$K$44,11,FALSE)),0,VLOOKUP($A31,'Last Race Results'!$A$5:$K$44,11,FALSE))) -> 9
A32: 25 | B32: =IF(ISNA(VLOOKUP($A32,'Entry List'!$A$1:$F$61,B$5,FALSE)),"",VLOOKUP($A32,'Entry List'!$A$1:$F$61,B$5,FALSE)) ->  | C32: =IF(ISNA(VLOOKUP($A32,'Entry List'!$A$1:$F$61,C$5,FALSE)),"",VLOOKUP($A32,'Entry List'!$A$1:$F$61,C$5,FALSE)) ->  | D32: =IF(ISNA(VLOOKUP($A32,'Entry List'!$A$1:$F$61,D$5,FALSE)),"",VLOOKUP($A32,'Entry List'!$A$1:$F$61,D$5,FALSE)) ->  | E32: =IF(ISNA(VLOOKUP($A32,'Entry List'!$A$1:$F$61,E$5,FALSE)),"",VLOOKUP($A32,'Entry List'!$A$1:$F$61,E$5,FALSE)) ->  | G32: DNS | H32: 0 | I32: DNS | J32: 0 | K32: DNS | L32: 0 | M32: DNS | N32: 0 | O32: DNS | P32: 0 | Q32: DNS | R32: 0 | S32: DNS | T32: 0 | U32: DNS | V32: 0 | W32: DNS | X32: 0 | Y32: DNS | Z32: 0 | AA32: DNS | AB32: 0 | AC32: DNS | AD32: 0 | AE32: DNS | AF32: 0 | AG32: DNS | AH32: 0 | AI32: DNS | AJ32: 0 | AK32: DNS | AL32: 0 | AM32: DNS | AN32: 0 | AO32: DNS | AP32: 0 | AQ32: DNS | AR32: 0 | AS32: DNS | AT32: 0 | AU32: DNS | AV32: 0 | AW32: DNS | AX32: 0 | AY32: DNS | AZ32: 0 | BA32: DNS | BB32: 0 | BC32: DNS | BD32: 0 | BE32: =IF('Last Race Results'!$B$5=0,0,IF(ISNA(VLOOKUP($A32,'Last Race Results'!$A$5:$J$44,2,FALSE)),"DNS",VLOOKUP($A32,'Last Race Results'!$A$5:$J$44,2,FALSE))) -> DNS | BF32: =IF('Last Race Results'!$B$5=0,0,IF(ISNA(VLOOKUP($A32,'Last Race Results'!$A$5:$K$44,11,FALSE)),0,VLOOKUP($A32,'Last Race Results'!$A$5:$K$44,11,FALSE))) -> 0
A33: 26 | B33: =IF(ISNA(VLOOKUP($A33,'Entry List'!$A$1:$F$61,B$5,FALSE)),"",VLOOKUP($A33,'Entry List'!$A$1:$F$61,B$5,FALSE)) ->  | C33: =IF(ISNA(VLOOKUP($A33,'Entry List'!$A$1:$F$61,C$5,FALSE)),"",VLOOKUP($A33,'Entry List'!$A$1:$F$61,C$5,FALSE)) ->  | D33: =IF(ISNA(VLOOKUP($A33,'Entry List'!$A$1:$F$61,D$5,FALSE)),"",VLOOKUP($A33,'Entry List'!$A$1:$F$61,D$5,FALSE)) ->  | E33: =IF(ISNA(VLOOKUP($A33,'Entry List'!$A$1:$F$61,E$5,FALSE)),"",VLOOKUP($A33,'Entry List'!$A$1:$F$61,E$5,FALSE)) ->  | G33: DNS | H33: 0 | I33: DNS | J33: 0 | K33: DNS | L33: 0 | M33: DNS | N33: 0 | O33: DNS | P33: 0 | Q33: DNS | R33: 0 | S33: DNS | T33: 0 | U33: DNS | V33: 0 | W33: DNS | X33: 0 | Y33: DNS | Z33: 0 | AA33: DNS | AB33: 0 | AC33: DNS | AD33: 0 | AE33: DNS | AF33: 0 | AG33: DNS | AH33: 0 | AI33: DNS | AJ33: 0 | AK33: DNS | AL33: 0 | AM33: DNS | AN33: 0 | AO33: DNS | AP33: 0 | AQ33: DNS | AR33: 0 | AS33: DNS | AT33: 0 | AU33: DNS | AV33: 0 | AW33: DNS | AX33: 0 | AY33: DNS | AZ33: 0 | BA33: DNS | BB33: 0 | BC33: DNS | BD33: 0 | BE33: =IF('Last Race Results'!$B$5=0,0,IF(ISNA(VLOOKUP($A33,'Last Race Results'!$A$5:$J$44,2,FALSE)),"DNS",VLOOKUP($A33,'Last Race Results'!$A$5:$J$44,2,FALSE))) -> DNS | BF33: =IF('Last Race Results'!$B$5=0,0,IF(ISNA(VLOOKUP($A33,'Last Race Results'!$A$5:$K$44,11,FALSE)),0,VLOOKUP($A33,'Last Race Results'!$A$5:$K$44,11,FALSE))) -> 0
A34: 27 | B34: =IF(ISNA(VLOOKUP($A34,'Entry List'!$A$1:$F$61,B$5,FALSE)),"",VLOOKUP($A34,'Entry List'!$A$1:$F$61,B$5,FALSE)) ->  | C34: =IF(ISNA(VLOOKUP($A34,'Entry List'!$A$1:$F$61,C$5,FALSE)),"",VLOOKUP($A34,'Entry List'!$A$1:$F$61,C$5,FALSE)) ->  | D34: =IF(ISNA(VLOOKUP($A34,'Entry List'!$A$1:$F$61,D$5,FALSE)),"",VLOOKUP($A34,'Entry List'!$A$1:$F$61,D$5,FALSE)) ->  | E34: =IF(ISNA(VLOOKUP($A34,'Entry List'!$A$1:$F$61,E$5,FALSE)),"",VLOOKUP($A34,'Entry List'!$A$1:$F$61,E$5,FALSE)) ->  | G34: DNS | H34: 0 | I34: DNS | J34: 0 | K34: DNS | L34: 0 | M34: DNS | N34: 0 | O34: DNS | P34: 0 | Q34: DNS | R34: 0 | S34: DNS | T34: 0 | U34: DNS | V34: 0 | W34: DNS | X34: 0 | Y34: DNS | Z34: 0 | AA34: DNS | AB34: 0 | AC34: DNS | AD34: 0 | AE34: DNS | AF34: 0 | AG34: DNS | AH34: 0 | AI34: DNS | AJ34: 0 | AK34: DNS | AL34: 0 | AM34: DNS | AN34: 0 | AO34: DNS | AP34: 0 | AQ34: DNS | AR34: 0 | AS34: DNS | AT34: 0 | AU34: DNS | AV34: 0 | AW34: DNS | AX34: 0 | AY34: DNS | AZ34: 0 | BA34: DNS | BB34: 0 | BC34: DNS | BD34: 0 | BE34: =IF('Last Race Results'!$B$5=0,0,IF(ISNA(VLOOKUP($A34,'Last Race Results'!$A$5:$J$44,2,FALSE)),"DNS",VLOOKUP($A34,'Last Race Results'!$A$5:$J$44,2,FALSE))) -> DNS | BF34: =IF('Last Race Results'!$B$5=0,0,IF(ISNA(VLOOKUP($A34,'Last Race Results'!$A$5:$K$44,11,FALSE)),0,VLOOKUP($A34,'Last Race Results'!$A$5:$K$44,11,FALSE))) -> 0
A35: 28 | B35: =IF(ISNA(VLOOKUP($A35,'Entry List'!$A$1:$F$61,B$5,FALSE)),"",VLOOKUP($A35,'Entry List'!$A$1:$F$61,B$5,FALSE)) ->  | C35: =IF(ISNA(VLOOKUP($A35,'Entry List'!$A$1:$F$61,C$5,FALSE)),"",VLOOKUP($A35,'Entry List'!$A$1:$F$61,C$5,FALSE)) ->  | D35: =IF(ISNA(VLOOKUP($A35,'Entry List'!$A$1:$F$61,D$5,FALSE)),"",VLOOKUP($A35,'Entry List'!$A$1:$F$61,D$5,FALSE)) ->  | E35: =IF(ISNA(VLOOKUP($A35,'Entry List'!$A$1:$F$61,E$5,FALSE)),"",VLOOKUP($A35,'Entry List'!$A$1:$F$61,E$5,FALSE)) ->  | G35: DNS | H35: 0 | I35: DNS | J35: 0 | K35: DNS | L35: 0 | M35: DNS | N35: 0 | O35: DNS | P35: 0 | Q35: DNS | R35: 0 | S35: DNS | T35: 0 | U35: DNS | V35: 0 | W35: DNS | X35: 0 | Y35: 34 | Z35: 3 | AA35: DNS | AB35: 0 | AC35: DNS | AD35: 0 | AE35: DNS | AF35: 0 | AG35: DNS | AH35: 0 | AI35: DNS | AJ35: 0 | AK35: DNS | AL35: 0 | AM35: DNS | AN35: 0 | AO35: DNS | AP35: 0 | AQ35: DNS | AR35: 0 | AS35: DNS | AT35: 0 | AU35: DNS | AV35: 0 | AW35: DNS | AX35: 0 | AY35: DNS | AZ35: 0 | BA35: DNS | BB35: 0 | BC35: DNS | BD35: 0 | BE35: =IF('Last Race Results'!$B$5=0,0,IF(ISNA(VLOOKUP($A35,'Last Race Results'!$A$5:$J$44,2,FALSE)),"DNS",VLOOKUP($A35,'Last Race Results'!$A$5:$J$44,2,FALSE))) -> DNS | BF35: =IF('Last Race Results'!$B$5=0,0,IF(ISNA(VLOOKUP($A35,'Last Race Results'!$A$5:$K$44,11,FALSE)),0,VLOOKUP($A35,'Last Race Results'!$A$5:$K$44,11,FALSE))) -> 0
A36: 29 | B36: =IF(ISNA(VLOOKUP($A36,'Entry List'!$A$1:$F$61,B$5,FALSE)),"",VLOOKUP($A36,'Entry List'!$A$1:$F$61,B$5,FALSE)) ->  | C36: =IF(ISNA(VLOOKUP($A36,'Entry List'!$A$1:$F$61,C$5,FALSE)),"",VLOOKUP($A36,'Entry List'!$A$1:$F$61,C$5,FALSE)) ->  | D36: =IF(ISNA(VLOOKUP($A36,'Entry List'!$A$1:$F$61,D$5,FALSE)),"",VLOOKUP($A36,'Entry List'!$A$1:$F$61,D$5,FALSE)) ->  | E36: =IF(ISNA(VLOOKUP($A36,'Entry List'!$A$1:$F$61,E$5,FALSE)),"",VLOOKUP($A36,'Entry List'!$A$1:$F$61,E$5,FALSE)) ->  | G36: DNS | H36: 0 | I36: DNS | J36: 0 | K36: DNS | L36: 0 | M36: DNS | N36: 0 | O36: DNS | P36: 0 | Q36: DNS | R36: 0 | S36: DNS | T36: 0 | U36: DNS | V36: 0 | W36: DNS | X36: 0 | Y36: DNS | Z36: 0 | AA36: DNS | AB36: 0 | AC36: DNS | AD36: 0 | AE36: DNS | AF36: 0 | AG36: DNS | AH36: 0 | AI36: DNS | AJ36: 0 | AK36: DNS | AL36: 0 | AM36: DNS | AN36: 0 | AO36: DNS | AP36: 0 | AQ36: DNS | AR36: 0 | AS36: DNS | AT36: 0 | AU36: DNS | AV36: 0 | AW36: DNS | AX36: 0 | AY36: DNS | AZ36: 0 | BA36: DNS | BB36: 0 | BC36: DNS | BD36: 0 | BE36: =IF('Last Race Results'!$B$5=0,0,IF(ISNA(VLOOKUP($A36,'Last Race Results'!$A$5:$J$44,2,FALSE)),"DNS",VLOOKUP($A36,'Last Race Results'!$A$5:$J$44,2,FALSE))) -> DNS | BF36: =IF('Last Race Results'!$B$5=0,0,IF(ISNA(VLOOKUP($A36,'Last Race Results'!$A$5:$K$44,11,FALSE)),0,VLOOKUP($A36,'Last Race Results'!$A$5:$K$44,11,FALSE))) -> 0
A37: 30 | B37: =IF(ISNA(VLOOKUP($A37,'Entry List'!$A$1:$F$61,B$5,FALSE)),"",VLOOKUP($A37,'Entry List'!$A$1:$F$61,B$5,FALSE)) ->  | C37: =IF(ISNA(VLOOKUP($A37,'Entry List'!$A$1:$F$61,C$5,FALSE)),"",VLOOKUP($A37,'Entry List'!$A$1:$F$61,C$5,FALSE)) ->  | D37: =IF(ISNA(VLOOKUP($A37,'Entry List'!$A$1:$F$61,D$5,FALSE)),"",VLOOKUP($A37,'Entry List'!$A$1:$F$61,D$5,FALSE)) ->  | E37: =IF(ISNA(VLOOKUP($A37,'Entry List'!$A$1:$F$61,E$5,FALSE)),"",VLOOKUP($A37,'Entry List'!$A$1:$F$61,E$5,FALSE)) ->  | G37: DNS | H37: 0 | I37: DNS | J37: 0 | K37: DNS | L37: 0 | M37: DNS | N37: 0 | O37: DNS | P37: 0 | Q37: DNS | R37: 0 | S37: DNS | T37: 0 | U37: DNS | V37: 0 | W37: DNS | X37: 0 | Y37: DNS | Z37: 0 | AA37: DNS | AB37: 0 | AC37: DNS | AD37: 0 | AE37: DNS | AF37: 0 | AG37: DNS | AH37: 0 | AI37: DNS | AJ37: 0 | AK37: DNS | AL37: 0 | AM37: DNS | AN37: 0 | AO37: DNS | AP37: 0 | AQ37: DNS | AR37: 0 | AS37: DNS | AT37: 0 | AU37: DNS | AV37: 0 | AW37: DNS | AX37: 0 | AY37: DNS | AZ37: 0 | BA37: DNS | BB37: 0 | BC37: DNS | BD37: 0 | BE37: =IF('Last Race Results'!$B$5=0,0,IF(ISNA(VLOOKUP($A37,'Last Race Results'!$A$5:$J$44,2,FALSE)),"DNS",VLOOKUP($A37,'Last Race Results'!$A$5:$J$44,2,FALSE))) -> DNS | BF37: =IF('Last Race Results'!$B$5=0,0,IF(ISNA(VLOOKUP($A37,'Last Race Results'!$A$5:$K$44,11,FALSE)),0,VLOOKUP($A37,'Last Race Results'!$A$5:$K$44,11,FALSE))) -> 0
A38: 31 | B38: =IF(ISNA(VLOOKUP($A38,'Entry List'!$A$1:$F$61,B$5,FALSE)),"",VLOOKUP($A38,'Entry List'!$A$1:$F$61,B$5,FALSE)) ->  | C38: =IF(ISNA(VLOOKUP($A38,'Entry List'!$A$1:$F$61,C$5,FALSE)),"",VLOOKUP($A38,'Entry List'!$A$1:$F$61,C$5,FALSE)) ->  | D38: =IF(ISNA(VLOOKUP($A38,'Entry List'!$A$1:$F$61,D$5,FALSE)),"",VLOOKUP($A38,'Entry List'!$A$1:$F$61,D$5,FALSE)) ->  | E38: =IF(ISNA(VLOOKUP($A38,'Entry List'!$A$1:$F$61,E$5,FALSE)),"",VLOOKUP($A38,'Entry List'!$A$1:$F$61,E$5,FALSE)) ->  | G38: DNS | H38: 0 | I38: DNS | J38: 0 | K38: DNS | L38: 0 | M38: DNS | N38: 0 | O38: DNS | P38: 0 | Q38: DNS | R38: 0 | S38: DNS | T38: 0 | U38: DNS | V38: 0 | W38: DNS | X38: 0 | Y38: DNS | Z38: 0 | AA38: DNS | AB38: 0 | AC38: DNS | AD38: 0 | AE38: DNS | AF38: 0 | AG38: DNS | AH38: 0 | AI38: DNS | AJ38: 0 | AK38: DNS | AL38: 0 | AM38: DNS | AN38: 0 | AO38: DNS | AP38: 0 | AQ38: DNS | AR38: 0 | AS38: DNS | AT38: 0 | AU38: DNS | AV38: 0 | AW38: DNS | AX38: 0 | AY38: DNS | AZ38: 0 | BA38: DNS | BB38: 0 | BC38: DNS | BD38: 0 | BE38: =IF('Last Race Results'!$B$5=0,0,IF(ISNA(VLOOKUP($A38,'Last Race Results'!$A$5:$J$44,2,FALSE)),"DNS",VLOOKUP($A38,'Last Race Results'!$A$5:$J$44,2,FALSE))) -> DNS | BF38: =IF('Last Race Results'!$B$5=0,0,IF(ISNA(VLOOKUP($A38,'Last Race Results'!$A$5:$K$44,11,FALSE)),0,VLOOKUP($A38,'Last Race Results'!$A$5:$K$44,11,FALSE))) -> 0
A39: 32 | B39: =IF(ISNA(VLOOKUP($A39,'Entry List'!$A$1:$F$61,B$5,FALSE)),"",VLOOKUP($A39,'Entry List'!$A$1:$F$61,B$5,FALSE)) ->  | C39: =IF(ISNA(VLOOKUP($A39,'Entry List'!$A$1:$F$61,C$5,FALSE)),"",VLOOKUP($A39,'Entry List'!$A$1:$F$61,C$5,FALSE)) ->  | D39: =IF(ISNA(VLOOKUP($A39,'Entry List'!$A$1:$F$61,D$5,FALSE)),"",VLOOKUP($A39,'Entry List'!$A$1:$F$61,D$5,FALSE)) ->  | E39: =IF(ISNA(VLOOKUP($A39,'Entry List'!$A$1:$F$61,E$5,FALSE)),"",VLOOKUP($A39,'Entry List'!$A$1:$F$61,E$5,FALSE)) ->  | G39: DNS | H39: 0 | I39: DNS | J39: 0 | K39: DNS | L39: 0 | M39: DNS | N39: 0 | O39: DNS | P39: 0 | Q39: DNS | R39: 0 | S39: DNS | T39: 0 | U39: DNS | V39: 0 | W39: DNS | X39: 0 | Y39: DNS | Z39: 0 | AA39: DNS | AB39: 0 | AC39: DNS | AD39: 0 | AE39: DNS | AF39: 0 | AG39: DNS | AH39: 0 | AI39: DNS | AJ39: 0 | AK39: DNS | AL39: 0 | AM39: DNS | AN39: 0 | AO39: DNS | AP39: 0 | AQ39: DNS | AR39: 0 | AS39: DNS | AT39: 0 | AU39: DNS | AV39: 0 | AW39: DNS | AX39: 0 | AY39: DNS | AZ39: 0 | BA39: DNS | BB39: 0 | BC39: DNS | BD39: 0 | BE39: =IF('Last Race Results'!$B$5=0,0,IF(ISNA(VLOOKUP($A39,'Last Race Results'!$A$5:$J$44,2,FALSE)),"DNS",VLOOKUP($A39,'Last Race Results'!$A$5:$J$44,2,FALSE))) -> DNS | BF39: =IF('Last Race Results'!$B$5=0,0,IF(ISNA(VLOOKUP($A39,'Last Race Results'!$A$5:$K$44,11,FALSE)),0,VLOOKUP($A39,'Last Race Results'!$A$5:$K$44,11,FALSE))) -> 0
A40: 33 | B40: =IF(ISNA(VLOOKUP($A40,'Entry List'!$A$1:$F$61,B$5,FALSE)),"",VLOOKUP($A40,'Entry List'!$A$1:$F$61,B$5,FALSE)) ->  | C40: =IF(ISNA(VLOOKUP($A40,'Entry List'!$A$1:$F$61,C$5,FALSE)),"",VLOOKUP($A40,'Entry List'!$A$1:$F$61,C$5,FALSE)) ->  | D40: =IF(ISNA(VLOOKUP($A40,'Entry List'!$A$1:$F$61,D$5,FALSE)),"",VLOOKUP($A40,'Entry List'!$A$1:$F$61,D$5,FALSE)) ->  | E40: =IF(ISNA(VLOOKUP($A40,'Entry List'!$A$1:$F$61,E$5,FALSE)),"",VLOOKUP($A40,'Entry List'!$A$1:$F$61,E$5,FALSE)) ->  | G40: 15 | H40: 22 | I40: DNS | J40: 0 | K40: DNS | L40: 0 | M40: DNS | N40: 0 | O40: DNS | P40: 0 | Q40: 22 | R40: 15 | S40: DNS | T40: 0 | U40: DNS | V40: 0 | W40: 28 | X40: 9 | Y40: DNS | Z40: 0 | AA40: 22 | AB40: 15 | AC40: DNS | AD40: 0 | AE40: DNS | AF40: 0 | AG40: 25 | AH40: 25 | AI40: DNS | AJ40: 0 | AK40: DNS | AL40: 0 | AM40: DNS | AN40: 0 | AO40: DNS | AP40: 0 | AQ40: DNS | AR40: 0 | AS40: 38 | AT40: 1 | AU40: DNS | AV40: 0 | AW40: DNS | AX40: 0 | AY40: DNS | AZ40: 0 | BA40: 9 | BB40: 28 | BC40: DNS | BD40: 0 | BE40: =IF('Last Race Results'!$B$5=0,0,IF(ISNA(VLOOKUP($A40,'Last Race Results'!$A$5:$J$44,2,FALSE)),"DNS",VLOOKUP($A40,'Last Race Results'!$A$5:$J$44,2,FALSE))) -> DNS | BF40: =IF('Last Race Results'!$B$5=0,0,IF(ISNA(VLOOKUP($A40,'Last Race Results'!$A$5:$K$44,11,FALSE)),0,VLOOKUP($A40,'Last Race Results'!$A$5:$K$44,11,FALSE))) -> 0
A41: 34 | B41: =IF(ISNA(VLOOKUP($A41,'Entry List'!$A$1:$F$61,B$5,FALSE)),"",VLOOKUP($A41,'Entry List'!$A$1:$F$61,B$5,FALSE)) -> Michael McDowell | C41: =IF(ISNA(VLOOKUP($A41,'Entry List'!$A$1:$F$61,C$5,FALSE)),"",VLOOKUP($A41,'Entry List'!$A$1:$F$61,C$5,FALSE)) -> Ford | D41: =IF(ISNA(VLOOKUP($A41,'Entry List'!$A$1:$F$61,D$5,FALSE)),"",VLOOKUP($A41,'Entry List'!$A$1:$F$61,D$5,FALSE)) -> Front Row Motorsports | E41: =IF(ISNA(VLOOKUP($A41,'Entry List'!$A$1:$F$61,E$5,FALSE)),"",VLOOKUP($A41,'Entry List'!$A$1:$F$61,E$5,FALSE)) -> Front Row Motorsports | G41: 1 | H41: 44 | I41: 8 | J41: 29 | K41: 6 | L41: 31 | M41: 17 | N41: 20 | O41: 23 | P41: 14 | Q41: 19 | R41: 18 | S41: 12 | T41: 25 | U41: 31 | V41: 6 | W41: 27 | X41: 10 | Y41: 3 | Z41: 45 | AA41: 13 | AB41: 24 | AC41: 27 | AD41: 10 | AE41: 25 | AF41: 12 | AG41: 7 | AH41: 39 | AI41: 20 | AJ41: 17 | AK41: 28 | AL41: 9 | AM41: 16 | AN41: 21 | AO41: 19 | AP41: 18 | AQ41: 17 | AR41: 25 | AS41: 30 | AT41: 7 | AU41: 27 | AV41: 10 | AW41: 25 | AX41: 12 | AY41: 21 | AZ41: 16 | BA41: 30 | BB41: 16 | BC41: 20 | BD41: 17 | BE41: =IF('Last Race Results'!$B$5=0,0,IF(ISNA(VLOOKUP($A41,'Last Race Results'!$A$5:$J$44,2,FALSE)),"DNS",VLOOKUP($A41,'Last Race Results'!$A$5:$J$44,2,FALSE))) -> 39 | BF41: =IF('Last Race Results'!$B$5=0,0,IF(ISNA(VLOOKUP($A41,'Last Race Results'!$A$5:$K$44,11,FALSE)),0,VLOOKUP($A41,'Last Race Results'!$A$5:$K$44,11,FALSE))) -> 1
A42: 35 | B42: =IF(ISNA(VLOOKUP($A42,'Entry List'!$A$1:$F$61,B$5,FALSE)),"",VLOOKUP($A42,'Entry List'!$A$1:$F$61,B$5,FALSE)) ->  | C42: =IF(ISNA(VLOOKUP($A42,'Entry List'!$A$1:$F$61,C$5,FALSE)),"",VLOOKUP($A42,'Entry List'!$A$1:$F$61,C$5,FALSE)) ->  | D42: =IF(ISNA(VLOOKUP($A42,'Entry List'!$A$1:$F$61,D$5,FALSE)),"",VLOOKUP($A42,'Entry List'!$A$1:$F$61,D$5,FALSE)) ->  | E42: =IF(ISNA(VLOOKUP($A42,'Entry List'!$A$1:$F$61,E$5,FALSE)),"",VLOOKUP($A42,'Entry List'!$A$1:$F$61,E$5,FALSE)) ->  | G42: DNS | H42: 0 | I42: DNS | J42: 0 | K42: DNS | L42: 0 | M42: DNS | N42: 0 | O42: DNS | P42: 0 | Q42: DNS | R42: 0 | S42: DNS | T42: 0 | U42: DNS | V42: 0 | W42: DNS | X42: 0 | Y42: DNS | Z42: 0 | AA42: DNS | AB42: 0 | AC42: DNS | AD42: 0 | AE42: DNS | AF42: 0 | AG42: DNS | AH42: 0 | AI42: DNS | AJ42: 0 | AK42: DNS | AL42: 0 | AM42: DNS | AN42: 0 | AO42: DNS | AP42: 0 | AQ42: DNS | AR42: 0 | AS42: DNS | AT42: 0 | AU42: DNS | AV42: 0 | AW42: DNS | AX42: 0 | AY42: DNS | AZ42: 0 | BA42: DNS | BB42: 0 | BC42: DNS | BD42: 0 | BE42: =IF('Last Race Results'!$B$5=0,0,IF(ISNA(VLOOKUP($A42,'Last Race Results'!$A$5:$J$44,2,FALSE)),"DNS",VLOOKUP($A42,'Last Race Results'!$A$5:$J$44,2,FALSE))) -> DNS | BF42: =IF('Last Race Results'!$B$5=0,0,IF(ISNA(VLOOKUP($A42,'Last Race Results'!$A$5:$K$44,11,FALSE)),0,VLOOKUP($A42,'Last Race Results'!$A$5:$K$44,11,FALSE))) -> 0
A43: 36 | B43: =IF(ISNA(VLOOKUP($A43,'Entry List'!$A$1:$F$61,B$5,FALSE)),"",VLOOKUP($A43,'Entry List'!$A$1:$F$61,B$5,FALSE)) ->  | C43: =IF(ISNA(VLOOKUP($A43,'Entry List'!$A$1:$F$61,C$5,FALSE)),"",VLOOKUP($A43,'Entry List'!$A$1:$F$61,C$5,FALSE)) ->  | D43: =IF(ISNA(VLOOKUP($A43,'Entry List'!$A$1:$F$61,D$5,FALSE)),"",VLOOKUP($A43,'Entry List'!$A$1:$F$61,D$5,FALSE)) ->  | E43: =IF(ISNA(VLOOKUP($A43,'Entry List'!$A$1:$F$61,E$5,FALSE)),"",VLOOKUP($A43,'Entry List'!$A$1:$F$61,E$5,FALSE)) ->  | G43: DNS | H43: 0 | I43: DNS | J43: 0 | K43: DNS | L43: 0 | M43: DNS | N43: 0 | O43: DNS | P43: 0 | Q43: DNS | R43: 0 | S43: DNS | T43: 0 | U43: DNS | V43: 0 | W43: DNS | X43: 0 | Y43: DNS | Z43: 0 | AA43: DNS | AB43: 0 | AC43: DNS | AD43: 0 | AE43: DNS | AF43: 0 | AG43: DNS | AH43: 0 | AI43: DNS | AJ43: 0 | AK43: DNS | AL43: 0 | AM43: DNS | AN43: 0 | AO43: DNS | AP43: 0 | AQ43: DNS | AR43: 0 | AS43: DNS | AT43: 0 | AU43: DNS | AV43: 0 | AW43: DNS | AX43: 0 | AY43: DNS | AZ43: 0 | BA43: DNS | BB43: 0 | BC43: DNS | BD43: 0 | BE43: =IF('Last Race Results'!$B$5=0,0,IF(ISNA(VLOOKUP($A43,'Last Race Results'!$A$5:$J$44,2,FALSE)),"DNS",VLOOKUP($A43,'Last Race Results'!$A$5:$J$44,2,FALSE))) -> DNS | BF43: =IF('Last Race Results'!$B$5=0,0,IF(ISNA(VLOOKUP($A43,'Last Race Results'!$A$5:$K$44,11,FALSE)),0,VLOOKUP($A43,'Last Race Results'!$A$5:$K$44,11,FALSE))) -> 0
A44: 37 | B44: =IF(ISNA(VLOOKUP($A44,'Entry List'!$A$1:$F$61,B$5,FALSE)),"",VLOOKUP($A44,'Entry List'!$A$1:$F$61,B$5,FALSE)) -> Ryan Preece | C44: =IF(ISNA(VLOOKUP($A44,'Entry List'!$A$1:$F$61,C$5,FALSE)),"",VLOOKUP($A44,'Entry List'!$A$1:$F$61,C$5,FALSE)) -> Chevrolet | D44: =IF(ISNA(VLOOKUP($A44,'Entry List'!$A$1:$F$61,D$5,FALSE)),"",VLOOKUP($A44,'Entry List'!$A$1:$F$61,D$5,FALSE)) -> JTG Daugherty Racing | E44: =IF(ISNA(VLOOKUP($A44,'Entry List'!$A$1:$F$61,E$5,FALSE)),"",VLOOKUP($A44,'Entry List'!$A$1:$F$61,E$5,FALSE)) -> JTG Daugherty Racing | G44: 6 | H44: 40 | I44: 9 | J44: 28 | K44: 21 | L44: 16 | M44: 15 | N44: 22 | O44: 26 | P44: 11 | Q44: 25 | R44: 12 | S44: 18 | T44: 19 | U44: 36 | V44: 1 | W44: 29 | X44: 8 | Y44: 14 | Z44: 29 | AA44: 32 | AB44: 5 | AC44: 25 | AD44: 12 | AE44: 18 | AF44: 19 | AG44: 15 | AH44: 26 | AI44: 26 | AJ44: 11 | AK44: 21 | AL44: 16 | AM44: 32 | AN44: 5 | AO44: 23 | AP44: 14 | AQ44: 8 | AR44: 29 | AS44: 40 | AT44: 1 | AU44: 25 | AV44: 12 | AW44: 22 | AX44: 15 | AY44: 28 | AZ44: 9 | BA44: 35 | BB44: 16 | BC44: 21 | BD44: 16 | BE44: =IF('Last Race Results'!$B$5=0,0,IF(ISNA(VLOOKUP($A44,'Last Race Results'!$A$5:$J$44,2,FALSE)),"DNS",VLOOKUP($A44,'Last Race Results'!$A$5:$J$44,2,FALSE))) -> 4 | BF44: =IF('Last Race Results'!$B$5=0,0,IF(ISNA(VLOOKUP($A44,'Last Race Results'!$A$5:$K$44,11,FALSE)),0,VLOOKUP($A44,'Last Race Results'!$A$5:$K$44,11,FALSE))) -> 35
A45: 38 | B45: =IF(ISNA(VLOOKUP($A45,'Entry List'!$A$1:$F$61,B$5,FALSE)),"",VLOOKUP($A45,'Entry List'!$A$1:$F$61,B$5,FALSE)) -> Anthony Alfredo (R) | C45: =IF(ISNA(VLOOKUP($A45,'Entry List'!$A$1:$F$61,C$5,FALSE)),"",VLOOKUP($A45,'Entry List'!$A$1:$F$61,C$5,FALSE)) -> Ford | D45: =IF(ISNA(VLOOKUP($A45,'Entry List'!$A$1:$F$61,D$5,FALSE)),"",VLOOKUP($A45,'Entry List'!$A$1:$F$61,D$5,FALSE)) -> Front Row Motorsports | E45: =IF(ISNA(VLOOKUP($A45,'Entry List'!$A$1:$F$61,E$5,FALSE)),"",VLOOKUP($A45,'Entry List'!$A$1:$F$61,E$5,FALSE)) -> Front Row Motorsports | G45: 32 | H45: 5 | I45: 22 | J45: 15 | K45: 24 | L45: 13 | M45: 24 | N45: 13 | O45: 37 | P45: 1 | Q45: 27 | R45: 10 | S45: 39 | T45: 1 | U45: 26 | V45: 11 | W45: 31 | X45: 6 | Y45: 12 | Z45: 25 | AA45: 23 | AB45: 14 | AC45: 26 | AD45: 11 | AE45: 28 | AF45: 9 | AG45: 18 | AH45: 19 | AI45: 25 | AJ45: 12 | AK45: 31 | AL45: 6 | AM45: 17 | AN45: 20 | AO45: 26 | AP45: 11 | AQ45: 34 | AR45: 3 | AS45: 37 | AT45: 1 | AU45: 26 | AV45: 11 | AW45: 32 | AX45: 5 | AY45: 26 | AZ45: 11 | BA45: 38 | BB45: 1 | BC45: 34 | BD45: 3 | BE45: =IF('Last Race Results'!$B$5=0,0,IF(ISNA(VLOOKUP($A45,'Last Race Results'!$A$5:$J$44,2,FALSE)),"DNS",VLOOKUP($A45,'Last Race Results'!$A$5:$J$44,2,FALSE))) -> 26 | BF45: =IF('Last Race Results'!$B$5=0,0,IF(ISNA(VLOOKUP($A45,'Last Race Results'!$A$5:$K$44,11,FALSE)),0,VLOOKUP($A45,'Last Race Results'!$A$5:$K$44,11,FALSE))) -> 11
A46: 39 | B46: =IF(ISNA(VLOOKUP($A46,'Entry List'!$A$1:$F$61,B$5,FALSE)),"",VLOOKUP($A46,'Entry List'!$A$1:$F$61,B$5,FALSE)) ->  | C46: =IF(ISNA(VLOOKUP($A46,'Entry List'!$A$1:$F$61,C$5,FALSE)),"",VLOOKUP($A46,'Entry List'!$A$1:$F$61,C$5,FALSE)) ->  | D46: =IF(ISNA(VLOOKUP($A46,'Entry List'!$A$1:$F$61,D$5,FALSE)),"",VLOOKUP($A46,'Entry List'!$A$1:$F$61,D$5,FALSE)) ->  | E46: =IF(ISNA(VLOOKUP($A46,'Entry List'!$A$1:$F$61,E$5,FALSE)),"",VLOOKUP($A46,'Entry List'!$A$1:$F$61,E$5,FALSE)) ->  | G46: DNS | H46: 0 | I46: DNS | J46: 0 | K46: DNS | L46: 0 | M46: DNS | N46: 0 | O46: DNS | P46: 0 | Q46: DNS | R46: 0 | S46: DNS | T46: 0 | U46: DNS | V46: 0 | W46: DNS | X46: 0 | Y46: DNS | Z46: 0 | AA46: DNS | AB46: 0 | AC46: DNS | AD46: 0 | AE46: DNS | AF46: 0 | AG46: DNS | AH46: 0 | AI46: DNS | AJ46: 0 | AK46: DNS | AL46: 0 | AM46: DNS | AN46: 0 | AO46: DNS | AP46: 0 | AQ46: DNS | AR46: 0 | AS46: DNS | AT46: 0 | AU46: DNS | AV46: 0 | AW46: DNS | AX46: 0 | AY46: DNS | AZ46: 0 | BA46: DNS | BB46: 0 | BC46: DNS | BD46: 0 | BE46: =IF('Last Race Results'!$B$5=0,0,IF(ISNA(VLOOKUP($A46,'Last Race Results'!$A$5:$J$44,2,FALSE)),"DNS",VLOOKUP($A46,'Last Race Results'!$A$5:$J$44,2,FALSE))) -> DNS | BF46: =IF('Last Race Results'!$B$5=0,0,IF(ISNA(VLOOKUP($A46,'Last Race Results'!$A$5:$K$44,11,FALSE)),0,VLOOKUP($A46,'Last Race Results'!$A$5:$K$44,11,FALSE))) -> 0
A47: 40 | B47: =IF(ISNA(VLOOKUP($A47,'Entry List'!$A$1:$F$61,B$5,FALSE)),"",VLOOKUP($A47,'Entry List'!$A$1:$F$61,B$5,FALSE)) ->  | C47: =IF(ISNA(VLOOKUP($A47,'Entry List'!$A$1:$F$61,C$5,FALSE)),"",VLOOKUP($A47,'Entry List'!$A$1:$F$61,C$5,FALSE)) ->  | D47: =IF(ISNA(VLOOKUP($A47,'Entry List'!$A$1:$F$61,D$5,FALSE)),"",VLOOKUP($A47,'Entry List'!$A$1:$F$61,D$5,FALSE)) ->  | E47: =IF(ISNA(VLOOKUP($A47,'Entry List'!$A$1:$F$61,E$5,FALSE)),"",VLOOKUP($A47,'Entry List'!$A$1:$F$61,E$5,FALSE)) ->  | G47: DNS | H47: 0 | I47: DNS | J47: 0 | K47: DNS | L47: 0 | M47: DNS | N47: 0 | O47: DNS | P47: 0 | Q47: DNS | R47: 0 | S47: DNS | T47: 0 | U47: DNS | V47: 0 | W47: DNS | X47: 0 | Y47: DNS | Z47: 0 | AA47: DNS | AB47: 0 | AC47: DNS | AD47: 0 | AE47: DNS | AF47: 0 | AG47: DNS | AH47: 0 | AI47: DNS | AJ47: 0 | AK47: DNS | AL47: 0 | AM47: DNS | AN47: 0 | AO47: DNS | AP47: 0 | AQ47: DNS | AR47: 0 | AS47: DNS | AT47: 0 | AU47: DNS | AV47: 0 | AW47: DNS | AX47: 0 | AY47: DNS | AZ47: 0 | BA47: DNS | BB47: 0 | BC47: DNS | BD47: 0 | BE47: =IF('Last Race Results'!$B$5=0,0,IF(ISNA(VLOOKUP($A47,'Last Race Results'!$A$5:$J$44,2,FALSE)),"DNS",VLOOKUP($A47,'Last Race Results'!$A$5:$J$44,2,FALSE))) -> DNS | BF47: =IF('Last Race Results'!$B$5=0,0,IF(ISNA(VLOOKUP($A47,'Last Race Results'!$A$5:$K$44,11,FALSE)),0,VLOOKUP($A47,'Last Race Results'!$A$5:$K$44,11,FALSE))) -> 0
A48: 41 | B48: =IF(ISNA(VLOOKUP($A48,'Entry List'!$A$1:$F$61,B$5,FALSE)),"",VLOOKUP($A48,'Entry List'!$A$1:$F$61,B$5,FALSE)) -> Cole Custer | C48: =IF(ISNA(VLOOKUP($A48,'Entry List'!$A$1:$F$61,C$5,FALSE)),"",VLOOKUP($A48,'Entry List'!$A$1:$F$61,C$5,FALSE)) -> Ford | D48: =IF(ISNA(VLOOKUP($A48,'Entry List'!$A$1:$F$61,D$5,FALSE)),"",VLOOKUP($A48,'Entry List'!$A$1:$F$61,D$5,FALSE)) -> Stewart-Haas Racing | E48: =IF(ISNA(VLOOKUP($A48,'Entry List'!$A$1:$F$61,E$5,FALSE)),"",VLOOKUP($A48,'Entry List'!$A$1:$F$61,E$5,FALSE)) -> Stewart-Haas Racing | G48: 11 | H48: 27 | I48: 13 | J48: 27 | K48: 23 | L48: 14 | M48: 25 | N48: 12 | O48: 31 | P48: 6 | Q48: 18 | R48: 19 | S48: 24 | T48: 13 | U48: 18 | V48: 19 | W48: 23 | X48: 14 | Y48: 10 | Z48: 27 | AA48: 24 | AB48: 13 | AC48: 36 | AD48: 1 | AE48: 10 | AF48: 27 | AG48: 36 | AH48: 1 | AI48: 21 | AJ48: 16 | AK48: 20 | AL48: 17 | AM48: 30 | AN48: 7 | AO48: 38 | AP48: 1 | AQ48: 24 | AR48: 13 | AS48: 17 | AT48: 20 | AU48: 17 | AV48: 20 | AW48: 14 | AX48: 23 | AY48: 18 | AZ48: 19 | BA48: 25 | BB48: 12 | BC48: 23 | BD48: 14 | BE48: =IF('Last Race Results'!$B$5=0,0,IF(ISNA(VLOOKUP($A48,'Last Race Results'!$A$5:$J$44,2,FALSE)),"DNS",VLOOKUP($A48,'Last Race Results'!$A$5:$J$44,2,FALSE))) -> 24 | BF48: =IF('Last Race Results'!$B$5=0,0,IF(ISNA(VLOOKUP($A48,'Last Race Results'!$A$5:$K$44,11,FALSE)),0,VLOOKUP($A48,'Last Race Results'!$A$5:$K$44,11,FALSE))) -> 13
A49: 42 | B49: =IF(ISNA(VLOOKUP($A49,'Entry List'!$A$1:$F$61,B$5,FALSE)),"",VLOOKUP($A49,'Entry List'!$A$1:$F$61,B$5,FALSE)) -> Ross Chastain | C49: =IF(ISNA(VLOOKUP($A49,'Entry List'!$A$1:$F$61,C$5,FALSE)),"",VLOOKUP($A49,'Entry List'!$A$1:$F$61,C$5,FALSE)) -> Chevrolet | D49: =IF(ISNA(VLOOKUP($A49,'Entry List'!$A$1:$F$61,D$5,FALSE)),"",VLOOKUP($A49,'Entry List'!$A$1:$F$61,D$5,FALSE)) -> Chip Ganassi Racing | E49: =IF(ISNA(VLOOKUP($A49,'Entry List'!$A$1:$F$61,E$5,FALSE)),"",VLOOKUP($A49,'Entry List'!$A$1:$F$61,E$5,FALSE)) -> Chip Ganassi Racing | G49: 7 | H49: 32 | I49: 39 | J49: 1 | K49: 17 | L49: 20 | M49: 23 | N49: 14 | O49: 19 | P49: 18 | Q49: 14 | R49: 23 | S49: 35 | T49: 2 | U49: 17 | V49: 20 | W49: 15 | X49: 22 | Y49: 16 | Z49: 21 | AA49: 14 | AB49: 23 | AC49: 15 | AD49: 22 | AE49: 15 | AF49: 22 | AG49: 4 | AH49: 36 | AI49: 37 | AJ49: 1 | AK49: 7 | AL49: 30 | AM49: 2 | AN49: 35 | AO49: 33 | AP49: 4 | AQ49: 26 | AR49: 12 | AS49: 7 | AT49: 44 | AU49: 21 | AV49: 16 | AW49: 8 | AX49: 34 | AY49: 12 | AZ49: 30 | BA49: 29 | BB49: 8 | BC49: 35 | BD49: 2 | BE49: =IF('Last Race Results'!$B$5=0,0,IF(ISNA(VLOOKUP($A49,'Last Race Results'!$A$5:$J$44,2,FALSE)),"DNS",VLOOKUP($A49,'Last Race Results'!$A$5:$J$44,2,FALSE))) -> 18 | BF49: =IF('Last Race Results'!$B$5=0,0,IF(ISNA(VLOOKUP($A49,'Last Race Results'!$A$5:$K$44,11,FALSE)),0,VLOOKUP($A49,'Last Race Results'!$A$5:$K$44,11,FALSE))) -> 26
A50: 43 | B50: =IF(ISNA(VLOOKUP($A50,'Entry List'!$A$1:$F$61,B$5,FALSE)),"",VLOOKUP($A50,'Entry List'!$A$1:$F$61,B$5,FALSE)) -> Erik Jones | C50: =IF(ISNA(VLOOKUP($A50,'Entry List'!$A$1:$F$61,C$5,FALSE)),"",VLOOKUP($A50,'Entry List'!$A$1:$F$61,C$5,FALSE)) -> Chevrolet | D50: =IF(ISNA(VLOOKUP($A50,'Entry List'!$A$1:$F$61,D$5,FALSE)),"",VLOOKUP($A50,'Entry List'!$A$1:$F$61,D$5,FALSE)) -> Richard Petty Motorsports | E50: =IF(ISNA(VLOOKUP($A50,'Entry List'!$A$1:$F$61,E$5,FALSE)),"",VLOOKUP($A50,'Entry List'!$A$1:$F$61,E$5,FALSE)) -> Richard Petty Motorsports | G50: 39 | H50: 1 | I50: 14 | J50: 23 | K50: 27 | L50: 10 | M50: 10 | N50: 27 | O50: 20 | P50: 17 | Q50: 24 | R50: 13 | S50: 9 | T50: 31 | U50: 30 | V50: 7 | W50: 19 | X50: 18 | Y50: 27 | Z50: 10 | AA50: 25 | AB50: 12 | AC50: 18 | AD50: 19 | AE50: 22 | AF50: 15 | AG50: 16 | AH50: 21 | AI50: 16 | AJ50: 21 | AK50: 11 | AL50: 27 | AM50: 19 | AN50: 18 | AO50: 22 | AP50: 15 | AQ50: 31 | AR50: 6 | AS50: 19 | AT50: 18 | AU50: 24 | AV50: 13 | AW50: 19 | AX50: 18 | AY50: 27 | AZ50: 11 | BA50: 7 | BB50: 37 | BC50: 18 | BD50: 19 | BE50: =IF('Last Race Results'!$B$5=0,0,IF(ISNA(VLOOKUP($A50,'Last Race Results'!$A$5:$J$44,2,FALSE)),"DNS",VLOOKUP($A50,'Last Race Results'!$A$5:$J$44,2,FALSE))) -> 11 | BF50: =IF('Last Race Results'!$B$5=0,0,IF(ISNA(VLOOKUP($A50,'Last Race Results'!$A$5:$K$44,11,FALSE)),0,VLOOKUP($A50,'Last Race Results'!$A$5:$K$44,11,FALSE))) -> 26
A51: 44 | B51: =IF(ISNA(VLOOKUP($A51,'Entry List'!$A$1:$F$61,B$5,FALSE)),"",VLOOKUP($A51,'Entry List'!$A$1:$F$61,B$5,FALSE)) ->  | C51: =IF(ISNA(VLOOKUP($A51,'Entry List'!$A$1:$F$61,C$5,FALSE)),"",VLOOKUP($A51,'Entry List'!$A$1:$F$61,C$5,FALSE)) ->  | D51: =IF(ISNA(VLOOKUP($A51,'Entry List'!$A$1:$F$61,D$5,FALSE)),"",VLOOKUP($A51,'Entry List'!$A$1:$F$61,D$5,FALSE)) ->  | E51: =IF(ISNA(VLOOKUP($A51,'Entry List'!$A$1:$F$61,E$5,FALSE)),"",VLOOKUP($A51,'Entry List'!$A$1:$F$61,E$5,FALSE)) ->  | G51: DNS | H51: 0 | I51: DNS | J51: 0 | K51: DNS | L51: 0 | M51: DNS | N51: 0 | O51: DNS | P51: 0 | Q51: DNS | R51: 0 | S51: DNS | T51: 0 | U51: DNS | V51: 0 | W51: DNS | X51: 0 | Y51: DNS | Z51: 0 | AA51: DNS | AB51: 0 | AC51: DNS | AD51: 0 | AE51: DNS | AF51: 0 | AG51: DNS | AH51: 0 | AI51: DNS | AJ51: 0 | AK51: DNS | AL51: 0 | AM51: DNS | AN51: 0 | AO51: DNS | AP51: 0 | AQ51: DNS | AR51: 0 | AS51: DNS | AT51: 0 | AU51: DNS | AV51: 0 | AW51: DNS | AX51: 0 | AY51: DNS | AZ51: 0 | BA51: DNS | BB51: 0 | BC51: DNS | BD51: 0 | BE51: =IF('Last Race Results'!$B$5=0,0,IF(ISNA(VLOOKUP($A51,'Last Race Results'!$A$5:$J$44,2,FALSE)),"DNS",VLOOKUP($A51,'Last Race Results'!$A$5:$J$44,2,FALSE))) -> DNS | BF51: =IF('Last Race Results'!$B$5=0,0,IF(ISNA(VLOOKUP($A51,'Last Race Results'!$A$5:$K$44,11,FALSE)),0,VLOOKUP($A51,'Last Race Results'!$A$5:$K$44,11,FALSE))) -> 0
A52: 45 | B52: =IF(ISNA(VLOOKUP($A52,'Entry List'!$A$1:$F$61,B$5,FALSE)),"",VLOOKUP($A52,'Entry List'!$A$1:$F$61,B$5,FALSE)) ->  | C52: =IF(ISNA(VLOOKUP($A52,'Entry List'!$A$1:$F$61,C$5,FALSE)),"",VLOOKUP($A52,'Entry List'!$A$1:$F$61,C$5,FALSE)) ->  | D52: =IF(ISNA(VLOOKUP($A52,'Entry List'!$A$1:$F$61,D$5,FALSE)),"",VLOOKUP($A52,'Entry List'!$A$1:$F$61,D$5,FALSE)) ->  | E52: =IF(ISNA(VLOOKUP($A52,'Entry List'!$A$1:$F$61,E$5,FALSE)),"",VLOOKUP($A52,'Entry List'!$A$1:$F$61,E$5,FALSE)) ->  | G52: DNS | H52: 0 | I52: DNS | J52: 0 | K52: DNS | L52: 0 | M52: DNS | N52: 0 | O52: DNS | P52: 0 | Q52: DNS | R52: 0 | S52: DNS | T52: 0 | U52: DNS | V52: 0 | W52: DNS | X52: 0 | Y52: DNS | Z52: 0 | AA52: DNS | AB52: 0 | AC52: DNS | AD52: 0 | AE52: DNS | AF52: 0 | AG52: DNS | AH52: 0 | AI52: DNS | AJ52: 0 | AK52: DNS | AL52: 0 | AM52: DNS | AN52: 0 | AO52: DNS | AP52: 0 | AQ52: DNS | AR52: 0 | AS52: DNS | AT52: 0 | AU52: DNS | AV52: 0 | AW52: DNS | AX52: 0 | AY52: DNS | AZ52: 0 | BA52: DNS | BB52: 0 | BC52: DNS | BD52: 0 | BE52: =IF('Last Race Results'!$B$5=0,0,IF(ISNA(VLOOKUP($A52,'Last Race Results'!$A$5:$J$44,2,FALSE)),"DNS",VLOOKUP($A52,'Last Race Results'!$A$5:$J$44,2,FALSE))) -> DNS | BF52: =IF('Last Race Results'!$B$5=0,0,IF(ISNA(VLOOKUP($A52,'Last Race Results'!$A$5:$K$44,11,FALSE)),0,VLOOKUP($A52,'Last Race Results'!$A$5:$K$44,11,FALSE))) -> 0
A53: 46 | B53: =IF(ISNA(VLOOKUP($A53,'Entry List'!$A$1:$F$61,B$5,FALSE)),"",VLOOKUP($A53,'Entry List'!$A$1:$F$61,B$5,FALSE)) ->  | C53: =IF(ISNA(VLOOKUP($A53,'Entry List'!$A$1:$F$61,C$5,FALSE)),"",VLOOKUP($A53,'Entry List'!$A$1:$F$61,C$5,FALSE)) ->  | D53: =IF(ISNA(VLOOKUP($A53,'Entry List'!$A$1:$F$61,D$5,FALSE)),"",VLOOKUP($A53,'Entry List'!$A$1:$F$61,D$5,FALSE)) ->  | E53: =IF(ISNA(VLOOKUP($A53,'Entry List'!$A$1:$F$61,E$5,FALSE)),"",VLOOKUP($A53,'Entry List'!$A$1:$F$61,E$5,FALSE)) ->  | G53: DNS | H53: 0 | I53: DNS | J53: 0 | K53: DNS | L53: 0 | M53: DNS | N53: 0 | O53: DNS | P53: 0 | Q53: DNS | R53: 0 | S53: DNS | T53: 0 | U53: DNS | V53: 0 | W53: DNS | X53: 0 | Y53: DNS | Z53: 0 | AA53: DNS | AB53: 0 | AC53: DNS | AD53: 0 | AE53: DNS | AF53: 0 | AG53: DNS | AH53: 0 | AI53: DNS | AJ53: 0 | AK53: DNS | AL53: 0 | AM53: DNS | AN53: 0 | AO53: DNS | AP53: 0 | AQ53: DNS | AR53: 0 | AS53: DNS | AT53: 0 | AU53: DNS | AV53: 0 | AW53: DNS | AX53: 0 | AY53: DNS | AZ53: 0 | BA53: DNS | BB53: 0 | BC53: DNS | BD53: 0 | BE53: =IF('Last Race Results'!$B$5=0,0,IF(ISNA(VLOOKUP($A53,'Last Race Results'!$A$5:$J$44,2,FALSE)),"DNS",VLOOKUP($A53,'Last Race Results'!$A$5:$J$44,2,FALSE))) -> DNS | BF53: =IF('Last Race Results'!$B$5=0,0,IF(ISNA(VLOOKUP($A53,'Last Race Results'!$A$5:$K$44,11,FALSE)),0,VLOOKUP($A53,'Last Race Results'!$A$5:$K$44,11,FALSE))) -> 0
A54: 47 | B54: =IF(ISNA(VLOOKUP($A54,'Entry List'!$A$1:$F$61,B$5,FALSE)),"",VLOOKUP($A54,'Entry List'!$A$1:$F$61,B$5,FALSE)) -> Ricky Stenhouse Jr. | C54: =IF(ISNA(VLOOKUP($A54,'Entry List'!$A$1:$F$61,C$5,FALSE)),"",VLOOKUP($A54,'Entry List'!$A$1:$F$61,C$5,FALSE)) -> Chevrolet | D54: =IF(ISNA(VLOOKUP($A54,'Entry List'!$A$1:$F$61,D$5,FALSE)),"",VLOOKUP($A54,'Entry List'!$A$1:$F$61,D$5,FALSE)) -> JTG Daugherty Racing | E54: =IF(ISNA(VLOOKUP($A54,'Entry List'!$A$1:$F$61,E$5,FALSE)),"",VLOOKUP($A54,'Entry List'!$A$1:$F$61,E$5,FALSE)) -> JTG Daugherty Racing | G54: 18 | H54: 19 | I54: 18 | J54: 19 | K54: 13 | L54: 24 | M54: 11 | N54: 26 | O54: 12 | P54: 25 | Q54: 12 | R54: 25 | S54: 2 | T54: 42 | U54: 15 | V54: 22 | W54: 17 | X54: 20 | Y54: 33 | Z54: 7 | AA54: 34 | AB54: 3 | AC54: 20 | AD54: 17 | AE54: 20 | AF54: 17 | AG54: 22 | AH54: 15 | AI54: 12 | AJ54: 27 | AK54: 37 | AL54: 1 | AM54: 6 | AN54: 40 | AO54: 15 | AP54: 22 | AQ54: 38 | AR54: 5 | AS54: 12 | AT54: 25 | AU54: 37 | AV54: 1 | AW54: 15 | AX54: 22 | AY54: 19 | AZ54: 18 | BA54: 11 | BB54: 37 | BC54: 12 | BD54: 25 | BE54: =IF('Last Race Results'!$B$5=0,0,IF(ISNA(VLOOKUP($A54,'Last Race Results'!$A$5:$J$44,2,FALSE)),"DNS",VLOOKUP($A54,'Last Race Results'!$A$5:$J$44,2,FALSE))) -> 22 | BF54: =IF('Last Race Results'!$B$5=0,0,IF(ISNA(VLOOKUP($A54,'Last Race Results'!$A$5:$K$44,11,FALSE)),0,VLOOKUP($A54,'Last Race Results'!$A$5:$K$44,11,FALSE))) -> 19
A55: 48 | B55: =IF(ISNA(VLOOKUP($A55,'Entry List'!$A$1:$F$61,B$5,FALSE)),"",VLOOKUP($A55,'Entry List'!$A$1:$F$61,B$5,FALSE)) -> Alex Bowman | C55: =IF(ISNA(VLOOKUP($A55,'Entry List'!$A$1:$F$61,C$5,FALSE)),"",VLOOKUP($A55,'Entry List'!$A$1:$F$61,C$5,FALSE)) -> Chevrolet | D55: =IF(ISNA(VLOOKUP($A55,'Entry List'!$A$1:$F$61,D$5,FALSE)),"",VLOOKUP($A55,'Entry List'!$A$1:$F$61,D$5,FALSE)) -> Hendrick Motorsports | E55: =IF(ISNA(VLOOKUP($A55,'Entry List'!$A$1:$F$61,E$5,FALSE)),"",VLOOKUP($A55,'Entry List'!$A$1:$F$61,E$5,FALSE)) -> Hendrick Motorsports | G55: 35 | H55: 2 | I55: 10 | J55: 27 | K55: 9 | L55: 36 | M55: 27 | N55: 21 | O55: 13 | P55: 24 | Q55: 3 | R55: 47 | S55: 22 | T55: 15 | U55: 34 | V55: 13 | W55: 1 | X55: 51 | Y55: 38 | Z55: 5 | AA55: 18 | AB55: 19 | AC55: 17 | AD55: 21 | AE55: 1 | AF55: 51 | AG55: 8 | AH55: 30 | AI55: 5 | AJ55: 43 | AK55: 9 | AL55: 42 | AM55: 14 | AN55: 23 | AO55: 1 | AP55: 43 | AQ55: 7 | AR55: 30 | AS55: 22 | AT55: 18 | AU55: 4 | AV55: 48 | AW55: 9 | AX55: 28 | AY55: 20 | AZ55: 21 | BA55: 17 | BB55: 20 | BC55: 16 | BD55: 21 | BE55: =IF('Last Race Results'!$B$5=0,0,IF(ISNA(VLOOKUP($A55,'Last Race Results'!$A$5:$J$44,2,FALSE)),"DNS",VLOOKUP($A55,'Last Race Results'!$A$5:$J$44,2,FALSE))) -> 7 | BF55: =IF('Last Race Results'!$B$5=0,0,IF(ISNA(VLOOKUP($A55,'Last Race Results'!$A$5:$K$44,11,FALSE)),0,VLOOKUP($A55,'Last Race Results'!$A$5:$K$44,11,FALSE))) -> 30
A56: 49 | B56: =IF(ISNA(VLOOKUP($A56,'Entry List'!$A$1:$F$61,B$5,FALSE)),"",VLOOKUP($A56,'Entry List'!$A$1:$F$61,B$5,FALSE)) ->  | C56: =IF(ISNA(VLOOKUP($A56,'Entry List'!$A$1:$F$61,C$5,FALSE)),"",VLOOKUP($A56,'Entry List'!$A$1:$F$61,C$5,FALSE)) ->  | D56: =IF(ISNA(VLOOKUP($A56,'Entry List'!$A$1:$F$61,D$5,FALSE)),"",VLOOKUP($A56,'Entry List'!$A$1:$F$61,D$5,FALSE)) ->  | E56: =IF(ISNA(VLOOKUP($A56,'Entry List'!$A$1:$F$61,E$5,FALSE)),"",VLOOKUP($A56,'Entry List'!$A$1:$F$61,E$5,FALSE)) ->  | G56: DNS | H56: 0 | I56: DNS | J56: 0 | K56: DNS | L56: 0 | M56: DNS | N56: 0 | O56: DNS | P56: 0 | Q56: DNS | R56: 0 | S56: DNS | T56: 0 | U56: DNS | V56: 0 | W56: DNS | X56: 0 | Y56: DNS | Z56: 0 | AA56: DNS | AB56: 0 | AC56: DNS | AD56: 0 | AE56: DNS | AF56: 0 | AG56: DNS | AH56: 0 | AI56: DNS | AJ56: 0 | AK56: DNS | AL56: 0 | AM56: DNS | AN56: 0 | AO56: DNS | AP56: 0 | AQ56: DNS | AR56: 0 | AS56: DNS | AT56: 0 | AU56: DNS | AV56: 0 | AW56: DNS | AX56: 0 | AY56: DNS | AZ56: 0 | BA56: DNS | BB56: 0 | BC56: DNS | BD56: 0 | BE56: =IF('Last Race Results'!$B$5=0,0,IF(ISNA(VLOOKUP($A56,'Last Race Results'!$A$5:$J$44,2,FALSE)),"DNS",VLOOKUP($A56,'Last Race Results'!$A$5:$J$44,2,FALSE))) -> DNS | BF56: =IF('Last Race Results'!$B$5=0,0,IF(ISNA(VLOOKUP($A56,'Last Race Results'!$A$5:$K$44,11,FALSE)),0,VLOOKUP($A56,'Last Race Results'!$A$5:$K$44,11,FALSE))) -> 0
A57: 50 | B57: =IF(ISNA(VLOOKUP($A57,'Entry List'!$A$1:$F$61,B$5,FALSE)),"",VLOOKUP($A57,'Entry List'!$A$1:$F$61,B$5,FALSE)) ->  | C57: =IF(ISNA(VLOOKUP($A57,'Entry List'!$A$1:$F$61,C$5,FALSE)),"",VLOOKUP($A57,'Entry List'!$A$1:$F$61,C$5,FALSE)) ->  | D57: =IF(ISNA(VLOOKUP($A57,'Entry List'!$A$1:$F$61,D$5,FALSE)),"",VLOOKUP($A57,'Entry List'!$A$1:$F$61,D$5,FALSE)) ->  | E57: =IF(ISNA(VLOOKUP($A57,'Entry List'!$A$1:$F$61,E$5,FALSE)),"",VLOOKUP($A57,'Entry List'!$A$1:$F$61,E$5,FALSE)) ->  | G57: DNS | H57: 0 | I57: DNS | J57: 0 | K57: DNS | L57: 0 | M57: DNS | N57: 0 | O57: DNS | P57: 0 | Q57: DNS | R57: 0 | S57: DNS | T57: 0 | U57: DNS | V57: 0 | W57: DNS | X57: 0 | Y57: DNS | Z57: 0 | AA57: DNS | AB57: 0 | AC57: DNS | AD57: 0 | AE57: DNS | AF57: 0 | AG57: DNS | AH57: 0 | AI57: DNS | AJ57: 0 | AK57: DNS | AL57: 0 | AM57: DNS | AN57: 0 | AO57: DNS | AP57: 0 | AQ57: DNS | AR57: 0 | AS57: DNS | AT57: 0 | AU57: DNS | AV57: 0 | AW57: DNS | AX57: 0 | AY57: DNS | AZ57: 0 | BA57: DNS | BB57: 0 | BC57: DNS | BD57: 0 | BE57: =IF('Last Race Results'!$B$5=0,0,IF(ISNA(VLOOKUP($A57,'Last Race Results'!$A$5:$J$44,2,FALSE)),"DNS",VLOOKUP($A57,'Last Race Results'!$A$5:$J$44,2,FALSE))) -> DNS | BF57: =IF('Last Race Results'!$B$5=0,0,IF(ISNA(VLOOKUP($A57,'Last Race Results'!$A$5:$K$44,11,FALSE)),0,VLOOKUP($A57,'Last Race Results'!$A$5:$K$44,11,FALSE))) -> 0
A58: 51 | B58: =IF(ISNA(VLOOKUP($A58,'Entry List'!$A$1:$F$61,B$5,FALSE)),"",VLOOKUP($A58,'Entry List'!$A$1:$F$61,B$5,FALSE)) -> Cody Ware (i) | C58: =IF(ISNA(VLOOKUP($A58,'Entry List'!$A$1:$F$61,C$5,FALSE)),"",VLOOKUP($A58,'Entry List'!$A$1:$F$61,C$5,FALSE)) -> Chevrolet | D58: =IF(ISNA(VLOOKUP($A58,'Entry List'!$A$1:$F$61,D$5,FALSE)),"",VLOOKUP($A58,'Entry List'!$A$1:$F$61,D$5,FALSE)) -> Petty Ware Racing | E58: =IF(ISNA(VLOOKUP($A58,'Entry List'!$A$1:$F$61,E$5,FALSE)),"",VLOOKUP($A58,'Entry List'!$A$1:$F$61,E$5,FALSE)) -> Petty Ware Racing | G58: 21 | H58: 16 | I58: 25 | J58: 12 | K58: 32 | L58: 5 | M58: 32 | N58: 5 | O58: 36 | P58: 1 | Q58: 31 | R58: 6 | S58: 32 | T58: 5 | U58: 28 | V58: 9 | W58: 36 | X58: 1 | Y58: 28 | Z58: 9 | AA58: 36 | AB58: 1 | AC58: 34 | AD58: 3 | AE58: 31 | AF58: 6 | AG58: 32 | AH58: 5 | AI58: 34 | AJ58: 3 | AK58: 34 | AL58: 3 | AM58: 27 | AN58: 10 | AO58: 25 | AP58: 12 | AQ58: 28 | AR58: 9 | AS58: 31 | AT58: 6 | AU58: 33 | AV58: 4 | AW58: 31 | AX58: 6 | AY58: 37 | AZ58: 1 | BA58: 40 | BB58: 1 | BC58: 27 | BD58: 10 | BE58: =IF('Last Race Results'!$B$5=0,0,IF(ISNA(VLOOKUP($A58,'Last Race Results'!$A$5:$J$44,2,FALSE)),"DNS",VLOOKUP($A58,'Last Race Results'!$A$5:$J$44,2,FALSE))) -> 28 | BF58: =IF('Last Race Results'!$B$5=0,0,IF(ISNA(VLOOKUP($A58,'Last Race Results'!$A$5:$K$44,11,FALSE)),0,VLOOKUP($A58,'Last Race Results'!$A$5:$K$44,11,FALSE))) -> 9
A59: 52 | B59: =IF(ISNA(VLOOKUP($A59,'Entry List'!$A$1:$F$61,B$5,FALSE)),"",VLOOKUP($A59,'Entry List'!$A$1:$F$61,B$5,FALSE)) -> Josh Bilicki | C59: =IF(ISNA(VLOOKUP($A59,'Entry List'!$A$1:$F$61,C$5,FALSE)),"",VLOOKUP($A59,'Entry List'!$A$1:$F$61,C$5,FALSE)) -> Ford | D59: =IF(ISNA(VLOOKUP($A59,'Entry List'!$A$1:$F$61,D$5,FALSE)),"",VLOOKUP($A59,'Entry List'!$A$1:$F$61,D$5,FALSE)) -> Rick Ware Racing | E59: =IF(ISNA(VLOOKUP($A59,'Entry List'!$A$1:$F$61,E$5,FALSE)),"",VLOOKUP($A59,'Entry List'!$A$1:$F$61,E$5,FALSE)) -> Rick Ware Racing | G59: 24 | H59: 13 | I59: 36 | J59: 1 | K59: 33 | L59: 4 | M59: 35 | N59: 2 | O59: 35 | P59: 2 | Q59: 37 | R59: 1 | S59: 30 | T59: 7 | U59: 23 | V59: 14 | W59: 37 | X59: 1 | Y59: 36 | Z59: 1 | AA59: 39 | AB59: 1 | AC59: 33 | AD59: 4 | AE59: 34 | AF59: 3 | AG59: 30 | AH59: 7 | AI59: 35 | AJ59: 2 | AK59: 29 | AL59: 8 | AM59: 26 | AN59: 11 | AO59: 34 | AP59: 3 | AQ59: 35 | AR59: 2 | AS59: 23 | AT59: 14 | AU59: 34 | AV59: 3 | AW59: 34 | AX59: 3 | AY59: 33 | AZ59: 4 | BA59: 18 | BB59: 19 | BC59: 31 | BD59: 6 | BE59: =IF('Last Race Results'!$B$5=0,0,IF(ISNA(VLOOKUP($A59,'Last Race Results'!$A$5:$J$44,2,FALSE)),"DNS",VLOOKUP($A59,'Last Race Results'!$A$5:$J$44,2,FALSE))) -> 10 | BF59: =IF('Last Race Results'!$B$5=0,0,IF(ISNA(VLOOKUP($A59,'Last Race Results'!$A$5:$K$44,11,FALSE)),0,VLOOKUP($A59,'Last Race Results'!$A$5:$K$44,11,FALSE))) -> 27
A60: 53 | B60: =IF(ISNA(VLOOKUP($A60,'Entry List'!$A$1:$F$61,B$5,FALSE)),"",VLOOKUP($A60,'Entry List'!$A$1:$F$61,B$5,FALSE)) -> Garrett Smithley (i) | C60: =IF(ISNA(VLOOKUP($A60,'Entry List'!$A$1:$F$61,C$5,FALSE)),"",VLOOKUP($A60,'Entry List'!$A$1:$F$61,C$5,FALSE)) -> Ford | D60: =IF(ISNA(VLOOKUP($A60,'Entry List'!$A$1:$F$61,D$5,FALSE)),"",VLOOKUP($A60,'Entry List'!$A$1:$F$61,D$5,FALSE)) -> Rick Ware Racing | E60: =IF(ISNA(VLOOKUP($A60,'Entry List'!$A$1:$F$61,E$5,FALSE)),"",VLOOKUP($A60,'Entry List'!$A$1:$F$61,E$5,FALSE)) -> Rick Ware Racing | G60: 20 | H60: 17 | I60: 27 | J60: 10 | K60: 31 | L60: 6 | M60: 31 | N60: 6 | O60: 34 | P60: 3 | Q60: 35 | R60: 2 | S60: 28 | T60: 9 | U60: 25 | V60: 12 | W60: 35 | X60: 2 | Y60: DNS | Z60: 0 | AA60: 33 | AB60: 4 | AC60: 29 | AD60: 8 | AE60: 32 | AF60: 5 | AG60: 28 | AH60: 9 | AI60: 30 | AJ60: 7 | AK60: 32 | AL60: 5 | AM60: 25 | AN60: 12 | AO60: 29 | AP60: 8 | AQ60: 36 | AR60: 1 | AS60: 39 | AT60: 1 | AU60: 31 | AV60: 6 | AW60: 33 | AX60: 4 | AY60: 36 | AZ60: 1 | BA60: 28 | BB60: 9 | BC60: 32 | BD60: 5 | BE60: =IF('Last Race Results'!$B$5=0,0,IF(ISNA(VLOOKUP($A60,'Last Race Results'!$A$5:$J$44,2,FALSE)),"DNS",VLOOKUP($A60,'Last Race Results'!$A$5:$J$44,2,FALSE))) -> 30 | BF60: =IF('Last Race Results'!$B$5=0,0,IF(ISNA(VLOOKUP($A60,'Last Race Results'!$A$5:$K$44,11,FALSE)),0,VLOOKUP($A60,'Last Race Results'!$A$5:$K$44,11,FALSE))) -> 7
A61: 54 | B61: =IF(ISNA(VLOOKUP($A61,'Entry List'!$A$1:$F$61,B$5,FALSE)),"",VLOOKUP($A61,'Entry List'!$A$1:$F$61,B$5,FALSE)) ->  | C61: =IF(ISNA(VLOOKUP($A61,'Entry List'!$A$1:$F$61,C$5,FALSE)),"",VLOOKUP($A61,'Entry List'!$A$1:$F$61,C$5,FALSE)) ->  | D61: =IF(ISNA(VLOOKUP($A61,'Entry List'!$A$1:$F$61,D$5,FALSE)),"",VLOOKUP($A61,'Entry List'!$A$1:$F$61,D$5,FALSE)) ->  | E61: =IF(ISNA(VLOOKUP($A61,'Entry List'!$A$1:$F$61,E$5,FALSE)),"",VLOOKUP($A61,'Entry List'!$A$1:$F$61,E$5,FALSE)) ->  | G61: DNS | H61: 0 | I61: DNS | J61: 0 | K61: DNS | L61: 0 | M61: DNS | N61: 0 | O61: DNS | P61: 0 | Q61: DNS | R61: 0 | S61: DNS | T61: 0 | U61: DNS | V61: 0 | W61: DNS | X61: 0 | Y61: DNS | Z61: 0 | AA61: DNS | AB61: 0 | AC61: DNS | AD61: 0 | AE61: DNS | AF61: 0 | AG61: DNS | AH61: 0 | AI61: DNS | AJ61: 0 | AK61: DNS | AL61: 0 | AM61: DNS | AN61: 0 | AO61: DNS | AP61: 0 | AQ61: DNS | AR61: 0 | AS61: DNS | AT61: 0 | AU61: DNS | AV61: 0 | AW61: DNS | AX61: 0 | AY61: DNS | AZ61: 0 | BA61: DNS | BB61: 0 | BC61: DNS | BD61: 0 | BE61: =IF('Last Race Results'!$B$5=0,0,IF(ISNA(VLOOKUP($A61,'Last Race Results'!$A$5:$J$44,2,FALSE)),"DNS",VLOOKUP($A61,'Last Race Results'!$A$5:$J$44,2,FALSE))) -> DNS | BF61: =IF('Last Race Results'!$B$5=0,0,IF(ISNA(VLOOKUP($A61,'Last Race Results'!$A$5:$K$44,11,FALSE)),0,VLOOKUP($A61,'Last Race Results'!$A$5:$K$44,11,FALSE))) -> 0
A62: 55 | B62: =IF(ISNA(VLOOKUP($A62,'Entry List'!$A$1:$F$61,B$5,FALSE)),"",VLOOKUP($A62,'Entry List'!$A$1:$F$61,B$5,FALSE)) ->  | C62: =IF(ISNA(VLOOKUP($A62,'Entry List'!$A$1:$F$61,C$5,FALSE)),"",VLOOKUP($A62,'Entry List'!$A$1:$F$61,C$5,FALSE)) ->  | D62: =IF(ISNA(VLOOKUP($A62,'Entry List'!$A$1:$F$61,D$5,FALSE)),"",VLOOKUP($A62,'Entry List'!$A$1:$F$61,D$5,FALSE)) ->  | E62: =IF(ISNA(VLOOKUP($A62,'Entry List'!$A$1:$F$61,E$5,FALSE)),"",VLOOKUP($A62,'Entry List'!$A$1:$F$61,E$5,FALSE)) ->  | G62: DNS | H62: 0 | I62: DNS | J62: 0 | K62: DNS | L62: 0 | M62: DNS | N62: 0 | O62: DNS | P62: 0 | Q62: DNS | R62: 0 | S62: DNS | T62: 0 | U62: DNS | V62: 0 | W62: DNS | X62: 0 | Y62: DNS | Z62: 0 | AA62: 38 | AB62: 1 | AC62: DNS | AD62: 0 | AE62: DNS | AF62: 0 | AG62: DNS | AH62: 0 | AI62: DNS | AJ62: 0 | AK62: DNS | AL62: 0 | AM62: DNS | AN62: 0 | AO62: DNS | AP62: 0 | AQ62: DNS | AR62: 0 | AS62: DNS | AT62: 0 | AU62: DNS | AV62: 0 | AW62: DNS | AX62: 0 | AY62: DNS | AZ62: 0 | BA62: DNS | BB62: 0 | BC62: DNS | BD62: 0 | BE62: =IF('Last Race Results'!$B$5=0,0,IF(ISNA(VLOOKUP($A62,'Last Race Results'!$A$5:$J$44,2,FALSE)),"DNS",VLOOKUP($A62,'Last Race Results'!$A$5:$J$44,2,FALSE))) -> DNS | BF62: =IF('Last Race Results'!$B$5=0,0,IF(ISNA(VLOOKUP($A62,'Last Race Results'!$A$5:$K$44,11,FALSE)),0,VLOOKUP($A62,'Last Race Results'!$A$5:$K$44,11,FALSE))) -> 0
A63: 56 | B63: =IF(ISNA(VLOOKUP($A63,'Entry List'!$A$1:$F$61,B$5,FALSE)),"",VLOOKUP($A63,'Entry List'!$A$1:$F$61,B$5,FALSE)) ->  | C63: =IF(ISNA(VLOOKUP($A63,'Entry List'!$A$1:$F$61,C$5,FALSE)),"",VLOOKUP($A63,'Entry List'!$A$1:$F$61,C$5,FALSE)) ->  | D63: =IF(ISNA(VLOOKUP($A63,'Entry List'!$A$1:$F$61,D$5,FALSE)),"",VLOOKUP($A63,'Entry List'!$A$1:$F$61,D$5,FALSE)) ->  | E63: =IF(ISNA(VLOOKUP($A63,'Entry List'!$A$1:$F$61,E$5,FALSE)),"",VLOOKUP($A63,'Entry List'!$A$1:$F$61,E$5,FALSE)) ->  | G63: DNS | H63: 0 | I63: DNS | J63: 0 | K63: DNS | L63: 0 | M63: DNS | N63: 0 | O63: DNS | P63: 0 | Q63: DNS | R63: 0 | S63: DNS | T63: 0 | U63: DNS | V63: 0 | W63: DNS | X63: 0 | Y63: DNS | Z63: 0 | AA63: DNS | AB63: 0 | AC63: DNS | AD63: 0 | AE63: DNS | AF63: 0 | AG63: DNS | AH63: 0 | AI63: DNS | AJ63: 0 | AK63: DNS | AL63: 0 | AM63: DNS | AN63: 0 | AO63: DNS | AP63: 0 | AQ63: DNS | AR63: 0 | AS63: DNS | AT63: 0 | AU63: DNS | AV63: 0 | AW63: DNS | AX63: 0 | AY63: DNS | AZ63: 0 | BA63: DNS | BB63: 0 | BC63: DNS | BD63: 0 | BE63: =IF('Last Race Results'!$B$5=0,0,IF(ISNA(VLOOKUP($A63,'Last Race Results'!$A$5:$J$44,2,FALSE)),"DNS",VLOOKUP($A63,'Last Race Results'!$A$5:$J$44,2,FALSE))) -> DNS | BF63: =IF('Last Race Results'!$B$5=0,0,IF(ISNA(VLOOKUP($A63,'Last Race Results'!$A$5:$K$44,11,FALSE)),0,VLOOKUP($A63,'Last Race Results'!$A$5:$K$44,11,FALSE))) -> 0
A64: 57 | B64: =IF(ISNA(VLOOKUP($A64,'Entry List'!$A$1:$F$61,B$5,FALSE)),"",VLOOKUP($A64,'Entry List'!$A$1:$F$61,B$5,FALSE)) ->  | C64: =IF(ISNA(VLOOKUP($A64,'Entry List'!$A$1:$F$61,C$5,FALSE)),"",VLOOKUP($A64,'Entry List'!$A$1:$F$61,C$5,FALSE)) ->  | D64: =IF(ISNA(VLOOKUP($A64,'Entry List'!$A$1:$F$61,D$5,FALSE)),"",VLOOKUP($A64,'Entry List'!$A$1:$F$61,D$5,FALSE)) ->  | E64: =IF(ISNA(VLOOKUP($A64,'Entry List'!$A$1:$F$61,E$5,FALSE)),"",VLOOKUP($A64,'Entry List'!$A$1:$F$61,E$5,FALSE)) ->  | G64: DNS | H64: 0 | I64: DNS | J64: 0 | K64: DNS | L64: 0 | M64: DNS | N64: 0 | O64: DNS | P64: 0 | Q64: DNS | R64: 0 | S64: DNS | T64: 0 | U64: DNS | V64: 0 | W64: DNS | X64: 0 | Y64: DNS | Z64: 0 | AA64: DNS | AB64: 0 | AC64: DNS | AD64: 0 | AE64: DNS | AF64: 0 | AG64: DNS | AH64: 0 | AI64: DNS | AJ64: 0 | AK64: DNS | AL64: 0 | AM64: DNS | AN64: 0 | AO64: DNS | AP64: 0 | AQ64: DNS | AR64: 0 | AS64: DNS | AT64: 0 | AU64: DNS | AV64: 0 | AW64: DNS | AX64: 0 | AY64: DNS | AZ64: 0 | BA64: DNS | BB64: 0 | BC64: DNS | BD64: 0 | BE64: =IF('Last Race Results'!$B$5=0,0,IF(ISNA(VLOOKUP($A64,'Last Race Results'!$A$5:$J$44,2,FALSE)),"DNS",VLOOKUP($A64,'Last Race Results'!$A$5:$J$44,2,FALSE))) -> DNS | BF64: =IF('Last Race Results'!$B$5=0,0,IF(ISNA(VLOOKUP($A64,'Last Race Results'!$A$5:$K$44,11,FALSE)),0,VLOOKUP($A64,'Last Race Results'!$A$5:$K$44,11,FALSE))) -> 0
A65: 58 | B65: =IF(ISNA(VLOOKUP($A65,'Entry List'!$A$1:$F$61,B$5,FALSE)),"",VLOOKUP($A65,'Entry List'!$A$1:$F$61,B$5,FALSE)) ->  | C65: =IF(ISNA(VLOOKUP($A65,'Entry List'!$A$1:$F$61,C$5,FALSE)),"",VLOOKUP($A65,'Entry List'!$A$1:$F$61,C$5,FALSE)) ->  | D65: =IF(ISNA(VLOOKUP($A65,'Entry List'!$A$1:$F$61,D$5,FALSE)),"",VLOOKUP($A65,'Entry List'!$A$1:$F$61,D$5,FALSE)) ->  | E65: =IF(ISNA(VLOOKUP($A65,'Entry List'!$A$1:$F$61,E$5,FALSE)),"",VLOOKUP($A65,'Entry List'!$A$1:$F$61,E$5,FALSE)) ->  | G65: DNS | H65: 0 | I65: DNS | J65: 0 | K65: DNS | L65: 0 | M65: DNS | N65: 0 | O65: DNS | P65: 0 | Q65: DNS | R65: 0 | S65: DNS | T65: 0 | U65: DNS | V65: 0 | W65: DNS | X65: 0 | Y65: DNS | Z65: 0 | AA65: DNS | AB65: 0 | AC65: DNS | AD65: 0 | AE65: DNS | AF65: 0 | AG65: DNS | AH65: 0 | AI65: DNS | AJ65: 0 | AK65: DNS | AL65: 0 | AM65: DNS | AN65: 0 | AO65: DNS | AP65: 0 | AQ65: DNS | AR65: 0 | AS65: DNS | AT65: 0 | AU65: DNS | AV65: 0 | AW65: DNS | AX65: 0 | AY65: DNS | AZ65: 0 | BA65: DNS | BB65: 0 | BC65: DNS | BD65: 0 | BE65: =IF('Last Race Results'!$B$5=0,0,IF(ISNA(VLOOKUP($A65,'Last Race Results'!$A$5:$J$44,2,FALSE)),"DNS",VLOOKUP($A65,'Last Race Results'!$A$5:$J$44,2,FALSE))) -> DNS | BF65: =IF('Last Race Results'!$B$5=0,0,IF(ISNA(VLOOKUP($A65,'Last Race Results'!$A$5:$K$44,11,FALSE)),0,VLOOKUP($A65,'Last Race Results'!$A$5:$K$44,11,FALSE))) -> 0
A66: 59 | B66: =IF(ISNA(VLOOKUP($A66,'Entry List'!$A$1:$F$61,B$5,FALSE)),"",VLOOKUP($A66,'Entry List'!$A$1:$F$61,B$5,FALSE)) ->  | C66: =IF(ISNA(VLOOKUP($A66,'Entry List'!$A$1:$F$61,C$5,FALSE)),"",VLOOKUP($A66,'Entry List'!$A$1:$F$61,C$5,FALSE)) ->  | D66: =IF(ISNA(VLOOKUP($A66,'Entry List'!$A$1:$F$61,D$5,FALSE)),"",VLOOKUP($A66,'Entry List'!$A$1:$F$61,D$5,FALSE)) ->  | E66: =IF(ISNA(VLOOKUP($A66,'Entry List'!$A$1:$F$61,E$5,FALSE)),"",VLOOKUP($A66,'Entry List'!$A$1:$F$61,E$5,FALSE)) ->  | G66: DNS | H66: 0 | I66: DNS | J66: 0 | K66: DNS | L66: 0 | M66: DNS | N66: 0 | O66: DNS | P66: 0 | Q66: DNS | R66: 0 | S66: DNS | T66: 0 | U66: DNS | V66: 0 | W66: DNS | X66: 0 | Y66: DNS | Z66: 0 | AA66: DNS | AB66: 0 | AC66: DNS | AD66: 0 | AE66: DNS | AF66: 0 | AG66: DNS | AH66: 0 | AI66: DNS | AJ66: 0 | AK66: DNS | AL66: 0 | AM66: DNS | AN66: 0 | AO66: DNS | AP66: 0 | AQ66: DNS | AR66: 0 | AS66: DNS | AT66: 0 | AU66: DNS | AV66: 0 | AW66: DNS | AX66: 0 | AY66: DNS | AZ66: 0 | BA66: DNS | BB66: 0 | BC66: DNS | BD66: 0 | BE66: =IF('Last Race Results'!$B$5=0,0,IF(ISNA(VLOOKUP($A66,'Last Race Results'!$A$5:$J$44,2,FALSE)),"DNS",VLOOKUP($A66,'Last Race Results'!$A$5:$J$44,2,FALSE))) -> DNS | BF66: =IF('Last Race Results'!$B$5=0,0,IF(ISNA(VLOOKUP($A66,'Last Race Results'!$A$5:$K$44,11,FALSE)),0,VLOOKUP($A66,'Last Race Results'!$A$5:$K$44,11,FALSE))) -> 0
A67: 60 | B67: =IF(ISNA(VLOOKUP($A67,'Entry List'!$A$1:$F$61,B$5,FALSE)),"",VLOOKUP($A67,'Entry List'!$A$1:$F$61,B$5,FALSE)) ->  | C67: =IF(ISNA(VLOOKUP($A67,'Entry List'!$A$1:$F$61,C$5,FALSE)),"",VLOOKUP($A67,'Entry List'!$A$1:$F$61,C$5,FALSE)) ->  | D67: =IF(ISNA(VLOOKUP($A67,'Entry List'!$A$1:$F$61,D$5,FALSE)),"",VLOOKUP($A67,'Entry List'!$A$1:$F$61,D$5,FALSE)) ->  | E67: =IF(ISNA(VLOOKUP($A67,'Entry List'!$A$1:$F$61,E$5,FALSE)),"",VLOOKUP($A67,'Entry List'!$A$1:$F$61,E$5,FALSE)) ->  | G67: DNS | H67: 0 | I67: DNS | J67: 0 | K67: DNS | L67: 0 | M67: DNS | N67: 0 | O67: DNS | P67: 0 | Q67: DNS | R67: 0 | S67: DNS | T67: 0 | U67: DNS | V67: 0 | W67: DNS | X67: 0 | Y67: DNS | Z67: 0 | AA67: DNS | AB67: 0 | AC67: DNS | AD67: 0 | AE67: DNS | AF67: 0 | AG67: DNS | AH67: 0 | AI67: DNS | AJ67: 0 | AK67: DNS | AL67: 0 | AM67: DNS | AN67: 0 | AO67: DNS | AP67: 0 | AQ67: DNS | AR67: 0 | AS67: DNS | AT67: 0 | AU67: DNS | AV67: 0 | AW67: DNS | AX67: 0 | AY67: DNS | AZ67: 0 | BA67: DNS | BB67: 0 | BC67: DNS | BD67: 0 | BE67: =IF('Last Race Results'!$B$5=0,0,IF(ISNA(VLOOKUP($A67,'Last Race Results'!$A$5:$J$44,2,FALSE)),"DNS",VLOOKUP($A67,'Last Race Results'!$A$5:$J$44,2,FALSE))) -> DNS | BF67: =IF('Last Race Results'!$B$5=0,0,IF(ISNA(VLOOKUP($A67,'Last Race Results'!$A$5:$K$44,11,FALSE)),0,VLOOKUP($A67,'Last Race Results'!$A$5:$K$44,11,FALSE))) -> 0
A68: 61 | B68: =IF(ISNA(VLOOKUP($A68,'Entry List'!$A$1:$F$61,B$5,FALSE)),"",VLOOKUP($A68,'Entry List'!$A$1:$F$61,B$5,FALSE)) ->  | C68: =IF(ISNA(VLOOKUP($A68,'Entry List'!$A$1:$F$61,C$5,FALSE)),"",VLOOKUP($A68,'Entry List'!$A$1:$F$61,C$5,FALSE)) ->  | D68: =IF(ISNA(VLOOKUP($A68,'Entry List'!$A$1:$F$61,D$5,FALSE)),"",VLOOKUP($A68,'Entry List'!$A$1:$F$61,D$5,FALSE)) ->  | E68: =IF(ISNA(VLOOKUP($A68,'Entry List'!$A$1:$F$61,E$5,FALSE)),"",VLOOKUP($A68,'Entry List'!$A$1:$F$61,E$5,FALSE)) ->  | G68: DNS | H68: 0 | I68: DNS | J68: 0 | K68: DNS | L68: 0 | M68: DNS | N68: 0 | O68: DNS | P68: 0 | Q68: DNS | R68: 0 | S68: DNS | T68: 0 | U68: DNS | V68: 0 | W68: DNS | X68: 0 | Y68: DNS | Z68: 0 | AA68: DNS | AB68: 0 | AC68: DNS | AD68: 0 | AE68: DNS | AF68: 0 | AG68: DNS | AH68: 0 | AI68: DNS | AJ68: 0 | AK68: DNS | AL68: 0 | AM68: DNS | AN68: 0 | AO68: DNS | AP68: 0 | AQ68: DNS | AR68: 0 | AS68: DNS | AT68: 0 | AU68: DNS | AV68: 0 | AW68: DNS | AX68: 0 | AY68: DNS | AZ68: 0 | BA68: DNS | BB68: 0 | BC68: DNS | BD68: 0 | BE68: =IF('Last Race Results'!$B$5=0,0,IF(ISNA(VLOOKUP($A68,'Last Race Results'!$A$5:$J$44,2,FALSE)),"DNS",VLOOKUP($A68,'Last Race Results'!$A$5:$J$44,2,FALSE))) -> DNS | BF68: =IF('Last Race Results'!$B$5=0,0,IF(ISNA(VLOOKUP($A68,'Last Race Results'!$A$5:$K$44,11,FALSE)),0,VLOOKUP($A68,'Last Race Results'!$A$5:$K$44,11,FALSE))) -> 0
A69: 62 | B69: =IF(ISNA(VLOOKUP($A69,'Entry List'!$A$1:$F$61,B$5,FALSE)),"",VLOOKUP($A69,'Entry List'!$A$1:$F$61,B$5,FALSE)) ->  | C69: =IF(ISNA(VLOOKUP($A69,'Entry List'!$A$1:$F$61,C$5,FALSE)),"",VLOOKUP($A69,'Entry List'!$A$1:$F$61,C$5,FALSE)) ->  | D69: =IF(ISNA(VLOOKUP($A69,'Entry List'!$A$1:$F$61,D$5,FALSE)),"",VLOOKUP($A69,'Entry List'!$A$1:$F$61,D$5,FALSE)) ->  | E69: =IF(ISNA(VLOOKUP($A69,'Entry List'!$A$1:$F$61,E$5,FALSE)),"",VLOOKUP($A69,'Entry List'!$A$1:$F$61,E$5,FALSE)) ->  | G69: DNS | H69: 0 | I69: DNS | J69: 0 | K69: DNS | L69: 0 | M69: DNS | N69: 0 | O69: DNS | P69: 0 | Q69: DNS | R69: 0 | S69: DNS | T69: 0 | U69: DNS | V69: 0 | W69: DNS | X69: 0 | Y69: DNS | Z69: 0 | AA69: DNS | AB69: 0 | AC69: DNS | AD69: 0 | AE69: DNS | AF69: 0 | AG69: DNS | AH69: 0 | AI69: DNS | AJ69: 0 | AK69: DNS | AL69: 0 | AM69: DNS | AN69: 0 | AO69: DNS | AP69: 0 | AQ69: DNS | AR69: 0 | AS69: DNS | AT69: 0 | AU69: DNS | AV69: 0 | AW69: DNS | AX69: 0 | AY69: DNS | AZ69: 0 | BA69: DNS | BB69: 0 | BC69: DNS | BD69: 0 | BE69: =IF('Last Race Results'!$B$5=0,0,IF(ISNA(VLOOKUP($A69,'Last Race Results'!$A$5:$J$44,2,FALSE)),"DNS",VLOOKUP($A69,'Last Race Results'!$A$5:$J$44,2,FALSE))) -> DNS | BF69: =IF('Last Race Results'!$B$5=0,0,IF(ISNA(VLOOKUP($A69,'Last Race Results'!$A$5:$K$44,11,FALSE)),0,VLOOKUP($A69,'Last Race Results'!$A$5:$K$44,11,FALSE))) -> 0
A70: 63 | B70: =IF(ISNA(VLOOKUP($A70,'Entry List'!$A$1:$F$61,B$5,FALSE)),"",VLOOKUP($A70,'Entry List'!$A$1:$F$61,B$5,FALSE)) ->  | C70: =IF(ISNA(VLOOKUP($A70,'Entry List'!$A$1:$F$61,C$5,FALSE)),"",VLOOKUP($A70,'Entry List'!$A$1:$F$61,C$5,FALSE)) ->  | D70: =IF(ISNA(VLOOKUP($A70,'Entry List'!$A$1:$F$61,D$5,FALSE)),"",VLOOKUP($A70,'Entry List'!$A$1:$F$61,D$5,FALSE)) ->  | E70: =IF(ISNA(VLOOKUP($A70,'Entry List'!$A$1:$F$61,E$5,FALSE)),"",VLOOKUP($A70,'Entry List'!$A$1:$F$61,E$5,FALSE)) ->  | G70: DNS | H70: 0 | I70: DNS | J70: 0 | K70: DNS | L70: 0 | M70: DNS | N70: 0 | O70: DNS | P70: 0 | Q70: DNS | R70: 0 | S70: DNS | T70: 0 | U70: DNS | V70: 0 | W70: DNS | X70: 0 | Y70: DNS | Z70: 0 | AA70: DNS | AB70: 0 | AC70: DNS | AD70: 0 | AE70: DNS | AF70: 0 | AG70: DNS | AH70: 0 | AI70: DNS | AJ70: 0 | AK70: DNS | AL70: 0 | AM70: DNS | AN70: 0 | AO70: DNS | AP70: 0 | AQ70: DNS | AR70: 0 | AS70: DNS | AT70: 0 | AU70: DNS | AV70: 0 | AW70: DNS | AX70: 0 | AY70: DNS | AZ70: 0 | BA70: DNS | BB70: 0 | BC70: DNS | BD70: 0 | BE70: =IF('Last Race Results'!$B$5=0,0,IF(ISNA(VLOOKUP($A70,'Last Race Results'!$A$5:$J$44,2,FALSE)),"DNS",VLOOKUP($A70,'Last Race Results'!$A$5:$J$44,2,FALSE))) -> DNS | BF70: =IF('Last Race Results'!$B$5=0,0,IF(ISNA(VLOOKUP($A70,'Last Race Results'!$A$5:$K$44,11,FALSE)),0,VLOOKUP($A70,'Last Race Results'!$A$5:$K$44,11,FALSE))) -> 0
A71: 64 | B71: =IF(ISNA(VLOOKUP($A71,'Entry List'!$A$1:$F$61,B$5,FALSE)),"",VLOOKUP($A71,'Entry List'!$A$1:$F$61,B$5,FALSE)) ->  | C71: =IF(ISNA(VLOOKUP($A71,'Entry List'!$A$1:$F$61,C$5,FALSE)),"",VLOOKUP($A71,'Entry List'!$A$1:$F$61,C$5,FALSE)) ->  | D71: =IF(ISNA(VLOOKUP($A71,'Entry List'!$A$1:$F$61,D$5,FALSE)),"",VLOOKUP($A71,'Entry List'!$A$1:$F$61,D$5,FALSE)) ->  | E71: =IF(ISNA(VLOOKUP($A71,'Entry List'!$A$1:$F$61,E$5,FALSE)),"",VLOOKUP($A71,'Entry List'!$A$1:$F$61,E$5,FALSE)) ->  | G71: DNS | H71: 0 | I71: DNS | J71: 0 | K71: DNS | L71: 0 | M71: DNS | N71: 0 | O71: DNS | P71: 0 | Q71: DNS | R71: 0 | S71: DNS | T71: 0 | U71: DNS | V71: 0 | W71: DNS | X71: 0 | Y71: DNS | Z71: 0 | AA71: DNS | AB71: 0 | AC71: DNS | AD71: 0 | AE71: DNS | AF71: 0 | AG71: DNS | AH71: 0 | AI71: DNS | AJ71: 0 | AK71: DNS | AL71: 0 | AM71: DNS | AN71: 0 | AO71: DNS | AP71: 0 | AQ71: DNS | AR71: 0 | AS71: DNS | AT71: 0 | AU71: DNS | AV71: 0 | AW71: DNS | AX71: 0 | AY71: DNS | AZ71: 0 | BA71: DNS | BB71: 0 | BC71: DNS | BD71: 0 | BE71: =IF('Last Race Results'!$B$5=0,0,IF(ISNA(VLOOKUP($A71,'Last Race Results'!$A$5:$J$44,2,FALSE)),"DNS",VLOOKUP($A71,'Last Race Results'!$A$5:$J$44,2,FALSE))) -> DNS | BF71: =IF('Last Race Results'!$B$5=0,0,IF(ISNA(VLOOKUP($A71,'Last Race Results'!$A$5:$K$44,11,FALSE)),0,VLOOKUP($A71,'Last Race Results'!$A$5:$K$44,11,FALSE))) -> 0
A72: 65 | B72: =IF(ISNA(VLOOKUP($A72,'Entry List'!$A$1:$F$61,B$5,FALSE)),"",VLOOKUP($A72,'Entry List'!$A$1:$F$61,B$5,FALSE)) ->  | C72: =IF(ISNA(VLOOKUP($A72,'Entry List'!$A$1:$F$61,C$5,FALSE)),"",VLOOKUP($A72,'Entry List'!$A$1:$F$61,C$5,FALSE)) ->  | D72: =IF(ISNA(VLOOKUP($A72,'Entry List'!$A$1:$F$61,D$5,FALSE)),"",VLOOKUP($A72,'Entry List'!$A$1:$F$61,D$5,FALSE)) ->  | E72: =IF(ISNA(VLOOKUP($A72,'Entry List'!$A$1:$F$61,E$5,FALSE)),"",VLOOKUP($A72,'Entry List'!$A$1:$F$61,E$5,FALSE)) ->  | G72: DNS | H72: 0 | I72: DNS | J72: 0 | K72: DNS | L72: 0 | M72: DNS | N72: 0 | O72: DNS | P72: 0 | Q72: DNS | R72: 0 | S72: DNS | T72: 0 | U72: DNS | V72: 0 | W72: DNS | X72: 0 | Y72: DNS | Z72: 0 | AA72: DNS | AB72: 0 | AC72: DNS | AD72: 0 | AE72: DNS | AF72: 0 | AG72: DNS | AH72: 0 | AI72: DNS | AJ72: 0 | AK72: DNS | AL72: 0 | AM72: DNS | AN72: 0 | AO72: DNS | AP72: 0 | AQ72: DNS | AR72: 0 | AS72: DNS | AT72: 0 | AU72: DNS | AV72: 0 | AW72: DNS | AX72: 0 | AY72: DNS | AZ72: 0 | BA72: DNS | BB72: 0 | BC72: DNS | BD72: 0 | BE72: =IF('Last Race Results'!$B$5=0,0,IF(ISNA(VLOOKUP($A72,'Last Race Results'!$A$5:$J$44,2,FALSE)),"DNS",VLOOKUP($A72,'Last Race Results'!$A$5:$J$44,2,FALSE))) -> DNS | BF72: =IF('Last Race Results'!$B$5=0,0,IF(ISNA(VLOOKUP($A72,'Last Race Results'!$A$5:$K$44,11,FALSE)),0,VLOOKUP($A72,'Last Race Results'!$A$5:$K$44,11,FALSE))) -> 0
A73: 66 | B73: =IF(ISNA(VLOOKUP($A73,'Entry List'!$A$1:$F$61,B$5,FALSE)),"",VLOOKUP($A73,'Entry List'!$A$1:$F$61,B$5,FALSE)) -> David Starr (i) | C73: =IF(ISNA(VLOOKUP($A73,'Entry List'!$A$1:$F$61,C$5,FALSE)),"",VLOOKUP($A73,'Entry List'!$A$1:$F$61,C$5,FALSE)) -> Toyota | D73: =IF(ISNA(VLOOKUP($A73,'Entry List'!$A$1:$F$61,D$5,FALSE)),"",VLOOKUP($A73,'Entry List'!$A$1:$F$61,D$5,FALSE)) -> MBM Motorsports | E73: =IF(ISNA(VLOOKUP($A73,'Entry List'!$A$1:$F$61,E$5,FALSE)),"",VLOOKUP($A73,'Entry List'!$A$1:$F$61,E$5,FALSE)) -> MBM Motorsports | G73: DNS | H73: 0 | I73: 29 | J73: 8 | K73: 38 | L73: 1 | M73: 36 | N73: 1 | O73: 38 | P73: 1 | Q73: 36 | R73: 1 | S73: 31 | T73: 6 | U73: DNS | V73: 0 | W73: DNS | X73: 0 | Y73: 29 | Z73: 8 | AA73: DNS | AB73: 0 | AC73: DNS | AD73: 0 | AE73: DNS | AF73: 0 | AG73: DNS | AH73: 0 | AI73: 36 | AJ73: 1 | AK73: DNS | AL73: 0 | AM73: 33 | AN73: 4 | AO73: 35 | AP73: 2 | AQ73: 37 | AR73: 1 | AS73: DNS | AT73: 0 | AU73: DNS | AV73: 0 | AW73: DNS | AX73: 0 | AY73: DNS | AZ73: 0 | BA73: 27 | BB73: 10 | BC73: DNS | BD73: 0 | BE73: =IF('Last Race Results'!$B$5=0,0,IF(ISNA(VLOOKUP($A73,'Last Race Results'!$A$5:$J$44,2,FALSE)),"DNS",VLOOKUP($A73,'Last Race Results'!$A$5:$J$44,2,FALSE))) -> 27 | BF73: =IF('Last Race Results'!$B$5=0,0,IF(ISNA(VLOOKUP($A73,'Last Race Results'!$A$5:$K$44,11,FALSE)),0,VLOOKUP($A73,'Last Race Results'!$A$5:$K$44,11,FALSE))) -> 10
A74: 67 | B74: =IF(ISNA(VLOOKUP($A74,'Entry List'!$A$1:$F$61,B$5,FALSE)),"",VLOOKUP($A74,'Entry List'!$A$1:$F$61,B$5,FALSE)) ->  | C74: =IF(ISNA(VLOOKUP($A74,'Entry List'!$A$1:$F$61,C$5,FALSE)),"",VLOOKUP($A74,'Entry List'!$A$1:$F$61,C$5,FALSE)) ->  | D74: =IF(ISNA(VLOOKUP($A74,'Entry List'!$A$1:$F$61,D$5,FALSE)),"",VLOOKUP($A74,'Entry List'!$A$1:$F$61,D$5,FALSE)) ->  | E74: =IF(ISNA(VLOOKUP($A74,'Entry List'!$A$1:$F$61,E$5,FALSE)),"",VLOOKUP($A74,'Entry List'!$A$1:$F$61,E$5,FALSE)) ->  | G74: DNS | H74: 0 | I74: DNS | J74: 0 | K74: DNS | L74: 0 | M74: DNS | N74: 0 | O74: DNS | P74: 0 | Q74: DNS | R74: 0 | S74: DNS | T74: 0 | U74: DNS | V74: 0 | W74: DNS | X74: 0 | Y74: DNS | Z74: 0 | AA74: DNS | AB74: 0 | AC74: DNS | AD74: 0 | AE74: DNS | AF74: 0 | AG74: DNS | AH74: 0 | AI74: DNS | AJ74: 0 | AK74: DNS | AL74: 0 | AM74: DNS | AN74: 0 | AO74: DNS | AP74: 0 | AQ74: DNS | AR74: 0 | AS74: DNS | AT74: 0 | AU74: DNS | AV74: 0 | AW74: DNS | AX74: 0 | AY74: DNS | AZ74: 0 | BA74: DNS | BB74: 0 | BC74: DNS | BD74: 0 | BE74: =IF('Last Race Results'!$B$5=0,0,IF(ISNA(VLOOKUP($A74,'Last Race Results'!$A$5:$J$44,2,FALSE)),"DNS",VLOOKUP($A74,'Last Race Results'!$A$5:$J$44,2,FALSE))) -> DNS | BF74: =IF('Last Race Results'!$B$5=0,0,IF(ISNA(VLOOKUP($A74,'Last Race Results'!$A$5:$K$44,11,FALSE)),0,VLOOKUP($A74,'Last Race Results'!$A$5:$K$44,11,FALSE))) -> 0
A75: 68 | B75: =IF(ISNA(VLOOKUP($A75,'Entry List'!$A$1:$F$61,B$5,FALSE)),"",VLOOKUP($A75,'Entry List'!$A$1:$F$61,B$5,FALSE)) ->  | C75: =IF(ISNA(VLOOKUP($A75,'Entry List'!$A$1:$F$61,C$5,FALSE)),"",VLOOKUP($A75,'Entry List'!$A$1:$F$61,C$5,FALSE)) ->  | D75: =IF(ISNA(VLOOKUP($A75,'Entry List'!$A$1:$F$61,D$5,FALSE)),"",VLOOKUP($A75,'Entry List'!$A$1:$F$61,D$5,FALSE)) ->  | E75: =IF(ISNA(VLOOKUP($A75,'Entry List'!$A$1:$F$61,E$5,FALSE)),"",VLOOKUP($A75,'Entry List'!$A$1:$F$61,E$5,FALSE)) ->  | G75: DNS | H75: 0 | I75: DNS | J75: 0 | K75: DNS | L75: 0 | M75: DNS | N75: 0 | O75: DNS | P75: 0 | Q75: DNS | R75: 0 | S75: DNS | T75: 0 | U75: DNS | V75: 0 | W75: DNS | X75: 0 | Y75: DNS | Z75: 0 | AA75: DNS | AB75: 0 | AC75: DNS | AD75: 0 | AE75: DNS | AF75: 0 | AG75: DNS | AH75: 0 | AI75: DNS | AJ75: 0 | AK75: DNS | AL75: 0 | AM75: DNS | AN75: 0 | AO75: DNS | AP75: 0 | AQ75: DNS | AR75: 0 | AS75: DNS | AT75: 0 | AU75: DNS | AV75: 0 | AW75: DNS | AX75: 0 | AY75: DNS | AZ75: 0 | BA75: DNS | BB75: 0 | BC75: DNS | BD75: 0 | BE75: =IF('Last Race Results'!$B$5=0,0,IF(ISNA(VLOOKUP($A75,'Last Race Results'!$A$5:$J$44,2,FALSE)),"DNS",VLOOKUP($A75,'Last Race Results'!$A$5:$J$44,2,FALSE))) -> DNS | BF75: =IF('Last Race Results'!$B$5=0,0,IF(ISNA(VLOOKUP($A75,'Last Race Results'!$A$5:$K$44,11,FALSE)),0,VLOOKUP($A75,'Last Race Results'!$A$5:$K$44,11,FALSE))) -> 0
A76: 69 | B76: =IF(ISNA(VLOOKUP($A76,'Entry List'!$A$1:$F$61,B$5,FALSE)),"",VLOOKUP($A76,'Entry List'!$A$1:$F$61,B$5,FALSE)) ->  | C76: =IF(ISNA(VLOOKUP($A76,'Entry List'!$A$1:$F$61,C$5,FALSE)),"",VLOOKUP($A76,'Entry List'!$A$1:$F$61,C$5,FALSE)) ->  | D76: =IF(ISNA(VLOOKUP($A76,'Entry List'!$A$1:$F$61,D$5,FALSE)),"",VLOOKUP($A76,'Entry List'!$A$1:$F$61,D$5,FALSE)) ->  | E76: =IF(ISNA(VLOOKUP($A76,'Entry List'!$A$1:$F$61,E$5,FALSE)),"",VLOOKUP($A76,'Entry List'!$A$1:$F$61,E$5,FALSE)) ->  | G76: DNS | H76: 0 | I76: DNS | J76: 0 | K76: DNS | L76: 0 | M76: DNS | N76: 0 | O76: DNS | P76: 0 | Q76: DNS | R76: 0 | S76: DNS | T76: 0 | U76: DNS | V76: 0 | W76: DNS | X76: 0 | Y76: DNS | Z76: 0 | AA76: DNS | AB76: 0 | AC76: DNS | AD76: 0 | AE76: DNS | AF76: 0 | AG76: DNS | AH76: 0 | AI76: DNS | AJ76: 0 | AK76: DNS | AL76: 0 | AM76: DNS | AN76: 0 | AO76: DNS | AP76: 0 | AQ76: DNS | AR76: 0 | AS76: DNS | AT76: 0 | AU76: DNS | AV76: 0 | AW76: DNS | AX76: 0 | AY76: DNS | AZ76: 0 | BA76: DNS | BB76: 0 | BC76: DNS | BD76: 0 | BE76: =IF('Last Race Results'!$B$5=0,0,IF(ISNA(VLOOKUP($A76,'Last Race Results'!$A$5:$J$44,2,FALSE)),"DNS",VLOOKUP($A76,'Last Race Results'!$A$5:$J$44,2,FALSE))) -> DNS | BF76: =IF('Last Race Results'!$B$5=0,0,IF(ISNA(VLOOKUP($A76,'Last Race Results'!$A$5:$K$44,11,FALSE)),0,VLOOKUP($A76,'Last Race Results'!$A$5:$K$44,11,FALSE))) -> 0
A77: 70 | B77: =IF(ISNA(VLOOKUP($A77,'Entry List'!$A$1:$F$61,B$5,FALSE)),"",VLOOKUP($A77,'Entry List'!$A$1:$F$61,B$5,FALSE)) ->  | C77: =IF(ISNA(VLOOKUP($A77,'Entry List'!$A$1:$F$61,C$5,FALSE)),"",VLOOKUP($A77,'Entry List'!$A$1:$F$61,C$5,FALSE)) ->  | D77: =IF(ISNA(VLOOKUP($A77,'Entry List'!$A$1:$F$61,D$5,FALSE)),"",VLOOKUP($A77,'Entry List'!$A$1:$F$61,D$5,FALSE)) ->  | E77: =IF(ISNA(VLOOKUP($A77,'Entry List'!$A$1:$F$61,E$5,FALSE)),"",VLOOKUP($A77,'Entry List'!$A$1:$F$61,E$5,FALSE)) ->  | G77: DNS | H77: 0 | I77: DNS | J77: 0 | K77: DNS | L77: 0 | M77: DNS | N77: 0 | O77: DNS | P77: 0 | Q77: DNS | R77: 0 | S77: DNS | T77: 0 | U77: DNS | V77: 0 | W77: DNS | X77: 0 | Y77: DNS | Z77: 0 | AA77: DNS | AB77: 0 | AC77: DNS | AD77: 0 | AE77: DNS | AF77: 0 | AG77: DNS | AH77: 0 | AI77: DNS | AJ77: 0 | AK77: DNS | AL77: 0 | AM77: DNS | AN77: 0 | AO77: DNS | AP77: 0 | AQ77: DNS | AR77: 0 | AS77: DNS | AT77: 0 | AU77: DNS | AV77: 0 | AW77: DNS | AX77: 0 | AY77: DNS | AZ77: 0 | BA77: DNS | BB77: 0 | BC77: DNS | BD77: 0 | BE77: =IF('Last Race Results'!$B$5=0,0,IF(ISNA(VLOOKUP($A77,'Last Race Results'!$A$5:$J$44,2,FALSE)),"DNS",VLOOKUP($A77,'Last Race Results'!$A$5:$J$44,2,FALSE))) -> DNS | BF77: =IF('Last Race Results'!$B$5=0,0,IF(ISNA(VLOOKUP($A77,'Last Race Results'!$A$5:$K$44,11,FALSE)),0,VLOOKUP($A77,'Last Race Results'!$A$5:$K$44,11,FALSE))) -> 0
A78: 71 | B78: =IF(ISNA(VLOOKUP($A78,'Entry List'!$A$1:$F$61,B$5,FALSE)),"",VLOOKUP($A78,'Entry List'!$A$1:$F$61,B$5,FALSE)) ->  | C78: =IF(ISNA(VLOOKUP($A78,'Entry List'!$A$1:$F$61,C$5,FALSE)),"",VLOOKUP($A78,'Entry List'!$A$1:$F$61,C$5,FALSE)) ->  | D78: =IF(ISNA(VLOOKUP($A78,'Entry List'!$A$1:$F$61,D$5,FALSE)),"",VLOOKUP($A78,'Entry List'!$A$1:$F$61,D$5,FALSE)) ->  | E78: =IF(ISNA(VLOOKUP($A78,'Entry List'!$A$1:$F$61,E$5,FALSE)),"",VLOOKUP($A78,'Entry List'!$A$1:$F$61,E$5,FALSE)) ->  | G78: DNS | H78: 0 | I78: DNS | J78: 0 | K78: DNS | L78: 0 | M78: DNS | N78: 0 | O78: DNS | P78: 0 | Q78: DNS | R78: 0 | S78: DNS | T78: 0 | U78: DNS | V78: 0 | W78: DNS | X78: 0 | Y78: DNS | Z78: 0 | AA78: DNS | AB78: 0 | AC78: DNS | AD78: 0 | AE78: DNS | AF78: 0 | AG78: DNS | AH78: 0 | AI78: DNS | AJ78: 0 | AK78: DNS | AL78: 0 | AM78: DNS | AN78: 0 | AO78: DNS | AP78: 0 | AQ78: DNS | AR78: 0 | AS78: DNS | AT78: 0 | AU78: DNS | AV78: 0 | AW78: DNS | AX78: 0 | AY78: DNS | AZ78: 0 | BA78: DNS | BB78: 0 | BC78: DNS | BD78: 0 | BE78: =IF('Last Race Results'!$B$5=0,0,IF(ISNA(VLOOKUP($A78,'Last Race Results'!$A$5:$J$44,2,FALSE)),"DNS",VLOOKUP($A78,'Last Race Results'!$A$5:$J$44,2,FALSE))) -> DNS | BF78: =IF('Last Race Results'!$B$5=0,0,IF(ISNA(VLOOKUP($A78,'Last Race Results'!$A$5:$K$44,11,FALSE)),0,VLOOKUP($A78,'Last Race Results'!$A$5:$K$44,11,FALSE))) -> 0
A79: 72 | B79: =IF(ISNA(VLOOKUP($A79,'Entry List'!$A$1:$F$61,B$5,FALSE)),"",VLOOKUP($A79,'Entry List'!$A$1:$F$61,B$5,FALSE)) ->  | C79: =IF(ISNA(VLOOKUP($A79,'Entry List'!$A$1:$F$61,C$5,FALSE)),"",VLOOKUP($A79,'Entry List'!$A$1:$F$61,C$5,FALSE)) ->  | D79: =IF(ISNA(VLOOKUP($A79,'Entry List'!$A$1:$F$61,D$5,FALSE)),"",VLOOKUP($A79,'Entry List'!$A$1:$F$61,D$5,FALSE)) ->  | E79: =IF(ISNA(VLOOKUP($A79,'Entry List'!$A$1:$F$61,E$5,FALSE)),"",VLOOKUP($A79,'Entry List'!$A$1:$F$61,E$5,FALSE)) ->  | G79: DNS | H79: 0 | I79: DNS | J79: 0 | K79: DNS | L79: 0 | M79: DNS | N79: 0 | O79: DNS | P79: 0 | Q79: DNS | R79: 0 | S79: DNS | T79: 0 | U79: DNS | V79: 0 | W79: DNS | X79: 0 | Y79: DNS | Z79: 0 | AA79: DNS | AB79: 0 | AC79: DNS | AD79: 0 | AE79: DNS | AF79: 0 | AG79: DNS | AH79: 0 | AI79: DNS | AJ79: 0 | AK79: DNS | AL79: 0 | AM79: DNS | AN79: 0 | AO79: DNS | AP79: 0 | AQ79: DNS | AR79: 0 | AS79: DNS | AT79: 0 | AU79: DNS | AV79: 0 | AW79: DNS | AX79: 0 | AY79: DNS | AZ79: 0 | BA79: DNS | BB79: 0 | BC79: DNS | BD79: 0 | BE79: =IF('Last Race Results'!$B$5=0,0,IF(ISNA(VLOOKUP($A79,'Last Race Results'!$A$5:$J$44,2,FALSE)),"DNS",VLOOKUP($A79,'Last Race Results'!$A$5:$J$44,2,FALSE))) -> DNS | BF79: =IF('Last Race Results'!$B$5=0,0,IF(ISNA(VLOOKUP($A79,'Last Race Results'!$A$5:$K$44,11,FALSE)),0,VLOOKUP($A79,'Last Race Results'!$A$5:$K$44,11,FALSE))) -> 0
A80: 73 | B80: =IF(ISNA(VLOOKUP($A80,'Entry List'!$A$1:$F$61,B$5,FALSE)),"",VLOOKUP($A80,'Entry List'!$A$1:$F$61,B$5,FALSE)) ->  | C80: =IF(ISNA(VLOOKUP($A80,'Entry List'!$A$1:$F$61,C$5,FALSE)),"",VLOOKUP($A80,'Entry List'!$A$1:$F$61,C$5,FALSE)) ->  | D80: =IF(ISNA(VLOOKUP($A80,'Entry List'!$A$1:$F$61,D$5,FALSE)),"",VLOOKUP($A80,'Entry List'!$A$1:$F$61,D$5,FALSE)) ->  | E80: =IF(ISNA(VLOOKUP($A80,'Entry List'!$A$1:$F$61,E$5,FALSE)),"",VLOOKUP($A80,'Entry List'!$A$1:$F$61,E$5,FALSE)) ->  | G80: DNS | H80: 0 | I80: DNS | J80: 0 | K80: DNS | L80: 0 | M80: DNS | N80: 0 | O80: DNS | P80: 0 | Q80: DNS | R80: 0 | S80: DNS | T80: 0 | U80: DNS | V80: 0 | W80: DNS | X80: 0 | Y80: DNS | Z80: 0 | AA80: DNS | AB80: 0 | AC80: DNS | AD80: 0 | AE80: DNS | AF80: 0 | AG80: DNS | AH80: 0 | AI80: DNS | AJ80: 0 | AK80: DNS | AL80: 0 | AM80: DNS | AN80: 0 | AO80: DNS | AP80: 0 | AQ80: DNS | AR80: 0 | AS80: DNS | AT80: 0 | AU80: DNS | AV80: 0 | AW80: DNS | AX80: 0 | AY80: DNS | AZ80: 0 | BA80: DNS | BB80: 0 | BC80: DNS | BD80: 0 | BE80: =IF('Last Race Results'!$B$5=0,0,IF(ISNA(VLOOKUP($A80,'Last Race Results'!$A$5:$J$44,2,FALSE)),"DNS",VLOOKUP($A80,'Last Race Results'!$A$5:$J$44,2,FALSE))) -> DNS | BF80: =IF('Last Race Results'!$B$5=0,0,IF(ISNA(VLOOKUP($A80,'Last Race Results'!$A$5:$K$44,11,FALSE)),0,VLOOKUP($A80,'Last Race Results'!$A$5:$K$44,11,FALSE))) -> 0
A81: 74 | B81: =IF(ISNA(VLOOKUP($A81,'Entry List'!$A$1:$F$61,B$5,FALSE)),"",VLOOKUP($A81,'Entry List'!$A$1:$F$61,B$5,FALSE)) ->  | C81: =IF(ISNA(VLOOKUP($A81,'Entry List'!$A$1:$F$61,C$5,FALSE)),"",VLOOKUP($A81,'Entry List'!$A$1:$F$61,C$5,FALSE)) ->  | D81: =IF(ISNA(VLOOKUP($A81,'Entry List'!$A$1:$F$61,D$5,FALSE)),"",VLOOKUP($A81,'Entry List'!$A$1:$F$61,D$5,FALSE)) ->  | E81: =IF(ISNA(VLOOKUP($A81,'Entry List'!$A$1:$F$61,E$5,FALSE)),"",VLOOKUP($A81,'Entry List'!$A$1:$F$61,E$5,FALSE)) ->  | G81: DNS | H81: 0 | I81: DNS | J81: 0 | K81: DNS | L81: 0 | M81: DNS | N81: 0 | O81: DNS | P81: 0 | Q81: DNS | R81: 0 | S81: DNS | T81: 0 | U81: DNS | V81: 0 | W81: DNS | X81: 0 | Y81: DNS | Z81: 0 | AA81: DNS | AB81: 0 | AC81: DNS | AD81: 0 | AE81: DNS | AF81: 0 | AG81: DNS | AH81: 0 | AI81: DNS | AJ81: 0 | AK81: DNS | AL81: 0 | AM81: DNS | AN81: 0 | AO81: DNS | AP81: 0 | AQ81: DNS | AR81: 0 | AS81: DNS | AT81: 0 | AU81: DNS | AV81: 0 | AW81: DNS | AX81: 0 | AY81: DNS | AZ81: 0 | BA81: DNS | BB81: 0 | BC81: DNS | BD81: 0 | BE81: =IF('Last Race Results'!$B$5=0,0,IF(ISNA(VLOOKUP($A81,'Last Race Results'!$A$5:$J$44,2,FALSE)),"DNS",VLOOKUP($A81,'Last Race Results'!$A$5:$J$44,2,FALSE))) -> DNS | BF81: =IF('Last Race Results'!$B$5=0,0,IF(ISNA(VLOOKUP($A81,'Last Race Results'!$A$5:$K$44,11,FALSE)),0,VLOOKUP($A81,'Last Race Results'!$A$5:$K$44,11,FALSE))) -> 0
A82: 75 | B82: =IF(ISNA(VLOOKUP($A82,'Entry List'!$A$1:$F$61,B$5,FALSE)),"",VLOOKUP($A82,'Entry List'!$A$1:$F$61,B$5,FALSE)) ->  | C82: =IF(ISNA(VLOOKUP($A82,'Entry List'!$A$1:$F$61,C$5,FALSE)),"",VLOOKUP($A82,'Entry List'!$A$1:$F$61,C$5,FALSE)) ->  | D82: =IF(ISNA(VLOOKUP($A82,'Entry List'!$A$1:$F$61,D$5,FALSE)),"",VLOOKUP($A82,'Entry List'!$A$1:$F$61,D$5,FALSE)) ->  | E82: =IF(ISNA(VLOOKUP($A82,'Entry List'!$A$1:$F$61,E$5,FALSE)),"",VLOOKUP($A82,'Entry List'!$A$1:$F$61,E$5,FALSE)) ->  | G82: DNS | H82: 0 | I82: DNS | J82: 0 | K82: DNS | L82: 0 | M82: DNS | N82: 0 | O82: DNS | P82: 0 | Q82: DNS | R82: 0 | S82: DNS | T82: 0 | U82: DNS | V82: 0 | W82: DNS | X82: 0 | Y82: DNS | Z82: 0 | AA82: DNS | AB82: 0 | AC82: DNS | AD82: 0 | AE82: DNS | AF82: 0 | AG82: DNS | AH82: 0 | AI82: DNS | AJ82: 0 | AK82: DNS | AL82: 0 | AM82: DNS | AN82: 0 | AO82: DNS | AP82: 0 | AQ82: DNS | AR82: 0 | AS82: DNS | AT82: 0 | AU82: DNS | AV82: 0 | AW82: DNS | AX82: 0 | AY82: DNS | AZ82: 0 | BA82: DNS | BB82: 0 | BC82: DNS | BD82: 0 | BE82: =IF('Last Race Results'!$B$5=0,0,IF(ISNA(VLOOKUP($A82,'Last Race Results'!$A$5:$J$44,2,FALSE)),"DNS",VLOOKUP($A82,'Last Race Results'!$A$5:$J$44,2,FALSE))) -> DNS | BF82: =IF('Last Race Results'!$B$5=0,0,IF(ISNA(VLOOKUP($A82,'Last Race Results'!$A$5:$K$44,11,FALSE)),0,VLOOKUP($A82,'Last Race Results'!$A$5:$K$44,11,FALSE))) -> 0
A83: 76 | B83: =IF(ISNA(VLOOKUP($A83,'Entry List'!$A$1:$F$61,B$5,FALSE)),"",VLOOKUP($A83,'Entry List'!$A$1:$F$61,B$5,FALSE)) ->  | C83: =IF(ISNA(VLOOKUP($A83,'Entry List'!$A$1:$F$61,C$5,FALSE)),"",VLOOKUP($A83,'Entry List'!$A$1:$F$61,C$5,FALSE)) ->  | D83: =IF(ISNA(VLOOKUP($A83,'Entry List'!$A$1:$F$61,D$5,FALSE)),"",VLOOKUP($A83,'Entry List'!$A$1:$F$61,D$5,FALSE)) ->  | E83: =IF(ISNA(VLOOKUP($A83,'Entry List'!$A$1:$F$61,E$5,FALSE)),"",VLOOKUP($A83,'Entry List'!$A$1:$F$61,E$5,FALSE)) ->  | G83: DNS | H83: 0 | I83: DNS | J83: 0 | K83: DNS | L83: 0 | M83: DNS | N83: 0 | O83: DNS | P83: 0 | Q83: DNS | R83: 0 | S83: DNS | T83: 0 | U83: DNS | V83: 0 | W83: DNS | X83: 0 | Y83: DNS | Z83: 0 | AA83: DNS | AB83: 0 | AC83: DNS | AD83: 0 | AE83: DNS | AF83: 0 | AG83: DNS | AH83: 0 | AI83: DNS | AJ83: 0 | AK83: DNS | AL83: 0 | AM83: DNS | AN83: 0 | AO83: DNS | AP83: 0 | AQ83: DNS | AR83: 0 | AS83: DNS | AT83: 0 | AU83: DNS | AV83: 0 | AW83: DNS | AX83: 0 | AY83: DNS | AZ83: 0 | BA83: DNS | BB83: 0 | BC83: DNS | BD83: 0 | BE83: =IF('Last Race Results'!$B$5=0,0,IF(ISNA(VLOOKUP($A83,'Last Race Results'!$A$5:$J$44,2,FALSE)),"DNS",VLOOKUP($A83,'Last Race Results'!$A$5:$J$44,2,FALSE))) -> DNS | BF83: =IF('Last Race Results'!$B$5=0,0,IF(ISNA(VLOOKUP($A83,'Last Race Results'!$A$5:$K$44,11,FALSE)),0,VLOOKUP($A83,'Last Race Results'!$A$5:$K$44,11,FALSE))) -> 0
A84: 77 | B84: =IF(ISNA(VLOOKUP($A84,'Entry List'!$A$1:$F$61,B$5,FALSE)),"",VLOOKUP($A84,'Entry List'!$A$1:$F$61,B$5,FALSE)) -> Justin Haley (i) | C84: =IF(ISNA(VLOOKUP($A84,'Entry List'!$A$1:$F$61,C$5,FALSE)),"",VLOOKUP($A84,'Entry List'!$A$1:$F$61,C$5,FALSE)) -> Chevrolet | D84: =IF(ISNA(VLOOKUP($A84,'Entry List'!$A$1:$F$61,D$5,FALSE)),"",VLOOKUP($A84,'Entry List'!$A$1:$F$61,D$5,FALSE)) -> Spire Motorsports | E84: =IF(ISNA(VLOOKUP($A84,'Entry List'!$A$1:$F$61,E$5,FALSE)),"",VLOOKUP($A84,'Entry List'!$A$1:$F$61,E$5,FALSE)) -> Spire Motorsports | G84: 8 | H84: 29 | I84: 24 | J84: 13 | K84: 26 | L84: 11 | M84: 29 | N84: 8 | O84: 24 | P84: 0 | Q84: 30 | R84: 7 | S84: 23 | T84: 14 | U84: 35 | V84: 2 | W84: 38 | X84: 1 | Y84: 30 | Z84: 7 | AA84: 30 | AB84: 7 | AC84: 28 | AD84: 9 | AE84: 30 | AF84: 7 | AG84: 40 | AH84: 1 | AI84: 28 | AJ84: 9 | AK84: 30 | AL84: 7 | AM84: 35 | AN84: 2 | AO84: 27 | AP84: 10 | AQ84: 25 | AR84: 12 | AS84: 25 | AT84: 12 | AU84: 29 | AV84: 8 | AW84: 28 | AX84: 9 | AY84: 29 | AZ84: 8 | BA84: 8 | BB84: 32 | BC84: 25 | BD84: 12 | BE84: =IF('Last Race Results'!$B$5=0,0,IF(ISNA(VLOOKUP($A84,'Last Race Results'!$A$5:$J$44,2,FALSE)),"DNS",VLOOKUP($A84,'Last Race Results'!$A$5:$J$44,2,FALSE))) -> 6 | BF84: =IF('Last Race Results'!$B$5=0,0,IF(ISNA(VLOOKUP($A84,'Last Race Results'!$A$5:$K$44,11,FALSE)),0,VLOOKUP($A84,'Last Race Results'!$A$5:$K$44,11,FALSE))) -> 31
A85: 78 | B85: =IF(ISNA(VLOOKUP($A85,'Entry List'!$A$1:$F$61,B$5,FALSE)),"",VLOOKUP($A85,'Entry List'!$A$1:$F$61,B$5,FALSE)) -> B. J. McLeod (i) | C85: =IF(ISNA(VLOOKUP($A85,'Entry List'!$A$1:$F$61,C$5,FALSE)),"",VLOOKUP($A85,'Entry List'!$A$1:$F$61,C$5,FALSE)) -> Ford | D85: =IF(ISNA(VLOOKUP($A85,'Entry List'!$A$1:$F$61,D$5,FALSE)),"",VLOOKUP($A85,'Entry List'!$A$1:$F$61,D$5,FALSE)) -> Live Fast Motorsports | E85: =IF(ISNA(VLOOKUP($A85,'Entry List'!$A$1:$F$61,E$5,FALSE)),"",VLOOKUP($A85,'Entry List'!$A$1:$F$61,E$5,FALSE)) -> Live Fast Motorsports | G85: 23 | H85: 14 | I85: 28 | J85: 9 | K85: 34 | L85: 3 | M85: 30 | N85: 7 | O85: 30 | P85: 7 | Q85: 34 | R85: 3 | S85: 37 | T85: 1 | U85: 29 | V85: 8 | W85: 32 | X85: 5 | Y85: 25 | Z85: 12 | AA85: 31 | AB85: 6 | AC85: 32 | AD85: 5 | AE85: 36 | AF85: 1 | AG85: 31 | AH85: 6 | AI85: 31 | AJ85: 6 | AK85: 26 | AL85: 11 | AM85: 28 | AN85: 9 | AO85: 30 | AP85: 7 | AQ85: 29 | AR85: 8 | AS85: 35 | AT85: 2 | AU85: 30 | AV85: 7 | AW85: 30 | AX85: 7 | AY85: 30 | AZ85: 7 | BA85: 39 | BB85: 4 | BC85: 28 | BD85: 9 | BE85: =IF('Last Race Results'!$B$5=0,0,IF(ISNA(VLOOKUP($A85,'Last Race Results'!$A$5:$J$44,2,FALSE)),"DNS",VLOOKUP($A85,'Last Race Results'!$A$5:$J$44,2,FALSE))) -> 9 | BF85: =IF('Last Race Results'!$B$5=0,0,IF(ISNA(VLOOKUP($A85,'Last Race Results'!$A$5:$K$44,11,FALSE)),0,VLOOKUP($A85,'Last Race Results'!$A$5:$K$44,11,FALSE))) -> 28
A86: 79 | B86: =IF(ISNA(VLOOKUP($A86,'Entry List'!$A$1:$F$61,B$5,FALSE)),"",VLOOKUP($A86,'Entry List'!$A$1:$F$61,B$5,FALSE)) ->  | C86: =IF(ISNA(VLOOKUP($A86,'Entry List'!$A$1:$F$61,C$5,FALSE)),"",VLOOKUP($A86,'Entry List'!$A$1:$F$61,C$5,FALSE)) ->  | D86: =IF(ISNA(VLOOKUP($A86,'Entry List'!$A$1:$F$61,D$5,FALSE)),"",VLOOKUP($A86,'Entry List'!$A$1:$F$61,D$5,FALSE)) ->  | E86: =IF(ISNA(VLOOKUP($A86,'Entry List'!$A$1:$F$61,E$5,FALSE)),"",VLOOKUP($A86,'Entry List'!$A$1:$F$61,E$5,FALSE)) ->  | G86: DNS | H86: 0 | I86: DNS | J86: 0 | K86: DNS | L86: 0 | M86: DNS | N86: 0 | O86: DNS | P86: 0 | Q86: DNS | R86: 0 | S86: DNS | T86: 0 | U86: DNS | V86: 0 | W86: DNS | X86: 0 | Y86: DNS | Z86: 0 | AA86: DNS | AB86: 0 | AC86: DNS | AD86: 0 | AE86: DNS | AF86: 0 | AG86: DNS | AH86: 0 | AI86: DNS | AJ86: 0 | AK86: DNS | AL86: 0 | AM86: DNS | AN86: 0 | AO86: DNS | AP86: 0 | AQ86: DNS | AR86: 0 | AS86: DNS | AT86: 0 | AU86: DNS | AV86: 0 | AW86: DNS | AX86: 0 | AY86: DNS | AZ86: 0 | BA86: DNS | BB86: 0 | BC86: DNS | BD86: 0 | BE86: =IF('Last Race Results'!$B$5=0,0,IF(ISNA(VLOOKUP($A86,'Last Race Results'!$A$5:$J$44,2,FALSE)),"DNS",VLOOKUP($A86,'Last Race Results'!$A$5:$J$44,2,FALSE))) -> DNS | BF86: =IF('Last Race Results'!$B$5=0,0,IF(ISNA(VLOOKUP($A86,'Last Race Results'!$A$5:$K$44,11,FALSE)),0,VLOOKUP($A86,'Last Race Results'!$A$5:$K$44,11,FALSE))) -> 0
A87: 80 | B87: =IF(ISNA(VLOOKUP($A87,'Entry List'!$A$1:$F$61,B$5,FALSE)),"",VLOOKUP($A87,'Entry List'!$A$1:$F$61,B$5,FALSE)) ->  | C87: =IF(ISNA(VLOOKUP($A87,'Entry List'!$A$1:$F$61,C$5,FALSE)),"",VLOOKUP($A87,'Entry List'!$A$1:$F$61,C$5,FALSE)) ->  | D87: =IF(ISNA(VLOOKUP($A87,'Entry List'!$A$1:$F$61,D$5,FALSE)),"",VLOOKUP($A87,'Entry List'!$A$1:$F$61,D$5,FALSE)) ->  | E87: =IF(ISNA(VLOOKUP($A87,'Entry List'!$A$1:$F$61,E$5,FALSE)),"",VLOOKUP($A87,'Entry List'!$A$1:$F$61,E$5,FALSE)) ->  | G87: DNS | H87: 0 | I87: DNS | J87: 0 | K87: DNS | L87: 0 | M87: DNS | N87: 0 | O87: DNS | P87: 0 | Q87: DNS | R87: 0 | S87: DNS | T87: 0 | U87: DNS | V87: 0 | W87: DNS | X87: 0 | Y87: DNS | Z87: 0 | AA87: DNS | AB87: 0 | AC87: DNS | AD87: 0 | AE87: DNS | AF87: 0 | AG87: DNS | AH87: 0 | AI87: DNS | AJ87: 0 | AK87: DNS | AL87: 0 | AM87: DNS | AN87: 0 | AO87: DNS | AP87: 0 | AQ87: DNS | AR87: 0 | AS87: DNS | AT87: 0 | AU87: DNS | AV87: 0 | AW87: DNS | AX87: 0 | AY87: DNS | AZ87: 0 | BA87: DNS | BB87: 0 | BC87: DNS | BD87: 0 | BE87: =IF('Last Race Results'!$B$5=0,0,IF(ISNA(VLOOKUP($A87,'Last Race Results'!$A$5:$J$44,2,FALSE)),"DNS",VLOOKUP($A87,'Last Race Results'!$A$5:$J$44,2,FALSE))) -> DNS | BF87: =IF('Last Race Results'!$B$5=0,0,IF(ISNA(VLOOKUP($A87,'Last Race Results'!$A$5:$K$44,11,FALSE)),0,VLOOKUP($A87,'Last Race Results'!$A$5:$K$44,11,FALSE))) -> 0
A88: 81 | B88: =IF(ISNA(VLOOKUP($A88,'Entry List'!$A$1:$F$61,B$5,FALSE)),"",VLOOKUP($A88,'Entry List'!$A$1:$F$61,B$5,FALSE)) ->  | C88: =IF(ISNA(VLOOKUP($A88,'Entry List'!$A$1:$F$61,C$5,FALSE)),"",VLOOKUP($A88,'Entry List'!$A$1:$F$61,C$5,FALSE)) ->  | D88: =IF(ISNA(VLOOKUP($A88,'Entry List'!$A$1:$F$61,D$5,FALSE)),"",VLOOKUP($A88,'Entry List'!$A$1:$F$61,D$5,FALSE)) ->  | E88: =IF(ISNA(VLOOKUP($A88,'Entry List'!$A$1:$F$61,E$5,FALSE)),"",VLOOKUP($A88,'Entry List'!$A$1:$F$61,E$5,FALSE)) ->  | G88: DNS | H88: 0 | I88: DNS | J88: 0 | K88: DNS | L88: 0 | M88: DNS | N88: 0 | O88: DNS | P88: 0 | Q88: DNS | R88: 0 | S88: DNS | T88: 0 | U88: DNS | V88: 0 | W88: DNS | X88: 0 | Y88: DNS | Z88: 0 | AA88: DNS | AB88: 0 | AC88: DNS | AD88: 0 | AE88: DNS | AF88: 0 | AG88: DNS | AH88: 0 | AI88: DNS | AJ88: 0 | AK88: DNS | AL88: 0 | AM88: DNS | AN88: 0 | AO88: DNS | AP88: 0 | AQ88: DNS | AR88: 0 | AS88: DNS | AT88: 0 | AU88: DNS | AV88: 0 | AW88: DNS | AX88: 0 | AY88: DNS | AZ88: 0 | BA88: DNS | BB88: 0 | BC88: DNS | BD88: 0 | BE88: =IF('Last Race Results'!$B$5=0,0,IF(ISNA(VLOOKUP($A88,'Last Race Results'!$A$5:$J$44,2,FALSE)),"DNS",VLOOKUP($A88,'Last Race Results'!$A$5:$J$44,2,FALSE))) -> DNS | BF88: =IF('Last Race Results'!$B$5=0,0,IF(ISNA(VLOOKUP($A88,'Last Race Results'!$A$5:$K$44,11,FALSE)),0,VLOOKUP($A88,'Last Race Results'!$A$5:$K$44,11,FALSE))) -> 0
A89: 82 | B89: =IF(ISNA(VLOOKUP($A89,'Entry List'!$A$1:$F$61,B$5,FALSE)),"",VLOOKUP($A89,'Entry List'!$A$1:$F$61,B$5,FALSE)) ->  | C89: =IF(ISNA(VLOOKUP($A89,'Entry List'!$A$1:$F$61,C$5,FALSE)),"",VLOOKUP($A89,'Entry List'!$A$1:$F$61,C$5,FALSE)) ->  | D89: =IF(ISNA(VLOOKUP($A89,'Entry List'!$A$1:$F$61,D$5,FALSE)),"",VLOOKUP($A89,'Entry List'!$A$1:$F$61,D$5,FALSE)) ->  | E89: =IF(ISNA(VLOOKUP($A89,'Entry List'!$A$1:$F$61,E$5,FALSE)),"",VLOOKUP($A89,'Entry List'!$A$1:$F$61,E$5,FALSE)) ->  | G89: DNS | H89: 0 | I89: DNS | J89: 0 | K89: DNS | L89: 0 | M89: DNS | N89: 0 | O89: DNS | P89: 0 | Q89: DNS | R89: 0 | S89: DNS | T89: 0 | U89: DNS | V89: 0 | W89: DNS | X89: 0 | Y89: DNS | Z89: 0 | AA89: DNS | AB89: 0 | AC89: DNS | AD89: 0 | AE89: DNS | AF89: 0 | AG89: DNS | AH89: 0 | AI89: DNS | AJ89: 0 | AK89: DNS | AL89: 0 | AM89: DNS | AN89: 0 | AO89: DNS | AP89: 0 | AQ89: DNS | AR89: 0 | AS89: DNS | AT89: 0 | AU89: DNS | AV89: 0 | AW89: DNS | AX89: 0 | AY89: DNS | AZ89: 0 | BA89: DNS | BB89: 0 | BC89: DNS | BD89: 0 | BE89: =IF('Last Race Results'!$B$5=0,0,IF(ISNA(VLOOKUP($A89,'Last Race Results'!$A$5:$J$44,2,FALSE)),"DNS",VLOOKUP($A89,'Last Race Results'!$A$5:$J$44,2,FALSE))) -> DNS | BF89: =IF('Last Race Results'!$B$5=0,0,IF(ISNA(VLOOKUP($A89,'Last Race Results'!$A$5:$K$44,11,FALSE)),0,VLOOKUP($A89,'Last Race Results'!$A$5:$K$44,11,FALSE))) -> 0
A90: 83 | B90: =IF(ISNA(VLOOKUP($A90,'Entry List'!$A$1:$F$61,B$5,FALSE)),"",VLOOKUP($A90,'Entry List'!$A$1:$F$61,B$5,FALSE)) ->  | C90: =IF(ISNA(VLOOKUP($A90,'Entry List'!$A$1:$F$61,C$5,FALSE)),"",VLOOKUP($A90,'Entry List'!$A$1:$F$61,C$5,FALSE)) ->  | D90: =IF(ISNA(VLOOKUP($A90,'Entry List'!$A$1:$F$61,D$5,FALSE)),"",VLOOKUP($A90,'Entry List'!$A$1:$F$61,D$5,FALSE)) ->  | E90: =IF(ISNA(VLOOKUP($A90,'Entry List'!$A$1:$F$61,E$5,FALSE)),"",VLOOKUP($A90,'Entry List'!$A$1:$F$61,E$5,FALSE)) ->  | G90: DNS | H90: 0 | I90: DNS | J90: 0 | K90: DNS | L90: 0 | M90: DNS | N90: 0 | O90: DNS | P90: 0 | Q90: DNS | R90: 0 | S90: DNS | T90: 0 | U90: DNS | V90: 0 | W90: DNS | X90: 0 | Y90: DNS | Z90: 0 | AA90: DNS | AB90: 0 | AC90: DNS | AD90: 0 | AE90: DNS | AF90: 0 | AG90: DNS | AH90: 0 | AI90: DNS | AJ90: 0 | AK90: DNS | AL90: 0 | AM90: DNS | AN90: 0 | AO90: DNS | AP90: 0 | AQ90: DNS | AR90: 0 | AS90: DNS | AT90: 0 | AU90: DNS | AV90: 0 | AW90: DNS | AX90: 0 | AY90: DNS | AZ90: 0 | BA90: DNS | BB90: 0 | BC90: DNS | BD90: 0 | BE90: =IF('Last Race Results'!$B$5=0,0,IF(ISNA(VLOOKUP($A90,'Last Race Results'!$A$5:$J$44,2,FALSE)),"DNS",VLOOKUP($A90,'Last Race Results'!$A$5:$J$44,2,FALSE))) -> DNS | BF90: =IF('Last Race Results'!$B$5=0,0,IF(ISNA(VLOOKUP($A90,'Last Race Results'!$A$5:$K$44,11,FALSE)),0,VLOOKUP($A90,'Last Race Results'!$A$5:$K$44,11,FALSE))) -> 0
A91: 84 | B91: =IF(ISNA(VLOOKUP($A91,'Entry List'!$A$1:$F$61,B$5,FALSE)),"",VLOOKUP($A91,'Entry List'!$A$1:$F$61,B$5,FALSE)) ->  | C91: =IF(ISNA(VLOOKUP($A91,'Entry List'!$A$1:$F$61,C$5,FALSE)),"",VLOOKUP($A91,'Entry List'!$A$1:$F$61,C$5,FALSE)) ->  | D91: =IF(ISNA(VLOOKUP($A91,'Entry List'!$A$1:$F$61,D$5,FALSE)),"",VLOOKUP($A91,'Entry List'!$A$1:$F$61,D$5,FALSE)) ->  | E91: =IF(ISNA(VLOOKUP($A91,'Entry List'!$A$1:$F$61,E$5,FALSE)),"",VLOOKUP($A91,'Entry List'!$A$1:$F$61,E$5,FALSE)) ->  | G91: DNS | H91: 0 | I91: DNS | J91: 0 | K91: DNS | L91: 0 | M91: DNS | N91: 0 | O91: DNS | P91: 0 | Q91: DNS | R91: 0 | S91: DNS | T91: 0 | U91: DNS | V91: 0 | W91: DNS | X91: 0 | Y91: DNS | Z91: 0 | AA91: DNS | AB91: 0 | AC91: DNS | AD91: 0 | AE91: DNS | AF91: 0 | AG91: DNS | AH91: 0 | AI91: DNS | AJ91: 0 | AK91: DNS | AL91: 0 | AM91: DNS | AN91: 0 | AO91: DNS | AP91: 0 | AQ91: DNS | AR91: 0 | AS91: DNS | AT91: 0 | AU91: DNS | AV91: 0 | AW91: DNS | AX91: 0 | AY91: DNS | AZ91: 0 | BA91: DNS | BB91: 0 | BC91: DNS | BD91: 0 | BE91: =IF('Last Race Results'!$B$5=0,0,IF(ISNA(VLOOKUP($A91,'Last Race Results'!$A$5:$J$44,2,FALSE)),"DNS",VLOOKUP($A91,'Last Race Results'!$A$5:$J$44,2,FALSE))) -> DNS | BF91: =IF('Last Race Results'!$B$5=0,0,IF(ISNA(VLOOKUP($A91,'Last Race Results'!$A$5:$K$44,11,FALSE)),0,VLOOKUP($A91,'Last Race Results'!$A$5:$K$44,11,FALSE))) -> 0
A92: 85 | B92: =IF(ISNA(VLOOKUP($A92,'Entry List'!$A$1:$F$61,B$5,FALSE)),"",VLOOKUP($A92,'Entry List'!$A$1:$F$61,B$5,FALSE)) ->  | C92: =IF(ISNA(VLOOKUP($A92,'Entry List'!$A$1:$F$61,C$5,FALSE)),"",VLOOKUP($A92,'Entry List'!$A$1:$F$61,C$5,FALSE)) ->  | D92: =IF(ISNA(VLOOKUP($A92,'Entry List'!$A$1:$F$61,D$5,FALSE)),"",VLOOKUP($A92,'Entry List'!$A$1:$F$61,D$5,FALSE)) ->  | E92: =IF(ISNA(VLOOKUP($A92,'Entry List'!$A$1:$F$61,E$5,FALSE)),"",VLOOKUP($A92,'Entry List'!$A$1:$F$61,E$5,FALSE)) ->  | G92: DNS | H92: 0 | I92: DNS | J92: 0 | K92: DNS | L92: 0 | M92: DNS | N92: 0 | O92: DNS | P92: 0 | Q92: DNS | R92: 0 | S92: DNS | T92: 0 | U92: DNS | V92: 0 | W92: DNS | X92: 0 | Y92: DNS | Z92: 0 | AA92: DNS | AB92: 0 | AC92: DNS | AD92: 0 | AE92: DNS | AF92: 0 | AG92: DNS | AH92: 0 | AI92: DNS | AJ92: 0 | AK92: DNS | AL92: 0 | AM92: DNS | AN92: 0 | AO92: DNS | AP92: 0 | AQ92: DNS | AR92: 0 | AS92: DNS | AT92: 0 | AU92: DNS | AV92: 0 | AW92: DNS | AX92: 0 | AY92: DNS | AZ92: 0 | BA92: DNS | BB92: 0 | BC92: DNS | BD92: 0 | BE92: =IF('Last Race Results'!$B$5=0,0,IF(ISNA(VLOOKUP($A92,'Last Race Results'!$A$5:$J$44,2,FALSE)),"DNS",VLOOKUP($A92,'Last Race Results'!$A$5:$J$44,2,FALSE))) -> DNS | BF92: =IF('Last Race Results'!$B$5=0,0,IF(ISNA(VLOOKUP($A92,'Last Race Results'!$A$5:$K$44,11,FALSE)),0,VLOOKUP($A92,'Last Race Results'!$A$5:$K$44,11,FALSE))) -> 0
A93: 86 | B93: =IF(ISNA(VLOOKUP($A93,'Entry List'!$A$1:$F$61,B$5,FALSE)),"",VLOOKUP($A93,'Entry List'!$A$1:$F$61,B$5,FALSE)) ->  | C93: =IF(ISNA(VLOOKUP($A93,'Entry List'!$A$1:$F$61,C$5,FALSE)),"",VLOOKUP($A93,'Entry List'!$A$1:$F$61,C$5,FALSE)) ->  | D93: =IF(ISNA(VLOOKUP($A93,'Entry List'!$A$1:$F$61,D$5,FALSE)),"",VLOOKUP($A93,'Entry List'!$A$1:$F$61,D$5,FALSE)) ->  | E93: =IF(ISNA(VLOOKUP($A93,'Entry List'!$A$1:$F$61,E$5,FALSE)),"",VLOOKUP($A93,'Entry List'!$A$1:$F$61,E$5,FALSE)) ->  | G93: DNS | H93: 0 | I93: DNS | J93: 0 | K93: DNS | L93: 0 | M93: DNS | N93: 0 | O93: DNS | P93: 0 | Q93: DNS | R93: 0 | S93: DNS | T93: 0 | U93: DNS | V93: 0 | W93: DNS | X93: 0 | Y93: DNS | Z93: 0 | AA93: DNS | AB93: 0 | AC93: DNS | AD93: 0 | AE93: DNS | AF93: 0 | AG93: DNS | AH93: 0 | AI93: DNS | AJ93: 0 | AK93: DNS | AL93: 0 | AM93: DNS | AN93: 0 | AO93: DNS | AP93: 0 | AQ93: DNS | AR93: 0 | AS93: DNS | AT93: 0 | AU93: DNS | AV93: 0 | AW93: DNS | AX93: 0 | AY93: DNS | AZ93: 0 | BA93: DNS | BB93: 0 | BC93: DNS | BD93: 0 | BE93: =IF('Last Race Results'!$B$5=0,0,IF(ISNA(VLOOKUP($A93,'Last Race Results'!$A$5:$J$44,2,FALSE)),"DNS",VLOOKUP($A93,'Last Race Results'!$A$5:$J$44,2,FALSE))) -> DNS | BF93: =IF('Last Race Results'!$B$5=0,0,IF(ISNA(VLOOKUP($A93,'Last Race Results'!$A$5:$K$44,11,FALSE)),0,VLOOKUP($A93,'Last Race Results'!$A$5:$K$44,11,FALSE))) -> 0
A94: 87 | B94: =IF(ISNA(VLOOKUP($A94,'Entry List'!$A$1:$F$61,B$5,FALSE)),"",VLOOKUP($A94,'Entry List'!$A$1:$F$61,B$5,FALSE)) ->  | C94: =IF(ISNA(VLOOKUP($A94,'Entry List'!$A$1:$F$61,C$5,FALSE)),"",VLOOKUP($A94,'Entry List'!$A$1:$F$61,C$5,FALSE)) ->  | D94: =IF(ISNA(VLOOKUP($A94,'Entry List'!$A$1:$F$61,D$5,FALSE)),"",VLOOKUP($A94,'Entry List'!$A$1:$F$61,D$5,FALSE)) ->  | E94: =IF(ISNA(VLOOKUP($A94,'Entry List'!$A$1:$F$61,E$5,FALSE)),"",VLOOKUP($A94,'Entry List'!$A$1:$F$61,E$5,FALSE)) ->  | G94: DNS | H94: 0 | I94: DNS | J94: 0 | K94: DNS | L94: 0 | M94: DNS | N94: 0 | O94: DNS | P94: 0 | Q94: DNS | R94: 0 | S94: DNS | T94: 0 | U94: DNS | V94: 0 | W94: DNS | X94: 0 | Y94: DNS | Z94: 0 | AA94: DNS | AB94: 0 | AC94: DNS | AD94: 0 | AE94: DNS | AF94: 0 | AG94: DNS | AH94: 0 | AI94: DNS | AJ94: 0 | AK94: DNS | AL94: 0 | AM94: DNS | AN94: 0 | AO94: DNS | AP94: 0 | AQ94: DNS | AR94: 0 | AS94: DNS | AT94: 0 | AU94: DNS | AV94: 0 | AW94: DNS | AX94: 0 | AY94: DNS | AZ94: 0 | BA94: DNS | BB94: 0 | BC94: DNS | BD94: 0 | BE94: =IF('Last Race Results'!$B$5=0,0,IF(ISNA(VLOOKUP($A94,'Last Race Results'!$A$5:$J$44,2,FALSE)),"DNS",VLOOKUP($A94,'Last Race Results'!$A$5:$J$44,2,FALSE))) -> DNS | BF94: =IF('Last Race Results'!$B$5=0,0,IF(ISNA(VLOOKUP($A94,'Last Race Results'!$A$5:$K$44,11,FALSE)),0,VLOOKUP($A94,'Last Race Results'!$A$5:$K$44,11,FALSE))) -> 0
A95: 88 | B95: =IF(ISNA(VLOOKUP($A95,'Entry List'!$A$1:$F$61,B$5,FALSE)),"",VLOOKUP($A95,'Entry List'!$A$1:$F$61,B$5,FALSE)) ->  | C95: =IF(ISNA(VLOOKUP($A95,'Entry List'!$A$1:$F$61,C$5,FALSE)),"",VLOOKUP($A95,'Entry List'!$A$1:$F$61,C$5,FALSE)) ->  | D95: =IF(ISNA(VLOOKUP($A95,'Entry List'!$A$1:$F$61,D$5,FALSE)),"",VLOOKUP($A95,'Entry List'!$A$1:$F$61,D$5,FALSE)) ->  | E95: =IF(ISNA(VLOOKUP($A95,'Entry List'!$A$1:$F$61,E$5,FALSE)),"",VLOOKUP($A95,'Entry List'!$A$1:$F$61,E$5,FALSE)) ->  | G95: DNS | H95: 0 | I95: DNS | J95: 0 | K95: DNS | L95: 0 | M95: DNS | N95: 0 | O95: DNS | P95: 0 | Q95: DNS | R95: 0 | S95: DNS | T95: 0 | U95: DNS | V95: 0 | W95: DNS | X95: 0 | Y95: DNS | Z95: 0 | AA95: DNS | AB95: 0 | AC95: DNS | AD95: 0 | AE95: DNS | AF95: 0 | AG95: DNS | AH95: 0 | AI95: DNS | AJ95: 0 | AK95: DNS | AL95: 0 | AM95: DNS | AN95: 0 | AO95: DNS | AP95: 0 | AQ95: DNS | AR95: 0 | AS95: DNS | AT95: 0 | AU95: DNS | AV95: 0 | AW95: DNS | AX95: 0 | AY95: DNS | AZ95: 0 | BA95: DNS | BB95: 0 | BC95: DNS | BD95: 0 | BE95: =IF('Last Race Results'!$B$5=0,0,IF(ISNA(VLOOKUP($A95,'Last Race Results'!$A$5:$J$44,2,FALSE)),"DNS",VLOOKUP($A95,'Last Race Results'!$A$5:$J$44,2,FALSE))) -> DNS | BF95: =IF('Last Race Results'!$B$5=0,0,IF(ISNA(VLOOKUP($A95,'Last Race Results'!$A$5:$K$44,11,FALSE)),0,VLOOKUP($A95,'Last Race Results'!$A$5:$K$44,11,FALSE))) -> 0
A96: 89 | B96: =IF(ISNA(VLOOKUP($A96,'Entry List'!$A$1:$F$61,B$5,FALSE)),"",VLOOKUP($A96,'Entry List'!$A$1:$F$61,B$5,FALSE)) ->  | C96: =IF(ISNA(VLOOKUP($A96,'Entry List'!$A$1:$F$61,C$5,FALSE)),"",VLOOKUP($A96,'Entry List'!$A$1:$F$61,C$5,FALSE)) ->  | D96: =IF(ISNA(VLOOKUP($A96,'Entry List'!$A$1:$F$61,D$5,FALSE)),"",VLOOKUP($A96,'Entry List'!$A$1:$F$61,D$5,FALSE)) ->  | E96: =IF(ISNA(VLOOKUP($A96,'Entry List'!$A$1:$F$61,E$5,FALSE)),"",VLOOKUP($A96,'Entry List'!$A$1:$F$61,E$5,FALSE)) ->  | G96: DNS | H96: 0 | I96: DNS | J96: 0 | K96: DNS | L96: 0 | M96: DNS | N96: 0 | O96: DNS | P96: 0 | Q96: DNS | R96: 0 | S96: DNS | T96: 0 | U96: DNS | V96: 0 | W96: DNS | X96: 0 | Y96: DNS | Z96: 0 | AA96: DNS | AB96: 0 | AC96: DNS | AD96: 0 | AE96: DNS | AF96: 0 | AG96: DNS | AH96: 0 | AI96: DNS | AJ96: 0 | AK96: DNS | AL96: 0 | AM96: DNS | AN96: 0 | AO96: DNS | AP96: 0 | AQ96: DNS | AR96: 0 | AS96: DNS | AT96: 0 | AU96: DNS | AV96: 0 | AW96: DNS | AX96: 0 | AY96: DNS | AZ96: 0 | BA96: DNS | BB96: 0 | BC96: DNS | BD96: 0 | BE96: =IF('Last Race Results'!$B$5=0,0,IF(ISNA(VLOOKUP($A96,'Last Race Results'!$A$5:$J$44,2,FALSE)),"DNS",VLOOKUP($A96,'Last Race Results'!$A$5:$J$44,2,FALSE))) -> DNS | BF96: =IF('Last Race Results'!$B$5=0,0,IF(ISNA(VLOOKUP($A96,'Last Race Results'!$A$5:$K$44,11,FALSE)),0,VLOOKUP($A96,'Last Race Results'!$A$5:$K$44,11,FALSE))) -> 0
A97: 90 | B97: =IF(ISNA(VLOOKUP($A97,'Entry List'!$A$1:$F$61,B$5,FALSE)),"",VLOOKUP($A97,'Entry List'!$A$1:$F$61,B$5,FALSE)) ->  | C97: =IF(ISNA(VLOOKUP($A97,'Entry List'!$A$1:$F$61,C$5,FALSE)),"",VLOOKUP($A97,'Entry List'!$A$1:$F$61,C$5,FALSE)) ->  | D97: =IF(ISNA(VLOOKUP($A97,'Entry List'!$A$1:$F$61,D$5,FALSE)),"",VLOOKUP($A97,'Entry List'!$A$1:$F$61,D$5,FALSE)) ->  | E97: =IF(ISNA(VLOOKUP($A97,'Entry List'!$A$1:$F$61,E$5,FALSE)),"",VLOOKUP($A97,'Entry List'!$A$1:$F$61,E$5,FALSE)) ->  | G97: DNS | H97: 0 | I97: DNS | J97: 0 | K97: DNS | L97: 0 | M97: DNS | N97: 0 | O97: DNS | P97: 0 | Q97: DNS | R97: 0 | S97: DNS | T97: 0 | U97: DNS | V97: 0 | W97: DNS | X97: 0 | Y97: DNS | Z97: 0 | AA97: DNS | AB97: 0 | AC97: DNS | AD97: 0 | AE97: DNS | AF97: 0 | AG97: DNS | AH97: 0 | AI97: DNS | AJ97: 0 | AK97: DNS | AL97: 0 | AM97: DNS | AN97: 0 | AO97: DNS | AP97: 0 | AQ97: DNS | AR97: 0 | AS97: DNS | AT97: 0 | AU97: DNS | AV97: 0 | AW97: DNS | AX97: 0 | AY97: DNS | AZ97: 0 | BA97: DNS | BB97: 0 | BC97: DNS | BD97: 0 | BE97: =IF('Last Race Results'!$B$5=0,0,IF(ISNA(VLOOKUP($A97,'Last Race Results'!$A$5:$J$44,2,FALSE)),"DNS",VLOOKUP($A97,'Last Race Results'!$A$5:$J$44,2,FALSE))) -> DNS | BF97: =IF('Last Race Results'!$B$5=0,0,IF(ISNA(VLOOKUP($A97,'Last Race Results'!$A$5:$K$44,11,FALSE)),0,VLOOKUP($A97,'Last Race Results'!$A$5:$K$44,11,FALSE))) -> 0
A98: 91 | B98: =IF(ISNA(VLOOKUP($A98,'Entry List'!$A$1:$F$61,B$5,FALSE)),"",VLOOKUP($A98,'Entry List'!$A$1:$F$61,B$5,FALSE)) ->  | C98: =IF(ISNA(VLOOKUP($A98,'Entry List'!$A$1:$F$61,C$5,FALSE)),"",VLOOKUP($A98,'Entry List'!$A$1:$F$61,C$5,FALSE)) ->  | D98: =IF(ISNA(VLOOKUP($A98,'Entry List'!$A$1:$F$61,D$5,FALSE)),"",VLOOKUP($A98,'Entry List'!$A$1:$F$61,D$5,FALSE)) ->  | E98: =IF(ISNA(VLOOKUP($A98,'Entry List'!$A$1:$F$61,E$5,FALSE)),"",VLOOKUP($A98,'Entry List'!$A$1:$F$61,E$5,FALSE)) ->  | G98: DNS | H98: 0 | I98: DNS | J98: 0 | K98: DNS | L98: 0 | M98: DNS | N98: 0 | O98: DNS | P98: 0 | Q98: DNS | R98: 0 | S98: DNS | T98: 0 | U98: DNS | V98: 0 | W98: DNS | X98: 0 | Y98: DNS | Z98: 0 | AA98: DNS | AB98: 0 | AC98: DNS | AD98: 0 | AE98: DNS | AF98: 0 | AG98: DNS | AH98: 0 | AI98: DNS | AJ98: 0 | AK98: DNS | AL98: 0 | AM98: DNS | AN98: 0 | AO98: DNS | AP98: 0 | AQ98: DNS | AR98: 0 | AS98: DNS | AT98: 0 | AU98: DNS | AV98: 0 | AW98: DNS | AX98: 0 | AY98: DNS | AZ98: 0 | BA98: DNS | BB98: 0 | BC98: DNS | BD98: 0 | BE98: =IF('Last Race Results'!$B$5=0,0,IF(ISNA(VLOOKUP($A98,'Last Race Results'!$A$5:$J$44,2,FALSE)),"DNS",VLOOKUP($A98,'Last Race Results'!$A$5:$J$44,2,FALSE))) -> DNS | BF98: =IF('Last Race Results'!$B$5=0,0,IF(ISNA(VLOOKUP($A98,'Last Race Results'!$A$5:$K$44,11,FALSE)),0,VLOOKUP($A98,'Last Race Results'!$A$5:$K$44,11,FALSE))) -> 0
A99: 92 | B99: =IF(ISNA(VLOOKUP($A99,'Entry List'!$A$1:$F$61,B$5,FALSE)),"",VLOOKUP($A99,'Entry List'!$A$1:$F$61,B$5,FALSE)) ->  | C99: =IF(ISNA(VLOOKUP($A99,'Entry List'!$A$1:$F$61,C$5,FALSE)),"",VLOOKUP($A99,'Entry List'!$A$1:$F$61,C$5,FALSE)) ->  | D99: =IF(ISNA(VLOOKUP($A99,'Entry List'!$A$1:$F$61,D$5,FALSE)),"",VLOOKUP($A99,'Entry List'!$A$1:$F$61,D$5,FALSE)) ->  | E99: =IF(ISNA(VLOOKUP($A99,'Entry List'!$A$1:$F$61,E$5,FALSE)),"",VLOOKUP($A99,'Entry List'!$A$1:$F$61,E$5,FALSE)) ->  | G99: DNS | H99: 0 | I99: DNS | J99: 0 | K99: DNS | L99: 0 | M99: DNS | N99: 0 | O99: DNS | P99: 0 | Q99: DNS | R99: 0 | S99: DNS | T99: 0 | U99: DNS | V99: 0 | W99: DNS | X99: 0 | Y99: DNS | Z99: 0 | AA99: DNS | AB99: 0 | AC99: DNS | AD99: 0 | AE99: DNS | AF99: 0 | AG99: DNS | AH99: 0 | AI99: DNS | AJ99: 0 | AK99: DNS | AL99: 0 | AM99: DNS | AN99: 0 | AO99: DNS | AP99: 0 | AQ99: DNS | AR99: 0 | AS99: DNS | AT99: 0 | AU99: DNS | AV99: 0 | AW99: DNS | AX99: 0 | AY99: DNS | AZ99: 0 | BA99: DNS | BB99: 0 | BC99: DNS | BD99: 0 | BE99: =IF('Last Race Results'!$B$5=0,0,IF(ISNA(VLOOKUP($A99,'Last Race Results'!$A$5:$J$44,2,FALSE)),"DNS",VLOOKUP($A99,'Last Race Results'!$A$5:$J$44,2,FALSE))) -> DNS | BF99: =IF('Last Race Results'!$B$5=0,0,IF(ISNA(VLOOKUP($A99,'Last Race Results'!$A$5:$K$44,11,FALSE)),0,VLOOKUP($A99,'Last Race Results'!$A$5:$K$44,11,FALSE))) -> 0
A100: 93 | B100: =IF(ISNA(VLOOKUP($A100,'Entry List'!$A$1:$F$61,B$5,FALSE)),"",VLOOKUP($A100,'Entry List'!$A$1:$F$61,B$5,FALSE)) ->  | C100: =IF(ISNA(VLOOKUP($A100,'Entry List'!$A$1:$F$61,C$5,FALSE)),"",VLOOKUP($A100,'Entry List'!$A$1:$F$61,C$5,FALSE)) ->  | D100: =IF(ISNA(VLOOKUP($A100,'Entry List'!$A$1:$F$61,D$5,FALSE)),"",VLOOKUP($A100,'Entry List'!$A$1:$F$61,D$5,FALSE)) ->  | E100: =IF(ISNA(VLOOKUP($A100,'Entry List'!$A$1:$F$61,E$5,FALSE)),"",VLOOKUP($A100,'Entry List'!$A$1:$F$61,E$5,FALSE)) ->  | G100: DNS | H100: 0 | I100: DNS | J100: 0 | K100: DNS | L100: 0 | M100: DNS | N100: 0 | O100: DNS | P100: 0 | Q100: DNS | R100: 0 | S100: DNS | T100: 0 | U100: DNS | V100: 0 | W100: DNS | X100: 0 | Y100: DNS | Z100: 0 | AA100: DNS | AB100: 0 | AC100: DNS | AD100: 0 | AE100: DNS | AF100: 0 | AG100: DNS | AH100: 0 | AI100: DNS | AJ100: 0 | AK100: DNS | AL100: 0 | AM100: DNS | AN100: 0 | AO100: DNS | AP100: 0 | AQ100: DNS | AR100: 0 | AS100: DNS | AT100: 0 | AU100: DNS | AV100: 0 | AW100: DNS | AX100: 0 | AY100: DNS | AZ100: 0 | BA100: DNS | BB100: 0 | BC100: DNS | BD100: 0 | BE100: =IF('Last Race Results'!$B$5=0,0,IF(ISNA(VLOOKUP($A100,'Last Race Results'!$A$5:$J$44,2,FALSE)),"DNS",VLOOKUP($A100,'Last Race Results'!$A$5:$J$44,2,FALSE))) -> DNS | BF100: =IF('Last Race Results'!$B$5=0,0,IF(ISNA(VLOOKUP($A100,'Last Race Results'!$A$5:$K$44,11,FALSE)),0,VLOOKUP($A100,'Last Race Results'!$A$5:$K$44,11,FALSE))) -> 0
A101: 94 | B101: =IF(ISNA(VLOOKUP($A101,'Entry List'!$A$1:$F$61,B$5,FALSE)),"",VLOOKUP($A101,'Entry List'!$A$1:$F$61,B$5,FALSE)) ->  | C101: =IF(ISNA(VLOOKUP($A101,'Entry List'!$A$1:$F$61,C$5,FALSE)),"",VLOOKUP($A101,'Entry List'!$A$1:$F$61,C$5,FALSE)) ->  | D101: =IF(ISNA(VLOOKUP($A101,'Entry List'!$A$1:$F$61,D$5,FALSE)),"",VLOOKUP($A101,'Entry List'!$A$1:$F$61,D$5,FALSE)) ->  | E101: =IF(ISNA(VLOOKUP($A101,'Entry List'!$A$1:$F$61,E$5,FALSE)),"",VLOOKUP($A101,'Entry List'!$A$1:$F$61,E$5,FALSE)) ->  | G101: DNS | H101: 0 | I101: DNS | J101: 0 | K101: DNS | L101: 0 | M101: DNS | N101: 0 | O101: DNS | P101: 0 | Q101: DNS | R101: 0 | S101: DNS | T101: 0 | U101: DNS | V101: 0 | W101: DNS | X101: 0 | Y101: DNS | Z101: 0 | AA101: DNS | AB101: 0 | AC101: DNS | AD101: 0 | AE101: DNS | AF101: 0 | AG101: DNS | AH101: 0 | AI101: DNS | AJ101: 0 | AK101: DNS | AL101: 0 | AM101: DNS | AN101: 0 | AO101: DNS | AP101: 0 | AQ101: DNS | AR101: 0 | AS101: DNS | AT101: 0 | AU101: DNS | AV101: 0 | AW101: DNS | AX101: 0 | AY101: DNS | AZ101: 0 | BA101: DNS | BB101: 0 | BC101: DNS | BD101: 0 | BE101: =IF('Last Race Results'!$B$5=0,0,IF(ISNA(VLOOKUP($A101,'Last Race Results'!$A$5:$J$44,2,FALSE)),"DNS",VLOOKUP($A101,'Last Race Results'!$A$5:$J$44,2,FALSE))) -> DNS | BF101: =IF('Last Race Results'!$B$5=0,0,IF(ISNA(VLOOKUP($A101,'Last Race Results'!$A$5:$K$44,11,FALSE)),0,VLOOKUP($A101,'Last Race Results'!$A$5:$K$44,11,FALSE))) -> 0
A102: 95 | B102: =IF(ISNA(VLOOKUP($A102,'Entry List'!$A$1:$F$61,B$5,FALSE)),"",VLOOKUP($A102,'Entry List'!$A$1:$F$61,B$5,FALSE)) ->  | C102: =IF(ISNA(VLOOKUP($A102,'Entry List'!$A$1:$F$61,C$5,FALSE)),"",VLOOKUP($A102,'Entry List'!$A$1:$F$61,C$5,FALSE)) ->  | D102: =IF(ISNA(VLOOKUP($A102,'Entry List'!$A$1:$F$61,D$5,FALSE)),"",VLOOKUP($A102,'Entry List'!$A$1:$F$61,D$5,FALSE)) ->  | E102: =IF(ISNA(VLOOKUP($A102,'Entry List'!$A$1:$F$61,E$5,FALSE)),"",VLOOKUP($A102,'Entry List'!$A$1:$F$61,E$5,FALSE)) ->  | G102: DNS | H102: 0 | I102: DNS | J102: 0 | K102: DNS | L102: 0 | M102: DNS | N102: 0 | O102: DNS | P102: 0 | Q102: DNS | R102: 0 | S102: DNS | T102: 0 | U102: DNS | V102: 0 | W102: DNS | X102: 0 | Y102: DNS | Z102: 0 | AA102: DNS | AB102: 0 | AC102: DNS | AD102: 0 | AE102: DNS | AF102: 0 | AG102: DNS | AH102: 0 | AI102: DNS | AJ102: 0 | AK102: DNS | AL102: 0 | AM102: DNS | AN102: 0 | AO102: DNS | AP102: 0 | AQ102: DNS | AR102: 0 | AS102: DNS | AT102: 0 | AU102: DNS | AV102: 0 | AW102: DNS | AX102: 0 | AY102: DNS | AZ102: 0 | BA102: DNS | BB102: 0 | BC102: DNS | BD102: 0 | BE102: =IF('Last Race Results'!$B$5=0,0,IF(ISNA(VLOOKUP($A102,'Last Race Results'!$A$5:$J$44,2,FALSE)),"DNS",VLOOKUP($A102,'Last Race Results'!$A$5:$J$44,2,FALSE))) -> DNS | BF102: =IF('Last Race Results'!$B$5=0,0,IF(ISNA(VLOOKUP($A102,'Last Race Results'!$A$5:$K$44,11,FALSE)),0,VLOOKUP($A102,'Last Race Results'!$A$5:$K$44,11,FALSE))) -> 0
A103: 96 | B103: =IF(ISNA(VLOOKUP($A103,'Entry List'!$A$1:$F$61,B$5,FALSE)),"",VLOOKUP($A103,'Entry List'!$A$1:$F$61,B$5,FALSE)) -> Landon Cassill (i) | C103: =IF(ISNA(VLOOKUP($A103,'Entry List'!$A$1:$F$61,C$5,FALSE)),"",VLOOKUP($A103,'Entry List'!$A$1:$F$61,C$5,FALSE)) -> Toyota | D103: =IF(ISNA(VLOOKUP($A103,'Entry List'!$A$1:$F$61,D$5,FALSE)),"",VLOOKUP($A103,'Entry List'!$A$1:$F$61,D$5,FALSE)) -> Gaunt Brothers Racing | E103: =IF(ISNA(VLOOKUP($A103,'Entry List'!$A$1:$F$61,E$5,FALSE)),"",VLOOKUP($A103,'Entry List'!$A$1:$F$61,E$5,FALSE)) -> Gaunt Brothers Racing | G103: DNS | H103: 0 | I103: 19 | J103: 18 | K103: DNS | L103: 0 | M103: DNS | N103: 0 | O103: DNS | P103: 0 | Q103: DNS | R103: 0 | S103: 26 | T103: 11 | U103: DNS | V103: 0 | W103: DNS | X103: 0 | Y103: 20 | Z103: 17 | AA103: DNS | AB103: 0 | AC103: DNS | AD103: 0 | AE103: DNS | AF103: 0 | AG103: 21 | AH103: 16 | AI103: DNS | AJ103: 0 | AK103: DNS | AL103: 0 | AM103: DNS | AN103: 0 | AO103: DNS | AP103: 0 | AQ103: DNS | AR103: 0 | AS103: 26 | AT103: 11 | AU103: DNS | AV103: 0 | AW103: DNS | AX103: 0 | AY103: DNS | AZ103: 0 | BA103: DNS | BB103: 0 | BC103: DNS | BD103: 0 | BE103: =IF('Last Race Results'!$B$5=0,0,IF(ISNA(VLOOKUP($A103,'Last Race Results'!$A$5:$J$44,2,FALSE)),"DNS",VLOOKUP($A103,'Last Race Results'!$A$5:$J$44,2,FALSE))) -> 36 | BF103: =IF('Last Race Results'!$B$5=0,0,IF(ISNA(VLOOKUP($A103,'Last Race Results'!$A$5:$K$44,11,FALSE)),0,VLOOKUP($A103,'Last Race Results'!$A$5:$K$44,11,FALSE))) -> 1
A104: 97 | B104: =IF(ISNA(VLOOKUP($A104,'Entry List'!$A$1:$F$61,B$5,FALSE)),"",VLOOKUP($A104,'Entry List'!$A$1:$F$61,B$5,FALSE)) ->  | C104: =IF(ISNA(VLOOKUP($A104,'Entry List'!$A$1:$F$61,C$5,FALSE)),"",VLOOKUP($A104,'Entry List'!$A$1:$F$61,C$5,FALSE)) ->  | D104: =IF(ISNA(VLOOKUP($A104,'Entry List'!$A$1:$F$61,D$5,FALSE)),"",VLOOKUP($A104,'Entry List'!$A$1:$F$61,D$5,FALSE)) ->  | E104: =IF(ISNA(VLOOKUP($A104,'Entry List'!$A$1:$F$61,E$5,FALSE)),"",VLOOKUP($A104,'Entry List'!$A$1:$F$61,E$5,FALSE)) ->  | G104: DNS | H104: 0 | I104: DNS | J104: 0 | K104: DNS | L104: 0 | M104: DNS | N104: 0 | O104: DNS | P104: 0 | Q104: DNS | R104: 0 | S104: DNS | T104: 0 | U104: DNS | V104: 0 | W104: DNS | X104: 0 | Y104: DNS | Z104: 0 | AA104: DNS | AB104: 0 | AC104: DNS | AD104: 0 | AE104: DNS | AF104: 0 | AG104: DNS | AH104: 0 | AI104: DNS | AJ104: 0 | AK104: DNS | AL104: 0 | AM104: DNS | AN104: 0 | AO104: DNS | AP104: 0 | AQ104: DNS | AR104: 0 | AS104: DNS | AT104: 0 | AU104: DNS | AV104: 0 | AW104: DNS | AX104: 0 | AY104: DNS | AZ104: 0 | BA104: DNS | BB104: 0 | BC104: DNS | BD104: 0 | BE104: =IF('Last Race Results'!$B$5=0,0,IF(ISNA(VLOOKUP($A104,'Last Race Results'!$A$5:$J$44,2,FALSE)),"DNS",VLOOKUP($A104,'Last Race Results'!$A$5:$J$44,2,FALSE))) -> DNS | BF104: =IF('Last Race Results'!$B$5=0,0,IF(ISNA(VLOOKUP($A104,'Last Race Results'!$A$5:$K$44,11,FALSE)),0,VLOOKUP($A104,'Last Race Results'!$A$5:$K$44,11,FALSE))) -> 0
A105: 98 | B105: =IF(ISNA(VLOOKUP($A105,'Entry List'!$A$1:$F$61,B$5,FALSE)),"",VLOOKUP($A105,'Entry List'!$A$1:$F$61,B$5,FALSE)) ->  | C105: =IF(ISNA(VLOOKUP($A105,'Entry List'!$A$1:$F$61,C$5,FALSE)),"",VLOOKUP($A105,'Entry List'!$A$1:$F$61,C$5,FALSE)) ->  | D105: =IF(ISNA(VLOOKUP($A105,'Entry List'!$A$1:$F$61,D$5,FALSE)),"",VLOOKUP($A105,'Entry List'!$A$1:$F$61,D$5,FALSE)) ->  | E105: =IF(ISNA(VLOOKUP($A105,'Entry List'!$A$1:$F$61,E$5,FALSE)),"",VLOOKUP($A105,'Entry List'!$A$1:$F$61,E$5,FALSE)) ->  | G105: DNS | H105: 0 | I105: DNS | J105: 0 | K105: DNS | L105: 0 | M105: DNS | N105: 0 | O105: DNS | P105: 0 | Q105: DNS | R105: 0 | S105: DNS | T105: 0 | U105: DNS | V105: 0 | W105: DNS | X105: 0 | Y105: DNS | Z105: 0 | AA105: DNS | AB105: 0 | AC105: DNS | AD105: 0 | AE105: DNS | AF105: 0 | AG105: DNS | AH105: 0 | AI105: DNS | AJ105: 0 | AK105: DNS | AL105: 0 | AM105: DNS | AN105: 0 | AO105: DNS | AP105: 0 | AQ105: DNS | AR105: 0 | AS105: DNS | AT105: 0 | AU105: DNS | AV105: 0 | AW105: DNS | AX105: 0 | AY105: DNS | AZ105: 0 | BA105: DNS | BB105: 0 | BC105: DNS | BD105: 0 | BE105: =IF('Last Race Results'!$B$5=0,0,IF(ISNA(VLOOKUP($A105,'Last Race Results'!$A$5:$J$44,2,FALSE)),"DNS",VLOOKUP($A105,'Last Race Results'!$A$5:$J$44,2,FALSE))) -> DNS | BF105: =IF('Last Race Results'!$B$5=0,0,IF(ISNA(VLOOKUP($A105,'Last Race Results'!$A$5:$K$44,11,FALSE)),0,VLOOKUP($A105,'Last Race Results'!$A$5:$K$44,11,FALSE))) -> 0
A106: 99 | B106: =IF(ISNA(VLOOKUP($A106,'Entry List'!$A$1:$F$61,B$5,FALSE)),"",VLOOKUP($A106,'Entry List'!$A$1:$F$61,B$5,FALSE)) -> Daniel Suárez | C106: =IF(ISNA(VLOOKUP($A106,'Entry List'!$A$1:$F$61,C$5,FALSE)),"",VLOOKUP($A106,'Entry List'!$A$1:$F$61,C$5,FALSE)) -> Chevrolet | D106: =IF(ISNA(VLOOKUP($A106,'Entry List'!$A$1:$F$61,D$5,FALSE)),"",VLOOKUP($A106,'Entry List'!$A$1:$F$61,D$5,FALSE)) -> Trackhouse Racing Team | E106: =IF(ISNA(VLOOKUP($A106,'Entry List'!$A$1:$F$61,E$5,FALSE)),"",VLOOKUP($A106,'Entry List'!$A$1:$F$61,E$5,FALSE)) -> Trackhouse Racing Team | G106: 36 | H106: 1 | I106: 16 | J106: 21 | K106: 15 | L106: 22 | M106: 26 | N106: 11 | O106: 21 | P106: 16 | Q106: 17 | R106: 21 | S106: 4 | T106: 49 | U106: 32 | V106: 5 | W106: 16 | X106: 21 | Y106: 23 | Z106: 14 | AA106: 11 | AB106: 26 | AC106: 23 | AD106: 14 | AE106: 9 | AF106: 28 | AG106: 33 | AH106: 4 | AI106: 15 | AJ106: 22 | AK106: 12 | AL106: 25 | AM106: 7 | AN106: 38 | AO106: 13 | AP106: 27 | AQ106: 15 | AR106: 24 | AS106: 36 | AT106: 1 | AU106: 36 | AV106: 1 | AW106: 20 | AX106: 17 | AY106: 31 | AZ106: 6 | BA106: 37 | BB106: 1 | BC106: 22 | BD106: 15 | BE106: =IF('Last Race Results'!$B$5=0,0,IF(ISNA(VLOOKUP($A106,'Last Race Results'!$A$5:$J$44,2,FALSE)),"DNS",VLOOKUP($A106,'Last Race Results'!$A$5:$J$44,2,FALSE))) -> 19 | BF106: =IF('Last Race Results'!$B$5=0,0,IF(ISNA(VLOOKUP($A106,'Last Race Results'!$A$5:$K$44,11,FALSE)),0,VLOOKUP($A106,'Last Race Results'!$A$5:$K$44,11,FALSE))) -> 18
A107: 00 | B107: =IF(ISNA(VLOOKUP($A107,'Entry List'!$A$1:$F$61,B$5,FALSE)),"",VLOOKUP($A107,'Entry List'!$A$1:$F$61,B$5,FALSE)) -> Quin Houff | C107: =IF(ISNA(VLOOKUP($A107,'Entry List'!$A$1:$F$61,C$5,FALSE)),"",VLOOKUP($A107,'Entry List'!$A$1:$F$61,C$5,FALSE)) -> Chevrolet | D107: =IF(ISNA(VLOOKUP($A107,'Entry List'!$A$1:$F$61,D$5,FALSE)),"",VLOOKUP($A107,'Entry List'!$A$1:$F$61,D$5,FALSE)) -> StarCom Racing | E107: =IF(ISNA(VLOOKUP($A107,'Entry List'!$A$1:$F$61,E$5,FALSE)),"",VLOOKUP($A107,'Entry List'!$A$1:$F$61,E$5,FALSE)) -> StarCom Racing | G107: 29 | H107: 8 | I107: 40 | J107: 1 | K107: 35 | L107: 2 | M107: 33 | N107: 4 | O107: 32 | P107: 5 | Q107: 33 | R107: 4 | S107: 25 | T107: 12 | U107: 24 | V107: 13 | W107: 34 | X107: 3 | Y107: 37 | Z107: 1 | AA107: 37 | AB107: 1 | AC107: 30 | AD107: 7 | AE107: 29 | AF107: 8 | AG107: 34 | AH107: 3 | AI107: 32 | AJ107: 5 | AK107: 36 | AL107: 1 | AM107: 38 | AN107: 1 | AO107: 31 | AP107: 6 | AQ107: 33 | AR107: 4 | AS107: 34 | AT107: 3 | AU107: 35 | AV107: 2 | AW107: 35 | AX107: 2 | AY107: 32 | AZ107: 5 | BA107: 22 | BB107: 15 | BC107: 30 | BD107: 7 | BE107: =IF('Last Race Results'!$B$5=0,0,IF(ISNA(VLOOKUP($A107,'Last Race Results'!$A$5:$J$44,2,FALSE)),"DNS",VLOOKUP($A107,'Last Race Results'!$A$5:$J$44,2,FALSE))) -> 38 | BF107: =IF('Last Race Results'!$B$5=0,0,IF(ISNA(VLOOKUP($A107,'Last Race Results'!$A$5:$K$44,11,FALSE)),0,VLOOKUP($A107,'Last Race Results'!$A$5:$K$44,11,FALSE))) -> 1
A108: 01 | B108: =IF(ISNA(VLOOKUP($A108,'Entry List'!$A$1:$F$61,B$5,FALSE)),"",VLOOKUP($A108,'Entry List'!$A$1:$F$61,B$5,FALSE)) ->  | C108: =IF(ISNA(VLOOKUP($A108,'Entry List'!$A$1:$F$61,C$5,FALSE)),"",VLOOKUP($A108,'Entry List'!$A$1:$F$61,C$5,FALSE)) ->  | D108: =IF(ISNA(VLOOKUP($A108,'Entry List'!$A$1:$F$61,D$5,FALSE)),"",VLOOKUP($A108,'Entry List'!$A$1:$F$61,D$5,FALSE)) ->  | E108: =IF(ISNA(VLOOKUP($A108,'Entry List'!$A$1:$F$61,E$5,FALSE)),"",VLOOKUP($A108,'Entry List'!$A$1:$F$61,E$5,FALSE)) ->  | G108: DNS | H108: 0 | I108: DNS | J108: 0 | K108: DNS | L108: 0 | M108: DNS | N108: 0 | O108: DNS | P108: 0 | Q108: DNS | R108: 0 | S108: DNS | T108: 0 | U108: DNS | V108: 0 | W108: DNS | X108: 0 | Y108: DNS | Z108: 0 | AA108: DNS | AB108: 0 | AC108: DNS | AD108: 0 | AE108: DNS | AF108: 0 | AG108: DNS | AH108: 0 | AI108: DNS | AJ108: 0 | AK108: DNS | AL108: 0 | AM108: DNS | AN108: 0 | AO108: DNS | AP108: 0 | AQ108: DNS | AR108: 0 | AS108: DNS | AT108: 0 | AU108: DNS | AV108: 0 | AW108: DNS | AX108: 0 | AY108: DNS | AZ108: 0 | BA108: DNS | BB108: 0 | BC108: DNS | BD108: 0 | BE108: =IF('Last Race Results'!$B$5=0,0,IF(ISNA(VLOOKUP($A108,'Last Race Results'!$A$5:$J$44,2,FALSE)),"DNS",VLOOKUP($A108,'Last Race Results'!$A$5:$J$44,2,FALSE))) -> DNS | BF108: =IF('Last Race Results'!$B$5=0,0,IF(ISNA(VLOOKUP($A108,'Last Race Results'!$A$5:$K$44,11,FALSE)),0,VLOOKUP($A108,'Last Race Results'!$A$5:$K$44,11,FALSE))) -> 0
A109: 02 | B109: =IF(ISNA(VLOOKUP($A109,'Entry List'!$A$1:$F$61,B$5,FALSE)),"",VLOOKUP($A109,'Entry List'!$A$1:$F$61,B$5,FALSE)) ->  | C109: =IF(ISNA(VLOOKUP($A109,'Entry List'!$A$1:$F$61,C$5,FALSE)),"",VLOOKUP($A109,'Entry List'!$A$1:$F$61,C$5,FALSE)) ->  | D109: =IF(ISNA(VLOOKUP($A109,'Entry List'!$A$1:$F$61,D$5,FALSE)),"",VLOOKUP($A109,'Entry List'!$A$1:$F$61,D$5,FALSE)) ->  | E109: =IF(ISNA(VLOOKUP($A109,'Entry List'!$A$1:$F$61,E$5,FALSE)),"",VLOOKUP($A109,'Entry List'!$A$1:$F$61,E$5,FALSE)) ->  | G109: DNS | H109: 0 | I109: DNS | J109: 0 | K109: DNS | L109: 0 | M109: DNS | N109: 0 | O109: DNS | P109: 0 | Q109: DNS | R109: 0 | S109: DNS | T109: 0 | U109: DNS | V109: 0 | W109: DNS | X109: 0 | Y109: DNS | Z109: 0 | AA109: DNS | AB109: 0 | AC109: DNS | AD109: 0 | AE109: DNS | AF109: 0 | AG109: DNS | AH109: 0 | AI109: DNS | AJ109: 0 | AK109: DNS | AL109: 0 | AM109: DNS | AN109: 0 | AO109: DNS | AP109: 0 | AQ109: DNS | AR109: 0 | AS109: DNS | AT109: 0 | AU109: DNS | AV109: 0 | AW109: DNS | AX109: 0 | AY109: DNS | AZ109: 0 | BA109: DNS | BB109: 0 | BC109: DNS | BD109: 0 | BE109: =IF('Last Race Results'!$B$5=0,0,IF(ISNA(VLOOKUP($A109,'Last Race Results'!$A$5:$J$44,2,FALSE)),"DNS",VLOOKUP($A109,'Last Race Results'!$A$5:$J$44,2,FALSE))) -> DNS | BF109: =IF('Last Race Results'!$B$5=0,0,IF(ISNA(VLOOKUP($A109,'Last Race Results'!$A$5:$K$44,11,FALSE)),0,VLOOKUP($A109,'Last Race Results'!$A$5:$K$44,11,FALSE))) -> 0
A110: 03 | B110: =IF(ISNA(VLOOKUP($A110,'Entry List'!$A$1:$F$61,B$5,FALSE)),"",VLOOKUP($A110,'Entry List'!$A$1:$F$61,B$5,FALSE)) ->  | C110: =IF(ISNA(VLOOKUP($A110,'Entry List'!$A$1:$F$61,C$5,FALSE)),"",VLOOKUP($A110,'Entry List'!$A$1:$F$61,C$5,FALSE)) ->  | D110: =IF(ISNA(VLOOKUP($A110,'Entry List'!$A$1:$F$61,D$5,FALSE)),"",VLOOKUP($A110,'Entry List'!$A$1:$F$61,D$5,FALSE)) ->  | E110: =IF(ISNA(VLOOKUP($A110,'Entry List'!$A$1:$F$61,E$5,FALSE)),"",VLOOKUP($A110,'Entry List'!$A$1:$F$61,E$5,FALSE)) ->  | G110: DNS | H110: 0 | I110: DNS | J110: 0 | K110: DNS | L110: 0 | M110: DNS | N110: 0 | O110: DNS | P110: 0 | Q110: DNS | R110: 0 | S110: DNS | T110: 0 | U110: DNS | V110: 0 | W110: DNS | X110: 0 | Y110: DNS | Z110: 0 | AA110: DNS | AB110: 0 | AC110: DNS | AD110: 0 | AE110: DNS | AF110: 0 | AG110: DNS | AH110: 0 | AI110: DNS | AJ110: 0 | AK110: DNS | AL110: 0 | AM110: DNS | AN110: 0 | AO110: DNS | AP110: 0 | AQ110: DNS | AR110: 0 | AS110: DNS | AT110: 0 | AU110: DNS | AV110: 0 | AW110: DNS | AX110: 0 | AY110: DNS | AZ110: 0 | BA110: DNS | BB110: 0 | BC110: DNS | BD110: 0 | BE110: =IF('Last Race Results'!$B$5=0,0,IF(ISNA(VLOOKUP($A110,'Last Race Results'!$A$5:$J$44,2,FALSE)),"DNS",VLOOKUP($A110,'Last Race Results'!$A$5:$J$44,2,FALSE))) -> DNS | BF110: =IF('Last Race Results'!$B$5=0,0,IF(ISNA(VLOOKUP($A110,'Last Race Results'!$A$5:$K$44,11,FALSE)),0,VLOOKUP($A110,'Last Race Results'!$A$5:$K$44,11,FALSE))) -> 0
A111: 04 | B111: =IF(ISNA(VLOOKUP($A111,'Entry List'!$A$1:$F$61,B$5,FALSE)),"",VLOOKUP($A111,'Entry List'!$A$1:$F$61,B$5,FALSE)) ->  | C111: =IF(ISNA(VLOOKUP($A111,'Entry List'!$A$1:$F$61,C$5,FALSE)),"",VLOOKUP($A111,'Entry List'!$A$1:$F$61,C$5,FALSE)) ->  | D111: =IF(ISNA(VLOOKUP($A111,'Entry List'!$A$1:$F$61,D$5,FALSE)),"",VLOOKUP($A111,'Entry List'!$A$1:$F$61,D$5,FALSE)) ->  | E111: =IF(ISNA(VLOOKUP($A111,'Entry List'!$A$1:$F$61,E$5,FALSE)),"",VLOOKUP($A111,'Entry List'!$A$1:$F$61,E$5,FALSE)) ->  | G111: DNS | H111: 0 | I111: DNS | J111: 0 | K111: DNS | L111: 0 | M111: DNS | N111: 0 | O111: DNS | P111: 0 | Q111: DNS | R111: 0 | S111: DNS | T111: 0 | U111: DNS | V111: 0 | W111: DNS | X111: 0 | Y111: DNS | Z111: 0 | AA111: DNS | AB111: 0 | AC111: DNS | AD111: 0 | AE111: DNS | AF111: 0 | AG111: DNS | AH111: 0 | AI111: DNS | AJ111: 0 | AK111: DNS | AL111: 0 | AM111: DNS | AN111: 0 | AO111: DNS | AP111: 0 | AQ111: DNS | AR111: 0 | AS111: DNS | AT111: 0 | AU111: DNS | AV111: 0 | AW111: DNS | AX111: 0 | AY111: DNS | AZ111: 0 | BA111: DNS | BB111: 0 | BC111: DNS | BD111: 0 | BE111: =IF('Last Race Results'!$B$5=0,0,IF(ISNA(VLOOKUP($A111,'Last Race Results'!$A$5:$J$44,2,FALSE)),"DNS",VLOOKUP($A111,'Last Race Results'!$A$5:$J$44,2,FALSE))) -> DNS | BF111: =IF('Last Race Results'!$B$5=0,0,IF(ISNA(VLOOKUP($A111,'Last Race Results'!$A$5:$K$44,11,FALSE)),0,VLOOKUP($A111,'Last Race Results'!$A$5:$K$44,11,FALSE))) -> 0
A112: 05 | B112: =IF(ISNA(VLOOKUP($A112,'Entry List'!$A$1:$F$61,B$5,FALSE)),"",VLOOKUP($A112,'Entry List'!$A$1:$F$61,B$5,FALSE)) ->  | C112: =IF(ISNA(VLOOKUP($A112,'Entry List'!$A$1:$F$61,C$5,FALSE)),"",VLOOKUP($A112,'Entry List'!$A$1:$F$61,C$5,FALSE)) ->  | D112: =IF(ISNA(VLOOKUP($A112,'Entry List'!$A$1:$F$61,D$5,FALSE)),"",VLOOKUP($A112,'Entry List'!$A$1:$F$61,D$5,FALSE)) ->  | E112: =IF(ISNA(VLOOKUP($A112,'Entry List'!$A$1:$F$61,E$5,FALSE)),"",VLOOKUP($A112,'Entry List'!$A$1:$F$61,E$5,FALSE)) ->  | G112: DNS | H112: 0 | I112: DNS | J112: 0 | K112: DNS | L112: 0 | M112: DNS | N112: 0 | O112: DNS | P112: 0 | Q112: DNS | R112: 0 | S112: DNS | T112: 0 | U112: DNS | V112: 0 | W112: DNS | X112: 0 | Y112: DNS | Z112: 0 | AA112: DNS | AB112: 0 | AC112: DNS | AD112: 0 | AE112: DNS | AF112: 0 | AG112: DNS | AH112: 0 | AI112: DNS | AJ112: 0 | AK112: DNS | AL112: 0 | AM112: DNS | AN112: 0 | AO112: DNS | AP112: 0 | AQ112: DNS | AR112: 0 | AS112: DNS | AT112: 0 | AU112: DNS | AV112: 0 | AW112: DNS | AX112: 0 | AY112: DNS | AZ112: 0 | BA112: DNS | BB112: 0 | BC112: DNS | BD112: 0 | BE112: =IF('Last Race Results'!$B$5=0,0,IF(ISNA(VLOOKUP($A112,'Last Race Results'!$A$5:$J$44,2,FALSE)),"DNS",VLOOKUP($A112,'Last Race Results'!$A$5:$J$44,2,FALSE))) -> DNS | BF112: =IF('Last Race Results'!$B$5=0,0,IF(ISNA(VLOOKUP($A112,'Last Race Results'!$A$5:$K$44,11,FALSE)),0,VLOOKUP($A112,'Last Race Results'!$A$5:$K$44,11,FALSE))) -> 0
A113: 06 | B113: =IF(ISNA(VLOOKUP($A113,'Entry List'!$A$1:$F$61,B$5,FALSE)),"",VLOOKUP($A113,'Entry List'!$A$1:$F$61,B$5,FALSE)) ->  | C113: =IF(ISNA(VLOOKUP($A113,'Entry List'!$A$1:$F$61,C$5,FALSE)),"",VLOOKUP($A113,'Entry List'!$A$1:$F$61,C$5,FALSE)) ->  | D113: =IF(ISNA(VLOOKUP($A113,'Entry List'!$A$1:$F$61,D$5,FALSE)),"",VLOOKUP($A113,'Entry List'!$A$1:$F$61,D$5,FALSE)) ->  | E113: =IF(ISNA(VLOOKUP($A113,'Entry List'!$A$1:$F$61,E$5,FALSE)),"",VLOOKUP($A113,'Entry List'!$A$1:$F$61,E$5,FALSE)) ->  | G113: DNS | H113: 0 | I113: DNS | J113: 0 | K113: DNS | L113: 0 | M113: DNS | N113: 0 | O113: DNS | P113: 0 | Q113: DNS | R113: 0 | S113: DNS | T113: 0 | U113: DNS | V113: 0 | W113: DNS | X113: 0 | Y113: DNS | Z113: 0 | AA113: DNS | AB113: 0 | AC113: DNS | AD113: 0 | AE113: DNS | AF113: 0 | AG113: DNS | AH113: 0 | AI113: DNS | AJ113: 0 | AK113: DNS | AL113: 0 | AM113: DNS | AN113: 0 | AO113: DNS | AP113: 0 | AQ113: DNS | AR113: 0 | AS113: DNS | AT113: 0 | AU113: DNS | AV113: 0 | AW113: DNS | AX113: 0 | AY113: DNS | AZ113: 0 | BA113: DNS | BB113: 0 | BC113: DNS | BD113: 0 | BE113: =IF('Last Race Results'!$B$5=0,0,IF(ISNA(VLOOKUP($A113,'Last Race Results'!$A$5:$J$44,2,FALSE)),"DNS",VLOOKUP($A113,'Last Race Results'!$A$5:$J$44,2,FALSE))) -> DNS | BF113: =IF('Last Race Results'!$B$5=0,0,IF(ISNA(VLOOKUP($A113,'Last Race Results'!$A$5:$K$44,11,FALSE)),0,VLOOKUP($A113,'Last Race Results'!$A$5:$K$44,11,FALSE))) -> 0
A114: 07 | B114: =IF(ISNA(VLOOKUP($A114,'Entry List'!$A$1:$F$61,B$5,FALSE)),"",VLOOKUP($A114,'Entry List'!$A$1:$F$61,B$5,FALSE)) ->  | C114: =IF(ISNA(VLOOKUP($A114,'Entry List'!$A$1:$F$61,C$5,FALSE)),"",VLOOKUP($A114,'Entry List'!$A$1:$F$61,C$5,FALSE)) ->  | D114: =IF(ISNA(VLOOKUP($A114,'Entry List'!$A$1:$F$61,D$5,FALSE)),"",VLOOKUP($A114,'Entry List'!$A$1:$F$61,D$5,FALSE)) ->  | E114: =IF(ISNA(VLOOKUP($A114,'Entry List'!$A$1:$F$61,E$5,FALSE)),"",VLOOKUP($A114,'Entry List'!$A$1:$F$61,E$5,FALSE)) ->  | G114: DNS | H114: 0 | I114: DNS | J114: 0 | K114: DNS | L114: 0 | M114: DNS | N114: 0 | O114: DNS | P114: 0 | Q114: DNS | R114: 0 | S114: DNS | T114: 0 | U114: DNS | V114: 0 | W114: DNS | X114: 0 | Y114: DNS | Z114: 0 | AA114: DNS | AB114: 0 | AC114: DNS | AD114: 0 | AE114: DNS | AF114: 0 | AG114: DNS | AH114: 0 | AI114: DNS | AJ114: 0 | AK114: DNS | AL114: 0 | AM114: DNS | AN114: 0 | AO114: DNS | AP114: 0 | AQ114: DNS | AR114: 0 | AS114: DNS | AT114: 0 | AU114: DNS | AV114: 0 | AW114: DNS | AX114: 0 | AY114: DNS | AZ114: 0 | BA114: DNS | BB114: 0 | BC114: DNS | BD114: 0 | BE114: =IF('Last Race Results'!$B$5=0,0,IF(ISNA(VLOOKUP($A114,'Last Race Results'!$A$5:$J$44,2,FALSE)),"DNS",VLOOKUP($A114,'Last Race Results'!$A$5:$J$44,2,FALSE))) -> DNS | BF114: =IF('Last Race Results'!$B$5=0,0,IF(ISNA(VLOOKUP($A114,'Last Race Results'!$A$5:$K$44,11,FALSE)),0,VLOOKUP($A114,'Last Race Results'!$A$5:$K$44,11,FALSE))) -> 0
A115: 08 | B115: =IF(ISNA(VLOOKUP($A115,'Entry List'!$A$1:$F$61,B$5,FALSE)),"",VLOOKUP($A115,'Entry List'!$A$1:$F$61,B$5,FALSE)) ->  | C115: =IF(ISNA(VLOOKUP($A115,'Entry List'!$A$1:$F$61,C$5,FALSE)),"",VLOOKUP($A115,'Entry List'!$A$1:$F$61,C$5,FALSE)) ->  | D115: =IF(ISNA(VLOOKUP($A115,'Entry List'!$A$1:$F$61,D$5,FALSE)),"",VLOOKUP($A115,'Entry List'!$A$1:$F$61,D$5,FALSE)) ->  | E115: =IF(ISNA(VLOOKUP($A115,'Entry List'!$A$1:$F$61,E$5,FALSE)),"",VLOOKUP($A115,'Entry List'!$A$1:$F$61,E$5,FALSE)) ->  | G115: DNS | H115: 0 | I115: DNS | J115: 0 | K115: DNS | L115: 0 | M115: DNS | N115: 0 | O115: DNS | P115: 0 | Q115: DNS | R115: 0 | S115: DNS | T115: 0 | U115: DNS | V115: 0 | W115: DNS | X115: 0 | Y115: DNS | Z115: 0 | AA115: DNS | AB115: 0 | AC115: DNS | AD115: 0 | AE115: DNS | AF115: 0 | AG115: DNS | AH115: 0 | AI115: DNS | AJ115: 0 | AK115: DNS | AL115: 0 | AM115: DNS | AN115: 0 | AO115: DNS | AP115: 0 | AQ115: DNS | AR115: 0 | AS115: DNS | AT115: 0 | AU115: DNS | AV115: 0 | AW115: DNS | AX115: 0 | AY115: DNS | AZ115: 0 | BA115: DNS | BB115: 0 | BC115: DNS | BD115: 0 | BE115: =IF('Last Race Results'!$B$5=0,0,IF(ISNA(VLOOKUP($A115,'Last Race Results'!$A$5:$J$44,2,FALSE)),"DNS",VLOOKUP($A115,'Last Race Results'!$A$5:$J$44,2,FALSE))) -> DNS | BF115: =IF('Last Race Results'!$B$5=0,0,IF(ISNA(VLOOKUP($A115,'Last Race Results'!$A$5:$K$44,11,FALSE)),0,VLOOKUP($A115,'Last Race Results'!$A$5:$K$44,11,FALSE))) -> 0
A116: 09 | B116: =IF(ISNA(VLOOKUP($A116,'Entry List'!$A$1:$F$61,B$5,FALSE)),"",VLOOKUP($A116,'Entry List'!$A$1:$F$61,B$5,FALSE)) ->  | C116: =IF(ISNA(VLOOKUP($A116,'Entry List'!$A$1:$F$61,C$5,FALSE)),"",VLOOKUP($A116,'Entry List'!$A$1:$F$61,C$5,FALSE)) ->  | D116: =IF(ISNA(VLOOKUP($A116,'Entry List'!$A$1:$F$61,D$5,FALSE)),"",VLOOKUP($A116,'Entry List'!$A$1:$F$61,D$5,FALSE)) ->  | E116: =IF(ISNA(VLOOKUP($A116,'Entry List'!$A$1:$F$61,E$5,FALSE)),"",VLOOKUP($A116,'Entry List'!$A$1:$F$61,E$5,FALSE)) ->  | G116: DNS | H116: 0 | I116: DNS | J116: 0 | K116: DNS | L116: 0 | M116: DNS | N116: 0 | O116: DNS | P116: 0 | Q116: DNS | R116: 0 | S116: DNS | T116: 0 | U116: DNS | V116: 0 | W116: DNS | X116: 0 | Y116: DNS | Z116: 0 | AA116: DNS | AB116: 0 | AC116: DNS | AD116: 0 | AE116: DNS | AF116: 0 | AG116: DNS | AH116: 0 | AI116: DNS | AJ116: 0 | AK116: DNS | AL116: 0 | AM116: DNS | AN116: 0 | AO116: DNS | AP116: 0 | AQ116: DNS | AR116: 0 | AS116: DNS | AT116: 0 | AU116: DNS | AV116: 0 | AW116: DNS | AX116: 0 | AY116: DNS | AZ116: 0 | BA116: DNS | BB116: 0 | BC116: DNS | BD116: 0 | BE116: =IF('Last Race Results'!$B$5=0,0,IF(ISNA(VLOOKUP($A116,'Last Race Results'!$A$5:$J$44,2,FALSE)),"DNS",VLOOKUP($A116,'Last Race Results'!$A$5:$J$44,2,FALSE))) -> DNS | BF116: =IF('Last Race Results'!$B$5=0,0,IF(ISNA(VLOOKUP($A116,'Last Race Results'!$A$5:$K$44,11,FALSE)),0,VLOOKUP($A116,'Last Race Results'!$A$5:$K$44,11,FALSE))) -> 0
A117: 100 | B117: =IF(ISNA(VLOOKUP($A117,'Entry List'!$A$1:$F$61,B$5,FALSE)),"",VLOOKUP($A117,'Entry List'!$A$1:$F$61,B$5,FALSE)) ->  | C117: =IF(ISNA(VLOOKUP($A117,'Entry List'!$A$1:$F$61,C$5,FALSE)),"",VLOOKUP($A117,'Entry List'!$A$1:$F$61,C$5,FALSE)) ->  | D117: =IF(ISNA(VLOOKUP($A117,'Entry List'!$A$1:$F$61,D$5,FALSE)),"",VLOOKUP($A117,'Entry List'!$A$1:$F$61,D$5,FALSE)) ->  | E117: =IF(ISNA(VLOOKUP($A117,'Entry List'!$A$1:$F$61,E$5,FALSE)),"",VLOOKUP($A117,'Entry List'!$A$1:$F$61,E$5,FALSE)) ->  | G117: DNS | H117: 0 | I117: DNS | J117: 0 | K117: DNS | L117: 0 | M117: DNS | N117: 0 | O117: DNS | P117: 0 | Q117: DNS | R117: 0 | S117: DNS | T117: 0 | U117: DNS | V117: 0 | W117: DNS | X117: 0 | Y117: DNS | Z117: 0 | AA117: DNS | AB117: 0 | AC117: DNS | AD117: 0 | AE117: DNS | AF117: 0 | AG117: DNS | AH117: 0 | AI117: DNS | AJ117: 0 | AK117: DNS | AL117: 0 | AM117: DNS | AN117: 0 | AO117: DNS | AP117: 0 | AQ117: DNS | AR117: 0 | AS117: DNS | AT117: 0 | AU117: DNS | AV117: 0 | AW117: DNS | AX117: 0 | AY117: DNS | AZ117: 0 | BA117: DNS | BB117: 0 | BC117: DNS | BD117: 0 | BE117: =IF('Last Race Results'!$B$5=0,0,IF(ISNA(VLOOKUP($A117,'Last Race Results'!$A$5:$J$44,2,FALSE)),"DNS",VLOOKUP($A117,'Last Race Results'!$A$5:$J$44,2,FALSE))) -> DNS | BF117: =IF('Last Race Results'!$B$5=0,0,IF(ISNA(VLOOKUP($A117,'Last Race Results'!$A$5:$K$44,11,FALSE)),0,VLOOKUP($A117,'Last Race Results'!$A$5:$K$44,11,FALSE))) -> 0
A118: 101 | B118: =IF(ISNA(VLOOKUP($A118,'Entry List'!$A$1:$F$61,B$5,FALSE)),"",VLOOKUP($A118,'Entry List'!$A$1:$F$61,B$5,FALSE)) ->  | C118: =IF(ISNA(VLOOKUP($A118,'Entry List'!$A$1:$F$61,C$5,FALSE)),"",VLOOKUP($A118,'Entry List'!$A$1:$F$61,C$5,FALSE)) ->  | D118: =IF(ISNA(VLOOKUP($A118,'Entry List'!$A$1:$F$61,D$5,FALSE)),"",VLOOKUP($A118,'Entry List'!$A$1:$F$61,D$5,FALSE)) ->  | E118: =IF(ISNA(VLOOKUP($A118,'Entry List'!$A$1:$F$61,E$5,FALSE)),"",VLOOKUP($A118,'Entry List'!$A$1:$F$61,E$5,FALSE)) ->  | G118: DNS | H118: 0 | I118: DNS | J118: 0 | K118: DNS | L118: 0 | M118: DNS | N118: 0 | O118: DNS | P118: 0 | Q118: DNS | R118: 0 | S118: DNS | T118: 0 | U118: DNS | V118: 0 | W118: DNS | X118: 0 | Y118: DNS | Z118: 0 | AA118: DNS | AB118: 0 | AC118: DNS | AD118: 0 | AE118: DNS | AF118: 0 | AG118: DNS | AH118: 0 | AI118: DNS | AJ118: 0 | AK118: DNS | AL118: 0 | AM118: DNS | AN118: 0 | AO118: DNS | AP118: 0 | AQ118: DNS | AR118: 0 | AS118: DNS | AT118: 0 | AU118: DNS | AV118: 0 | AW118: DNS | AX118: 0 | AY118: DNS | AZ118: 0 | BA118: DNS | BB118: 0 | BC118: DNS | BD118: 0 | BE118: =IF('Last Race Results'!$B$5=0,0,IF(ISNA(VLOOKUP($A118,'Last Race Results'!$A$5:$J$44,2,FALSE)),"DNS",VLOOKUP($A118,'Last Race Results'!$A$5:$J$44,2,FALSE))) -> DNS | BF118: =IF('Last Race Results'!$B$5=0,0,IF(ISNA(VLOOKUP($A118,'Last Race Results'!$A$5:$K$44,11,FALSE)),0,VLOOKUP($A118,'Last Race Results'!$A$5:$K$44,11,FALSE))) -> 0
A119: 102 | B119: =IF(ISNA(VLOOKUP($A119,'Entry List'!$A$1:$F$61,B$5,FALSE)),"",VLOOKUP($A119,'Entry List'!$A$1:$F$61,B$5,FALSE)) ->  | C119: =IF(ISNA(VLOOKUP($A119,'Entry List'!$A$1:$F$61,C$5,FALSE)),"",VLOOKUP($A119,'Entry List'!$A$1:$F$61,C$5,FALSE)) ->  | D119: =IF(ISNA(VLOOKUP($A119,'Entry List'!$A$1:$F$61,D$5,FALSE)),"",VLOOKUP($A119,'Entry List'!$A$1:$F$61,D$5,FALSE)) ->  | E119: =IF(ISNA(VLOOKUP($A119,'Entry List'!$A$1:$F$61,E$5,FALSE)),"",VLOOKUP($A119,'Entry List'!$A$1:$F$61,E$5,FALSE)) ->  | G119: DNS | H119: 0 | I119: DNS | J119: 0 | K119: DNS | L119: 0 | M119: DNS | N119: 0 | O119: DNS | P119: 0 | Q119: DNS | R119: 0 | S119: DNS | T119: 0 | U119: DNS | V119: 0 | W119: DNS | X119: 0 | Y119: DNS | Z119: 0 | AA119: DNS | AB119: 0 | AC119: DNS | AD119: 0 | AE119: DNS | AF119: 0 | AG119: DNS | AH119: 0 | AI119: DNS | AJ119: 0 | AK119: DNS | AL119: 0 | AM119: DNS | AN119: 0 | AO119: DNS | AP119: 0 | AQ119: DNS | AR119: 0 | AS119: DNS | AT119: 0 | AU119: DNS | AV119: 0 | AW119: DNS | AX119: 0 | AY119: DNS | AZ119: 0 | BA119: DNS | BB119: 0 | BC119: DNS | BD119: 0 | BE119: =IF('Last Race Results'!$B$5=0,0,IF(ISNA(VLOOKUP($A119,'Last Race Results'!$A$5:$J$44,2,FALSE)),"DNS",VLOOKUP($A119,'Last Race Results'!$A$5:$J$44,2,FALSE))) -> DNS | BF119: =IF('Last Race Results'!$B$5=0,0,IF(ISNA(VLOOKUP($A119,'Last Race Results'!$A$5:$K$44,11,FALSE)),0,VLOOKUP($A119,'Last Race Results'!$A$5:$K$44,11,FALSE))) -> 0
A120: 103 | B120: =IF(ISNA(VLOOKUP($A120,'Entry List'!$A$1:$F$61,B$5,FALSE)),"",VLOOKUP($A120,'Entry List'!$A$1:$F$61,B$5,FALSE)) ->  | C120: =IF(ISNA(VLOOKUP($A120,'Entry List'!$A$1:$F$61,C$5,FALSE)),"",VLOOKUP($A120,'Entry List'!$A$1:$F$61,C$5,FALSE)) ->  | D120: =IF(ISNA(VLOOKUP($A120,'Entry List'!$A$1:$F$61,D$5,FALSE)),"",VLOOKUP($A120,'Entry List'!$A$1:$F$61,D$5,FALSE)) ->  | E120: =IF(ISNA(VLOOKUP($A120,'Entry List'!$A$1:$F$61,E$5,FALSE)),"",VLOOKUP($A120,'Entry List'!$A$1:$F$61,E$5,FALSE)) ->  | G120: DNS | H120: 0 | I120: DNS | J120: 0 | K120: DNS | L120: 0 | M120: DNS | N120: 0 | O120: DNS | P120: 0 | Q120: DNS | R120: 0 | S120: DNS | T120: 0 | U120: DNS | V120: 0 | W120: DNS | X120: 0 | Y120: DNS | Z120: 0 | AA120: DNS | AB120: 0 | AC120: DNS | AD120: 0 | AE120: DNS | AF120: 0 | AG120: DNS | AH120: 0 | AI120: DNS | AJ120: 0 | AK120: DNS | AL120: 0 | AM120: DNS | AN120: 0 | AO120: DNS | AP120: 0 | AQ120: DNS | AR120: 0 | AS120: DNS | AT120: 0 | AU120: DNS | AV120: 0 | AW120: DNS | AX120: 0 | AY120: DNS | AZ120: 0 | BA120: DNS | BB120: 0 | BC120: DNS | BD120: 0 | BE120: =IF('Last Race Results'!$B$5=0,0,IF(ISNA(VLOOKUP($A120,'Last Race Results'!$A$5:$J$44,2,FALSE)),"DNS",VLOOKUP($A120,'Last Race Results'!$A$5:$J$44,2,FALSE))) -> DNS | BF120: =IF('Last Race Results'!$B$5=0,0,IF(ISNA(VLOOKUP($A120,'Last Race Results'!$A$5:$K$44,11,FALSE)),0,VLOOKUP($A120,'Last Race Results'!$A$5:$K$44,11,FALSE))) -> 0
A121: 104 | B121: =IF(ISNA(VLOOKUP($A121,'Entry List'!$A$1:$F$61,B$5,FALSE)),"",VLOOKUP($A121,'Entry List'!$A$1:$F$61,B$5,FALSE)) ->  | C121: =IF(ISNA(VLOOKUP($A121,'Entry List'!$A$1:$F$61,C$5,FALSE)),"",VLOOKUP($A121,'Entry List'!$A$1:$F$61,C$5,FALSE)) ->  | D121: =IF(ISNA(VLOOKUP($A121,'Entry List'!$A$1:$F$61,D$5,FALSE)),"",VLOOKUP($A121,'Entry List'!$A$1:$F$61,D$5,FALSE)) ->  | E121: =IF(ISNA(VLOOKUP($A121,'Entry List'!$A$1:$F$61,E$5,FALSE)),"",VLOOKUP($A121,'Entry List'!$A$1:$F$61,E$5,FALSE)) ->  | G121: DNS | H121: 0 | I121: DNS | J121: 0 | K121: DNS | L121: 0 | M121: DNS | N121: 0 | O121: DNS | P121: 0 | Q121: DNS | R121: 0 | S121: DNS | T121: 0 | U121: DNS | V121: 0 | W121: DNS | X121: 0 | Y121: DNS | Z121: 0 | AA121: DNS | AB121: 0 | AC121: DNS | AD121: 0 | AE121: DNS | AF121: 0 | AG121: DNS | AH121: 0 | AI121: DNS | AJ121: 0 | AK121: DNS | AL121: 0 | AM121: DNS | AN121: 0 | AO121: DNS | AP121: 0 | AQ121: DNS | AR121: 0 | AS121: DNS | AT121: 0 | AU121: DNS | AV121: 0 | AW121: DNS | AX121: 0 | AY121: DNS | AZ121: 0 | BA121: DNS | BB121: 0 | BC121: DNS | BD121: 0 | BE121: =IF('Last Race Results'!$B$5=0,0,IF(ISNA(VLOOKUP($A121,'Last Race Results'!$A$5:$J$44,2,FALSE)),"DNS",VLOOKUP($A121,'Last Race Results'!$A$5:$J$44,2,FALSE))) -> DNS | BF121: =IF('Last Race Results'!$B$5=0,0,IF(ISNA(VLOOKUP($A121,'Last Race Results'!$A$5:$K$44,11,FALSE)),0,VLOOKUP($A121,'Last Race Results'!$A$5:$K$44,11,FALSE))) -> 0
A122: 105 | B122: =IF(ISNA(VLOOKUP($A122,'Entry List'!$A$1:$F$61,B$5,FALSE)),"",VLOOKUP($A122,'Entry List'!$A$1:$F$61,B$5,FALSE)) ->  | C122: =IF(ISNA(VLOOKUP($A122,'Entry List'!$A$1:$F$61,C$5,FALSE)),"",VLOOKUP($A122,'Entry List'!$A$1:$F$61,C$5,FALSE)) ->  | D122: =IF(ISNA(VLOOKUP($A122,'Entry List'!$A$1:$F$61,D$5,FALSE)),"",VLOOKUP($A122,'Entry List'!$A$1:$F$61,D$5,FALSE)) ->  | E122: =IF(ISNA(VLOOKUP($A122,'Entry List'!$A$1:$F$61,E$5,FALSE)),"",VLOOKUP($A122,'Entry List'!$A$1:$F$61,E$5,FALSE)) ->  | G122: DNS | H122: 0 | I122: DNS | J122: 0 | K122: DNS | L122: 0 | M122: DNS | N122: 0 | O122: DNS | P122: 0 | Q122: DNS | R122: 0 | S122: DNS | T122: 0 | U122: DNS | V122: 0 | W122: DNS | X122: 0 | Y122: DNS | Z122: 0 | AA122: DNS | AB122: 0 | AC122: DNS | AD122: 0 | AE122: DNS | AF122: 0 | AG122: DNS | AH122: 0 | AI122: DNS | AJ122: 0 | AK122: DNS | AL122: 0 | AM122: DNS | AN122: 0 | AO122: DNS | AP122: 0 | AQ122: DNS | AR122: 0 | AS122: DNS | AT122: 0 | AU122: DNS | AV122: 0 | AW122: DNS | AX122: 0 | AY122: DNS | AZ122: 0 | BA122: DNS | BB122: 0 | BC122: DNS | BD122: 0 | BE122: =IF('Last Race Results'!$B$5=0,0,IF(ISNA(VLOOKUP($A122,'Last Race Results'!$A$5:$J$44,2,FALSE)),"DNS",VLOOKUP($A122,'Last Race Results'!$A$5:$J$44,2,FALSE))) -> DNS | BF122: =IF('Last Race Results'!$B$5=0,0,IF(ISNA(VLOOKUP($A122,'Last Race Results'!$A$5:$K$44,11,FALSE)),0,VLOOKUP($A122,'Last Race Results'!$A$5:$K$44,11,FALSE))) -> 0
A123: 106 | B123: =IF(ISNA(VLOOKUP($A123,'Entry List'!$A$1:$F$61,B$5,FALSE)),"",VLOOKUP($A123,'Entry List'!$A$1:$F$61,B$5,FALSE)) ->  | C123: =IF(ISNA(VLOOKUP($A123,'Entry List'!$A$1:$F$61,C$5,FALSE)),"",VLOOKUP($A123,'Entry List'!$A$1:$F$61,C$5,FALSE)) ->  | D123: =IF(ISNA(VLOOKUP($A123,'Entry List'!$A$1:$F$61,D$5,FALSE)),"",VLOOKUP($A123,'Entry List'!$A$1:$F$61,D$5,FALSE)) ->  | E123: =IF(ISNA(VLOOKUP($A123,'Entry List'!$A$1:$F$61,E$5,FALSE)),"",VLOOKUP($A123,'Entry List'!$A$1:$F$61,E$5,FALSE)) ->  | G123: DNS | H123: 0 | I123: DNS | J123: 0 | K123: DNS | L123: 0 | M123: DNS | N123: 0 | O123: DNS | P123: 0 | Q123: DNS | R123: 0 | S123: DNS | T123: 0 | U123: DNS | V123: 0 | W123: DNS | X123: 0 | Y123: DNS | Z123: 0 | AA123: DNS | AB123: 0 | AC123: DNS | AD123: 0 | AE123: DNS | AF123: 0 | AG123: DNS | AH123: 0 | AI123: DNS | AJ123: 0 | AK123: DNS | AL123: 0 | AM123: DNS | AN123: 0 | AO123: DNS | AP123: 0 | AQ123: DNS | AR123: 0 | AS123: DNS | AT123: 0 | AU123: DNS | AV123: 0 | AW123: DNS | AX123: 0 | AY123: DNS | AZ123: 0 | BA123: DNS | BB123: 0 | BC123: DNS | BD123: 0 | BE123: =IF('Last Race Results'!$B$5=0,0,IF(ISNA(VLOOKUP($A123,'Last Race Results'!$A$5:$J$44,2,FALSE)),"DNS",VLOOKUP($A123,'Last Race Results'!$A$5:$J$44,2,FALSE))) -> DNS | BF123: =IF('Last Race Results'!$B$5=0,0,IF(ISNA(VLOOKUP($A123,'Last Race Results'!$A$5:$K$44,11,FALSE)),0,VLOOKUP($A123,'Last Race Results'!$A$5:$K$44,11,FALSE))) -> 0
A124: 107 | B124: =IF(ISNA(VLOOKUP($A124,'Entry List'!$A$1:$F$61,B$5,FALSE)),"",VLOOKUP($A124,'Entry List'!$A$1:$F$61,B$5,FALSE)) ->  | C124: =IF(ISNA(VLOOKUP($A124,'Entry List'!$A$1:$F$61,C$5,FALSE)),"",VLOOKUP($A124,'Entry List'!$A$1:$F$61,C$5,FALSE)) ->  | D124: =IF(ISNA(VLOOKUP($A124,'Entry List'!$A$1:$F$61,D$5,FALSE)),"",VLOOKUP($A124,'Entry List'!$A$1:$F$61,D$5,FALSE)) ->  | E124: =IF(ISNA(VLOOKUP($A124,'Entry List'!$A$1:$F$61,E$5,FALSE)),"",VLOOKUP($A124,'Entry List'!$A$1:$F$61,E$5,FALSE)) ->  | G124: DNS | H124: 0 | I124: DNS | J124: 0 | K124: DNS | L124: 0 | M124: DNS | N124: 0 | O124: DNS | P124: 0 | Q124: DNS | R124: 0 | S124: DNS | T124: 0 | U124: DNS | V124: 0 | W124: DNS | X124: 0 | Y124: DNS | Z124: 0 | AA124: DNS | AB124: 0 | AC124: DNS | AD124: 0 | AE124: DNS | AF124: 0 | AG124: DNS | AH124: 0 | AI124: DNS | AJ124: 0 | AK124: DNS | AL124: 0 | AM124: DNS | AN124: 0 | AO124: DNS | AP124: 0 | AQ124: DNS | AR124: 0 | AS124: DNS | AT124: 0 | AU124: DNS | AV124: 0 | AW124: DNS | AX124: 0 | AY124: DNS | AZ124: 0 | BA124: DNS | BB124: 0 | BC124: DNS | BD124: 0 | BE124: =IF('Last Race Results'!$B$5=0,0,IF(ISNA(VLOOKUP($A124,'Last Race Results'!$A$5:$J$44,2,FALSE)),"DNS",VLOOKUP($A124,'Last Race Results'!$A$5:$J$44,2,FALSE))) -> DNS | BF124: =IF('Last Race Results'!$B$5=0,0,IF(ISNA(VLOOKUP($A124,'Last Race Results'!$A$5:$K$44,11,FALSE)),0,VLOOKUP($A124,'Last Race Results'!$A$5:$K$44,11,FALSE))) -> 0
A125: 108 | B125: =IF(ISNA(VLOOKUP($A125,'Entry List'!$A$1:$F$61,B$5,FALSE)),"",VLOOKUP($A125,'Entry List'!$A$1:$F$61,B$5,FALSE)) ->  | C125: =IF(ISNA(VLOOKUP($A125,'Entry List'!$A$1:$F$61,C$5,FALSE)),"",VLOOKUP($A125,'Entry List'!$A$1:$F$61,C$5,FALSE)) ->  | D125: =IF(ISNA(VLOOKUP($A125,'Entry List'!$A$1:$F$61,D$5,FALSE)),"",VLOOKUP($A125,'Entry List'!$A$1:$F$61,D$5,FALSE)) ->  | E125: =IF(ISNA(VLOOKUP($A125,'Entry List'!$A$1:$F$61,E$5,FALSE)),"",VLOOKUP($A125,'Entry List'!$A$1:$F$61,E$5,FALSE)) ->  | G125: DNS | H125: 0 | I125: DNS | J125: 0 | K125: DNS | L125: 0 | M125: DNS | N125: 0 | O125: DNS | P125: 0 | Q125: DNS | R125: 0 | S125: DNS | T125: 0 | U125: DNS | V125: 0 | W125: DNS | X125: 0 | Y125: DNS | Z125: 0 | AA125: DNS | AB125: 0 | AC125: DNS | AD125: 0 | AE125: DNS | AF125: 0 | AG125: DNS | AH125: 0 | AI125: DNS | AJ125: 0 | AK125: DNS | AL125: 0 | AM125: DNS | AN125: 0 | AO125: DNS | AP125: 0 | AQ125: DNS | AR125: 0 | AS125: DNS | AT125: 0 | AU125: DNS | AV125: 0 | AW125: DNS | AX125: 0 | AY125: DNS | AZ125: 0 | BA125: DNS | BB125: 0 | BC125: DNS | BD125: 0 | BE125: =IF('Last Race Results'!$B$5=0,0,IF(ISNA(VLOOKUP($A125,'Last Race Results'!$A$5:$J$44,2,FALSE)),"DNS",VLOOKUP($A125,'Last Race Results'!$A$5:$J$44,2,FALSE))) -> DNS | BF125: =IF('Last Race Results'!$B$5=0,0,IF(ISNA(VLOOKUP($A125,'Last Race Results'!$A$5:$K$44,11,FALSE)),0,VLOOKUP($A125,'Last Race Results'!$A$5:$K$44,11,FALSE))) -> 0
A126: 109 | B126: =IF(ISNA(VLOOKUP($A126,'Entry List'!$A$1:$F$61,B$5,FALSE)),"",VLOOKUP($A126,'Entry List'!$A$1:$F$61,B$5,FALSE)) ->  | C126: =IF(ISNA(VLOOKUP($A126,'Entry List'!$A$1:$F$61,C$5,FALSE)),"",VLOOKUP($A126,'Entry List'!$A$1:$F$61,C$5,FALSE)) ->  | D126: =IF(ISNA(VLOOKUP($A126,'Entry List'!$A$1:$F$61,D$5,FALSE)),"",VLOOKUP($A126,'Entry List'!$A$1:$F$61,D$5,FALSE)) ->  | E126: =IF(ISNA(VLOOKUP($A126,'Entry List'!$A$1:$F$61,E$5,FALSE)),"",VLOOKUP($A126,'Entry List'!$A$1:$F$61,E$5,FALSE)) ->  | G126: DNS | H126: 0 | I126: DNS | J126: 0 | K126: DNS | L126: 0 | M126: DNS | N126: 0 | O126: DNS | P126: 0 | Q126: DNS | R126: 0 | S126: DNS | T126: 0 | U126: DNS | V126: 0 | W126: DNS | X126: 0 | Y126: DNS | Z126: 0 | AA126: DNS | AB126: 0 | AC126: DNS | AD126: 0 | AE126: DNS | AF126: 0 | AG126: DNS | AH126: 0 | AI126: DNS | AJ126: 0 | AK126: DNS | AL126: 0 | AM126: DNS | AN126: 0 | AO126: DNS | AP126: 0 | AQ126: DNS | AR126: 0 | AS126: DNS | AT126: 0 | AU126: DNS | AV126: 0 | AW126: DNS | AX126: 0 | AY126: DNS | AZ126: 0 | BA126: DNS | BB126: 0 | BC126: DNS | BD126: 0 | BE126: =IF('Last Race Results'!$B$5=0,0,IF(ISNA(VLOOKUP($A126,'Last Race Results'!$A$5:$J$44,2,FALSE)),"DNS",VLOOKUP($A126,'Last Race Results'!$A$5:$J$44,2,FALSE))) -> DNS | BF126: =IF('Last Race Results'!$B$5=0,0,IF(ISNA(VLOOKUP($A126,'Last Race Results'!$A$5:$K$44,11,FALSE)),0,VLOOKUP($A126,'Last Race Results'!$A$5:$K$44,11,FALSE))) -> 0
A127: 110 | B127: =IF(ISNA(VLOOKUP($A127,'Entry List'!$A$1:$F$61,B$5,FALSE)),"",VLOOKUP($A127,'Entry List'!$A$1:$F$61,B$5,FALSE)) ->  | C127: =IF(ISNA(VLOOKUP($A127,'Entry List'!$A$1:$F$61,C$5,FALSE)),"",VLOOKUP($A127,'Entry List'!$A$1:$F$61,C$5,FALSE)) ->  | D127: =IF(ISNA(VLOOKUP($A127,'Entry List'!$A$1:$F$61,D$5,FALSE)),"",VLOOKUP($A127,'Entry List'!$A$1:$F$61,D$5,FALSE)) ->  | E127: =IF(ISNA(VLOOKUP($A127,'Entry List'!$A$1:$F$61,E$5,FALSE)),"",VLOOKUP($A127,'Entry List'!$A$1:$F$61,E$5,FALSE)) ->  | G127: DNS | H127: 0 | I127: DNS | J127: 0 | K127: DNS | L127: 0 | M127: DNS | N127: 0 | O127: DNS | P127: 0 | Q127: DNS | R127: 0 | S127: DNS | T127: 0 | U127: DNS | V127: 0 | W127: DNS | X127: 0 | Y127: DNS | Z127: 0 | AA127: DNS | AB127: 0 | AC127: DNS | AD127: 0 | AE127: DNS | AF127: 0 | AG127: DNS | AH127: 0 | AI127: DNS | AJ127: 0 | AK127: DNS | AL127: 0 | AM127: DNS | AN127: 0 | AO127: DNS | AP127: 0 | AQ127: DNS | AR127: 0 | AS127: DNS | AT127: 0 | AU127: DNS | AV127: 0 | AW127: DNS | AX127: 0 | AY127: DNS | AZ127: 0 | BA127: DNS | BB127: 0 | BC127: DNS | BD127: 0 | BE127: =IF('Last Race Results'!$B$5=0,0,IF(ISNA(VLOOKUP($A127,'Last Race Results'!$A$5:$J$44,2,FALSE)),"DNS",VLOOKUP($A127,'Last Race Results'!$A$5:$J$44,2,FALSE))) -> DNS | BF127: =IF('Last Race Results'!$B$5=0,0,IF(ISNA(VLOOKUP($A127,'Last Race Results'!$A$5:$K$44,11,FALSE)),0,VLOOKUP($A127,'Last Race Results'!$A$5:$K$44,11,FALSE))) -> 0
A128: 111 | B128: =IF(ISNA(VLOOKUP($A128,'Entry List'!$A$1:$F$61,B$5,FALSE)),"",VLOOKUP($A128,'Entry List'!$A$1:$F$61,B$5,FALSE)) ->  | C128: =IF(ISNA(VLOOKUP($A128,'Entry List'!$A$1:$F$61,C$5,FALSE)),"",VLOOKUP($A128,'Entry List'!$A$1:$F$61,C$5,FALSE)) ->  | D128: =IF(ISNA(VLOOKUP($A128,'Entry List'!$A$1:$F$61,D$5,FALSE)),"",VLOOKUP($A128,'Entry List'!$A$1:$F$61,D$5,FALSE)) ->  | E128: =IF(ISNA(VLOOKUP($A128,'Entry List'!$A$1:$F$61,E$5,FALSE)),"",VLOOKUP($A128,'Entry List'!$A$1:$F$61,E$5,FALSE)) ->  | G128: DNS | H128: 0 | I128: DNS | J128: 0 | K128: DNS | L128: 0 | M128: DNS | N128: 0 | O128: DNS | P128: 0 | Q128: DNS | R128: 0 | S128: DNS | T128: 0 | U128: DNS | V128: 0 | W128: DNS | X128: 0 | Y128: DNS | Z128: 0 | AA128: DNS | AB128: 0 | AC128: DNS | AD128: 0 | AE128: DNS | AF128: 0 | AG128: DNS | AH128: 0 | AI128: DNS | AJ128: 0 | AK128: DNS | AL128: 0 | AM128: DNS | AN128: 0 | AO128: DNS | AP128: 0 | AQ128: DNS | AR128: 0 | AS128: DNS | AT128: 0 | AU128: DNS | AV128: 0 | AW128: DNS | AX128: 0 | AY128: DNS | AZ128: 0 | BA128: DNS | BB128: 0 | BC128: DNS | BD128: 0 | BE128: =IF('Last Race Results'!$B$5=0,0,IF(ISNA(VLOOKUP($A128,'Last Race Results'!$A$5:$J$44,2,FALSE)),"DNS",VLOOKUP($A128,'Last Race Results'!$A$5:$J$44,2,FALSE))) -> DNS | BF128: =IF('Last Race Results'!$B$5=0,0,IF(ISNA(VLOOKUP($A128,'Last Race Results'!$A$5:$K$44,11,FALSE)),0,VLOOKUP($A128,'Last Race Results'!$A$5:$K$44,11,FALSE))) -> 0
A129: 112 | B129: =IF(ISNA(VLOOKUP($A129,'Entry List'!$A$1:$F$61,B$5,FALSE)),"",VLOOKUP($A129,'Entry List'!$A$1:$F$61,B$5,FALSE)) ->  | C129: =IF(ISNA(VLOOKUP($A129,'Entry List'!$A$1:$F$61,C$5,FALSE)),"",VLOOKUP($A129,'Entry List'!$A$1:$F$61,C$5,FALSE)) ->  | D129: =IF(ISNA(VLOOKUP($A129,'Entry List'!$A$1:$F$61,D$5,FALSE)),"",VLOOKUP($A129,'Entry List'!$A$1:$F$61,D$5,FALSE)) ->  | E129: =IF(ISNA(VLOOKUP($A129,'Entry List'!$A$1:$F$61,E$5,FALSE)),"",VLOOKUP($A129,'Entry List'!$A$1:$F$61,E$5,FALSE)) ->  | G129: DNS | H129: 0 | I129: DNS | J129: 0 | K129: DNS | L129: 0 | M129: DNS | N129: 0 | O129: DNS | P129: 0 | Q129: DNS | R129: 0 | S129: DNS | T129: 0 | U129: DNS | V129: 0 | W129: DNS | X129: 0 | Y129: DNS | Z129: 0 | AA129: DNS | AB129: 0 | AC129: DNS | AD129: 0 | AE129: DNS | AF129: 0 | AG129: DNS | AH129: 0 | AI129: DNS | AJ129: 0 | AK129: DNS | AL129: 0 | AM129: DNS | AN129: 0 | AO129: DNS | AP129: 0 | AQ129: DNS | AR129: 0 | AS129: DNS | AT129: 0 | AU129: DNS | AV129: 0 | AW129: DNS | AX129: 0 | AY129: DNS | AZ129: 0 | BA129: DNS | BB129: 0 | BC129: DNS | BD129: 0 | BE129: =IF('Last Race Results'!$B$5=0,0,IF(ISNA(VLOOKUP($A129,'Last Race Results'!$A$5:$J$44,2,FALSE)),"DNS",VLOOKUP($A129,'Last Race Results'!$A$5:$J$44,2,FALSE))) -> DNS | BF129: =IF('Last Race Results'!$B$5=0,0,IF(ISNA(VLOOKUP($A129,'Last Race Results'!$A$5:$K$44,11,FALSE)),0,VLOOKUP($A129,'Last Race Results'!$A$5:$K$44,11,FALSE))) -> 0
A130: 113 | B130: =IF(ISNA(VLOOKUP($A130,'Entry List'!$A$1:$F$61,B$5,FALSE)),"",VLOOKUP($A130,'Entry List'!$A$1:$F$61,B$5,FALSE)) ->  | C130: =IF(ISNA(VLOOKUP($A130,'Entry List'!$A$1:$F$61,C$5,FALSE)),"",VLOOKUP($A130,'Entry List'!$A$1:$F$61,C$5,FALSE)) ->  | D130: =IF(ISNA(VLOOKUP($A130,'Entry List'!$A$1:$F$61,D$5,FALSE)),"",VLOOKUP($A130,'Entry List'!$A$1:$F$61,D$5,FALSE)) ->  | E130: =IF(ISNA(VLOOKUP($A130,'Entry List'!$A$1:$F$61,E$5,FALSE)),"",VLOOKUP($A130,'Entry List'!$A$1:$F$61,E$5,FALSE)) ->  | G130: DNS | H130: 0 | I130: DNS | J130: 0 | K130: DNS | L130: 0 | M130: DNS | N130: 0 | O130: DNS | P130: 0 | Q130: DNS | R130: 0 | S130: DNS | T130: 0 | U130: DNS | V130: 0 | W130: DNS | X130: 0 | Y130: DNS | Z130: 0 | AA130: DNS | AB130: 0 | AC130: DNS | AD130: 0 | AE130: DNS | AF130: 0 | AG130: DNS | AH130: 0 | AI130: DNS | AJ130: 0 | AK130: DNS | AL130: 0 | AM130: DNS | AN130: 0 | AO130: DNS | AP130: 0 | AQ130: DNS | AR130: 0 | AS130: DNS | AT130: 0 | AU130: DNS | AV130: 0 | AW130: DNS | AX130: 0 | AY130: DNS | AZ130: 0 | BA130: DNS | BB130: 0 | BC130: DNS | BD130: 0 | BE130: =IF('Last Race Results'!$B$5=0,0,IF(ISNA(VLOOKUP($A130,'Last Race Results'!$A$5:$J$44,2,FALSE)),"DNS",VLOOKUP($A130,'Last Race Results'!$A$5:$J$44,2,FALSE))) -> DNS | BF130: =IF('Last Race Results'!$B$5=0,0,IF(ISNA(VLOOKUP($A130,'Last Race Results'!$A$5:$K$44,11,FALSE)),0,VLOOKUP($A130,'Last Race Results'!$A$5:$K$44,11,FALSE))) -> 0
A131: 114 | B131: =IF(ISNA(VLOOKUP($A131,'Entry List'!$A$1:$F$61,B$5,FALSE)),"",VLOOKUP($A131,'Entry List'!$A$1:$F$61,B$5,FALSE)) ->  | C131: =IF(ISNA(VLOOKUP($A131,'Entry List'!$A$1:$F$61,C$5,FALSE)),"",VLOOKUP($A131,'Entry List'!$A$1:$F$61,C$5,FALSE)) ->  | D131: =IF(ISNA(VLOOKUP($A131,'Entry List'!$A$1:$F$61,D$5,FALSE)),"",VLOOKUP($A131,'Entry List'!$A$1:$F$61,D$5,FALSE)) ->  | E131: =IF(ISNA(VLOOKUP($A131,'Entry List'!$A$1:$F$61,E$5,FALSE)),"",VLOOKUP($A131,'Entry List'!$A$1:$F$61,E$5,FALSE)) ->  | G131: DNS | H131: 0 | I131: DNS | J131: 0 | K131: DNS | L131: 0 | M131: DNS | N131: 0 | O131: DNS | P131: 0 | Q131: DNS | R131: 0 | S131: DNS | T131: 0 | U131: DNS | V131: 0 | W131: DNS | X131: 0 | Y131: DNS | Z131: 0 | AA131: DNS | AB131: 0 | AC131: DNS | AD131: 0 | AE131: DNS | AF131: 0 | AG131: DNS | AH131: 0 | AI131: DNS | AJ131: 0 | AK131: DNS | AL131: 0 | AM131: DNS | AN131: 0 | AO131: DNS | AP131: 0 | AQ131: DNS | AR131: 0 | AS131: DNS | AT131: 0 | AU131: DNS | AV131: 0 | AW131: DNS | AX131: 0 | AY131: DNS | AZ131: 0 | BA131: DNS | BB131: 0 | BC131: DNS | BD131: 0 | BE131: =IF('Last Race Results'!$B$5=0,0,IF(ISNA(VLOOKUP($A131,'Last Race Results'!$A$5:$J$44,2,FALSE)),"DNS",VLOOKUP($A131,'Last Race Results'!$A$5:$J$44,2,FALSE))) -> DNS | BF131: =IF('Last Race Results'!$B$5=0,0,IF(ISNA(VLOOKUP($A131,'Last Race Results'!$A$5:$K$44,11,FALSE)),0,VLOOKUP($A131,'Last Race Results'!$A$5:$K$44,11,FALSE))) -> 0
A132: 115 | B132: =IF(ISNA(VLOOKUP($A132,'Entry List'!$A$1:$F$61,B$5,FALSE)),"",VLOOKUP($A132,'Entry List'!$A$1:$F$61,B$5,FALSE)) ->  | C132: =IF(ISNA(VLOOKUP($A132,'Entry List'!$A$1:$F$61,C$5,FALSE)),"",VLOOKUP($A132,'Entry List'!$A$1:$F$61,C$5,FALSE)) ->  | D132: =IF(ISNA(VLOOKUP($A132,'Entry List'!$A$1:$F$61,D$5,FALSE)),"",VLOOKUP($A132,'Entry List'!$A$1:$F$61,D$5,FALSE)) ->  | E132: =IF(ISNA(VLOOKUP($A132,'Entry List'!$A$1:$F$61,E$5,FALSE)),"",VLOOKUP($A132,'Entry List'!$A$1:$F$61,E$5,FALSE)) ->  | G132: DNS | H132: 0 | I132: DNS | J132: 0 | K132: DNS | L132: 0 | M132: DNS | N132: 0 | O132: DNS | P132: 0 | Q132: DNS | R132: 0 | S132: DNS | T132: 0 | U132: DNS | V132: 0 | W132: DNS | X132: 0 | Y132: DNS | Z132: 0 | AA132: DNS | AB132: 0 | AC132: DNS | AD132: 0 | AE132: DNS | AF132: 0 | AG132: DNS | AH132: 0 | AI132: DNS | AJ132: 0 | AK132: DNS | AL132: 0 | AM132: DNS | AN132: 0 | AO132: DNS | AP132: 0 | AQ132: DNS | AR132: 0 | AS132: DNS | AT132: 0 | AU132: DNS | AV132: 0 | AW132: DNS | AX132: 0 | AY132: DNS | AZ132: 0 | BA132: DNS | BB132: 0 | BC132: DNS | BD132: 0 | BE132: =IF('Last Race Results'!$B$5=0,0,IF(ISNA(VLOOKUP($A132,'Last Race Results'!$A$5:$J$44,2,FALSE)),"DNS",VLOOKUP($A132,'Last Race Results'!$A$5:$J$44,2,FALSE))) -> DNS | BF132: =IF('Last Race Results'!$B$5=0,0,IF(ISNA(VLOOKUP($A132,'Last Race Results'!$A$5:$K$44,11,FALSE)),0,VLOOKUP($A132,'Last Race Results'!$A$5:$K$44,11,FALSE))) -> 0
A133: 116 | B133: =IF(ISNA(VLOOKUP($A133,'Entry List'!$A$1:$F$61,B$5,FALSE)),"",VLOOKUP($A133,'Entry List'!$A$1:$F$61,B$5,FALSE)) -> Kaz Grala (i) | C133: =IF(ISNA(VLOOKUP($A133,'Entry List'!$A$1:$F$61,C$5,FALSE)),"",VLOOKUP($A133,'Entry List'!$A$1:$F$61,C$5,FALSE)) -> Chevrolet | D133: =IF(ISNA(VLOOKUP($A133,'Entry List'!$A$1:$F$61,D$5,FALSE)),"",VLOOKUP($A133,'Entry List'!$A$1:$F$61,D$5,FALSE)) -> Kaulig Racing | E133: =IF(ISNA(VLOOKUP($A133,'Entry List'!$A$1:$F$61,E$5,FALSE)),"",VLOOKUP($A133,'Entry List'!$A$1:$F$61,E$5,FALSE)) -> Kaulig Racing | G133: DNS | H133: 0 | I133: DNS | J133: 0 | K133: DNS | L133: 0 | M133: DNS | N133: 0 | O133: DNS | P133: 0 | Q133: DNS | R133: 0 | S133: DNS | T133: 0 | U133: DNS | V133: 0 | W133: DNS | X133: 0 | Y133: DNS | Z133: 0 | AA133: DNS | AB133: 0 | AC133: DNS | AD133: 0 | AE133: DNS | AF133: 0 | AG133: DNS | AH133: 0 | AI133: DNS | AJ133: 0 | AK133: DNS | AL133: 0 | AM133: DNS | AN133: 0 | AO133: DNS | AP133: 0 | AQ133: DNS | AR133: 0 | AS133: 29 | AT133: 8 | AU133: DNS | AV133: 0 | AW133: DNS | AX133: 0 | AY133: DNS | AZ133: 0 | BA133: 1 | BB133: 40 | BC133: DNS | BD133: 0 | BE133: =IF('Last Race Results'!$B$5=0,0,IF(ISNA(VLOOKUP($A133,'Last Race Results'!$A$5:$J$44,2,FALSE)),"DNS",VLOOKUP($A133,'Last Race Results'!$A$5:$J$44,2,FALSE))) -> DNS | BF133: =IF('Last Race Results'!$B$5=0,0,IF(ISNA(VLOOKUP($A133,'Last Race Results'!$A$5:$K$44,11,FALSE)),0,VLOOKUP($A133,'Last Race Results'!$A$5:$K$44,11,FALSE))) -> 0
A134: 117 | B134: =IF(ISNA(VLOOKUP($A134,'Entry List'!$A$1:$F$61,B$5,FALSE)),"",VLOOKUP($A134,'Entry List'!$A$1:$F$61,B$5,FALSE)) ->  | C134: =IF(ISNA(VLOOKUP($A134,'Entry List'!$A$1:$F$61,C$5,FALSE)),"",VLOOKUP($A134,'Entry List'!$A$1:$F$61,C$5,FALSE)) ->  | D134: =IF(ISNA(VLOOKUP($A134,'Entry List'!$A$1:$F$61,D$5,FALSE)),"",VLOOKUP($A134,'Entry List'!$A$1:$F$61,D$5,FALSE)) ->  | E134: =IF(ISNA(VLOOKUP($A134,'Entry List'!$A$1:$F$61,E$5,FALSE)),"",VLOOKUP($A134,'Entry List'!$A$1:$F$61,E$5,FALSE)) ->  | G134: DNS | H134: 0 | I134: DNS | J134: 0 | K134: DNS | L134: 0 | M134: DNS | N134: 0 | O134: DNS | P134: 0 | Q134: DNS | R134: 0 | S134: DNS | T134: 0 | U134: DNS | V134: 0 | W134: DNS | X134: 0 | Y134: DNS | Z134: 0 | AA134: DNS | AB134: 0 | AC134: DNS | AD134: 0 | AE134: DNS | AF134: 0 | AG134: DNS | AH134: 0 | AI134: DNS | AJ134: 0 | AK134: DNS | AL134: 0 | AM134: DNS | AN134: 0 | AO134: DNS | AP134: 0 | AQ134: DNS | AR134: 0 | AS134: DNS | AT134: 0 | AU134: DNS | AV134: 0 | AW134: DNS | AX134: 0 | AY134: DNS | AZ134: 0 | BA134: DNS | BB134: 0 | BC134: DNS | BD134: 0 | BE134: =IF('Last Race Results'!$B$5=0,0,IF(ISNA(VLOOKUP($A134,'Last Race Results'!$A$5:$J$44,2,FALSE)),"DNS",VLOOKUP($A134,'Last Race Results'!$A$5:$J$44,2,FALSE))) -> DNS | BF134: =IF('Last Race Results'!$B$5=0,0,IF(ISNA(VLOOKUP($A134,'Last Race Results'!$A$5:$K$44,11,FALSE)),0,VLOOKUP($A134,'Last Race Results'!$A$5:$K$44,11,FALSE))) -> 0
A135: 118 | B135: =IF(ISNA(VLOOKUP($A135,'Entry List'!$A$1:$F$61,B$5,FALSE)),"",VLOOKUP($A135,'Entry List'!$A$1:$F$61,B$5,FALSE)) ->  | C135: =IF(ISNA(VLOOKUP($A135,'Entry List'!$A$1:$F$61,C$5,FALSE)),"",VLOOKUP($A135,'Entry List'!$A$1:$F$61,C$5,FALSE)) ->  | D135: =IF(ISNA(VLOOKUP($A135,'Entry List'!$A$1:$F$61,D$5,FALSE)),"",VLOOKUP($A135,'Entry List'!$A$1:$F$61,D$5,FALSE)) ->  | E135: =IF(ISNA(VLOOKUP($A135,'Entry List'!$A$1:$F$61,E$5,FALSE)),"",VLOOKUP($A135,'Entry List'!$A$1:$F$61,E$5,FALSE)) ->  | G135: DNS | H135: 0 | I135: DNS | J135: 0 | K135: DNS | L135: 0 | M135: DNS | N135: 0 | O135: DNS | P135: 0 | Q135: DNS | R135: 0 | S135: DNS | T135: 0 | U135: DNS | V135: 0 | W135: DNS | X135: 0 | Y135: DNS | Z135: 0 | AA135: DNS | AB135: 0 | AC135: DNS | AD135: 0 | AE135: DNS | AF135: 0 | AG135: DNS | AH135: 0 | AI135: DNS | AJ135: 0 | AK135: DNS | AL135: 0 | AM135: DNS | AN135: 0 | AO135: DNS | AP135: 0 | AQ135: DNS | AR135: 0 | AS135: DNS | AT135: 0 | AU135: DNS | AV135: 0 | AW135: DNS | AX135: 0 | AY135: DNS | AZ135: 0 | BA135: DNS | BB135: 0 | BC135: DNS | BD135: 0 | BE135: =IF('Last Race Results'!$B$5=0,0,IF(ISNA(VLOOKUP($A135,'Last Race Results'!$A$5:$J$44,2,FALSE)),"DNS",VLOOKUP($A135,'Last Race Results'!$A$5:$J$44,2,FALSE))) -> DNS | BF135: =IF('Last Race Results'!$B$5=0,0,IF(ISNA(VLOOKUP($A135,'Last Race Results'!$A$5:$K$44,11,FALSE)),0,VLOOKUP($A135,'Last Race Results'!$A$5:$K$44,11,FALSE))) -> 0
A136: 119 | B136: =IF(ISNA(VLOOKUP($A136,'Entry List'!$A$1:$F$61,B$5,FALSE)),"",VLOOKUP($A136,'Entry List'!$A$1:$F$61,B$5,FALSE)) ->  | C136: =IF(ISNA(VLOOKUP($A136,'Entry List'!$A$1:$F$61,C$5,FALSE)),"",VLOOKUP($A136,'Entry List'!$A$1:$F$61,C$5,FALSE)) ->  | D136: =IF(ISNA(VLOOKUP($A136,'Entry List'!$A$1:$F$61,D$5,FALSE)),"",VLOOKUP($A136,'Entry List'!$A$1:$F$61,D$5,FALSE)) ->  | E136: =IF(ISNA(VLOOKUP($A136,'Entry List'!$A$1:$F$61,E$5,FALSE)),"",VLOOKUP($A136,'Entry List'!$A$1:$F$61,E$5,FALSE)) ->  | G136: DNS | H136: 0 | I136: DNS | J136: 0 | K136: DNS | L136: 0 | M136: DNS | N136: 0 | O136: DNS | P136: 0 | Q136: DNS | R136: 0 | S136: DNS | T136: 0 | U136: DNS | V136: 0 | W136: DNS | X136: 0 | Y136: DNS | Z136: 0 | AA136: DNS | AB136: 0 | AC136: DNS | AD136: 0 | AE136: DNS | AF136: 0 | AG136: DNS | AH136: 0 | AI136: DNS | AJ136: 0 | AK136: DNS | AL136: 0 | AM136: DNS | AN136: 0 | AO136: DNS | AP136: 0 | AQ136: DNS | AR136: 0 | AS136: DNS | AT136: 0 | AU136: DNS | AV136: 0 | AW136: DNS | AX136: 0 | AY136: DNS | AZ136: 0 | BA136: DNS | BB136: 0 | BC136: DNS | BD136: 0 | BE136: =IF('Last Race Results'!$B$5=0,0,IF(ISNA(VLOOKUP($A136,'Last Race Results'!$A$5:$J$44,2,FALSE)),"DNS",VLOOKUP($A136,'Last Race Results'!$A$5:$J$44,2,FALSE))) -> DNS | BF136: =IF('Last Race Results'!$B$5=0,0,IF(ISNA(VLOOKUP($A136,'Last Race Results'!$A$5:$K$44,11,FALSE)),0,VLOOKUP($A136,'Last Race Results'!$A$5:$K$44,11,FALSE))) -> 0
A137: 120 | B137: =IF(ISNA(VLOOKUP($A137,'Entry List'!$A$1:$F$61,B$5,FALSE)),"",VLOOKUP($A137,'Entry List'!$A$1:$F$61,B$5,FALSE)) ->  | C137: =IF(ISNA(VLOOKUP($A137,'Entry List'!$A$1:$F$61,C$5,FALSE)),"",VLOOKUP($A137,'Entry List'!$A$1:$F$61,C$5,FALSE)) ->  | D137: =IF(ISNA(VLOOKUP($A137,'Entry List'!$A$1:$F$61,D$5,FALSE)),"",VLOOKUP($A137,'Entry List'!$A$1:$F$61,D$5,FALSE)) ->  | E137: =IF(ISNA(VLOOKUP($A137,'Entry List'!$A$1:$F$61,E$5,FALSE)),"",VLOOKUP($A137,'Entry List'!$A$1:$F$61,E$5,FALSE)) ->  | G137: DNS | H137: 0 | I137: DNS | J137: 0 | K137: DNS | L137: 0 | M137: DNS | N137: 0 | O137: DNS | P137: 0 | Q137: DNS | R137: 0 | S137: DNS | T137: 0 | U137: DNS | V137: 0 | W137: DNS | X137: 0 | Y137: DNS | Z137: 0 | AA137: DNS | AB137: 0 | AC137: DNS | AD137: 0 | AE137: DNS | AF137: 0 | AG137: DNS | AH137: 0 | AI137: DNS | AJ137: 0 | AK137: DNS | AL137: 0 | AM137: DNS | AN137: 0 | AO137: DNS | AP137: 0 | AQ137: DNS | AR137: 0 | AS137: DNS | AT137: 0 | AU137: DNS | AV137: 0 | AW137: DNS | AX137: 0 | AY137: DNS | AZ137: 0 | BA137: DNS | BB137: 0 | BC137: DNS | BD137: 0 | BE137: =IF('Last Race Results'!$B$5=0,0,IF(ISNA(VLOOKUP($A137,'Last Race Results'!$A$5:$J$44,2,FALSE)),"DNS",VLOOKUP($A137,'Last Race Results'!$A$5:$J$44,2,FALSE))) -> DNS | BF137: =IF('Last Race Results'!$B$5=0,0,IF(ISNA(VLOOKUP($A137,'Last Race Results'!$A$5:$K$44,11,FALSE)),0,VLOOKUP($A137,'Last Race Results'!$A$5:$K$44,11,FALSE))) -> 0
A138: 121 | B138: =IF(ISNA(VLOOKUP($A138,'Entry List'!$A$1:$F$61,B$5,FALSE)),"",VLOOKUP($A138,'Entry List'!$A$1:$F$61,B$5,FALSE)) ->  | C138: =IF(ISNA(VLOOKUP($A138,'Entry List'!$A$1:$F$61,C$5,FALSE)),"",VLOOKUP($A138,'Entry List'!$A$1:$F$61,C$5,FALSE)) ->  | D138: =IF(ISNA(VLOOKUP($A138,'Entry List'!$A$1:$F$61,D$5,FALSE)),"",VLOOKUP($A138,'Entry List'!$A$1:$F$61,D$5,FALSE)) ->  | E138: =IF(ISNA(VLOOKUP($A138,'Entry List'!$A$1:$F$61,E$5,FALSE)),"",VLOOKUP($A138,'Entry List'!$A$1:$F$61,E$5,FALSE)) ->  | G138: DNS | H138: 0 | I138: DNS | J138: 0 | K138: DNS | L138: 0 | M138: DNS | N138: 0 | O138: DNS | P138: 0 | Q138: DNS | R138: 0 | S138: DNS | T138: 0 | U138: DNS | V138: 0 | W138: DNS | X138: 0 | Y138: DNS | Z138: 0 | AA138: DNS | AB138: 0 | AC138: DNS | AD138: 0 | AE138: DNS | AF138: 0 | AG138: DNS | AH138: 0 | AI138: DNS | AJ138: 0 | AK138: DNS | AL138: 0 | AM138: DNS | AN138: 0 | AO138: DNS | AP138: 0 | AQ138: DNS | AR138: 0 | AS138: DNS | AT138: 0 | AU138: DNS | AV138: 0 | AW138: DNS | AX138: 0 | AY138: DNS | AZ138: 0 | BA138: DNS | BB138: 0 | BC138: DNS | BD138: 0 | BE138: =IF('Last Race Results'!$B$5=0,0,IF(ISNA(VLOOKUP($A138,'Last Race Results'!$A$5:$J$44,2,FALSE)),"DNS",VLOOKUP($A138,'Last Race Results'!$A$5:$J$44,2,FALSE))) -> DNS | BF138: =IF('Last Race Results'!$B$5=0,0,IF(ISNA(VLOOKUP($A138,'Last Race Results'!$A$5:$K$44,11,FALSE)),0,VLOOKUP($A138,'Last Race Results'!$A$5:$K$44,11,FALSE))) -> 0
